Workbook

Sheet Design the AEF circuit
A1: TPSF12C1/-Q1 & TPSF12C3/-Q1 Common-Mode Active EMI Filter (AEF) Design Tool
B3: About | F3: = Input Box | I3: Terms Of Use
A6: Step 1: Enter application parameters
A7: System type?
B9: Nominal input voltage | C9: 230 | D9: VRMS
B10: Rated input current | C10: 32 | D10: ARMS
B11: Switching frequency | C11: 100 | D11: kHz
B12: Power level | C12: =C9*C10/1000*No_of_phases -> 7.36 | D12: kW
A14: Step 2: Enter CM choke and Y-capacitor data
A15: CM choke model? | E15: ® | F15: =IF(CMdata=1,"Enter CM choke impedance model parameters here:","Enter CM choke impedance (magnitude & phase) data vs. frequency in the ""CM choke"" tab") -> Enter CM choke impedance (magnitude & phase) data vs. frequency in the "CM choke" tab | J15: =IF(F13="Simple Model: L || R || C","","") ->  | K15: =IF(F13="Simple Model: L || R || C","","") -> 
F16: CM choke model #1 → | G16: Grid-side choke, LCM1 | H16: Regulator-side choke, LCM2
A17: Grid-side Y-capacitors (each)
A18: Capacitance | C18: 0.47 | D18: nF | F18: Inductance, LMAG (mH) | G18: 12 | H18: 12
A19: ESR | C19: 5 | D19: Ω | F19: Resistance, RPAR (kΩ) | G19: 2 | H19: 2
A20: ESL | C20: 15 | D20: nH | F20: Capacitance, CPAR (pF) | G20: 22 | H20: 22
F21: Inductance, LMAG2 [mH] | G21: 6.4 | H21: 6.4
A22: Regulator-side Y-capacitors (each) | F22: Resistance, RPAR2 [kW] | G22: 4 | H22: 4
A23: Capacitance | C23: 4.7 | D23: nF | F23: Inductance, LMAG3 [mH] | G23: 1.6 | H23: 1.6
A24: ESR | C24: 5 | D24: Ω | F24: Resistance, RPAR3 [kW] | G24: 10 | H24: 10
A25: ESL | C25: 15 | D25: nH
A27: Step 3: Enter source impedances
A28: Grid source impedance (each power line)
A29: LGRID | C29: 10 | D29: µH
A30: RGRID | C30: 10 | D30: mΩ
A31: LISN present? | C31: 10
A33: Regulator CM noise source impedance (parasitic)
A34: CSRC | C34: 100 | D34: pF
A35: RSRC | C35: 10 | D35: mΩ
A36: LSRC | C36: 10 | D36: nH
A38: Step 4: Enter SENSE and INJECT capacitor parameters
A39: Sense capacitors - CSENx (each)
A40: Capacitance | C40: 0.68 | D40: nF
A41: ESR | C41: 10 | D41: Ω
A42: ESL | C42: 15 | D42: nH
A44: Inject capacitor - CINJ
A45: Capacitance | C45: 2.2 | D45: nF
A46: ESR | C46: 5 | D46: Ω
A47: ESL | C47: 15 | D47: nH
A49: Step 5: Set the COMP1-to-COMP2 component values
A50: RG | C50: 7.5 | D50: kΩ
A51: CG1 | C51: 10 | D51: nF
A52: CG2 | C52: =B52 -> 0 | D52: pF
A54: Step 6: Review damping network component values
B55: Calculated | C55: Selected
A56: RD1 | B56: ='Stability calculations'!B52/1000 -> 1 | C56: =B56 -> 1 | D56: kΩ
A57: CD2 | B57: =ROUND('Stability calculations'!B55*1000000000,1) -> 88.9 | C57: =B57 -> 88.9 | D57: nF
A58: CD1 | B58: =ROUND('Stability calculations'!B53*1000000000,1) -> 11.1 | C58: =B58 -> 11.1 | D58: nF
A59: RD2 | B59: ='Stability calculations'!B56 -> 125 | C59: =B59 -> 125 | D59: Ω
A60: RD1A | B60: ='Stability calculations'!B54 -> 50 | C60: =B60 -> 50 | D60: Ω
A61: RD3 | B61: ='Stability calculations'!B57 -> 700 | C61: =B61 -> 700 | D61: Ω
A62: CD3 | B62: =ROUND('Stability calculations'!B58*1000000000,2) -> 2.2 | C62: =B62 -> 2.2 | D62: nF
A63: fLFstability | C63: ='Stability calculations'!D35/1000 -> 8.9497 | D63: kHz
A64: fRD1-CD2 | C64: ='Stability calculations'!$D$46/1000 -> 1.790269326 | D64: kHz
A65: fRD1-CD1 | C65: ='Stability calculations'!$D$42/1000 -> 14.33828316 | D65: kHz
A66: fRD2-CD2 | C66: ='Stability calculations'!$D$43/1000 -> 14.32215461 | D66: kHz
A67: fRD3-CD3 | C67: ='Stability calculations'!$D$44/1000 -> 103.3473656 | D67: kHz
A68: fRD1A-CD1 | C68: ='Stability calculations'!$D$45/1000000 -> 0.2867656632 | D68: MHz

Sheet Schematic management (hidden)
A1: =SETUP -> 1
A2: =CHOOSE(SETUP,"TPSF12C1","TPSF12C3_4wire","TPSF12C3_3wire") -> TPSF12C1

Sheet CM choke
A2: Enter/paste the CM choke impedance (magnitude & phase) data here:
C4: Grid-side CM choke | E4: Regulator-side CM choke
C5: LCM1 | E5: LCM2
A6: CM Choke Model #2 → | B6: Frequency [Hz] | C6: ZCM1 Magnitude [Ω] | D6: ZCM1 Phase [°] | E6: ZCM2 Magnitude [Ω] | F6: ZCM2 Phase [°]
A7: =IF(CMdata=1,"","Min. frequency") -> Min. frequency | B7: 100 | C7: 8.526049114 | D7: 90.80422776 | E7: 8.526049114 | F7: 90.80422776
A8: =IF(CMdata=1,"",_xlfn.CONCAT(MIN(B7:B2106)/1000," kHz")) -> 0.1 kHz | B8: 101.2704183 | C8: 8.509741697 | D8: 91.14232535 | E8: 8.509741697 | F8: 91.14232535
A9: =IF(CMdata=1,"","Max. frequency") -> Max. frequency | B9: 102.5569762 | C9: 8.531567311 | D9: 90.45218453 | E9: 8.531567311 | F9: 90.45218453
A10: =IF(CMdata=1,"",_xlfn.CONCAT(MAX(B7:B2106)/1000000," MHz")) -> 30 MHz | B10: 103.8598788 | C10: 8.794731099 | D10: 90.49113795 | E10: 8.794731099 | F10: 90.49113795
B11: 105.1793337 | C11: 8.705131521 | D11: 90.77250696 | E11: 8.705131521 | F11: 90.77250696
B12: 106.5155512 | C12: 8.971824916 | D12: 90.33342206 | E12: 8.971824916 | F12: 90.33342206
B13: 107.8687443 | C13: 9.043872754 | D13: 90.52039808 | E13: 9.043872754 | F13: 90.52039808
B14: 109.2391286 | C14: 9.222463468 | D14: 91.22622555 | E14: 9.222463468 | F14: 91.22622555
B15: 110.6269225 | C15: 9.210062492 | D15: 90.80594577 | E15: 9.210062492 | F15: 90.80594577
B16: 112.0323471 | C16: 9.274126148 | D16: 90.03033825 | E16: 9.274126148 | F16: 90.03033825
B17: 113.4556266 | C17: 9.555708764 | D17: 90.59162308 | E17: 9.555708764 | F17: 90.59162308
B18: 114.8969876 | C18: 9.676378231 | D18: 90.89406402 | E18: 9.676378231 | F18: 90.89406402
B19: 116.35666 | C19: 9.92314194 | D19: 91.2064908 | E19: 9.92314194 | F19: 91.2064908
B20: 117.8348763 | C20: 9.929438831 | D20: 91.02377273 | E20: 9.929438831 | F20: 91.02377273
B21: 119.3318721 | C21: 9.982995076 | D21: 90.47778671 | E21: 9.982995076 | F21: 90.47778671
B22: 120.8478861 | C22: 10.18221373 | D22: 90.70344793 | E22: 10.18221373 | F22: 90.70344793
B23: 122.3831597 | C23: 10.39836508 | D23: 90.90327136 | E23: 10.39836508 | F23: 90.90327136
B24: 123.9379378 | C24: 10.42938576 | D24: 90.41392396 | E24: 10.42938576 | F24: 90.41392396
B25: 125.512468 | C25: 10.66322716 | D25: 91.06508819 | E25: 10.66322716 | F25: 91.06508819
B26: 127.1070014 | C26: 10.82499276 | D26: 90.84684747 | E26: 10.82499276 | F26: 90.84684747
B27: 128.721792 | C27: 10.91867944 | D27: 90.71600298 | E27: 10.91867944 | F27: 90.71600298
B28: 130.3570972 | C28: 11.08275051 | D28: 90.45837275 | E28: 11.08275051 | F28: 90.45837275
B29: 132.0131776 | C29: 11.12372378 | D29: 90.78276583 | E29: 11.12372378 | F29: 90.78276583
B30: 133.6902972 | C30: 11.39291916 | D30: 90.56480391 | E30: 11.39291916 | F30: 90.56480391
B31: 135.3887232 | C31: 11.4771147 | D31: 91.26988959 | E31: 11.4771147 | F31: 91.26988959
B32: 137.1087263 | C32: 11.57244339 | D32: 91.35979287 | E32: 11.57244339 | F32: 91.35979287
B33: 138.8505807 | C33: 11.741215 | D33: 91.39509077 | E33: 11.741215 | F33: 91.39509077
B34: 140.6145639 | C34: 12.08046719 | D34: 90.50853569 | E34: 12.08046719 | F34: 90.50853569
B35: 142.400957 | C35: 11.7491173 | D35: 90.25011304 | E35: 11.7491173 | F35: 90.25011304
B36: 144.2100448 | C36: 12.30362369 | D36: 91.15076172 | E36: 12.30362369 | F36: 91.15076172
B37: 146.0421156 | C37: 12.29237607 | D37: 90.82555767 | E37: 12.29237607 | F37: 90.82555767
B38: 147.8974614 | C38: 12.47967063 | D38: 90.13617331 | E38: 12.47967063 | F38: 90.13617331
B39: 149.7763778 | C39: 12.73637714 | D39: 90.20735322 | E39: 12.73637714 | F39: 90.20735322
B40: 151.6791644 | C40: 12.75117223 | D40: 90.17116217 | E40: 12.75117223 | F40: 90.17116217
B41: 153.6061242 | C41: 12.92844773 | D41: 90.64669368 | E41: 12.92844773 | F41: 90.64669368
B42: 155.5575645 | C42: 13.24810786 | D42: 91.49266087 | E42: 13.24810786 | F42: 91.49266087
B43: 157.5337963 | C43: 13.46669322 | D43: 89.66268357 | E43: 13.46669322 | F43: 89.66268357
B44: 159.5351345 | C44: 13.45949006 | D44: 91.22576257 | E44: 13.45949006 | F44: 91.22576257
B45: 161.561898 | C45: 13.56578737 | D45: 91.1455514 | E45: 13.56578737 | F45: 91.1455514
B46: 163.61441 | C46: 13.83645868 | D46: 90.09447424 | E46: 13.83645868 | F46: 90.09447424
B47: 165.6929974 | C47: 14.27300894 | D47: 89.80064557 | E47: 14.27300894 | F47: 89.80064557
B48: 167.7979915 | C48: 14.35455448 | D48: 90.26828272 | E48: 14.35455448 | F48: 90.26828272
B49: 169.9297279 | C49: 14.34660902 | D49: 90.69387985 | E49: 14.34660902 | F49: 90.69387985
B50: 172.0885463 | C50: 14.69832167 | D50: 90.64734656 | E50: 14.69832167 | F50: 90.64734656
B51: 174.2747907 | C51: 14.7508142 | D51: 91.2343346 | E51: 14.7508142 | F51: 91.2343346
B52: 176.4888095 | C52: 14.86101932 | D52: 90.66151113 | E52: 14.86101932 | F52: 90.66151113
B53: 178.7309557 | C53: 15.04545009 | D53: 90.76195627 | E53: 15.04545009 | F53: 90.76195627
B54: 181.0015864 | C54: 15.32273269 | D54: 90.18364641 | E54: 15.32273269 | F54: 90.18364641
B55: 183.3010637 | C55: 15.661707 | D55: 91.26595835 | E55: 15.661707 | F55: 91.26595835
B56: 185.629754 | C56: 15.8261594 | D56: 90.7668148 | E56: 15.8261594 | F56: 90.7668148
B57: 187.9880283 | C57: 15.89814432 | D57: 90.85753532 | E57: 15.89814432 | F57: 90.85753532
B58: 190.3762627 | C58: 16.12118913 | D58: 90.50129628 | E58: 16.12118913 | F58: 90.50129628
B59: 192.7948375 | C59: 16.20624341 | D59: 90.55753596 | E59: 16.20624341 | F59: 90.55753596
B60: 195.2441384 | C60: 16.67067848 | D60: 90.82381152 | E60: 16.67067848 | F60: 90.82381152
B61: 197.7245557 | C61: 16.77529203 | D61: 91.04117296 | E61: 16.77529203 | F61: 91.04117296
B62: 200.2364847 | C62: 17.22629974 | D62: 90.72514068 | E62: 17.22629974 | F62: 90.72514068
B63: 202.7803256 | C63: 17.40565524 | D63: 90.92604879 | E63: 17.40565524 | F63: 90.92604879
B64: 205.356484 | C64: 17.56553383 | D64: 90.8073214 | E64: 17.56553383 | F64: 90.8073214
B65: 207.9653703 | C65: 17.60827928 | D65: 90.79050946 | E65: 17.60827928 | F65: 90.79050946
B66: 210.6074005 | C66: 17.86318019 | D66: 90.68260172 | E66: 17.86318019 | F66: 90.68260172
B67: 213.2829954 | C67: 18.22561116 | D67: 90.40278799 | E67: 18.22561116 | F67: 90.40278799
B68: 215.9925816 | C68: 18.41960553 | D68: 90.90278709 | E68: 18.41960553 | F68: 90.90278709
B69: 218.7365909 | C69: 18.67216931 | D69: 90.86338005 | E69: 18.67216931 | F69: 90.86338005
B70: 221.5154606 | C70: 18.89163953 | D70: 90.87250087 | E70: 18.89163953 | F70: 90.87250087
B71: 224.3296336 | C71: 19.23025227 | D71: 90.591175 | E71: 19.23025227 | F71: 90.591175
B72: 227.1795583 | C72: 19.45902623 | D72: 90.72074158 | E72: 19.45902623 | F72: 90.72074158
B73: 230.065689 | C73: 19.81597895 | D73: 90.90184882 | E73: 19.81597895 | F73: 90.90184882
B74: 232.9884856 | C74: 20.0253389 | D74: 90.25817861 | E74: 20.0253389 | F74: 90.25817861
B75: 235.948414 | C75: 19.8034053 | D75: 90.40123955 | E75: 19.8034053 | F75: 90.40123955
B76: 238.9459458 | C76: 20.48209384 | D76: 92.20038805 | E76: 20.48209384 | F76: 92.20038805
B77: 241.9815588 | C77: 20.4009603 | D77: 90.06296686 | E77: 20.4009603 | F77: 90.06296686
B78: 245.0557368 | C78: 21.12284821 | D78: 90.7710277 | E78: 21.12284821 | F78: 90.7710277
B79: 248.1689698 | C79: 21.59091977 | D79: 91.56447961 | E79: 21.59091977 | F79: 91.56447961
B80: 251.3217538 | C80: 21.65567833 | D80: 91.48470677 | E80: 21.65567833 | F80: 91.48470677
B81: 254.5145913 | C81: 22.12688279 | D81: 90.67627278 | E81: 22.12688279 | F81: 90.67627278
B82: 257.7479913 | C82: 21.80995678 | D82: 89.56716711 | E82: 21.80995678 | F82: 89.56716711
B83: 261.022469 | C83: 22.04921334 | D83: 91.62533029 | E83: 22.04921334 | F83: 91.62533029
B84: 264.3385462 | C84: 22.59221205 | D84: 90.325235 | E84: 22.59221205 | F84: 90.325235
B85: 267.6967514 | C85: 22.948942 | D85: 91.64735383 | E85: 22.948942 | F85: 91.64735383
B86: 271.09762 | C86: 22.9236906 | D86: 91.28524686 | E86: 22.9236906 | F86: 91.28524686
B87: 274.5416938 | C87: 23.36287798 | D87: 91.17495801 | E87: 23.36287798 | F87: 91.17495801
B88: 278.0295217 | C88: 23.69334567 | D88: 91.01465854 | E88: 23.69334567 | F88: 91.01465854
B89: 281.5616596 | C89: 24.18381467 | D89: 91.51233538 | E89: 24.18381467 | F89: 91.51233538
B90: 285.1386705 | C90: 24.22184527 | D90: 90.82640527 | E90: 24.22184527 | F90: 90.82640527
B91: 288.7611243 | C91: 24.65564128 | D91: 91.01271154 | E91: 24.65564128 | F91: 91.01271154
B92: 292.4295985 | C92: 24.99859246 | D92: 90.99336907 | E92: 24.99859246 | F92: 90.99336907
B93: 296.1446776 | C93: 25.23463721 | D93: 91.20237272 | E93: 25.23463721 | F93: 91.20237272
B94: 299.9069538 | C94: 25.55749098 | D94: 91.46642836 | E94: 25.55749098 | F94: 91.46642836
B95: 303.7170267 | C95: 25.85164661 | D95: 91.21571108 | E95: 25.85164661 | F95: 91.21571108
B96: 307.5755034 | C96: 26.15166884 | D96: 91.14653033 | E96: 26.15166884 | F96: 91.14653033
B97: 311.4829988 | C97: 26.31121777 | D97: 91.29993907 | E97: 26.31121777 | F97: 91.29993907
B98: 315.4401359 | C98: 26.82369483 | D98: 91.05387466 | E98: 26.82369483 | F98: 91.05387466
B99: 319.4475451 | C99: 27.18603011 | D99: 90.85445366 | E99: 27.18603011 | F99: 90.85445366
B100: 323.5058652 | C100: 27.59934918 | D100: 90.60193958 | E100: 27.59934918 | F100: 90.60193958
B101: 327.6157429 | C101: 27.56713423 | D101: 91.02234171 | E101: 27.56713423 | F101: 91.02234171
B102: 331.7778333 | C102: 28.3894784 | D102: 91.96122296 | E102: 28.3894784 | F102: 91.96122296
B103: 335.9927996 | C103: 29.02646557 | D103: 90.44691166 | E103: 29.02646557 | F103: 90.44691166
B104: 340.2613136 | C104: 28.84655835 | D104: 92.07782859 | E104: 28.84655835 | F104: 92.07782859
B105: 344.5840556 | C105: 28.99470333 | D105: 90.33562807 | E105: 28.99470333 | F105: 90.33562807
B106: 348.9617145 | C106: 29.64555564 | D106: 89.80866182 | E106: 29.64555564 | F106: 89.80866182
B107: 353.394988 | C107: 29.75142108 | D107: 90.24169304 | E107: 29.75142108 | F107: 90.24169304
B108: 357.8845826 | C108: 30.08313075 | D108: 91.14845145 | E108: 30.08313075 | F108: 91.14845145
B109: 362.4312138 | C109: 31.18720013 | D109: 91.80439818 | E109: 31.18720013 | F109: 91.80439818
B110: 367.0356063 | C110: 31.0523409 | D110: 90.67026704 | E110: 31.0523409 | F110: 90.67026704
B111: 371.6984938 | C111: 31.91766727 | D111: 90.84836081 | E111: 31.91766727 | F111: 90.84836081
B112: 376.4206195 | C112: 32.40523108 | D112: 90.96442047 | E112: 32.40523108 | F112: 90.96442047
B113: 381.202736 | C113: 32.75741941 | D113: 91.08696963 | E113: 32.75741941 | F113: 91.08696963
B114: 386.0456053 | C114: 33.23882219 | D114: 90.85331364 | E114: 33.23882219 | F114: 90.85331364
B115: 390.9499993 | C115: 33.37426924 | D115: 91.16998655 | E115: 33.37426924 | F115: 91.16998655
B116: 395.9166997 | C116: 33.85532661 | D116: 91.06161329 | E116: 33.85532661 | F116: 91.06161329
B117: 400.9464979 | C117: 34.12298851 | D117: 91.05657862 | E117: 34.12298851 | F117: 91.05657862
B118: 406.0401956 | C118: 34.7147439 | D118: 91.22473769 | E118: 34.7147439 | F118: 91.22473769
B119: 411.1986045 | C119: 35.10505248 | D119: 91.21468011 | E119: 35.10505248 | F119: 91.21468011
B120: 416.4225469 | C120: 35.48518526 | D120: 91.0344725 | E120: 35.48518526 | F120: 91.0344725
B121: 421.7128551 | C121: 36.04868902 | D121: 91.30187136 | E121: 36.04868902 | F121: 91.30187136
B122: 427.0703724 | C122: 36.51056484 | D122: 91.20064861 | E122: 36.51056484 | F122: 91.20064861
B123: 432.4959526 | C123: 36.95901159 | D123: 91.14298389 | E123: 36.95901159 | F123: 91.14298389
B124: 437.9904603 | C124: 37.49162086 | D124: 91.40760087 | E124: 37.49162086 | F124: 91.40760087
B125: 443.5547713 | C125: 37.94360981 | D125: 91.57386175 | E125: 37.94360981 | F125: 91.57386175
B126: 449.1897723 | C126: 38.51468102 | D126: 91.29663562 | E126: 38.51468102 | F126: 91.29663562
B127: 454.8963614 | C127: 39.01633849 | D127: 91.38213247 | E127: 39.01633849 | F127: 91.38213247
B128: 460.675448 | C128: 39.57821254 | D128: 91.35314667 | E128: 39.57821254 | F128: 91.35314667
B129: 466.5279532 | C129: 40.13140642 | D129: 91.53468743 | E129: 40.13140642 | F129: 91.53468743
B130: 472.4548097 | C130: 40.66108857 | D130: 91.29212937 | E130: 40.66108857 | F130: 91.29212937
B131: 478.4569621 | C131: 41.01688261 | D131: 91.47743194 | E131: 41.01688261 | F131: 91.47743194
B132: 484.5353669 | C132: 41.53532073 | D132: 91.27106075 | E132: 41.53532073 | F132: 91.27106075
B133: 490.6909929 | C133: 41.95223791 | D133: 91.43566497 | E133: 41.95223791 | F133: 91.43566497
B134: 496.9248211 | C134: 42.70290446 | D134: 91.75539985 | E134: 42.70290446 | F134: 91.75539985
B135: 503.237845 | C135: 43.0989752 | D135: 91.45707361 | E135: 43.0989752 | F135: 91.45707361
B136: 509.6310707 | C136: 43.82057091 | D136: 91.41612692 | E136: 43.82057091 | F136: 91.41612692
B137: 516.1055171 | C137: 44.31936382 | D137: 91.40282727 | E137: 44.31936382 | F137: 91.40282727
B138: 522.662216 | C138: 44.81301917 | D138: 91.5915292 | E138: 44.81301917 | F138: 91.5915292
B139: 529.3022125 | C139: 45.49860214 | D139: 91.72779199 | E139: 45.49860214 | F139: 91.72779199
B140: 536.0265646 | C140: 46.1842939 | D140: 91.01318136 | E140: 46.1842939 | F140: 91.01318136
B141: 542.8363442 | C141: 46.65370228 | D141: 91.85890464 | E141: 46.65370228 | F141: 91.85890464
B142: 549.7326365 | C142: 46.87699567 | D142: 91.83519794 | E142: 46.87699567 | F142: 91.83519794
B143: 556.7165405 | C143: 48.02246866 | D143: 91.95089303 | E143: 48.02246866 | F143: 91.95089303
B144: 563.7891694 | C144: 48.70793769 | D144: 91.29155593 | E144: 48.70793769 | F144: 91.29155593
B145: 570.9516502 | C145: 49.33780856 | D145: 91.84443903 | E145: 49.33780856 | F145: 91.84443903
B146: 578.2051244 | C146: 49.81800026 | D146: 91.48547727 | E146: 49.81800026 | F146: 91.48547727
B147: 585.5507481 | C147: 50.53846303 | D147: 91.69506144 | E147: 50.53846303 | F147: 91.69506144
B148: 592.989692 | C148: 51.08705048 | D148: 91.50997664 | E148: 51.08705048 | F148: 91.50997664
B149: 600.5231416 | C149: 51.91376157 | D149: 91.59027225 | E149: 51.91376157 | F149: 91.59027225
B150: 608.1522975 | C150: 52.49305616 | D150: 91.55943468 | E150: 52.49305616 | F150: 91.55943468
B151: 615.8783756 | C151: 53.061109 | D151: 91.37387311 | E151: 53.061109 | F151: 91.37387311
B152: 623.7026072 | C152: 53.83547438 | D152: 91.27721394 | E152: 53.83547438 | F152: 91.27721394
B153: 631.6262393 | C153: 54.50680569 | D153: 91.49382043 | E153: 54.50680569 | F153: 91.49382043
B154: 639.6505346 | C154: 55.49137676 | D154: 91.62456793 | E154: 55.49137676 | F154: 91.62456793
B155: 647.7767721 | C155: 55.9144505 | D155: 91.92088883 | E155: 55.9144505 | F155: 91.92088883
B156: 656.0062468 | C156: 56.82938576 | D156: 91.86738158 | E156: 56.82938576 | F156: 91.86738158
B157: 664.3402702 | C157: 57.77009621 | D157: 91.30487873 | E157: 57.77009621 | F157: 91.30487873
B158: 672.7801706 | C158: 58.31349932 | D158: 92.00938657 | E158: 58.31349932 | F158: 92.00938657
B159: 681.327293 | C159: 58.93151496 | D159: 91.81558024 | E159: 58.93151496 | F159: 91.81558024
B160: 689.9829996 | C160: 59.97320313 | D160: 91.62479195 | E160: 59.97320313 | F160: 91.62479195
B161: 698.7486699 | C161: 60.47184878 | D161: 91.65771516 | E161: 60.47184878 | F161: 91.65771516
B162: 707.6257009 | C162: 61.31298394 | D162: 91.62038673 | E162: 61.31298394 | F162: 91.62038673
B163: 716.6155074 | C163: 62.01231869 | D163: 91.67689199 | E163: 62.01231869 | F163: 91.67689199
B164: 725.7195219 | C164: 62.96858929 | D164: 91.58304428 | E164: 62.96858929 | F164: 91.58304428
B165: 734.9391955 | C165: 63.67406402 | D165: 91.7192402 | E165: 63.67406402 | F165: 91.7192402
B166: 744.2759976 | C166: 64.64839439 | D166: 91.68093358 | E166: 64.64839439 | F166: 91.68093358
B167: 753.7314161 | C167: 65.4744758 | D167: 91.56343911 | E167: 65.4744758 | F167: 91.56343911
B168: 763.306958 | C168: 66.21877589 | D168: 91.75662004 | E168: 66.21877589 | F168: 91.75662004
B169: 773.0041493 | C169: 67.19218972 | D169: 91.61552238 | E169: 67.19218972 | F169: 91.61552238
B170: 782.8245355 | C170: 68.07061357 | D170: 91.84895646 | E170: 68.07061357 | F170: 91.84895646
B171: 792.7696816 | C171: 68.90528286 | D171: 91.74558991 | E171: 68.90528286 | F171: 91.74558991
B172: 802.8411728 | C172: 69.87168297 | D172: 91.73943497 | E172: 69.87168297 | F172: 91.73943497
B173: 813.040614 | C173: 70.76244599 | D173: 91.81729143 | E173: 70.76244599 | F173: 91.81729143
B174: 823.3696307 | C174: 71.77582235 | D174: 91.76809695 | E174: 71.77582235 | F174: 91.76809695
B175: 833.8298692 | C175: 72.66408842 | D175: 91.93479604 | E175: 72.66408842 | F175: 91.93479604
B176: 844.4229965 | C176: 73.67685233 | D176: 91.84754557 | E176: 73.67685233 | F176: 91.84754557
B177: 855.1507008 | C177: 74.47441214 | D177: 91.69465558 | E177: 74.47441214 | F177: 91.69465558
B178: 866.0146918 | C178: 75.72140506 | D178: 91.87937239 | E178: 75.72140506 | F178: 91.87937239
B179: 877.0167009 | C179: 76.66864757 | D179: 91.70819205 | E179: 76.66864757 | F179: 91.70819205
B180: 888.1584816 | C180: 77.63700257 | D180: 91.85024101 | E180: 77.63700257 | F180: 91.85024101
B181: 899.4418095 | C181: 78.55980958 | D181: 91.75440954 | E181: 78.55980958 | F181: 91.75440954
B182: 910.8684829 | C182: 79.70393295 | D182: 91.79757669 | E182: 79.70393295 | F182: 91.79757669
B183: 922.4403228 | C183: 80.60618742 | D183: 91.94156597 | E183: 80.60618742 | F183: 91.94156597
B184: 934.1591735 | C184: 81.7569367 | D184: 91.92234263 | E184: 81.7569367 | F184: 91.92234263
B185: 946.0269026 | C185: 82.48683719 | D185: 91.71177356 | E185: 82.48683719 | F185: 91.71177356
B186: 958.0454016 | C186: 83.76550688 | D186: 91.8398307 | E186: 83.76550688 | F186: 91.8398307
B187: 970.2165857 | C187: 85.34011323 | D187: 91.75734793 | E187: 85.34011323 | F187: 91.75734793
B188: 982.5423948 | C188: 86.13240708 | D188: 91.94297717 | E188: 86.13240708 | F188: 91.94297717
B189: 995.0247932 | C189: 87.45383399 | D189: 91.84319573 | E189: 87.45383399 | F189: 91.84319573
B190: 1007.66577 | C190: 88.41175977 | D190: 91.88103283 | E190: 88.41175977 | F190: 91.88103283
B191: 1020.467341 | C191: 89.63681617 | D191: 91.88845816 | E191: 89.63681617 | F191: 91.88845816
B192: 1033.431545 | C192: 90.84361847 | D192: 91.87270467 | E192: 90.84361847 | F192: 91.87270467
B193: 1046.560448 | C193: 91.92847458 | D193: 91.82455999 | E193: 91.92847458 | F193: 91.82455999
B194: 1059.856143 | C194: 93.13287495 | D194: 91.88779161 | E194: 93.13287495 | F194: 91.88779161
B195: 1073.32075 | C195: 94.44002123 | D195: 91.83727348 | E195: 94.44002123 | F195: 91.83727348
B196: 1086.956413 | C196: 95.62651088 | D196: 91.81629175 | E196: 95.62651088 | F196: 91.81629175
B197: 1100.765306 | C197: 96.93094825 | D197: 91.78553829 | E197: 96.93094825 | F197: 91.78553829
B198: 1114.74963 | C198: 98.1444079 | D198: 91.85473808 | E198: 98.1444079 | F198: 91.85473808
B199: 1128.911614 | C199: 99.36356406 | D199: 91.79142107 | E199: 99.36356406 | F199: 91.79142107
B200: 1143.253513 | C200: 100.6705967 | D200: 91.76369639 | E200: 100.6705967 | F200: 91.76369639
B201: 1157.777615 | C201: 102.0805035 | D201: 91.78596155 | E201: 102.0805035 | F201: 91.78596155
B202: 1172.486234 | C202: 103.4705938 | D202: 91.86097753 | E202: 103.4705938 | F202: 91.86097753
... 804 more rows

Sheet Choose LC filter components (hidden)
A3: Lowest switchiing harmonic above 150 kHz | J3: Ideal choices for Fsw are 48, 72, 144 kHz (to stay bekow the EMI start frequency of 150 kHz)
B4: PFC switching frequency, Fsw | C4: 65 | D4: kHz | J4: Fsw (kHz) | K4: 2nd harmonic | L4: 3rd harmonic | M4: 4th harmonic | N4: 5th harmonic
B5: First switching harmonic above 150 kHz, FEMI | C5: =ROUNDUP(150/C4,0)*C4 -> 195 | D5: kHz | I5: Ideal choice | J5: 144 | K5: =J5*2 -> 288 | L5: =J5*3 -> 432 | M5: =J5*4 -> 576 | N5: =J5*5 -> 720
B6: Harmonic number of FEMI | C6: =ROUNDUP(150/C4,0) -> 3 | I6: Common choice (SiC) | J6: 100 | K6: =J6*2 -> 200 | L6: =J6*3 -> 300 | M6: =J6*4 -> 400 | N6: =J6*5 -> 500
I7: Ideal choice | J7: 72 | K7: 144 | L7: 216 | M7: 288 | N7: 360
A8: Y-capacitance budget | I8: Common choice (Si) | J8: 65 | K8: 130 | L8: =J8*3 -> 195 | M8: =J8*4 -> 260 | N8: =J8*5 -> 325
B9: Line voltage - maximum (RMS) | C9: 264 | D9: VRMS | I9: Ideal choice | J9: 48 | K9: =J9*2 -> 96 | L9: =J9*3 -> 144 | M9: =J9*4 -> 192 | N9: =J9*5 -> 240
B10: Touch current specification (RMS) | C10: 3.5 | D10: mARMS | F10: UL 2202, IEC 61851, etc. | I10: Ideal choice | J10: 36 | K10: =J10*2 -> 72 | L10: =J10*3 -> 108 | M10: =J10*4 -> 144 | N10: =J10*5 -> 180
B11: AC grid line frequency - maximum | C11: 60 | D11: Hz
B12: Total Y-capacitance - maximum | C12: =C10*10^-3/(2*PI()*C11*C9)*1000000000 -> 35.16681192 | D12: nF | F12: Cy = Irms/(2*Pi*fac*Vac)
A15: Filter attenuation parameters | I15: PCB layout details
B16: Filter design frequency for attenuation, FEMI | C16: 195 | D16: kHz | I16: Input and output terminals of the CM chokes do not overlap
B17: Target filter attenuation at FEMI | C17: 40 | D17: dB | I17: No copper planes present below the magnetic components
I18: Minimize magnetic/capacitive coupling by corerct positioning and orientation of the componenets
A19: Grid-side filter stage
B20: Target grid-side filter attenuation at FEMI | C20: 20 | D20: dB
B21: Total grid-side Y-capacitance, CY1 | C21: ='Design the AEF circuit'!$C$18*SETUP -> 0.47 | D21: nF
B22: Effective LISN resistance for CM noise, RLISN-CM | C22: 25 | D22: Ω | F22: 16.7Ω for 3-wire, 12.5Ω for 4-wire systems
B23: Grid-side choke inductance, LCM1 | D23: mH
B24: Filter resonant frequency | D24: kHz | F24: Keep away from switching frequency and harmonics
A26: PFC-side filter stage
B27: Target PFC-side filter attenuation at FEMI | C27: 20 | D27: dB
B28: Center-node Y-capacitance, CY2 | C28: 10 | D28: nF
B29: Total Y-capacitance at PFC, CY3 | C29: ='Design the AEF circuit'!$C$23*SETUP -> 4.7 | D29: nF | F29: Maximize CY3 to reduce incident noise on the AEF
B30: PFC-side choke inductance, LCM2 | D30: mH
B31: Filter resonant frequency, fRES | D31: kHz | F31: Keep away from switching frequency and harmonics
A34: Filter results with selected components
B35: Calculated total filter attenuation at FEMI | D35: dB
B36: Reactive power consumption at line frequency | D36: VA

Sheet Frequency vector (hidden)
A2: Number of points per decade | B2: ndec | C2: 300 | D2: index | E2: freq_generated [Hz] | F2: freq_customer [Hz] | G2: freq_selected [Hz] | H2: freq_selected [kHz]
A3: Logscale generator | B3: klog | C3: =10^(1/C2) -> 1.007704814 | D3: 0 | E3: =10*('Frequency vector'!$C$3)^D3 -> 10 | F3: ='CM choke'!B7 -> 100 | G3: =IF(CMdata=1,'Frequency vector'!E3,'Frequency vector'!F3) -> 100 | H3: =G3/1000 -> 0.1
D4: 1 | E4: =10*('Frequency vector'!$C$3)^D4 -> 10.07704814 | F4: =IF('CM choke'!B8=0, F3, 'CM choke'!B8) -> 101.2704183 | G4: =IF(CMdata=1,'Frequency vector'!E4,'Frequency vector'!F4) -> 101.2704183 | H4: =G4/1000 -> 0.1012704183
D5: 2 | E5: =10*('Frequency vector'!$C$3)^D5 -> 10.15468992 | F5: =IF('CM choke'!B9=0, F4, 'CM choke'!B9) -> 102.5569762 | G5: =IF(CMdata=1,'Frequency vector'!E5,'Frequency vector'!F5) -> 102.5569762 | H5: 0.1025569762
D6: 3 | E6: =10*('Frequency vector'!$C$3)^D6 -> 10.23292992 | F6: =IF('CM choke'!B10=0, F5, 'CM choke'!B10) -> 103.8598788 | G6: =IF(CMdata=1,'Frequency vector'!E6,'Frequency vector'!F6) -> 103.8598788 | H6: 0.1038598788
D7: 4 | E7: =10*('Frequency vector'!$C$3)^D7 -> 10.31177275 | F7: =IF('CM choke'!B11=0, F6, 'CM choke'!B11) -> 105.1793337 | G7: =IF(CMdata=1,'Frequency vector'!E7,'Frequency vector'!F7) -> 105.1793337 | H7: 0.1051793337
D8: 5 | E8: =10*('Frequency vector'!$C$3)^D8 -> 10.39122304 | F8: =IF('CM choke'!B12=0, F7, 'CM choke'!B12) -> 106.5155512 | G8: =IF(CMdata=1,'Frequency vector'!E8,'Frequency vector'!F8) -> 106.5155512 | H8: 0.1065155512
D9: 6 | E9: =10*('Frequency vector'!$C$3)^D9 -> 10.47128548 | F9: =IF('CM choke'!B13=0, F8, 'CM choke'!B13) -> 107.8687443 | G9: =IF(CMdata=1,'Frequency vector'!E9,'Frequency vector'!F9) -> 107.8687443 | H9: 0.1078687443
D10: 7 | E10: =10*('Frequency vector'!$C$3)^D10 -> 10.55196479 | F10: =IF('CM choke'!B14=0, F9, 'CM choke'!B14) -> 109.2391286 | G10: =IF(CMdata=1,'Frequency vector'!E10,'Frequency vector'!F10) -> 109.2391286 | H10: 0.1092391286
D11: 8 | E11: =10*('Frequency vector'!$C$3)^D11 -> 10.63326572 | F11: =IF('CM choke'!B15=0, F10, 'CM choke'!B15) -> 110.6269225 | G11: =IF(CMdata=1,'Frequency vector'!E11,'Frequency vector'!F11) -> 110.6269225 | H11: 0.1106269225
D12: 9 | E12: =10*('Frequency vector'!$C$3)^D12 -> 10.71519305 | F12: =IF('CM choke'!B16=0, F11, 'CM choke'!B16) -> 112.0323471 | G12: =IF(CMdata=1,'Frequency vector'!E12,'Frequency vector'!F12) -> 112.0323471 | H12: 0.1120323471
D13: 10 | E13: =10*('Frequency vector'!$C$3)^D13 -> 10.79775162 | F13: =IF('CM choke'!B17=0, F12, 'CM choke'!B17) -> 113.4556266 | G13: =IF(CMdata=1,'Frequency vector'!E13,'Frequency vector'!F13) -> 113.4556266 | H13: 0.1134556266
D14: 11 | E14: =10*('Frequency vector'!$C$3)^D14 -> 10.88094629 | F14: =IF('CM choke'!B18=0, F13, 'CM choke'!B18) -> 114.8969876 | G14: =IF(CMdata=1,'Frequency vector'!E14,'Frequency vector'!F14) -> 114.8969876 | H14: 0.1148969876
D15: 12 | E15: =10*('Frequency vector'!$C$3)^D15 -> 10.96478196 | F15: =IF('CM choke'!B19=0, F14, 'CM choke'!B19) -> 116.35666 | G15: =IF(CMdata=1,'Frequency vector'!E15,'Frequency vector'!F15) -> 116.35666 | H15: 0.11635666
D16: 13 | E16: =10*('Frequency vector'!$C$3)^D16 -> 11.04926357 | F16: =IF('CM choke'!B20=0, F15, 'CM choke'!B20) -> 117.8348763 | G16: =IF(CMdata=1,'Frequency vector'!E16,'Frequency vector'!F16) -> 117.8348763 | H16: 0.1178348763
D17: 14 | E17: =10*('Frequency vector'!$C$3)^D17 -> 11.13439609 | F17: =IF('CM choke'!B21=0, F16, 'CM choke'!B21) -> 119.3318721 | G17: =IF(CMdata=1,'Frequency vector'!E17,'Frequency vector'!F17) -> 119.3318721 | H17: 0.1193318721
D18: 15 | E18: =10*('Frequency vector'!$C$3)^D18 -> 11.22018454 | F18: =IF('CM choke'!B22=0, F17, 'CM choke'!B22) -> 120.8478861 | G18: =IF(CMdata=1,'Frequency vector'!E18,'Frequency vector'!F18) -> 120.8478861 | H18: 0.1208478861
D19: 16 | E19: =10*('Frequency vector'!$C$3)^D19 -> 11.30663398 | F19: =IF('CM choke'!B23=0, F18, 'CM choke'!B23) -> 122.3831597 | G19: =IF(CMdata=1,'Frequency vector'!E19,'Frequency vector'!F19) -> 122.3831597 | H19: 0.1223831597
D20: 17 | E20: =10*('Frequency vector'!$C$3)^D20 -> 11.39374949 | F20: =IF('CM choke'!B24=0, F19, 'CM choke'!B24) -> 123.9379378 | G20: =IF(CMdata=1,'Frequency vector'!E20,'Frequency vector'!F20) -> 123.9379378 | H20: 0.1239379378
D21: 18 | E21: =10*('Frequency vector'!$C$3)^D21 -> 11.48153621 | F21: =IF('CM choke'!B25=0, F20, 'CM choke'!B25) -> 125.512468 | G21: =IF(CMdata=1,'Frequency vector'!E21,'Frequency vector'!F21) -> 125.512468 | H21: 0.125512468
D22: 19 | E22: =10*('Frequency vector'!$C$3)^D22 -> 11.56999932 | F22: =IF('CM choke'!B26=0, F21, 'CM choke'!B26) -> 127.1070014 | G22: =IF(CMdata=1,'Frequency vector'!E22,'Frequency vector'!F22) -> 127.1070014 | H22: 0.1271070014
D23: 20 | E23: =10*('Frequency vector'!$C$3)^D23 -> 11.65914401 | F23: =IF('CM choke'!B27=0, F22, 'CM choke'!B27) -> 128.721792 | G23: =IF(CMdata=1,'Frequency vector'!E23,'Frequency vector'!F23) -> 128.721792 | H23: 0.128721792
D24: 21 | E24: =10*('Frequency vector'!$C$3)^D24 -> 11.74897555 | F24: =IF('CM choke'!B28=0, F23, 'CM choke'!B28) -> 130.3570972 | G24: =IF(CMdata=1,'Frequency vector'!E24,'Frequency vector'!F24) -> 130.3570972 | H24: 0.1303570972
D25: 22 | E25: =10*('Frequency vector'!$C$3)^D25 -> 11.83949922 | F25: =IF('CM choke'!B29=0, F24, 'CM choke'!B29) -> 132.0131776 | G25: =IF(CMdata=1,'Frequency vector'!E25,'Frequency vector'!F25) -> 132.0131776 | H25: 0.1320131776
D26: 23 | E26: =10*('Frequency vector'!$C$3)^D26 -> 11.93072036 | F26: =IF('CM choke'!B30=0, F25, 'CM choke'!B30) -> 133.6902972 | G26: =IF(CMdata=1,'Frequency vector'!E26,'Frequency vector'!F26) -> 133.6902972 | H26: 0.1336902972
D27: 24 | E27: =10*('Frequency vector'!$C$3)^D27 -> 12.02264435 | F27: =IF('CM choke'!B31=0, F26, 'CM choke'!B31) -> 135.3887232 | G27: =IF(CMdata=1,'Frequency vector'!E27,'Frequency vector'!F27) -> 135.3887232 | H27: 0.1353887232
D28: 25 | E28: =10*('Frequency vector'!$C$3)^D28 -> 12.11527659 | F28: =IF('CM choke'!B32=0, F27, 'CM choke'!B32) -> 137.1087263 | G28: =IF(CMdata=1,'Frequency vector'!E28,'Frequency vector'!F28) -> 137.1087263 | H28: 0.1371087263
D29: 26 | E29: =10*('Frequency vector'!$C$3)^D29 -> 12.20862254 | F29: =IF('CM choke'!B33=0, F28, 'CM choke'!B33) -> 138.8505807 | G29: =IF(CMdata=1,'Frequency vector'!E29,'Frequency vector'!F29) -> 138.8505807 | H29: 0.1388505807
D30: 27 | E30: =10*('Frequency vector'!$C$3)^D30 -> 12.30268771 | F30: =IF('CM choke'!B34=0, F29, 'CM choke'!B34) -> 140.6145639 | G30: =IF(CMdata=1,'Frequency vector'!E30,'Frequency vector'!F30) -> 140.6145639 | H30: 0.1406145639
D31: 28 | E31: =10*('Frequency vector'!$C$3)^D31 -> 12.39747763 | F31: =IF('CM choke'!B35=0, F30, 'CM choke'!B35) -> 142.400957 | G31: =IF(CMdata=1,'Frequency vector'!E31,'Frequency vector'!F31) -> 142.400957 | H31: 0.142400957
D32: 29 | E32: =10*('Frequency vector'!$C$3)^D32 -> 12.49299789 | F32: =IF('CM choke'!B36=0, F31, 'CM choke'!B36) -> 144.2100448 | G32: =IF(CMdata=1,'Frequency vector'!E32,'Frequency vector'!F32) -> 144.2100448 | H32: 0.1442100448
D33: 30 | E33: =10*('Frequency vector'!$C$3)^D33 -> 12.58925412 | F33: =IF('CM choke'!B37=0, F32, 'CM choke'!B37) -> 146.0421156 | G33: =IF(CMdata=1,'Frequency vector'!E33,'Frequency vector'!F33) -> 146.0421156 | H33: 0.1460421156
D34: 31 | E34: =10*('Frequency vector'!$C$3)^D34 -> 12.68625198 | F34: =IF('CM choke'!B38=0, F33, 'CM choke'!B38) -> 147.8974614 | G34: =IF(CMdata=1,'Frequency vector'!E34,'Frequency vector'!F34) -> 147.8974614 | H34: 0.1478974614
D35: 32 | E35: =10*('Frequency vector'!$C$3)^D35 -> 12.78399719 | F35: =IF('CM choke'!B39=0, F34, 'CM choke'!B39) -> 149.7763778 | G35: =IF(CMdata=1,'Frequency vector'!E35,'Frequency vector'!F35) -> 149.7763778 | H35: 0.1497763778
D36: 33 | E36: =10*('Frequency vector'!$C$3)^D36 -> 12.88249552 | F36: =IF('CM choke'!B40=0, F35, 'CM choke'!B40) -> 151.6791644 | G36: =IF(CMdata=1,'Frequency vector'!E36,'Frequency vector'!F36) -> 151.6791644 | H36: 0.1516791644
D37: 34 | E37: =10*('Frequency vector'!$C$3)^D37 -> 12.98175275 | F37: =IF('CM choke'!B41=0, F36, 'CM choke'!B41) -> 153.6061242 | G37: =IF(CMdata=1,'Frequency vector'!E37,'Frequency vector'!F37) -> 153.6061242 | H37: 0.1536061242
D38: 35 | E38: =10*('Frequency vector'!$C$3)^D38 -> 13.08177474 | F38: =IF('CM choke'!B42=0, F37, 'CM choke'!B42) -> 155.5575645 | G38: =IF(CMdata=1,'Frequency vector'!E38,'Frequency vector'!F38) -> 155.5575645 | H38: 0.1555575645
D39: 36 | E39: =10*('Frequency vector'!$C$3)^D39 -> 13.18256739 | F39: =IF('CM choke'!B43=0, F38, 'CM choke'!B43) -> 157.5337963 | G39: =IF(CMdata=1,'Frequency vector'!E39,'Frequency vector'!F39) -> 157.5337963 | H39: 0.1575337963
D40: 37 | E40: =10*('Frequency vector'!$C$3)^D40 -> 13.28413662 | F40: =IF('CM choke'!B44=0, F39, 'CM choke'!B44) -> 159.5351345 | G40: =IF(CMdata=1,'Frequency vector'!E40,'Frequency vector'!F40) -> 159.5351345 | H40: 0.1595351345
D41: 38 | E41: =10*('Frequency vector'!$C$3)^D41 -> 13.38648842 | F41: =IF('CM choke'!B45=0, F40, 'CM choke'!B45) -> 161.561898 | G41: =IF(CMdata=1,'Frequency vector'!E41,'Frequency vector'!F41) -> 161.561898 | H41: 0.161561898
D42: 39 | E42: =10*('Frequency vector'!$C$3)^D42 -> 13.48962883 | F42: =IF('CM choke'!B46=0, F41, 'CM choke'!B46) -> 163.61441 | G42: =IF(CMdata=1,'Frequency vector'!E42,'Frequency vector'!F42) -> 163.61441 | H42: 0.16361441
D43: 40 | E43: =10*('Frequency vector'!$C$3)^D43 -> 13.59356391 | F43: =IF('CM choke'!B47=0, F42, 'CM choke'!B47) -> 165.6929974 | G43: =IF(CMdata=1,'Frequency vector'!E43,'Frequency vector'!F43) -> 165.6929974 | H43: 0.1656929974
D44: 41 | E44: =10*('Frequency vector'!$C$3)^D44 -> 13.69829979 | F44: =IF('CM choke'!B48=0, F43, 'CM choke'!B48) -> 167.7979915 | G44: =IF(CMdata=1,'Frequency vector'!E44,'Frequency vector'!F44) -> 167.7979915 | H44: 0.1677979915
D45: 42 | E45: =10*('Frequency vector'!$C$3)^D45 -> 13.80384265 | F45: =IF('CM choke'!B49=0, F44, 'CM choke'!B49) -> 169.9297279 | G45: =IF(CMdata=1,'Frequency vector'!E45,'Frequency vector'!F45) -> 169.9297279 | H45: 0.1699297279
D46: 43 | E46: =10*('Frequency vector'!$C$3)^D46 -> 13.91019869 | F46: =IF('CM choke'!B50=0, F45, 'CM choke'!B50) -> 172.0885463 | G46: =IF(CMdata=1,'Frequency vector'!E46,'Frequency vector'!F46) -> 172.0885463 | H46: 0.1720885463
D47: 44 | E47: =10*('Frequency vector'!$C$3)^D47 -> 14.01737418 | F47: =IF('CM choke'!B51=0, F46, 'CM choke'!B51) -> 174.2747907 | G47: =IF(CMdata=1,'Frequency vector'!E47,'Frequency vector'!F47) -> 174.2747907 | H47: 0.1742747907
D48: 45 | E48: =10*('Frequency vector'!$C$3)^D48 -> 14.12537545 | F48: =IF('CM choke'!B52=0, F47, 'CM choke'!B52) -> 176.4888095 | G48: =IF(CMdata=1,'Frequency vector'!E48,'Frequency vector'!F48) -> 176.4888095 | H48: 0.1764888095
D49: 46 | E49: =10*('Frequency vector'!$C$3)^D49 -> 14.23420884 | F49: =IF('CM choke'!B53=0, F48, 'CM choke'!B53) -> 178.7309557 | G49: =IF(CMdata=1,'Frequency vector'!E49,'Frequency vector'!F49) -> 178.7309557 | H49: 0.1787309557
D50: 47 | E50: =10*('Frequency vector'!$C$3)^D50 -> 14.34388077 | F50: =IF('CM choke'!B54=0, F49, 'CM choke'!B54) -> 181.0015864 | G50: =IF(CMdata=1,'Frequency vector'!E50,'Frequency vector'!F50) -> 181.0015864 | H50: 0.1810015864
D51: 48 | E51: =10*('Frequency vector'!$C$3)^D51 -> 14.45439771 | F51: =IF('CM choke'!B55=0, F50, 'CM choke'!B55) -> 183.3010637 | G51: =IF(CMdata=1,'Frequency vector'!E51,'Frequency vector'!F51) -> 183.3010637 | H51: 0.1833010637
D52: 49 | E52: =10*('Frequency vector'!$C$3)^D52 -> 14.56576616 | F52: =IF('CM choke'!B56=0, F51, 'CM choke'!B56) -> 185.629754 | G52: =IF(CMdata=1,'Frequency vector'!E52,'Frequency vector'!F52) -> 185.629754 | H52: 0.185629754
D53: 50 | E53: =10*('Frequency vector'!$C$3)^D53 -> 14.67799268 | F53: =IF('CM choke'!B57=0, F52, 'CM choke'!B57) -> 187.9880283 | G53: =IF(CMdata=1,'Frequency vector'!E53,'Frequency vector'!F53) -> 187.9880283 | H53: 0.1879880283
D54: 51 | E54: =10*('Frequency vector'!$C$3)^D54 -> 14.79108388 | F54: =IF('CM choke'!B58=0, F53, 'CM choke'!B58) -> 190.3762627 | G54: =IF(CMdata=1,'Frequency vector'!E54,'Frequency vector'!F54) -> 190.3762627 | H54: 0.1903762627
D55: 52 | E55: =10*('Frequency vector'!$C$3)^D55 -> 14.90504643 | F55: =IF('CM choke'!B59=0, F54, 'CM choke'!B59) -> 192.7948375 | G55: =IF(CMdata=1,'Frequency vector'!E55,'Frequency vector'!F55) -> 192.7948375 | H55: 0.1927948375
D56: 53 | E56: =10*('Frequency vector'!$C$3)^D56 -> 15.01988705 | F56: =IF('CM choke'!B60=0, F55, 'CM choke'!B60) -> 195.2441384 | G56: =IF(CMdata=1,'Frequency vector'!E56,'Frequency vector'!F56) -> 195.2441384 | H56: 0.1952441384
D57: 54 | E57: =10*('Frequency vector'!$C$3)^D57 -> 15.13561248 | F57: =IF('CM choke'!B61=0, F56, 'CM choke'!B61) -> 197.7245557 | G57: =IF(CMdata=1,'Frequency vector'!E57,'Frequency vector'!F57) -> 197.7245557 | H57: 0.1977245557
D58: 55 | E58: =10*('Frequency vector'!$C$3)^D58 -> 15.25222957 | F58: =IF('CM choke'!B62=0, F57, 'CM choke'!B62) -> 200.2364847 | G58: =IF(CMdata=1,'Frequency vector'!E58,'Frequency vector'!F58) -> 200.2364847 | H58: 0.2002364847
D59: 56 | E59: =10*('Frequency vector'!$C$3)^D59 -> 15.36974516 | F59: =IF('CM choke'!B63=0, F58, 'CM choke'!B63) -> 202.7803256 | G59: =IF(CMdata=1,'Frequency vector'!E59,'Frequency vector'!F59) -> 202.7803256 | H59: 0.2027803256
D60: 57 | E60: =10*('Frequency vector'!$C$3)^D60 -> 15.48816619 | F60: =IF('CM choke'!B64=0, F59, 'CM choke'!B64) -> 205.356484 | G60: =IF(CMdata=1,'Frequency vector'!E60,'Frequency vector'!F60) -> 205.356484 | H60: 0.205356484
D61: 58 | E61: =10*('Frequency vector'!$C$3)^D61 -> 15.60749963 | F61: =IF('CM choke'!B65=0, F60, 'CM choke'!B65) -> 207.9653703 | G61: =IF(CMdata=1,'Frequency vector'!E61,'Frequency vector'!F61) -> 207.9653703 | H61: 0.2079653703
D62: 59 | E62: =10*('Frequency vector'!$C$3)^D62 -> 15.72775251 | F62: =IF('CM choke'!B66=0, F61, 'CM choke'!B66) -> 210.6074005 | G62: =IF(CMdata=1,'Frequency vector'!E62,'Frequency vector'!F62) -> 210.6074005 | H62: 0.2106074005
D63: 60 | E63: =10*('Frequency vector'!$C$3)^D63 -> 15.84893192 | F63: =IF('CM choke'!B67=0, F62, 'CM choke'!B67) -> 213.2829954 | G63: =IF(CMdata=1,'Frequency vector'!E63,'Frequency vector'!F63) -> 213.2829954 | H63: 0.2132829954
D64: 61 | E64: =10*('Frequency vector'!$C$3)^D64 -> 15.971045 | F64: =IF('CM choke'!B68=0, F63, 'CM choke'!B68) -> 215.9925816 | G64: =IF(CMdata=1,'Frequency vector'!E64,'Frequency vector'!F64) -> 215.9925816 | H64: 0.2159925816
D65: 62 | E65: =10*('Frequency vector'!$C$3)^D65 -> 16.09409893 | F65: =IF('CM choke'!B69=0, F64, 'CM choke'!B69) -> 218.7365909 | G65: =IF(CMdata=1,'Frequency vector'!E65,'Frequency vector'!F65) -> 218.7365909 | H65: 0.2187365909
D66: 63 | E66: =10*('Frequency vector'!$C$3)^D66 -> 16.21810097 | F66: =IF('CM choke'!B70=0, F65, 'CM choke'!B70) -> 221.5154606 | G66: =IF(CMdata=1,'Frequency vector'!E66,'Frequency vector'!F66) -> 221.5154606 | H66: 0.2215154606
D67: 64 | E67: =10*('Frequency vector'!$C$3)^D67 -> 16.34305843 | F67: =IF('CM choke'!B71=0, F66, 'CM choke'!B71) -> 224.3296336 | G67: =IF(CMdata=1,'Frequency vector'!E67,'Frequency vector'!F67) -> 224.3296336 | H67: 0.2243296336
D68: 65 | E68: =10*('Frequency vector'!$C$3)^D68 -> 16.46897865 | F68: =IF('CM choke'!B72=0, F67, 'CM choke'!B72) -> 227.1795583 | G68: =IF(CMdata=1,'Frequency vector'!E68,'Frequency vector'!F68) -> 227.1795583 | H68: =G68/1000 -> 0.2271795583
D69: 66 | E69: =10*('Frequency vector'!$C$3)^D69 -> 16.59586907 | F69: =IF('CM choke'!B73=0, F68, 'CM choke'!B73) -> 230.065689 | G69: =IF(CMdata=1,'Frequency vector'!E69,'Frequency vector'!F69) -> 230.065689 | H69: 0.230065689
D70: 67 | E70: =10*('Frequency vector'!$C$3)^D70 -> 16.72373716 | F70: =IF('CM choke'!B74=0, F69, 'CM choke'!B74) -> 232.9884856 | G70: =IF(CMdata=1,'Frequency vector'!E70,'Frequency vector'!F70) -> 232.9884856 | H70: 0.2329884856
D71: 68 | E71: =10*('Frequency vector'!$C$3)^D71 -> 16.85259045 | F71: =IF('CM choke'!B75=0, F70, 'CM choke'!B75) -> 235.948414 | G71: =IF(CMdata=1,'Frequency vector'!E71,'Frequency vector'!F71) -> 235.948414 | H71: 0.235948414
D72: 69 | E72: =10*('Frequency vector'!$C$3)^D72 -> 16.98243652 | F72: =IF('CM choke'!B76=0, F71, 'CM choke'!B76) -> 238.9459458 | G72: =IF(CMdata=1,'Frequency vector'!E72,'Frequency vector'!F72) -> 238.9459458 | H72: 0.2389459458
D73: 70 | E73: =10*('Frequency vector'!$C$3)^D73 -> 17.11328304 | F73: =IF('CM choke'!B77=0, F72, 'CM choke'!B77) -> 241.9815588 | G73: =IF(CMdata=1,'Frequency vector'!E73,'Frequency vector'!F73) -> 241.9815588 | H73: 0.2419815588
D74: 71 | E74: =10*('Frequency vector'!$C$3)^D74 -> 17.24513771 | F74: =IF('CM choke'!B78=0, F73, 'CM choke'!B78) -> 245.0557368 | G74: =IF(CMdata=1,'Frequency vector'!E74,'Frequency vector'!F74) -> 245.0557368 | H74: 0.2450557368
D75: 72 | E75: =10*('Frequency vector'!$C$3)^D75 -> 17.37800829 | F75: =IF('CM choke'!B79=0, F74, 'CM choke'!B79) -> 248.1689698 | G75: =IF(CMdata=1,'Frequency vector'!E75,'Frequency vector'!F75) -> 248.1689698 | H75: 0.2481689698
D76: 73 | E76: =10*('Frequency vector'!$C$3)^D76 -> 17.51190261 | F76: =IF('CM choke'!B80=0, F75, 'CM choke'!B80) -> 251.3217538 | G76: =IF(CMdata=1,'Frequency vector'!E76,'Frequency vector'!F76) -> 251.3217538 | H76: 0.2513217538
D77: 74 | E77: =10*('Frequency vector'!$C$3)^D77 -> 17.64682857 | F77: =IF('CM choke'!B81=0, F76, 'CM choke'!B81) -> 254.5145913 | G77: =IF(CMdata=1,'Frequency vector'!E77,'Frequency vector'!F77) -> 254.5145913 | H77: 0.2545145913
D78: 75 | E78: =10*('Frequency vector'!$C$3)^D78 -> 17.7827941 | F78: =IF('CM choke'!B82=0, F77, 'CM choke'!B82) -> 257.7479913 | G78: =IF(CMdata=1,'Frequency vector'!E78,'Frequency vector'!F78) -> 257.7479913 | H78: 0.2577479913
D79: 76 | E79: =10*('Frequency vector'!$C$3)^D79 -> 17.91980722 | F79: =IF('CM choke'!B83=0, F78, 'CM choke'!B83) -> 261.022469 | G79: =IF(CMdata=1,'Frequency vector'!E79,'Frequency vector'!F79) -> 261.022469 | H79: 0.261022469
D80: 77 | E80: =10*('Frequency vector'!$C$3)^D80 -> 18.05787601 | F80: =IF('CM choke'!B84=0, F79, 'CM choke'!B84) -> 264.3385462 | G80: =IF(CMdata=1,'Frequency vector'!E80,'Frequency vector'!F80) -> 264.3385462 | H80: 0.2643385462
D81: 78 | E81: =10*('Frequency vector'!$C$3)^D81 -> 18.19700859 | F81: =IF('CM choke'!B85=0, F80, 'CM choke'!B85) -> 267.6967514 | G81: =IF(CMdata=1,'Frequency vector'!E81,'Frequency vector'!F81) -> 267.6967514 | H81: 0.2676967514
D82: 79 | E82: =10*('Frequency vector'!$C$3)^D82 -> 18.33721316 | F82: =IF('CM choke'!B86=0, F81, 'CM choke'!B86) -> 271.09762 | G82: =IF(CMdata=1,'Frequency vector'!E82,'Frequency vector'!F82) -> 271.09762 | H82: 0.27109762
D83: 80 | E83: =10*('Frequency vector'!$C$3)^D83 -> 18.47849797 | F83: =IF('CM choke'!B87=0, F82, 'CM choke'!B87) -> 274.5416938 | G83: =IF(CMdata=1,'Frequency vector'!E83,'Frequency vector'!F83) -> 274.5416938 | H83: 0.2745416938
D84: 81 | E84: =10*('Frequency vector'!$C$3)^D84 -> 18.62087137 | F84: =IF('CM choke'!B88=0, F83, 'CM choke'!B88) -> 278.0295217 | G84: =IF(CMdata=1,'Frequency vector'!E84,'Frequency vector'!F84) -> 278.0295217 | H84: 0.2780295217
D85: 82 | E85: =10*('Frequency vector'!$C$3)^D85 -> 18.76434172 | F85: =IF('CM choke'!B89=0, F84, 'CM choke'!B89) -> 281.5616596 | G85: =IF(CMdata=1,'Frequency vector'!E85,'Frequency vector'!F85) -> 281.5616596 | H85: 0.2815616596
D86: 83 | E86: =10*('Frequency vector'!$C$3)^D86 -> 18.90891748 | F86: =IF('CM choke'!B90=0, F85, 'CM choke'!B90) -> 285.1386705 | G86: =IF(CMdata=1,'Frequency vector'!E86,'Frequency vector'!F86) -> 285.1386705 | H86: 0.2851386705
D87: 84 | E87: =10*('Frequency vector'!$C$3)^D87 -> 19.05460718 | F87: =IF('CM choke'!B91=0, F86, 'CM choke'!B91) -> 288.7611243 | G87: =IF(CMdata=1,'Frequency vector'!E87,'Frequency vector'!F87) -> 288.7611243 | H87: 0.2887611243
D88: 85 | E88: =10*('Frequency vector'!$C$3)^D88 -> 19.20141939 | F88: =IF('CM choke'!B92=0, F87, 'CM choke'!B92) -> 292.4295985 | G88: =IF(CMdata=1,'Frequency vector'!E88,'Frequency vector'!F88) -> 292.4295985 | H88: 0.2924295985
D89: 86 | E89: =10*('Frequency vector'!$C$3)^D89 -> 19.34936275 | F89: =IF('CM choke'!B93=0, F88, 'CM choke'!B93) -> 296.1446776 | G89: =IF(CMdata=1,'Frequency vector'!E89,'Frequency vector'!F89) -> 296.1446776 | H89: 0.2961446776
D90: 87 | E90: =10*('Frequency vector'!$C$3)^D90 -> 19.498446 | F90: =IF('CM choke'!B94=0, F89, 'CM choke'!B94) -> 299.9069538 | G90: =IF(CMdata=1,'Frequency vector'!E90,'Frequency vector'!F90) -> 299.9069538 | H90: 0.2999069538
D91: 88 | E91: =10*('Frequency vector'!$C$3)^D91 -> 19.6486779 | F91: =IF('CM choke'!B95=0, F90, 'CM choke'!B95) -> 303.7170267 | G91: =IF(CMdata=1,'Frequency vector'!E91,'Frequency vector'!F91) -> 303.7170267 | H91: 0.3037170267
D92: 89 | E92: =10*('Frequency vector'!$C$3)^D92 -> 19.80006731 | F92: =IF('CM choke'!B96=0, F91, 'CM choke'!B96) -> 307.5755034 | G92: =IF(CMdata=1,'Frequency vector'!E92,'Frequency vector'!F92) -> 307.5755034 | H92: 0.3075755034
D93: 90 | E93: =10*('Frequency vector'!$C$3)^D93 -> 19.95262315 | F93: =IF('CM choke'!B97=0, F92, 'CM choke'!B97) -> 311.4829988 | G93: =IF(CMdata=1,'Frequency vector'!E93,'Frequency vector'!F93) -> 311.4829988 | H93: 0.3114829988
D94: 91 | E94: =10*('Frequency vector'!$C$3)^D94 -> 20.1063544 | F94: =IF('CM choke'!B98=0, F93, 'CM choke'!B98) -> 315.4401359 | G94: =IF(CMdata=1,'Frequency vector'!E94,'Frequency vector'!F94) -> 315.4401359 | H94: 0.3154401359
D95: 92 | E95: =10*('Frequency vector'!$C$3)^D95 -> 20.26127013 | F95: =IF('CM choke'!B99=0, F94, 'CM choke'!B99) -> 319.4475451 | G95: =IF(CMdata=1,'Frequency vector'!E95,'Frequency vector'!F95) -> 319.4475451 | H95: 0.3194475451
D96: 93 | E96: =10*('Frequency vector'!$C$3)^D96 -> 20.41737945 | F96: =IF('CM choke'!B100=0, F95, 'CM choke'!B100) -> 323.5058652 | G96: =IF(CMdata=1,'Frequency vector'!E96,'Frequency vector'!F96) -> 323.5058652 | H96: 0.3235058652
D97: 94 | E97: =10*('Frequency vector'!$C$3)^D97 -> 20.57469156 | F97: =IF('CM choke'!B101=0, F96, 'CM choke'!B101) -> 327.6157429 | G97: =IF(CMdata=1,'Frequency vector'!E97,'Frequency vector'!F97) -> 327.6157429 | H97: 0.3276157429
D98: 95 | E98: =10*('Frequency vector'!$C$3)^D98 -> 20.73321573 | F98: =IF('CM choke'!B102=0, F97, 'CM choke'!B102) -> 331.7778333 | G98: =IF(CMdata=1,'Frequency vector'!E98,'Frequency vector'!F98) -> 331.7778333 | H98: 0.3317778333
D99: 96 | E99: =10*('Frequency vector'!$C$3)^D99 -> 20.89296131 | F99: =IF('CM choke'!B103=0, F98, 'CM choke'!B103) -> 335.9927996 | G99: =IF(CMdata=1,'Frequency vector'!E99,'Frequency vector'!F99) -> 335.9927996 | H99: 0.3359927996
D100: 97 | E100: =10*('Frequency vector'!$C$3)^D100 -> 21.05393769 | F100: =IF('CM choke'!B104=0, F99, 'CM choke'!B104) -> 340.2613136 | G100: =IF(CMdata=1,'Frequency vector'!E100,'Frequency vector'!F100) -> 340.2613136 | H100: 0.3402613136
D101: 98 | E101: =10*('Frequency vector'!$C$3)^D101 -> 21.21615437 | F101: =IF('CM choke'!B105=0, F100, 'CM choke'!B105) -> 344.5840556 | G101: =IF(CMdata=1,'Frequency vector'!E101,'Frequency vector'!F101) -> 344.5840556 | H101: 0.3445840556
D102: 99 | E102: =10*('Frequency vector'!$C$3)^D102 -> 21.3796209 | F102: =IF('CM choke'!B106=0, F101, 'CM choke'!B106) -> 348.9617145 | G102: =IF(CMdata=1,'Frequency vector'!E102,'Frequency vector'!F102) -> 348.9617145 | H102: 0.3489617145
D103: 100 | E103: =10*('Frequency vector'!$C$3)^D103 -> 21.5443469 | F103: =IF('CM choke'!B107=0, F102, 'CM choke'!B107) -> 353.394988 | G103: =IF(CMdata=1,'Frequency vector'!E103,'Frequency vector'!F103) -> 353.394988 | H103: 0.353394988
D104: 101 | E104: =10*('Frequency vector'!$C$3)^D104 -> 21.71034209 | F104: =IF('CM choke'!B108=0, F103, 'CM choke'!B108) -> 357.8845826 | G104: =IF(CMdata=1,'Frequency vector'!E104,'Frequency vector'!F104) -> 357.8845826 | H104: 0.3578845826
D105: 102 | E105: =10*('Frequency vector'!$C$3)^D105 -> 21.87761624 | F105: =IF('CM choke'!B109=0, F104, 'CM choke'!B109) -> 362.4312138 | G105: =IF(CMdata=1,'Frequency vector'!E105,'Frequency vector'!F105) -> 362.4312138 | H105: 0.3624312138
D106: 103 | E106: =10*('Frequency vector'!$C$3)^D106 -> 22.04617921 | F106: =IF('CM choke'!B110=0, F105, 'CM choke'!B110) -> 367.0356063 | G106: =IF(CMdata=1,'Frequency vector'!E106,'Frequency vector'!F106) -> 367.0356063 | H106: 0.3670356063
D107: 104 | E107: =10*('Frequency vector'!$C$3)^D107 -> 22.21604092 | F107: =IF('CM choke'!B111=0, F106, 'CM choke'!B111) -> 371.6984938 | G107: =IF(CMdata=1,'Frequency vector'!E107,'Frequency vector'!F107) -> 371.6984938 | H107: 0.3716984938
D108: 105 | E108: =10*('Frequency vector'!$C$3)^D108 -> 22.38721139 | F108: =IF('CM choke'!B112=0, F107, 'CM choke'!B112) -> 376.4206195 | G108: =IF(CMdata=1,'Frequency vector'!E108,'Frequency vector'!F108) -> 376.4206195 | H108: 0.3764206195
D109: 106 | E109: =10*('Frequency vector'!$C$3)^D109 -> 22.55970069 | F109: =IF('CM choke'!B113=0, F108, 'CM choke'!B113) -> 381.202736 | G109: =IF(CMdata=1,'Frequency vector'!E109,'Frequency vector'!F109) -> 381.202736 | H109: 0.381202736
D110: 107 | E110: =10*('Frequency vector'!$C$3)^D110 -> 22.73351899 | F110: =IF('CM choke'!B114=0, F109, 'CM choke'!B114) -> 386.0456053 | G110: =IF(CMdata=1,'Frequency vector'!E110,'Frequency vector'!F110) -> 386.0456053 | H110: 0.3860456053
D111: 108 | E111: =10*('Frequency vector'!$C$3)^D111 -> 22.90867653 | F111: =IF('CM choke'!B115=0, F110, 'CM choke'!B115) -> 390.9499993 | G111: =IF(CMdata=1,'Frequency vector'!E111,'Frequency vector'!F111) -> 390.9499993 | H111: 0.3909499993
D112: 109 | E112: =10*('Frequency vector'!$C$3)^D112 -> 23.08518362 | F112: =IF('CM choke'!B116=0, F111, 'CM choke'!B116) -> 395.9166997 | G112: =IF(CMdata=1,'Frequency vector'!E112,'Frequency vector'!F112) -> 395.9166997 | H112: 0.3959166997
D113: 110 | E113: =10*('Frequency vector'!$C$3)^D113 -> 23.26305067 | F113: =IF('CM choke'!B117=0, F112, 'CM choke'!B117) -> 400.9464979 | G113: =IF(CMdata=1,'Frequency vector'!E113,'Frequency vector'!F113) -> 400.9464979 | H113: 0.4009464979
D114: 111 | E114: =10*('Frequency vector'!$C$3)^D114 -> 23.44228815 | F114: =IF('CM choke'!B118=0, F113, 'CM choke'!B118) -> 406.0401956 | G114: =IF(CMdata=1,'Frequency vector'!E114,'Frequency vector'!F114) -> 406.0401956 | H114: 0.4060401956
D115: 112 | E115: =10*('Frequency vector'!$C$3)^D115 -> 23.62290663 | F115: =IF('CM choke'!B119=0, F114, 'CM choke'!B119) -> 411.1986045 | G115: =IF(CMdata=1,'Frequency vector'!E115,'Frequency vector'!F115) -> 411.1986045 | H115: 0.4111986045
D116: 113 | E116: =10*('Frequency vector'!$C$3)^D116 -> 23.80491673 | F116: =IF('CM choke'!B120=0, F115, 'CM choke'!B120) -> 416.4225469 | G116: =IF(CMdata=1,'Frequency vector'!E116,'Frequency vector'!F116) -> 416.4225469 | H116: 0.4164225469
D117: 114 | E117: =10*('Frequency vector'!$C$3)^D117 -> 23.98832919 | F117: =IF('CM choke'!B121=0, F116, 'CM choke'!B121) -> 421.7128551 | G117: =IF(CMdata=1,'Frequency vector'!E117,'Frequency vector'!F117) -> 421.7128551 | H117: 0.4217128551
D118: 115 | E118: =10*('Frequency vector'!$C$3)^D118 -> 24.17315481 | F118: =IF('CM choke'!B122=0, F117, 'CM choke'!B122) -> 427.0703724 | G118: =IF(CMdata=1,'Frequency vector'!E118,'Frequency vector'!F118) -> 427.0703724 | H118: 0.4270703724
D119: 116 | E119: =10*('Frequency vector'!$C$3)^D119 -> 24.35940447 | F119: =IF('CM choke'!B123=0, F118, 'CM choke'!B123) -> 432.4959526 | G119: =IF(CMdata=1,'Frequency vector'!E119,'Frequency vector'!F119) -> 432.4959526 | H119: 0.4324959526
D120: 117 | E120: =10*('Frequency vector'!$C$3)^D120 -> 24.54708916 | F120: =IF('CM choke'!B124=0, F119, 'CM choke'!B124) -> 437.9904603 | G120: =IF(CMdata=1,'Frequency vector'!E120,'Frequency vector'!F120) -> 437.9904603 | H120: 0.4379904603
D121: 118 | E121: =10*('Frequency vector'!$C$3)^D121 -> 24.73621992 | F121: =IF('CM choke'!B125=0, F120, 'CM choke'!B125) -> 443.5547713 | G121: =IF(CMdata=1,'Frequency vector'!E121,'Frequency vector'!F121) -> 443.5547713 | H121: 0.4435547713
D122: 119 | E122: =10*('Frequency vector'!$C$3)^D122 -> 24.92680789 | F122: =IF('CM choke'!B126=0, F121, 'CM choke'!B126) -> 449.1897723 | G122: =IF(CMdata=1,'Frequency vector'!E122,'Frequency vector'!F122) -> 449.1897723 | H122: 0.4491897723
D123: 120 | E123: =10*('Frequency vector'!$C$3)^D123 -> 25.11886432 | F123: =IF('CM choke'!B127=0, F122, 'CM choke'!B127) -> 454.8963614 | G123: =IF(CMdata=1,'Frequency vector'!E123,'Frequency vector'!F123) -> 454.8963614 | H123: 0.4548963614
D124: 121 | E124: =10*('Frequency vector'!$C$3)^D124 -> 25.3124005 | F124: =IF('CM choke'!B128=0, F123, 'CM choke'!B128) -> 460.675448 | G124: =IF(CMdata=1,'Frequency vector'!E124,'Frequency vector'!F124) -> 460.675448 | H124: 0.460675448
D125: 122 | E125: =10*('Frequency vector'!$C$3)^D125 -> 25.50742784 | F125: =IF('CM choke'!B129=0, F124, 'CM choke'!B129) -> 466.5279532 | G125: =IF(CMdata=1,'Frequency vector'!E125,'Frequency vector'!F125) -> 466.5279532 | H125: 0.4665279532
D126: 123 | E126: =10*('Frequency vector'!$C$3)^D126 -> 25.70395783 | F126: =IF('CM choke'!B130=0, F125, 'CM choke'!B130) -> 472.4548097 | G126: =IF(CMdata=1,'Frequency vector'!E126,'Frequency vector'!F126) -> 472.4548097 | H126: 0.4724548097
D127: 124 | E127: =10*('Frequency vector'!$C$3)^D127 -> 25.90200205 | F127: =IF('CM choke'!B131=0, F126, 'CM choke'!B131) -> 478.4569621 | G127: =IF(CMdata=1,'Frequency vector'!E127,'Frequency vector'!F127) -> 478.4569621 | H127: 0.4784569621
D128: 125 | E128: =10*('Frequency vector'!$C$3)^D128 -> 26.10157216 | F128: =IF('CM choke'!B132=0, F127, 'CM choke'!B132) -> 484.5353669 | G128: =IF(CMdata=1,'Frequency vector'!E128,'Frequency vector'!F128) -> 484.5353669 | H128: 0.4845353669
D129: 126 | E129: =10*('Frequency vector'!$C$3)^D129 -> 26.30267992 | F129: =IF('CM choke'!B133=0, F128, 'CM choke'!B133) -> 490.6909929 | G129: =IF(CMdata=1,'Frequency vector'!E129,'Frequency vector'!F129) -> 490.6909929 | H129: 0.4906909929
D130: 127 | E130: =10*('Frequency vector'!$C$3)^D130 -> 26.50533718 | F130: =IF('CM choke'!B134=0, F129, 'CM choke'!B134) -> 496.9248211 | G130: =IF(CMdata=1,'Frequency vector'!E130,'Frequency vector'!F130) -> 496.9248211 | H130: 0.4969248211
D131: 128 | E131: =10*('Frequency vector'!$C$3)^D131 -> 26.70955588 | F131: =IF('CM choke'!B135=0, F130, 'CM choke'!B135) -> 503.237845 | G131: =IF(CMdata=1,'Frequency vector'!E131,'Frequency vector'!F131) -> 503.237845 | H131: 0.503237845
D132: 129 | E132: =10*('Frequency vector'!$C$3)^D132 -> 26.91534804 | F132: =IF('CM choke'!B136=0, F131, 'CM choke'!B136) -> 509.6310707 | G132: =IF(CMdata=1,'Frequency vector'!E132,'Frequency vector'!F132) -> 509.6310707 | H132: =G132/1000 -> 0.5096310707
D133: 130 | E133: =10*('Frequency vector'!$C$3)^D133 -> 27.12272579 | F133: =IF('CM choke'!B137=0, F132, 'CM choke'!B137) -> 516.1055171 | G133: =IF(CMdata=1,'Frequency vector'!E133,'Frequency vector'!F133) -> 516.1055171 | H133: 0.5161055171
D134: 131 | E134: =10*('Frequency vector'!$C$3)^D134 -> 27.33170135 | F134: =IF('CM choke'!B138=0, F133, 'CM choke'!B138) -> 522.662216 | G134: =IF(CMdata=1,'Frequency vector'!E134,'Frequency vector'!F134) -> 522.662216 | H134: 0.522662216
D135: 132 | E135: =10*('Frequency vector'!$C$3)^D135 -> 27.54228703 | F135: =IF('CM choke'!B139=0, F134, 'CM choke'!B139) -> 529.3022125 | G135: =IF(CMdata=1,'Frequency vector'!E135,'Frequency vector'!F135) -> 529.3022125 | H135: 0.5293022125
D136: 133 | E136: =10*('Frequency vector'!$C$3)^D136 -> 27.75449524 | F136: =IF('CM choke'!B140=0, F135, 'CM choke'!B140) -> 536.0265646 | G136: =IF(CMdata=1,'Frequency vector'!E136,'Frequency vector'!F136) -> 536.0265646 | H136: 0.5360265646
D137: 134 | E137: =10*('Frequency vector'!$C$3)^D137 -> 27.96833846 | F137: =IF('CM choke'!B141=0, F136, 'CM choke'!B141) -> 542.8363442 | G137: =IF(CMdata=1,'Frequency vector'!E137,'Frequency vector'!F137) -> 542.8363442 | H137: 0.5428363442
D138: 135 | E138: =10*('Frequency vector'!$C$3)^D138 -> 28.18382931 | F138: =IF('CM choke'!B142=0, F137, 'CM choke'!B142) -> 549.7326365 | G138: =IF(CMdata=1,'Frequency vector'!E138,'Frequency vector'!F138) -> 549.7326365 | H138: 0.5497326365
D139: 136 | E139: =10*('Frequency vector'!$C$3)^D139 -> 28.40098048 | F139: =IF('CM choke'!B143=0, F138, 'CM choke'!B143) -> 556.7165405 | G139: =IF(CMdata=1,'Frequency vector'!E139,'Frequency vector'!F139) -> 556.7165405 | H139: 0.5567165405
D140: 137 | E140: =10*('Frequency vector'!$C$3)^D140 -> 28.61980476 | F140: =IF('CM choke'!B144=0, F139, 'CM choke'!B144) -> 563.7891694 | G140: =IF(CMdata=1,'Frequency vector'!E140,'Frequency vector'!F140) -> 563.7891694 | H140: 0.5637891694
D141: 138 | E141: =10*('Frequency vector'!$C$3)^D141 -> 28.84031503 | F141: =IF('CM choke'!B145=0, F140, 'CM choke'!B145) -> 570.9516502 | G141: =IF(CMdata=1,'Frequency vector'!E141,'Frequency vector'!F141) -> 570.9516502 | H141: 0.5709516502
D142: 139 | E142: =10*('Frequency vector'!$C$3)^D142 -> 29.0625243 | F142: =IF('CM choke'!B146=0, F141, 'CM choke'!B146) -> 578.2051244 | G142: =IF(CMdata=1,'Frequency vector'!E142,'Frequency vector'!F142) -> 578.2051244 | H142: 0.5782051244
D143: 140 | E143: =10*('Frequency vector'!$C$3)^D143 -> 29.28644565 | F143: =IF('CM choke'!B147=0, F142, 'CM choke'!B147) -> 585.5507481 | G143: =IF(CMdata=1,'Frequency vector'!E143,'Frequency vector'!F143) -> 585.5507481 | H143: 0.5855507481
D144: 141 | E144: =10*('Frequency vector'!$C$3)^D144 -> 29.51209227 | F144: =IF('CM choke'!B148=0, F143, 'CM choke'!B148) -> 592.989692 | G144: =IF(CMdata=1,'Frequency vector'!E144,'Frequency vector'!F144) -> 592.989692 | H144: 0.592989692
D145: 142 | E145: =10*('Frequency vector'!$C$3)^D145 -> 29.73947745 | F145: =IF('CM choke'!B149=0, F144, 'CM choke'!B149) -> 600.5231416 | G145: =IF(CMdata=1,'Frequency vector'!E145,'Frequency vector'!F145) -> 600.5231416 | H145: 0.6005231416
D146: 143 | E146: =10*('Frequency vector'!$C$3)^D146 -> 29.9686146 | F146: =IF('CM choke'!B150=0, F145, 'CM choke'!B150) -> 608.1522975 | G146: =IF(CMdata=1,'Frequency vector'!E146,'Frequency vector'!F146) -> 608.1522975 | H146: 0.6081522975
D147: 144 | E147: =10*('Frequency vector'!$C$3)^D147 -> 30.1995172 | F147: =IF('CM choke'!B151=0, F146, 'CM choke'!B151) -> 615.8783756 | G147: =IF(CMdata=1,'Frequency vector'!E147,'Frequency vector'!F147) -> 615.8783756 | H147: 0.6158783756
D148: 145 | E148: =10*('Frequency vector'!$C$3)^D148 -> 30.43219887 | F148: =IF('CM choke'!B152=0, F147, 'CM choke'!B152) -> 623.7026072 | G148: =IF(CMdata=1,'Frequency vector'!E148,'Frequency vector'!F148) -> 623.7026072 | H148: 0.6237026072
D149: 146 | E149: =10*('Frequency vector'!$C$3)^D149 -> 30.66667331 | F149: =IF('CM choke'!B153=0, F148, 'CM choke'!B153) -> 631.6262393 | G149: =IF(CMdata=1,'Frequency vector'!E149,'Frequency vector'!F149) -> 631.6262393 | H149: 0.6316262393
D150: 147 | E150: =10*('Frequency vector'!$C$3)^D150 -> 30.90295433 | F150: =IF('CM choke'!B154=0, F149, 'CM choke'!B154) -> 639.6505346 | G150: =IF(CMdata=1,'Frequency vector'!E150,'Frequency vector'!F150) -> 639.6505346 | H150: 0.6396505346
D151: 148 | E151: =10*('Frequency vector'!$C$3)^D151 -> 31.14105584 | F151: =IF('CM choke'!B155=0, F150, 'CM choke'!B155) -> 647.7767721 | G151: =IF(CMdata=1,'Frequency vector'!E151,'Frequency vector'!F151) -> 647.7767721 | H151: 0.6477767721
D152: 149 | E152: =10*('Frequency vector'!$C$3)^D152 -> 31.38099189 | F152: =IF('CM choke'!B156=0, F151, 'CM choke'!B156) -> 656.0062468 | G152: =IF(CMdata=1,'Frequency vector'!E152,'Frequency vector'!F152) -> 656.0062468 | H152: 0.6560062468
D153: 150 | E153: =10*('Frequency vector'!$C$3)^D153 -> 31.6227766 | F153: =IF('CM choke'!B157=0, F152, 'CM choke'!B157) -> 664.3402702 | G153: =IF(CMdata=1,'Frequency vector'!E153,'Frequency vector'!F153) -> 664.3402702 | H153: 0.6643402702
D154: 151 | E154: =10*('Frequency vector'!$C$3)^D154 -> 31.86642422 | F154: =IF('CM choke'!B158=0, F153, 'CM choke'!B158) -> 672.7801706 | G154: =IF(CMdata=1,'Frequency vector'!E154,'Frequency vector'!F154) -> 672.7801706 | H154: 0.6727801706
D155: 152 | E155: =10*('Frequency vector'!$C$3)^D155 -> 32.11194909 | F155: =IF('CM choke'!B159=0, F154, 'CM choke'!B159) -> 681.327293 | G155: =IF(CMdata=1,'Frequency vector'!E155,'Frequency vector'!F155) -> 681.327293 | H155: 0.681327293
D156: 153 | E156: =10*('Frequency vector'!$C$3)^D156 -> 32.35936569 | F156: =IF('CM choke'!B160=0, F155, 'CM choke'!B160) -> 689.9829996 | G156: =IF(CMdata=1,'Frequency vector'!E156,'Frequency vector'!F156) -> 689.9829996 | H156: 0.6899829996
D157: 154 | E157: =10*('Frequency vector'!$C$3)^D157 -> 32.60868859 | F157: =IF('CM choke'!B161=0, F156, 'CM choke'!B161) -> 698.7486699 | G157: =IF(CMdata=1,'Frequency vector'!E157,'Frequency vector'!F157) -> 698.7486699 | H157: 0.6987486699
D158: 155 | E158: =10*('Frequency vector'!$C$3)^D158 -> 32.85993248 | F158: =IF('CM choke'!B162=0, F157, 'CM choke'!B162) -> 707.6257009 | G158: =IF(CMdata=1,'Frequency vector'!E158,'Frequency vector'!F158) -> 707.6257009 | H158: 0.7076257009
D159: 156 | E159: =10*('Frequency vector'!$C$3)^D159 -> 33.11311215 | F159: =IF('CM choke'!B163=0, F158, 'CM choke'!B163) -> 716.6155074 | G159: =IF(CMdata=1,'Frequency vector'!E159,'Frequency vector'!F159) -> 716.6155074 | H159: 0.7166155074
D160: 157 | E160: =10*('Frequency vector'!$C$3)^D160 -> 33.36824252 | F160: =IF('CM choke'!B164=0, F159, 'CM choke'!B164) -> 725.7195219 | G160: =IF(CMdata=1,'Frequency vector'!E160,'Frequency vector'!F160) -> 725.7195219 | H160: 0.7257195219
D161: 158 | E161: =10*('Frequency vector'!$C$3)^D161 -> 33.62533863 | F161: =IF('CM choke'!B165=0, F160, 'CM choke'!B165) -> 734.9391955 | G161: =IF(CMdata=1,'Frequency vector'!E161,'Frequency vector'!F161) -> 734.9391955 | H161: 0.7349391955
D162: 159 | E162: =10*('Frequency vector'!$C$3)^D162 -> 33.88441561 | F162: =IF('CM choke'!B166=0, F161, 'CM choke'!B166) -> 744.2759976 | G162: =IF(CMdata=1,'Frequency vector'!E162,'Frequency vector'!F162) -> 744.2759976 | H162: 0.7442759976
D163: 160 | E163: =10*('Frequency vector'!$C$3)^D163 -> 34.14548874 | F163: =IF('CM choke'!B167=0, F162, 'CM choke'!B167) -> 753.7314161 | G163: =IF(CMdata=1,'Frequency vector'!E163,'Frequency vector'!F163) -> 753.7314161 | H163: 0.7537314161
D164: 161 | E164: =10*('Frequency vector'!$C$3)^D164 -> 34.40857338 | F164: =IF('CM choke'!B168=0, F163, 'CM choke'!B168) -> 763.306958 | G164: =IF(CMdata=1,'Frequency vector'!E164,'Frequency vector'!F164) -> 763.306958 | H164: 0.763306958
D165: 162 | E165: =10*('Frequency vector'!$C$3)^D165 -> 34.67368505 | F165: =IF('CM choke'!B169=0, F164, 'CM choke'!B169) -> 773.0041493 | G165: =IF(CMdata=1,'Frequency vector'!E165,'Frequency vector'!F165) -> 773.0041493 | H165: 0.7730041493
D166: 163 | E166: =10*('Frequency vector'!$C$3)^D166 -> 34.94083934 | F166: =IF('CM choke'!B170=0, F165, 'CM choke'!B170) -> 782.8245355 | G166: =IF(CMdata=1,'Frequency vector'!E166,'Frequency vector'!F166) -> 782.8245355 | H166: 0.7828245355
D167: 164 | E167: =10*('Frequency vector'!$C$3)^D167 -> 35.21005202 | F167: =IF('CM choke'!B171=0, F166, 'CM choke'!B171) -> 792.7696816 | G167: =IF(CMdata=1,'Frequency vector'!E167,'Frequency vector'!F167) -> 792.7696816 | H167: 0.7927696816
D168: 165 | E168: =10*('Frequency vector'!$C$3)^D168 -> 35.48133892 | F168: =IF('CM choke'!B172=0, F167, 'CM choke'!B172) -> 802.8411728 | G168: =IF(CMdata=1,'Frequency vector'!E168,'Frequency vector'!F168) -> 802.8411728 | H168: 0.8028411728
D169: 166 | E169: =10*('Frequency vector'!$C$3)^D169 -> 35.75471605 | F169: =IF('CM choke'!B173=0, F168, 'CM choke'!B173) -> 813.040614 | G169: =IF(CMdata=1,'Frequency vector'!E169,'Frequency vector'!F169) -> 813.040614 | H169: 0.813040614
D170: 167 | E170: =10*('Frequency vector'!$C$3)^D170 -> 36.03019949 | F170: =IF('CM choke'!B174=0, F169, 'CM choke'!B174) -> 823.3696307 | G170: =IF(CMdata=1,'Frequency vector'!E170,'Frequency vector'!F170) -> 823.3696307 | H170: 0.8233696307
D171: 168 | E171: =10*('Frequency vector'!$C$3)^D171 -> 36.30780548 | F171: =IF('CM choke'!B175=0, F170, 'CM choke'!B175) -> 833.8298692 | G171: =IF(CMdata=1,'Frequency vector'!E171,'Frequency vector'!F171) -> 833.8298692 | H171: 0.8338298692
D172: 169 | E172: =10*('Frequency vector'!$C$3)^D172 -> 36.58755037 | F172: =IF('CM choke'!B176=0, F171, 'CM choke'!B176) -> 844.4229965 | G172: =IF(CMdata=1,'Frequency vector'!E172,'Frequency vector'!F172) -> 844.4229965 | H172: 0.8444229965
D173: 170 | E173: =10*('Frequency vector'!$C$3)^D173 -> 36.86945065 | F173: =IF('CM choke'!B177=0, F172, 'CM choke'!B177) -> 855.1507008 | G173: =IF(CMdata=1,'Frequency vector'!E173,'Frequency vector'!F173) -> 855.1507008 | H173: 0.8551507008
D174: 171 | E174: =10*('Frequency vector'!$C$3)^D174 -> 37.15352291 | F174: =IF('CM choke'!B178=0, F173, 'CM choke'!B178) -> 866.0146918 | G174: =IF(CMdata=1,'Frequency vector'!E174,'Frequency vector'!F174) -> 866.0146918 | H174: 0.8660146918
D175: 172 | E175: =10*('Frequency vector'!$C$3)^D175 -> 37.4397839 | F175: =IF('CM choke'!B179=0, F174, 'CM choke'!B179) -> 877.0167009 | G175: =IF(CMdata=1,'Frequency vector'!E175,'Frequency vector'!F175) -> 877.0167009 | H175: 0.8770167009
D176: 173 | E176: =10*('Frequency vector'!$C$3)^D176 -> 37.72825047 | F176: =IF('CM choke'!B180=0, F175, 'CM choke'!B180) -> 888.1584816 | G176: =IF(CMdata=1,'Frequency vector'!E176,'Frequency vector'!F176) -> 888.1584816 | H176: 0.8881584816
D177: 174 | E177: =10*('Frequency vector'!$C$3)^D177 -> 38.01893963 | F177: =IF('CM choke'!B181=0, F176, 'CM choke'!B181) -> 899.4418095 | G177: =IF(CMdata=1,'Frequency vector'!E177,'Frequency vector'!F177) -> 899.4418095 | H177: 0.8994418095
D178: 175 | E178: =10*('Frequency vector'!$C$3)^D178 -> 38.3118685 | F178: =IF('CM choke'!B182=0, F177, 'CM choke'!B182) -> 910.8684829 | G178: =IF(CMdata=1,'Frequency vector'!E178,'Frequency vector'!F178) -> 910.8684829 | H178: 0.9108684829
D179: 176 | E179: =10*('Frequency vector'!$C$3)^D179 -> 38.60705432 | F179: =IF('CM choke'!B183=0, F178, 'CM choke'!B183) -> 922.4403228 | G179: =IF(CMdata=1,'Frequency vector'!E179,'Frequency vector'!F179) -> 922.4403228 | H179: 0.9224403228
D180: 177 | E180: =10*('Frequency vector'!$C$3)^D180 -> 38.9045145 | F180: =IF('CM choke'!B184=0, F179, 'CM choke'!B184) -> 934.1591735 | G180: =IF(CMdata=1,'Frequency vector'!E180,'Frequency vector'!F180) -> 934.1591735 | H180: 0.9341591735
D181: 178 | E181: =10*('Frequency vector'!$C$3)^D181 -> 39.20426655 | F181: =IF('CM choke'!B185=0, F180, 'CM choke'!B185) -> 946.0269026 | G181: =IF(CMdata=1,'Frequency vector'!E181,'Frequency vector'!F181) -> 946.0269026 | H181: 0.9460269026
D182: 179 | E182: =10*('Frequency vector'!$C$3)^D182 -> 39.50632814 | F182: =IF('CM choke'!B186=0, F181, 'CM choke'!B186) -> 958.0454016 | G182: =IF(CMdata=1,'Frequency vector'!E182,'Frequency vector'!F182) -> 958.0454016 | H182: 0.9580454016
D183: 180 | E183: =10*('Frequency vector'!$C$3)^D183 -> 39.81071706 | F183: =IF('CM choke'!B187=0, F182, 'CM choke'!B187) -> 970.2165857 | G183: =IF(CMdata=1,'Frequency vector'!E183,'Frequency vector'!F183) -> 970.2165857 | H183: 0.9702165857
D184: 181 | E184: =10*('Frequency vector'!$C$3)^D184 -> 40.11745123 | F184: =IF('CM choke'!B188=0, F183, 'CM choke'!B188) -> 982.5423948 | G184: =IF(CMdata=1,'Frequency vector'!E184,'Frequency vector'!F184) -> 982.5423948 | H184: 0.9825423948
D185: 182 | E185: =10*('Frequency vector'!$C$3)^D185 -> 40.42654874 | F185: =IF('CM choke'!B189=0, F184, 'CM choke'!B189) -> 995.0247932 | G185: =IF(CMdata=1,'Frequency vector'!E185,'Frequency vector'!F185) -> 995.0247932 | H185: 0.9950247932
D186: 183 | E186: =10*('Frequency vector'!$C$3)^D186 -> 40.73802778 | F186: =IF('CM choke'!B190=0, F185, 'CM choke'!B190) -> 1007.66577 | G186: =IF(CMdata=1,'Frequency vector'!E186,'Frequency vector'!F186) -> 1007.66577 | H186: 1.00766577
D187: 184 | E187: =10*('Frequency vector'!$C$3)^D187 -> 41.05190671 | F187: =IF('CM choke'!B191=0, F186, 'CM choke'!B191) -> 1020.467341 | G187: =IF(CMdata=1,'Frequency vector'!E187,'Frequency vector'!F187) -> 1020.467341 | H187: 1.020467341
D188: 185 | E188: =10*('Frequency vector'!$C$3)^D188 -> 41.36820402 | F188: =IF('CM choke'!B192=0, F187, 'CM choke'!B192) -> 1033.431545 | G188: =IF(CMdata=1,'Frequency vector'!E188,'Frequency vector'!F188) -> 1033.431545 | H188: 1.033431545
D189: 186 | E189: =10*('Frequency vector'!$C$3)^D189 -> 41.68693835 | F189: =IF('CM choke'!B193=0, F188, 'CM choke'!B193) -> 1046.560448 | G189: =IF(CMdata=1,'Frequency vector'!E189,'Frequency vector'!F189) -> 1046.560448 | H189: 1.046560448
D190: 187 | E190: =10*('Frequency vector'!$C$3)^D190 -> 42.00812846 | F190: =IF('CM choke'!B194=0, F189, 'CM choke'!B194) -> 1059.856143 | G190: =IF(CMdata=1,'Frequency vector'!E190,'Frequency vector'!F190) -> 1059.856143 | H190: 1.059856143
D191: 188 | E191: =10*('Frequency vector'!$C$3)^D191 -> 42.33179328 | F191: =IF('CM choke'!B195=0, F190, 'CM choke'!B195) -> 1073.32075 | G191: =IF(CMdata=1,'Frequency vector'!E191,'Frequency vector'!F191) -> 1073.32075 | H191: 1.07332075
D192: 189 | E192: =10*('Frequency vector'!$C$3)^D192 -> 42.65795188 | F192: =IF('CM choke'!B196=0, F191, 'CM choke'!B196) -> 1086.956413 | G192: =IF(CMdata=1,'Frequency vector'!E192,'Frequency vector'!F192) -> 1086.956413 | H192: 1.086956413
D193: 190 | E193: =10*('Frequency vector'!$C$3)^D193 -> 42.98662347 | F193: =IF('CM choke'!B197=0, F192, 'CM choke'!B197) -> 1100.765306 | G193: =IF(CMdata=1,'Frequency vector'!E193,'Frequency vector'!F193) -> 1100.765306 | H193: 1.100765306
D194: 191 | E194: =10*('Frequency vector'!$C$3)^D194 -> 43.31782742 | F194: =IF('CM choke'!B198=0, F193, 'CM choke'!B198) -> 1114.74963 | G194: =IF(CMdata=1,'Frequency vector'!E194,'Frequency vector'!F194) -> 1114.74963 | H194: 1.11474963
D195: 192 | E195: =10*('Frequency vector'!$C$3)^D195 -> 43.65158322 | F195: =IF('CM choke'!B199=0, F194, 'CM choke'!B199) -> 1128.911614 | G195: =IF(CMdata=1,'Frequency vector'!E195,'Frequency vector'!F195) -> 1128.911614 | H195: 1.128911614
D196: 193 | E196: =10*('Frequency vector'!$C$3)^D196 -> 43.98791056 | F196: =IF('CM choke'!B200=0, F195, 'CM choke'!B200) -> 1143.253513 | G196: =IF(CMdata=1,'Frequency vector'!E196,'Frequency vector'!F196) -> 1143.253513 | H196: =G196/1000 -> 1.143253513
D197: 194 | E197: =10*('Frequency vector'!$C$3)^D197 -> 44.32682923 | F197: =IF('CM choke'!B201=0, F196, 'CM choke'!B201) -> 1157.777615 | G197: =IF(CMdata=1,'Frequency vector'!E197,'Frequency vector'!F197) -> 1157.777615 | H197: 1.157777615
D198: 195 | E198: =10*('Frequency vector'!$C$3)^D198 -> 44.66835922 | F198: =IF('CM choke'!B202=0, F197, 'CM choke'!B202) -> 1172.486234 | G198: =IF(CMdata=1,'Frequency vector'!E198,'Frequency vector'!F198) -> 1172.486234 | H198: 1.172486234
D199: 196 | E199: =10*('Frequency vector'!$C$3)^D199 -> 45.01252062 | F199: =IF('CM choke'!B203=0, F198, 'CM choke'!B203) -> 1187.381714 | G199: =IF(CMdata=1,'Frequency vector'!E199,'Frequency vector'!F199) -> 1187.381714 | H199: 1.187381714
D200: 197 | E200: =10*('Frequency vector'!$C$3)^D200 -> 45.35933373 | F200: =IF('CM choke'!B204=0, F199, 'CM choke'!B204) -> 1202.466428 | G200: =IF(CMdata=1,'Frequency vector'!E200,'Frequency vector'!F200) -> 1202.466428 | H200: 1.202466428
D201: 198 | E201: =10*('Frequency vector'!$C$3)^D201 -> 45.70881896 | F201: =IF('CM choke'!B205=0, F200, 'CM choke'!B205) -> 1217.742782 | G201: =IF(CMdata=1,'Frequency vector'!E201,'Frequency vector'!F201) -> 1217.742782 | H201: 1.217742782
... 924 more rows

Sheet Choke impedance calculations (hidden)
C1: ZL1 (mag, phase) | E1: ZL2 (mag, phase) | G1: ZL1 (real, imag) | I1: ZL2 (real, imag) | K1: ZL1 (complex) | L1: ZL2 (complex) | O1: Lcm1 | Q1: Lcm2
A2: freq_selected [Hz] | B2: j*w [rad] | C2: ZL1_mag [Ω] | D2: ZL1_phase [°] | E2: ZL2_mag [Ω] | F2: ZL2_phase [°] | G2: ZL1_real [Ω] | H2: ZL1_imag [Ω] | I2: ZL2_real [Ω] | J2: ZL2_imag [Ω] | K2: Zch1 [Ω] | L2: Zch2 [Ω]
A3: ='Frequency vector'!G3 -> 100 | B3: =COMPLEX(0,2*PI()*'Frequency vector'!G3,"j") -> 628.318530717959j | C3: =IF(CMdata=1,IMABS(K3),'CM choke'!C7) -> 8.526049114 | D3: =IF(CMdata=1,DEGREES(IMARGUMENT(K3)),'CM choke'!D7) -> 90.80422776 | E3: =IF(CMdata=1,IMABS(L3),'CM choke'!E7) -> 8.526049114 | F3: =IF(CMdata=1,DEGREES(IMARGUMENT(L3)),'CM choke'!F7) -> 90.80422776 | G3: =C3*COS(RADIANS(D3)) -> -0.1196712966 | H3: =C3*SIN(RADIANS(D3)) -> 8.525209222 | I3: =E3*COS(RADIANS(F3)) -> -0.1196712966 | J3: =E3*SIN(RADIANS(F3)) -> 8.525209222 | K3: =IF(CMdata=1, IF(Lcm1_core=1, IMDIV(1,IMSUM(IMDIV(1,IMPRODUCT(B3,'Design the AEF circuit'!$G$18*0.001)),IMDIV(1,'Design the AEF circuit'!$G$19*1000),IMPRODUCT(B3,'Design the AEF circuit'!$G$20*0.000000000001))), O3),COMPLEX(G3,H3,"j")) -> -0.119671296596531+8.52520922188513j | L3: =IF(CMdata=1, IF(Lcm2_core=1, IMDIV(1, IMSUM(IMDIV(1,IMPRODUCT(B3,'Design the AEF circuit'!$H$18*0.001)), IMDIV(1,'Design the AEF circuit'!$H$19*1000), IMPRODUCT(B3,'Design the AEF circuit'!$H$20*0.000000000001))), Q3), COMPLEX(I3,J3,"j")) -> -0.119671296596531+8.52520922188513j | N3: =IMSUM(IMDIV(1,IMSUM(IMDIV(1,IMPRODUCT(B3,'Design the AEF circuit'!$G$18*0.001)),IMDIV(1,'Design the AEF circuit'!$G$19*1000))), IMDIV(1,IMSUM(IMDIV(1,IMPRODUCT(B3,'Design the AEF circuit'!$G$21*0.001)),IMDIV(1,'Design the AEF circuit'!$G$22*1000))), IMDIV(1,IMSUM(IMDIV(1,IMPRODUCT(B3,'Design the AEF circuit'!$G$23*0.001)),IMDIV(1,'Design the AEF circuit'!$G$24*1000))) ) -> 0.0325677073309991+12.5662593839792j | O3: =IMDIV(1, IMSUM( IMDIV(1, N3), IMPRODUCT(B3,'Design the AEF circuit'!$G$20*0.000000000001) ) ) -> 0.0325677186452516+12.5662615667682j | P3: =IMSUM(IMDIV(1,IMSUM(IMDIV(1,IMPRODUCT(B3,'Design the AEF circuit'!$H$18*0.001)),IMDIV(1,'Design the AEF circuit'!$H$19*1000))), IMDIV(1,IMSUM(IMDIV(1,IMPRODUCT(B3,'Design the AEF circuit'!$H$21*0.001)),IMDIV(1,'Design the AEF circuit'!$H$22*1000))), IMDIV(1,IMSUM(IMDIV(1,IMPRODUCT(B3,'Design the AEF circuit'!$H$23*0.001)),IMDIV(1,'Design the AEF circuit'!$H$24*1000))) ) -> 0.0325677073309991+12.5662593839792j | Q3: =IMDIV(1, IMSUM( IMDIV(1, P3), IMPRODUCT(B3,'Design the AEF circuit'!$H$20*0.000000000001) ) ) -> 0.0325677186452516+12.5662615667682j
A4: ='Frequency vector'!G4 -> 101.2704183 | B4: =COMPLEX(0,2*PI()*'Frequency vector'!G4,"j") -> 636.300804330953j | C4: =IF(IF(CMdata=1,IMABS(K4),'CM choke'!C8)=0, C3, IF(CMdata=1,IMABS(K4),'CM choke'!C8)) -> 8.509741697 | D4: =IF(IF(CMdata=1,DEGREES(IMARGUMENT(K4)),'CM choke'!D8)=0, D3, IF(CMdata=1,DEGREES(IMARGUMENT(K4)),'CM choke'!D8)) -> 91.14232535 | E4: =IF(IF(CMdata=1,IMABS(L4),'CM choke'!E8)=0, E3, IF(CMdata=1,IMABS(L4),'CM choke'!E8)) -> 8.509741697 | F4: =IF(IF(CMdata=1,DEGREES(IMARGUMENT(L4)),'CM choke'!F8)=0, F3, IF(CMdata=1,DEGREES(IMARGUMENT(L4)),'CM choke'!F8)) -> 91.14232535 | G4: =C4*COS(RADIANS(D4)) -> -0.1696503616 | H4: 8.508050452 | I4: -0.1696503616 | J4: 8.508050452 | K4: =IF(CMdata=1, IF(Lcm1_core=1, IMDIV(1,IMSUM(IMDIV(1,IMPRODUCT(B4,'Design the AEF circuit'!$G$18*0.001)),IMDIV(1,'Design the AEF circuit'!$G$19*1000),IMPRODUCT(B4,'Design the AEF circuit'!$G$20*0.000000000001))), O4),COMPLEX(G4,H4,"j")) -> -0.16965036155029+8.50805045233448j | L4: =IF(CMdata=1, IF(Lcm2_core=1, IMDIV(1, IMSUM(IMDIV(1,IMPRODUCT(B4,'Design the AEF circuit'!$H$18*0.001)), IMDIV(1,'Design the AEF circuit'!$H$19*1000), IMPRODUCT(B4,'Design the AEF circuit'!$H$20*0.000000000001))), Q4), COMPLEX(I4,J4,"j")) -> -0.16965036155029+8.50805045233448j | N4: =IMSUM(IMDIV(1,IMSUM(IMDIV(1,IMPRODUCT(B4,'Design the AEF circuit'!$G$18*0.001)),IMDIV(1,'Design the AEF circuit'!$G$19*1000))), IMDIV(1,IMSUM(IMDIV(1,IMPRODUCT(B4,'Design the AEF circuit'!$G$21*0.001)),IMDIV(1,'Design the AEF circuit'!$G$22*1000))), IMDIV(1,IMSUM(IMDIV(1,IMPRODUCT(B4,'Design the AEF circuit'!$G$23*0.001)),IMDIV(1,'Design the AEF circuit'!$G$24*1000))) ) -> 0.03340044516619+12.7259005629217j | O4: =IMDIV(1, IMSUM( IMDIV(1, N4), IMPRODUCT(B4,'Design the AEF circuit'!$G$20*0.000000000001))) -> 0.0334004570664388+12.7259028299623j | P4: =IMSUM(IMDIV(1,IMSUM(IMDIV(1,IMPRODUCT(B4,'Design the AEF circuit'!$H$18*0.001)),IMDIV(1,'Design the AEF circuit'!$H$19*1000))), IMDIV(1,IMSUM(IMDIV(1,IMPRODUCT(B4,'Design the AEF circuit'!$H$21*0.001)),IMDIV(1,'Design the AEF circuit'!$H$22*1000))), IMDIV(1,IMSUM(IMDIV(1,IMPRODUCT(B4,'Design the AEF circuit'!$H$23*0.001)),IMDIV(1,'Design the AEF circuit'!$H$24*1000))) ) -> 0.03340044516619+12.7259005629217j | Q4: =IMDIV(1, IMSUM( IMDIV(1, P4), IMPRODUCT(B4,'Design the AEF circuit'!$H$20*0.000000000001) ) ) -> 0.0334004570664388+12.7259028299623j
A5: ='Frequency vector'!G5 -> 102.5569762 | B5: =COMPLEX(0,2*PI()*'Frequency vector'!G5,"j") -> 644.384486208883j | C5: =IF(IF(CMdata=1,IMABS(K5),'CM choke'!C9)=0, C4, IF(CMdata=1,IMABS(K5),'CM choke'!C9)) -> 8.531567311 | D5: =IF(IF(CMdata=1,DEGREES(IMARGUMENT(K5)),'CM choke'!D9)=0, D4, IF(CMdata=1,DEGREES(IMARGUMENT(K5)),'CM choke'!D9)) -> 90.45218453 | E5: =IF(IF(CMdata=1,IMABS(L5),'CM choke'!E9)=0, E4, IF(CMdata=1,IMABS(L5),'CM choke'!E9)) -> 8.531567311 | F5: =IF(IF(CMdata=1,DEGREES(IMARGUMENT(L5)),'CM choke'!F9)=0, F4, IF(CMdata=1,DEGREES(IMARGUMENT(L5)),'CM choke'!F9)) -> 90.45218453 | G5: -0.06733135894 | H5: 8.531301616 | I5: -0.06733135894 | J5: 8.531301616 | K5: =IF(CMdata=1, IF(Lcm1_core=1, IMDIV(1,IMSUM(IMDIV(1,IMPRODUCT(B5,'Design the AEF circuit'!$G$18*0.001)),IMDIV(1,'Design the AEF circuit'!$G$19*1000),IMPRODUCT(B5,'Design the AEF circuit'!$G$20*0.000000000001))), O5),COMPLEX(G5,H5,"j")) -> -0.0673313589437612+8.53130161632261j | L5: =IF(CMdata=1, IF(Lcm2_core=1, IMDIV(1, IMSUM(IMDIV(1,IMPRODUCT(B5,'Design the AEF circuit'!$H$18*0.001)), IMDIV(1,'Design the AEF circuit'!$H$19*1000), IMPRODUCT(B5,'Design the AEF circuit'!$H$20*0.000000000001))), Q5), COMPLEX(I5,J5,"j")) -> -0.0673313589437612+8.53130161632261j | N5: =IMSUM(IMDIV(1,IMSUM(IMDIV(1,IMPRODUCT(B5,'Design the AEF circuit'!$G$18*0.001)),IMDIV(1,'Design the AEF circuit'!$G$19*1000))), IMDIV(1,IMSUM(IMDIV(1,IMPRODUCT(B5,'Design the AEF circuit'!$G$21*0.001)),IMDIV(1,'Design the AEF circuit'!$G$22*1000))), IMDIV(1,IMSUM(IMDIV(1,IMPRODUCT(B5,'Design the AEF circuit'!$G$23*0.001)),IMDIV(1,'Design the AEF circuit'!$G$24*1000))) ) -> 0.0342544753556918+12.8875697414488j | O5: =IMDIV(1, IMSUM( IMDIV(1, N5), IMPRODUCT(B5,'Design the AEF circuit'!$G$20*0.000000000001))) -> 0.0342544878722873+12.8875720959929j | P5: =IMSUM(IMDIV(1,IMSUM(IMDIV(1,IMPRODUCT(B5,'Design the AEF circuit'!$H$18*0.001)),IMDIV(1,'Design the AEF circuit'!$H$19*1000))), IMDIV(1,IMSUM(IMDIV(1,IMPRODUCT(B5,'Design the AEF circuit'!$H$21*0.001)),IMDIV(1,'Design the AEF circuit'!$H$22*1000))), IMDIV(1,IMSUM(IMDIV(1,IMPRODUCT(B5,'Design the AEF circuit'!$H$23*0.001)),IMDIV(1,'Design the AEF circuit'!$H$24*1000))) ) -> 0.0342544753556918+12.8875697414488j | Q5: =IMDIV(1, IMSUM( IMDIV(1, P5), IMPRODUCT(B5,'Design the AEF circuit'!$H$20*0.000000000001) ) ) -> 0.0342544878722873+12.8875720959929j
A6: ='Frequency vector'!G6 -> 103.8598788 | B6: =COMPLEX(0,2*PI()*'Frequency vector'!G6,"j") -> 652.570864660922j | C6: =IF(IF(CMdata=1,IMABS(K6),'CM choke'!C10)=0, C5, IF(CMdata=1,IMABS(K6),'CM choke'!C10)) -> 8.794731099 | D6: =IF(IF(CMdata=1,DEGREES(IMARGUMENT(K6)),'CM choke'!D10)=0, D5, IF(CMdata=1,DEGREES(IMARGUMENT(K6)),'CM choke'!D10)) -> 90.49113795 | E6: =IF(IF(CMdata=1,IMABS(L6),'CM choke'!E10)=0, E5, IF(CMdata=1,IMABS(L6),'CM choke'!E10)) -> 8.794731099 | F6: =IF(IF(CMdata=1,DEGREES(IMARGUMENT(L6)),'CM choke'!F10)=0, F5, IF(CMdata=1,DEGREES(IMARGUMENT(L6)),'CM choke'!F10)) -> 90.49113795 | G6: -0.07538728591 | H6: 8.794407988 | I6: -0.07538728591 | J6: 8.794407988 | K6: =IF(CMdata=1, IF(Lcm1_core=1, IMDIV(1,IMSUM(IMDIV(1,IMPRODUCT(B6,'Design the AEF circuit'!$G$18*0.001)),IMDIV(1,'Design the AEF circuit'!$G$19*1000),IMPRODUCT(B6,'Design the AEF circuit'!$G$20*0.000000000001))), O6),COMPLEX(G6,H6,"j")) -> -0.0753872859054387+8.79440798811489j | L6: =IF(CMdata=1, IF(Lcm2_core=1, IMDIV(1, IMSUM(IMDIV(1,IMPRODUCT(B6,'Design the AEF circuit'!$H$18*0.001)), IMDIV(1,'Design the AEF circuit'!$H$19*1000), IMPRODUCT(B6,'Design the AEF circuit'!$H$20*0.000000000001))), Q6), COMPLEX(I6,J6,"j")) -> -0.0753872859054387+8.79440798811489j | N6: =IMSUM(IMDIV(1,IMSUM(IMDIV(1,IMPRODUCT(B6,'Design the AEF circuit'!$G$18*0.001)),IMDIV(1,'Design the AEF circuit'!$G$19*1000))), IMDIV(1,IMSUM(IMDIV(1,IMPRODUCT(B6,'Design the AEF circuit'!$G$21*0.001)),IMDIV(1,'Design the AEF circuit'!$G$22*1000))), IMDIV(1,IMSUM(IMDIV(1,IMPRODUCT(B6,'Design the AEF circuit'!$G$23*0.001)),IMDIV(1,'Design the AEF circuit'!$G$24*1000))) ) -> 0.0351303423112411+13.0512926793476j | O6: =IMDIV(1, IMSUM( IMDIV(1, N6), IMPRODUCT(B6,'Design the AEF circuit'!$G$20*0.000000000001))) -> 0.0351303554761055+13.0512951247726j | P6: =IMSUM(IMDIV(1,IMSUM(IMDIV(1,IMPRODUCT(B6,'Design the AEF circuit'!$H$18*0.001)),IMDIV(1,'Design the AEF circuit'!$H$19*1000))), IMDIV(1,IMSUM(IMDIV(1,IMPRODUCT(B6,'Design the AEF circuit'!$H$21*0.001)),IMDIV(1,'Design the AEF circuit'!$H$22*1000))), IMDIV(1,IMSUM(IMDIV(1,IMPRODUCT(B6,'Design the AEF circuit'!$H$23*0.001)),IMDIV(1,'Design the AEF circuit'!$H$24*1000))) ) -> 0.0351303423112411+13.0512926793476j | Q6: =IMDIV(1, IMSUM( IMDIV(1, P6), IMPRODUCT(B6,'Design the AEF circuit'!$H$20*0.000000000001) ) ) -> 0.0351303554761055+13.0512951247726j
A7: ='Frequency vector'!G7 -> 105.1793337 | B7: =COMPLEX(0,2*PI()*'Frequency vector'!G7,"j") -> 660.861244363142j | C7: =IF(IF(CMdata=1,IMABS(K7),'CM choke'!C11)=0, C6, IF(CMdata=1,IMABS(K7),'CM choke'!C11)) -> 8.705131521 | D7: =IF(IF(CMdata=1,DEGREES(IMARGUMENT(K7)),'CM choke'!D11)=0, D6, IF(CMdata=1,DEGREES(IMARGUMENT(K7)),'CM choke'!D11)) -> 90.77250696 | E7: =IF(IF(CMdata=1,IMABS(L7),'CM choke'!E11)=0, E6, IF(CMdata=1,IMABS(L7),'CM choke'!E11)) -> 8.705131521 | F7: =IF(IF(CMdata=1,DEGREES(IMARGUMENT(L7)),'CM choke'!F11)=0, F6, IF(CMdata=1,DEGREES(IMARGUMENT(L7)),'CM choke'!F11)) -> 90.77250696 | G7: -0.1173659035 | H7: 8.704340299 | I7: -0.1173659035 | J7: 8.704340299 | K7: =IF(CMdata=1, IF(Lcm1_core=1, IMDIV(1,IMSUM(IMDIV(1,IMPRODUCT(B7,'Design the AEF circuit'!$G$18*0.001)),IMDIV(1,'Design the AEF circuit'!$G$19*1000),IMPRODUCT(B7,'Design the AEF circuit'!$G$20*0.000000000001))), O7),COMPLEX(G7,H7,"j")) -> -0.117365903546293+8.70434029873826j | L7: =IF(CMdata=1, IF(Lcm2_core=1, IMDIV(1, IMSUM(IMDIV(1,IMPRODUCT(B7,'Design the AEF circuit'!$H$18*0.001)), IMDIV(1,'Design the AEF circuit'!$H$19*1000), IMPRODUCT(B7,'Design the AEF circuit'!$H$20*0.000000000001))), Q7), COMPLEX(I7,J7,"j")) -> -0.117365903546293+8.70434029873826j | N7: =IMSUM(IMDIV(1,IMSUM(IMDIV(1,IMPRODUCT(B7,'Design the AEF circuit'!$G$18*0.001)),IMDIV(1,'Design the AEF circuit'!$G$19*1000))), IMDIV(1,IMSUM(IMDIV(1,IMPRODUCT(B7,'Design the AEF circuit'!$G$21*0.001)),IMDIV(1,'Design the AEF circuit'!$G$22*1000))), IMDIV(1,IMSUM(IMDIV(1,IMPRODUCT(B7,'Design the AEF circuit'!$G$23*0.001)),IMDIV(1,'Design the AEF circuit'!$G$24*1000))) ) -> 0.0360286043635655+13.2170954634966j | O7: =IMDIV(1, IMSUM( IMDIV(1, N7), IMPRODUCT(B7,'Design the AEF circuit'!$G$20*0.000000000001))) -> 0.036028618210274+13.2170980033104j | P7: =IMSUM(IMDIV(1,IMSUM(IMDIV(1,IMPRODUCT(B7,'Design the AEF circuit'!$H$18*0.001)),IMDIV(1,'Design the AEF circuit'!$H$19*1000))), IMDIV(1,IMSUM(IMDIV(1,IMPRODUCT(B7,'Design the AEF circuit'!$H$21*0.001)),IMDIV(1,'Design the AEF circuit'!$H$22*1000))), IMDIV(1,IMSUM(IMDIV(1,IMPRODUCT(B7,'Design the AEF circuit'!$H$23*0.001)),IMDIV(1,'Design the AEF circuit'!$H$24*1000))) ) -> 0.0360286043635655+13.2170954634966j | Q7: =IMDIV(1, IMSUM( IMDIV(1, P7), IMPRODUCT(B7,'Design the AEF circuit'!$H$20*0.000000000001) ) ) -> 0.036028618210274+13.2170980033104j
A8: ='Frequency vector'!G8 -> 106.5155512 | B8: =COMPLEX(0,2*PI()*'Frequency vector'!G8,"j") -> 669.25694656645j | C8: =IF(IF(CMdata=1,IMABS(K8),'CM choke'!C12)=0, C7, IF(CMdata=1,IMABS(K8),'CM choke'!C12)) -> 8.971824916 | D8: =IF(IF(CMdata=1,DEGREES(IMARGUMENT(K8)),'CM choke'!D12)=0, D7, IF(CMdata=1,DEGREES(IMARGUMENT(K8)),'CM choke'!D12)) -> 90.33342206 | E8: =IF(IF(CMdata=1,IMABS(L8),'CM choke'!E12)=0, E7, IF(CMdata=1,IMABS(L8),'CM choke'!E12)) -> 8.971824916 | F8: =IF(IF(CMdata=1,DEGREES(IMARGUMENT(L8)),'CM choke'!F12)=0, F7, IF(CMdata=1,DEGREES(IMARGUMENT(L8)),'CM choke'!F12)) -> 90.33342206 | G8: -0.05220955999 | H8: 8.971673004 | I8: -0.05220955999 | J8: 8.971673004 | K8: =IF(CMdata=1, IF(Lcm1_core=1, IMDIV(1,IMSUM(IMDIV(1,IMPRODUCT(B8,'Design the AEF circuit'!$G$18*0.001)),IMDIV(1,'Design the AEF circuit'!$G$19*1000),IMPRODUCT(B8,'Design the AEF circuit'!$G$20*0.000000000001))), O8),COMPLEX(G8,H8,"j")) -> -0.0522095599879295+8.97167300359193j | L8: =IF(CMdata=1, IF(Lcm2_core=1, IMDIV(1, IMSUM(IMDIV(1,IMPRODUCT(B8,'Design the AEF circuit'!$H$18*0.001)), IMDIV(1,'Design the AEF circuit'!$H$19*1000), IMPRODUCT(B8,'Design the AEF circuit'!$H$20*0.000000000001))), Q8), COMPLEX(I8,J8,"j")) -> -0.0522095599879295+8.97167300359193j | N8: =IMSUM(IMDIV(1,IMSUM(IMDIV(1,IMPRODUCT(B8,'Design the AEF circuit'!$G$18*0.001)),IMDIV(1,'Design the AEF circuit'!$G$19*1000))), IMDIV(1,IMSUM(IMDIV(1,IMPRODUCT(B8,'Design the AEF circuit'!$G$21*0.001)),IMDIV(1,'Design the AEF circuit'!$G$22*1000))), IMDIV(1,IMSUM(IMDIV(1,IMPRODUCT(B8,'Design the AEF circuit'!$G$23*0.001)),IMDIV(1,'Design the AEF circuit'!$G$24*1000))) ) -> 0.0369498341182115+13.3850045120144j | O8: =IMDIV(1, IMSUM( IMDIV(1, N8), IMPRODUCT(B8,'Design the AEF circuit'!$G$20*0.000000000001))) -> 0.0369498486820786+13.3850071498601j | P8: =IMSUM(IMDIV(1,IMSUM(IMDIV(1,IMPRODUCT(B8,'Design the AEF circuit'!$H$18*0.001)),IMDIV(1,'Design the AEF circuit'!$H$19*1000))), IMDIV(1,IMSUM(IMDIV(1,IMPRODUCT(B8,'Design the AEF circuit'!$H$21*0.001)),IMDIV(1,'Design the AEF circuit'!$H$22*1000))), IMDIV(1,IMSUM(IMDIV(1,IMPRODUCT(B8,'Design the AEF circuit'!$H$23*0.001)),IMDIV(1,'Design the AEF circuit'!$H$24*1000))) ) -> 0.0369498341182115+13.3850045120144j | Q8: =IMDIV(1, IMSUM( IMDIV(1, P8), IMPRODUCT(B8,'Design the AEF circuit'!$H$20*0.000000000001) ) ) -> 0.0369498486820786+13.3850071498601j
A9: ='Frequency vector'!G9 -> 107.8687443 | B9: =COMPLEX(0,2*PI()*'Frequency vector'!G9,"j") -> 677.759309307183j | C9: =IF(IF(CMdata=1,IMABS(K9),'CM choke'!C13)=0, C8, IF(CMdata=1,IMABS(K9),'CM choke'!C13)) -> 9.043872754 | D9: =IF(IF(CMdata=1,DEGREES(IMARGUMENT(K9)),'CM choke'!D13)=0, D8, IF(CMdata=1,DEGREES(IMARGUMENT(K9)),'CM choke'!D13)) -> 90.52039808 | E9: =IF(IF(CMdata=1,IMABS(L9),'CM choke'!E13)=0, E8, IF(CMdata=1,IMABS(L9),'CM choke'!E13)) -> 9.043872754 | F9: =IF(IF(CMdata=1,DEGREES(IMARGUMENT(L9)),'CM choke'!F13)=0, F8, IF(CMdata=1,DEGREES(IMARGUMENT(L9)),'CM choke'!F13)) -> 90.52039808 | G9: -0.08214129052 | H9: 9.043499721 | I9: -0.08214129052 | J9: 9.043499721 | K9: =IF(CMdata=1, IF(Lcm1_core=1, IMDIV(1,IMSUM(IMDIV(1,IMPRODUCT(B9,'Design the AEF circuit'!$G$18*0.001)),IMDIV(1,'Design the AEF circuit'!$G$19*1000),IMPRODUCT(B9,'Design the AEF circuit'!$G$20*0.000000000001))), O9),COMPLEX(G9,H9,"j")) -> -0.082141290521202+9.0434997206308j | L9: =IF(CMdata=1, IF(Lcm2_core=1, IMDIV(1, IMSUM(IMDIV(1,IMPRODUCT(B9,'Design the AEF circuit'!$H$18*0.001)), IMDIV(1,'Design the AEF circuit'!$H$19*1000), IMPRODUCT(B9,'Design the AEF circuit'!$H$20*0.000000000001))), Q9), COMPLEX(I9,J9,"j")) -> -0.082141290521202+9.0434997206308j | N9: =IMSUM(IMDIV(1,IMSUM(IMDIV(1,IMPRODUCT(B9,'Design the AEF circuit'!$G$18*0.001)),IMDIV(1,'Design the AEF circuit'!$G$19*1000))), IMDIV(1,IMSUM(IMDIV(1,IMPRODUCT(B9,'Design the AEF circuit'!$G$21*0.001)),IMDIV(1,'Design the AEF circuit'!$G$22*1000))), IMDIV(1,IMSUM(IMDIV(1,IMPRODUCT(B9,'Design the AEF circuit'!$G$23*0.001)),IMDIV(1,'Design the AEF circuit'!$G$24*1000))) ) -> 0.0378946188204703+13.555046578462j | O9: =IMDIV(1, IMSUM( IMDIV(1, N9), IMPRODUCT(B9,'Design the AEF circuit'!$G$20*0.000000000001))) -> 0.0378946341386393+13.5550493181234j | P9: =IMSUM(IMDIV(1,IMSUM(IMDIV(1,IMPRODUCT(B9,'Design the AEF circuit'!$H$18*0.001)),IMDIV(1,'Design the AEF circuit'!$H$19*1000))), IMDIV(1,IMSUM(IMDIV(1,IMPRODUCT(B9,'Design the AEF circuit'!$H$21*0.001)),IMDIV(1,'Design the AEF circuit'!$H$22*1000))), IMDIV(1,IMSUM(IMDIV(1,IMPRODUCT(B9,'Design the AEF circuit'!$H$23*0.001)),IMDIV(1,'Design the AEF circuit'!$H$24*1000))) ) -> 0.0378946188204703+13.555046578462j | Q9: =IMDIV(1, IMSUM( IMDIV(1, P9), IMPRODUCT(B9,'Design the AEF circuit'!$H$20*0.000000000001) ) ) -> 0.0378946341386393+13.5550493181234j
A10: ='Frequency vector'!G10 -> 109.2391286 | B10: =COMPLEX(0,2*PI()*'Frequency vector'!G10,"j") -> 686.369687620326j | C10: =IF(IF(CMdata=1,IMABS(K10),'CM choke'!C14)=0, C9, IF(CMdata=1,IMABS(K10),'CM choke'!C14)) -> 9.222463468 | D10: =IF(IF(CMdata=1,DEGREES(IMARGUMENT(K10)),'CM choke'!D14)=0, D9, IF(CMdata=1,DEGREES(IMARGUMENT(K10)),'CM choke'!D14)) -> 91.22622555 | E10: =IF(IF(CMdata=1,IMABS(L10),'CM choke'!E14)=0, E9, IF(CMdata=1,IMABS(L10),'CM choke'!E14)) -> 9.222463468 | F10: =IF(IF(CMdata=1,DEGREES(IMARGUMENT(L10)),'CM choke'!F14)=0, F9, IF(CMdata=1,DEGREES(IMARGUMENT(L10)),'CM choke'!F14)) -> 91.22622555 | G10: -0.1973610818 | H10: 9.220351458 | I10: -0.1973610818 | J10: 9.220351458 | K10: =IF(CMdata=1, IF(Lcm1_core=1, IMDIV(1,IMSUM(IMDIV(1,IMPRODUCT(B10,'Design the AEF circuit'!$G$18*0.001)),IMDIV(1,'Design the AEF circuit'!$G$19*1000),IMPRODUCT(B10,'Design the AEF circuit'!$G$20*0.000000000001))), O10),COMPLEX(G10,H10,"j")) -> -0.197361081807511+9.22035145846954j | L10: =IF(CMdata=1, IF(Lcm2_core=1, IMDIV(1, IMSUM(IMDIV(1,IMPRODUCT(B10,'Design the AEF circuit'!$H$18*0.001)), IMDIV(1,'Design the AEF circuit'!$H$19*1000), IMPRODUCT(B10,'Design the AEF circuit'!$H$20*0.000000000001))), Q10), COMPLEX(I10,J10,"j")) -> -0.197361081807511+9.22035145846954j | N10: =IMSUM(IMDIV(1,IMSUM(IMDIV(1,IMPRODUCT(B10,'Design the AEF circuit'!$G$18*0.001)),IMDIV(1,'Design the AEF circuit'!$G$19*1000))), IMDIV(1,IMSUM(IMDIV(1,IMPRODUCT(B10,'Design the AEF circuit'!$G$21*0.001)),IMDIV(1,'Design the AEF circuit'!$G$22*1000))), IMDIV(1,IMSUM(IMDIV(1,IMPRODUCT(B10,'Design the AEF circuit'!$G$23*0.001)),IMDIV(1,'Design the AEF circuit'!$G$24*1000))) ) -> 0.0388635607296265+13.7272487560968j | O10: =IMDIV(1, IMSUM( IMDIV(1, N10), IMPRODUCT(B10,'Design the AEF circuit'!$G$20*0.000000000001))) -> 0.0388635768411645+13.7272516015038j | P10: =IMSUM(IMDIV(1,IMSUM(IMDIV(1,IMPRODUCT(B10,'Design the AEF circuit'!$H$18*0.001)),IMDIV(1,'Design the AEF circuit'!$H$19*1000))), IMDIV(1,IMSUM(IMDIV(1,IMPRODUCT(B10,'Design the AEF circuit'!$H$21*0.001)),IMDIV(1,'Design the AEF circuit'!$H$22*1000))), IMDIV(1,IMSUM(IMDIV(1,IMPRODUCT(B10,'Design the AEF circuit'!$H$23*0.001)),IMDIV(1,'Design the AEF circuit'!$H$24*1000))) ) -> 0.0388635607296265+13.7272487560968j | Q10: =IMDIV(1, IMSUM( IMDIV(1, P10), IMPRODUCT(B10,'Design the AEF circuit'!$H$20*0.000000000001) ) ) -> 0.0388635768411645+13.7272516015038j
A11: ='Frequency vector'!G11 -> 110.6269225 | B11: =COMPLEX(0,2*PI()*'Frequency vector'!G11,"j") -> 695.089453755492j | C11: =IF(IF(CMdata=1,IMABS(K11),'CM choke'!C15)=0, C10, IF(CMdata=1,IMABS(K11),'CM choke'!C15)) -> 9.210062492 | D11: =IF(IF(CMdata=1,DEGREES(IMARGUMENT(K11)),'CM choke'!D15)=0, D10, IF(CMdata=1,DEGREES(IMARGUMENT(K11)),'CM choke'!D15)) -> 90.80594577 | E11: =IF(IF(CMdata=1,IMABS(L11),'CM choke'!E15)=0, E10, IF(CMdata=1,IMABS(L11),'CM choke'!E15)) -> 9.210062492 | F11: =IF(IF(CMdata=1,DEGREES(IMARGUMENT(L11)),'CM choke'!F15)=0, F10, IF(CMdata=1,DEGREES(IMARGUMENT(L11)),'CM choke'!F15)) -> 90.80594577 | G11: -0.1295482177 | H11: 9.209151338 | I11: -0.1295482177 | J11: 9.209151338 | K11: =IF(CMdata=1, IF(Lcm1_core=1, IMDIV(1,IMSUM(IMDIV(1,IMPRODUCT(B11,'Design the AEF circuit'!$G$18*0.001)),IMDIV(1,'Design the AEF circuit'!$G$19*1000),IMPRODUCT(B11,'Design the AEF circuit'!$G$20*0.000000000001))), O11),COMPLEX(G11,H11,"j")) -> -0.129548217698048+9.20915133751752j | L11: =IF(CMdata=1, IF(Lcm2_core=1, IMDIV(1, IMSUM(IMDIV(1,IMPRODUCT(B11,'Design the AEF circuit'!$H$18*0.001)), IMDIV(1,'Design the AEF circuit'!$H$19*1000), IMPRODUCT(B11,'Design the AEF circuit'!$H$20*0.000000000001))), Q11), COMPLEX(I11,J11,"j")) -> -0.129548217698048+9.20915133751752j | N11: =IMSUM(IMDIV(1,IMSUM(IMDIV(1,IMPRODUCT(B11,'Design the AEF circuit'!$G$18*0.001)),IMDIV(1,'Design the AEF circuit'!$G$19*1000))), IMDIV(1,IMSUM(IMDIV(1,IMPRODUCT(B11,'Design the AEF circuit'!$G$21*0.001)),IMDIV(1,'Design the AEF circuit'!$G$22*1000))), IMDIV(1,IMSUM(IMDIV(1,IMPRODUCT(B11,'Design the AEF circuit'!$G$23*0.001)),IMDIV(1,'Design the AEF circuit'!$G$24*1000))) ) -> 0.039857277502771+13.9016384821813j | O11: =IMDIV(1, IMSUM( IMDIV(1, N11), IMPRODUCT(B11,'Design the AEF circuit'!$G$20*0.000000000001))) -> 0.0398572944487684+13.9016414374154j | P11: =IMSUM(IMDIV(1,IMSUM(IMDIV(1,IMPRODUCT(B11,'Design the AEF circuit'!$H$18*0.001)),IMDIV(1,'Design the AEF circuit'!$H$19*1000))), IMDIV(1,IMSUM(IMDIV(1,IMPRODUCT(B11,'Design the AEF circuit'!$H$21*0.001)),IMDIV(1,'Design the AEF circuit'!$H$22*1000))), IMDIV(1,IMSUM(IMDIV(1,IMPRODUCT(B11,'Design the AEF circuit'!$H$23*0.001)),IMDIV(1,'Design the AEF circuit'!$H$24*1000))) ) -> 0.039857277502771+13.9016384821813j | Q11: =IMDIV(1, IMSUM( IMDIV(1, P11), IMPRODUCT(B11,'Design the AEF circuit'!$H$20*0.000000000001) ) ) -> 0.0398572944487684+13.9016414374154j
A12: ='Frequency vector'!G12 -> 112.0323471 | B12: =COMPLEX(0,2*PI()*'Frequency vector'!G12,"j") -> 703.919997395576j | C12: =IF(IF(CMdata=1,IMABS(K12),'CM choke'!C16)=0, C11, IF(CMdata=1,IMABS(K12),'CM choke'!C16)) -> 9.274126148 | D12: =IF(IF(CMdata=1,DEGREES(IMARGUMENT(K12)),'CM choke'!D16)=0, D11, IF(CMdata=1,DEGREES(IMARGUMENT(K12)),'CM choke'!D16)) -> 90.03033825 | E12: =IF(IF(CMdata=1,IMABS(L12),'CM choke'!E16)=0, E11, IF(CMdata=1,IMABS(L12),'CM choke'!E16)) -> 9.274126148 | F12: =IF(IF(CMdata=1,DEGREES(IMARGUMENT(L12)),'CM choke'!F16)=0, F11, IF(CMdata=1,DEGREES(IMARGUMENT(L12)),'CM choke'!F16)) -> 90.03033825 | G12: -0.004910671305 | H12: 9.274124848 | I12: -0.004910671305 | J12: 9.274124848 | K12: =IF(CMdata=1, IF(Lcm1_core=1, IMDIV(1,IMSUM(IMDIV(1,IMPRODUCT(B12,'Design the AEF circuit'!$G$18*0.001)),IMDIV(1,'Design the AEF circuit'!$G$19*1000),IMPRODUCT(B12,'Design the AEF circuit'!$G$20*0.000000000001))), O12),COMPLEX(G12,H12,"j")) -> -0.00491067130508769+9.27412484814732j | L12: =IF(CMdata=1, IF(Lcm2_core=1, IMDIV(1, IMSUM(IMDIV(1,IMPRODUCT(B12,'Design the AEF circuit'!$H$18*0.001)), IMDIV(1,'Design the AEF circuit'!$H$19*1000), IMPRODUCT(B12,'Design the AEF circuit'!$H$20*0.000000000001))), Q12), COMPLEX(I12,J12,"j")) -> -0.00491067130508769+9.27412484814732j | N12: =IMSUM(IMDIV(1,IMSUM(IMDIV(1,IMPRODUCT(B12,'Design the AEF circuit'!$G$18*0.001)),IMDIV(1,'Design the AEF circuit'!$G$19*1000))), IMDIV(1,IMSUM(IMDIV(1,IMPRODUCT(B12,'Design the AEF circuit'!$G$21*0.001)),IMDIV(1,'Design the AEF circuit'!$G$22*1000))), IMDIV(1,IMSUM(IMDIV(1,IMPRODUCT(B12,'Design the AEF circuit'!$G$23*0.001)),IMDIV(1,'Design the AEF circuit'!$G$24*1000))) ) -> 0.0408764025884256+14.0782435423456j | O12: =IMDIV(1, IMSUM( IMDIV(1, N12), IMPRODUCT(B12,'Design the AEF circuit'!$G$20*0.000000000001))) -> 0.0408764204121009+14.0782466116458j | P12: =IMSUM(IMDIV(1,IMSUM(IMDIV(1,IMPRODUCT(B12,'Design the AEF circuit'!$H$18*0.001)),IMDIV(1,'Design the AEF circuit'!$H$19*1000))), IMDIV(1,IMSUM(IMDIV(1,IMPRODUCT(B12,'Design the AEF circuit'!$H$21*0.001)),IMDIV(1,'Design the AEF circuit'!$H$22*1000))), IMDIV(1,IMSUM(IMDIV(1,IMPRODUCT(B12,'Design the AEF circuit'!$H$23*0.001)),IMDIV(1,'Design the AEF circuit'!$H$24*1000))) ) -> 0.0408764025884256+14.0782435423456j | Q12: =IMDIV(1, IMSUM( IMDIV(1, P12), IMPRODUCT(B12,'Design the AEF circuit'!$H$20*0.000000000001) ) ) -> 0.0408764204121009+14.0782466116458j
A13: ='Frequency vector'!G13 -> 113.4556266 | B13: =COMPLEX(0,2*PI()*'Frequency vector'!G13,"j") -> 712.862725878292j | C13: =IF(IF(CMdata=1,IMABS(K13),'CM choke'!C17)=0, C12, IF(CMdata=1,IMABS(K13),'CM choke'!C17)) -> 9.555708764 | D13: =IF(IF(CMdata=1,DEGREES(IMARGUMENT(K13)),'CM choke'!D17)=0, D12, IF(CMdata=1,DEGREES(IMARGUMENT(K13)),'CM choke'!D17)) -> 90.59162308 | E13: =IF(IF(CMdata=1,IMABS(L13),'CM choke'!E17)=0, E12, IF(CMdata=1,IMABS(L13),'CM choke'!E17)) -> 9.555708764 | F13: =IF(IF(CMdata=1,DEGREES(IMARGUMENT(L13)),'CM choke'!F17)=0, F12, IF(CMdata=1,DEGREES(IMARGUMENT(L13)),'CM choke'!F17)) -> 90.59162308 | G13: -0.09866830478 | H13: 9.555199347 | I13: -0.09866830478 | J13: 9.555199347 | K13: =IF(CMdata=1, IF(Lcm1_core=1, IMDIV(1,IMSUM(IMDIV(1,IMPRODUCT(B13,'Design the AEF circuit'!$G$18*0.001)),IMDIV(1,'Design the AEF circuit'!$G$19*1000),IMPRODUCT(B13,'Design the AEF circuit'!$G$20*0.000000000001))), O13),COMPLEX(G13,H13,"j")) -> -0.0986683047767579+9.55519934672792j | L13: =IF(CMdata=1, IF(Lcm2_core=1, IMDIV(1, IMSUM(IMDIV(1,IMPRODUCT(B13,'Design the AEF circuit'!$H$18*0.001)), IMDIV(1,'Design the AEF circuit'!$H$19*1000), IMPRODUCT(B13,'Design the AEF circuit'!$H$20*0.000000000001))), Q13), COMPLEX(I13,J13,"j")) -> -0.0986683047767579+9.55519934672792j | N13: =IMSUM(IMDIV(1,IMSUM(IMDIV(1,IMPRODUCT(B13,'Design the AEF circuit'!$G$18*0.001)),IMDIV(1,'Design the AEF circuit'!$G$19*1000))), IMDIV(1,IMSUM(IMDIV(1,IMPRODUCT(B13,'Design the AEF circuit'!$G$21*0.001)),IMDIV(1,'Design the AEF circuit'!$G$22*1000))), IMDIV(1,IMSUM(IMDIV(1,IMPRODUCT(B13,'Design the AEF circuit'!$G$23*0.001)),IMDIV(1,'Design the AEF circuit'!$G$24*1000))) ) -> 0.0419215856302292+14.2570920750061j | O13: =IMDIV(1, IMSUM( IMDIV(1, N13), IMPRODUCT(B13,'Design the AEF circuit'!$G$20*0.000000000001))) -> 0.0419216043770395+14.2570952627751j | P13: =IMSUM(IMDIV(1,IMSUM(IMDIV(1,IMPRODUCT(B13,'Design the AEF circuit'!$H$18*0.001)),IMDIV(1,'Design the AEF circuit'!$H$19*1000))), IMDIV(1,IMSUM(IMDIV(1,IMPRODUCT(B13,'Design the AEF circuit'!$H$21*0.001)),IMDIV(1,'Design the AEF circuit'!$H$22*1000))), IMDIV(1,IMSUM(IMDIV(1,IMPRODUCT(B13,'Design the AEF circuit'!$H$23*0.001)),IMDIV(1,'Design the AEF circuit'!$H$24*1000))) ) -> 0.0419215856302292+14.2570920750061j | Q13: =IMDIV(1, IMSUM( IMDIV(1, P13), IMPRODUCT(B13,'Design the AEF circuit'!$H$20*0.000000000001) ) ) -> 0.0419216043770395+14.2570952627751j
A14: ='Frequency vector'!G14 -> 114.8969876 | B14: =COMPLEX(0,2*PI()*'Frequency vector'!G14,"j") -> 721.919064420399j | C14: =IF(IF(CMdata=1,IMABS(K14),'CM choke'!C18)=0, C13, IF(CMdata=1,IMABS(K14),'CM choke'!C18)) -> 9.676378231 | D14: =IF(IF(CMdata=1,DEGREES(IMARGUMENT(K14)),'CM choke'!D18)=0, D13, IF(CMdata=1,DEGREES(IMARGUMENT(K14)),'CM choke'!D18)) -> 90.89406402 | E14: =IF(IF(CMdata=1,IMABS(L14),'CM choke'!E18)=0, E13, IF(CMdata=1,IMABS(L14),'CM choke'!E18)) -> 9.676378231 | F14: =IF(IF(CMdata=1,DEGREES(IMARGUMENT(L14)),'CM choke'!F18)=0, F13, IF(CMdata=1,DEGREES(IMARGUMENT(L14)),'CM choke'!F18)) -> 90.89406402 | G14: -0.1509875702 | H14: 9.675200175 | I14: -0.1509875702 | J14: 9.675200175 | K14: =IF(CMdata=1, IF(Lcm1_core=1, IMDIV(1,IMSUM(IMDIV(1,IMPRODUCT(B14,'Design the AEF circuit'!$G$18*0.001)),IMDIV(1,'Design the AEF circuit'!$G$19*1000),IMPRODUCT(B14,'Design the AEF circuit'!$G$20*0.000000000001))), O14),COMPLEX(G14,H14,"j")) -> -0.150987570173558+9.67520017510365j | L14: =IF(CMdata=1, IF(Lcm2_core=1, IMDIV(1, IMSUM(IMDIV(1,IMPRODUCT(B14,'Design the AEF circuit'!$H$18*0.001)), IMDIV(1,'Design the AEF circuit'!$H$19*1000), IMPRODUCT(B14,'Design the AEF circuit'!$H$20*0.000000000001))), Q14), COMPLEX(I14,J14,"j")) -> -0.150987570173558+9.67520017510365j | N14: =IMSUM(IMDIV(1,IMSUM(IMDIV(1,IMPRODUCT(B14,'Design the AEF circuit'!$G$18*0.001)),IMDIV(1,'Design the AEF circuit'!$G$19*1000))), IMDIV(1,IMSUM(IMDIV(1,IMPRODUCT(B14,'Design the AEF circuit'!$G$21*0.001)),IMDIV(1,'Design the AEF circuit'!$G$22*1000))), IMDIV(1,IMSUM(IMDIV(1,IMPRODUCT(B14,'Design the AEF circuit'!$G$23*0.001)),IMDIV(1,'Design the AEF circuit'!$G$24*1000))) ) -> 0.042993492880936+14.4382125758386j | O14: =IMDIV(1, IMSUM( IMDIV(1, N14), IMPRODUCT(B14,'Design the AEF circuit'!$G$20*0.000000000001))) -> 0.0429935125986924+14.4382158866489j | P14: =IMSUM(IMDIV(1,IMSUM(IMDIV(1,IMPRODUCT(B14,'Design the AEF circuit'!$H$18*0.001)),IMDIV(1,'Design the AEF circuit'!$H$19*1000))), IMDIV(1,IMSUM(IMDIV(1,IMPRODUCT(B14,'Design the AEF circuit'!$H$21*0.001)),IMDIV(1,'Design the AEF circuit'!$H$22*1000))), IMDIV(1,IMSUM(IMDIV(1,IMPRODUCT(B14,'Design the AEF circuit'!$H$23*0.001)),IMDIV(1,'Design the AEF circuit'!$H$24*1000))) ) -> 0.042993492880936+14.4382125758386j | Q14: =IMDIV(1, IMSUM( IMDIV(1, P14), IMPRODUCT(B14,'Design the AEF circuit'!$H$20*0.000000000001) ) ) -> 0.0429935125986924+14.4382158866489j
A15: ='Frequency vector'!G15 -> 116.35666 | B15: =COMPLEX(0,2*PI()*'Frequency vector'!G15,"j") -> 731.090456344898j | C15: =IF(IF(CMdata=1,IMABS(K15),'CM choke'!C19)=0, C14, IF(CMdata=1,IMABS(K15),'CM choke'!C19)) -> 9.92314194 | D15: =IF(IF(CMdata=1,DEGREES(IMARGUMENT(K15)),'CM choke'!D19)=0, D14, IF(CMdata=1,DEGREES(IMARGUMENT(K15)),'CM choke'!D19)) -> 91.2064908 | E15: =IF(IF(CMdata=1,IMABS(L15),'CM choke'!E19)=0, E14, IF(CMdata=1,IMABS(L15),'CM choke'!E19)) -> 9.92314194 | F15: =IF(IF(CMdata=1,DEGREES(IMARGUMENT(L15)),'CM choke'!F19)=0, F14, IF(CMdata=1,DEGREES(IMARGUMENT(L15)),'CM choke'!F19)) -> 91.2064908 | G15: -0.2089385086 | H15: 9.920942025 | I15: -0.2089385086 | J15: 9.920942025 | K15: =IF(CMdata=1, IF(Lcm1_core=1, IMDIV(1,IMSUM(IMDIV(1,IMPRODUCT(B15,'Design the AEF circuit'!$G$18*0.001)),IMDIV(1,'Design the AEF circuit'!$G$19*1000),IMPRODUCT(B15,'Design the AEF circuit'!$G$20*0.000000000001))), O15),COMPLEX(G15,H15,"j")) -> -0.208938508563927+9.92094202501639j | L15: =IF(CMdata=1, IF(Lcm2_core=1, IMDIV(1, IMSUM(IMDIV(1,IMPRODUCT(B15,'Design the AEF circuit'!$H$18*0.001)), IMDIV(1,'Design the AEF circuit'!$H$19*1000), IMPRODUCT(B15,'Design the AEF circuit'!$H$20*0.000000000001))), Q15), COMPLEX(I15,J15,"j")) -> -0.208938508563927+9.92094202501639j | N15: =IMSUM(IMDIV(1,IMSUM(IMDIV(1,IMPRODUCT(B15,'Design the AEF circuit'!$G$18*0.001)),IMDIV(1,'Design the AEF circuit'!$G$19*1000))), IMDIV(1,IMSUM(IMDIV(1,IMPRODUCT(B15,'Design the AEF circuit'!$G$21*0.001)),IMDIV(1,'Design the AEF circuit'!$G$22*1000))), IMDIV(1,IMSUM(IMDIV(1,IMPRODUCT(B15,'Design the AEF circuit'!$G$23*0.001)),IMDIV(1,'Design the AEF circuit'!$G$24*1000))) ) -> 0.0440928076269993+14.621633902309j | O15: =IMDIV(1, IMSUM( IMDIV(1, N15), IMPRODUCT(B15,'Design the AEF circuit'!$G$20*0.000000000001))) -> 0.0440928283659894+14.6216373409098j | P15: =IMSUM(IMDIV(1,IMSUM(IMDIV(1,IMPRODUCT(B15,'Design the AEF circuit'!$H$18*0.001)),IMDIV(1,'Design the AEF circuit'!$H$19*1000))), IMDIV(1,IMSUM(IMDIV(1,IMPRODUCT(B15,'Design the AEF circuit'!$H$21*0.001)),IMDIV(1,'Design the AEF circuit'!$H$22*1000))), IMDIV(1,IMSUM(IMDIV(1,IMPRODUCT(B15,'Design the AEF circuit'!$H$23*0.001)),IMDIV(1,'Design the AEF circuit'!$H$24*1000))) ) -> 0.0440928076269993+14.621633902309j | Q15: =IMDIV(1, IMSUM( IMDIV(1, P15), IMPRODUCT(B15,'Design the AEF circuit'!$H$20*0.000000000001) ) ) -> 0.0440928283659894+14.6216373409098j
A16: ='Frequency vector'!G16 -> 117.8348763 | B16: =COMPLEX(0,2*PI()*'Frequency vector'!G16,"j") -> 740.378363311007j | C16: =IF(IF(CMdata=1,IMABS(K16),'CM choke'!C20)=0, C15, IF(CMdata=1,IMABS(K16),'CM choke'!C20)) -> 9.929438831 | D16: =IF(IF(CMdata=1,DEGREES(IMARGUMENT(K16)),'CM choke'!D20)=0, D15, IF(CMdata=1,DEGREES(IMARGUMENT(K16)),'CM choke'!D20)) -> 91.02377273 | E16: =IF(IF(CMdata=1,IMABS(L16),'CM choke'!E20)=0, E15, IF(CMdata=1,IMABS(L16),'CM choke'!E20)) -> 9.929438831 | F16: =IF(IF(CMdata=1,DEGREES(IMARGUMENT(L16)),'CM choke'!F20)=0, F15, IF(CMdata=1,DEGREES(IMARGUMENT(L16)),'CM choke'!F20)) -> 91.02377273 | G16: -0.1774118076 | H16: 9.927853774 | I16: -0.1774118076 | J16: 9.927853774 | K16: =IF(CMdata=1, IF(Lcm1_core=1, IMDIV(1,IMSUM(IMDIV(1,IMPRODUCT(B16,'Design the AEF circuit'!$G$18*0.001)),IMDIV(1,'Design the AEF circuit'!$G$19*1000),IMPRODUCT(B16,'Design the AEF circuit'!$G$20*0.000000000001))), O16),COMPLEX(G16,H16,"j")) -> -0.177411807590323+9.92785377381945j | L16: =IF(CMdata=1, IF(Lcm2_core=1, IMDIV(1, IMSUM(IMDIV(1,IMPRODUCT(B16,'Design the AEF circuit'!$H$18*0.001)), IMDIV(1,'Design the AEF circuit'!$H$19*1000), IMPRODUCT(B16,'Design the AEF circuit'!$H$20*0.000000000001))), Q16), COMPLEX(I16,J16,"j")) -> -0.177411807590323+9.92785377381945j | N16: =IMSUM(IMDIV(1,IMSUM(IMDIV(1,IMPRODUCT(B16,'Design the AEF circuit'!$G$18*0.001)),IMDIV(1,'Design the AEF circuit'!$G$19*1000))), IMDIV(1,IMSUM(IMDIV(1,IMPRODUCT(B16,'Design the AEF circuit'!$G$21*0.001)),IMDIV(1,'Design the AEF circuit'!$G$22*1000))), IMDIV(1,IMSUM(IMDIV(1,IMPRODUCT(B16,'Design the AEF circuit'!$G$23*0.001)),IMDIV(1,'Design the AEF circuit'!$G$24*1000))) ) -> 0.0452202306240008+14.8073852782608j | O16: =IMDIV(1, IMSUM( IMDIV(1, N16), IMPRODUCT(B16,'Design the AEF circuit'!$G$20*0.000000000001))) -> 0.0452202524371165+14.8073888495844j | P16: =IMSUM(IMDIV(1,IMSUM(IMDIV(1,IMPRODUCT(B16,'Design the AEF circuit'!$H$18*0.001)),IMDIV(1,'Design the AEF circuit'!$H$19*1000))), IMDIV(1,IMSUM(IMDIV(1,IMPRODUCT(B16,'Design the AEF circuit'!$H$21*0.001)),IMDIV(1,'Design the AEF circuit'!$H$22*1000))), IMDIV(1,IMSUM(IMDIV(1,IMPRODUCT(B16,'Design the AEF circuit'!$H$23*0.001)),IMDIV(1,'Design the AEF circuit'!$H$24*1000))) ) -> 0.0452202306240008+14.8073852782608j | Q16: =IMDIV(1, IMSUM( IMDIV(1, P16), IMPRODUCT(B16,'Design the AEF circuit'!$H$20*0.000000000001) ) ) -> 0.0452202524371165+14.8073888495844j
A17: ='Frequency vector'!G17 -> 119.3318721 | B17: =COMPLEX(0,2*PI()*'Frequency vector'!G17,"j") -> 749.784265547149j | C17: =IF(IF(CMdata=1,IMABS(K17),'CM choke'!C21)=0, C16, IF(CMdata=1,IMABS(K17),'CM choke'!C21)) -> 9.982995076 | D17: =IF(IF(CMdata=1,DEGREES(IMARGUMENT(K17)),'CM choke'!D21)=0, D16, IF(CMdata=1,DEGREES(IMARGUMENT(K17)),'CM choke'!D21)) -> 90.47778671 | E17: =IF(IF(CMdata=1,IMABS(L17),'CM choke'!E21)=0, E16, IF(CMdata=1,IMABS(L17),'CM choke'!E21)) -> 9.982995076 | F17: =IF(IF(CMdata=1,DEGREES(IMARGUMENT(L17)),'CM choke'!F21)=0, F16, IF(CMdata=1,DEGREES(IMARGUMENT(L17)),'CM choke'!F21)) -> 90.47778671 | G17: -0.08324674408 | H17: 9.982647979 | I17: -0.08324674408 | J17: 9.982647979 | K17: =IF(CMdata=1, IF(Lcm1_core=1, IMDIV(1,IMSUM(IMDIV(1,IMPRODUCT(B17,'Design the AEF circuit'!$G$18*0.001)),IMDIV(1,'Design the AEF circuit'!$G$19*1000),IMPRODUCT(B17,'Design the AEF circuit'!$G$20*0.000000000001))), O17),COMPLEX(G17,H17,"j")) -> -0.0832467440818856+9.98264797917634j | L17: =IF(CMdata=1, IF(Lcm2_core=1, IMDIV(1, IMSUM(IMDIV(1,IMPRODUCT(B17,'Design the AEF circuit'!$H$18*0.001)), IMDIV(1,'Design the AEF circuit'!$H$19*1000), IMPRODUCT(B17,'Design the AEF circuit'!$H$20*0.000000000001))), Q17), COMPLEX(I17,J17,"j")) -> -0.0832467440818856+9.98264797917634j | N17: =IMSUM(IMDIV(1,IMSUM(IMDIV(1,IMPRODUCT(B17,'Design the AEF circuit'!$G$18*0.001)),IMDIV(1,'Design the AEF circuit'!$G$19*1000))), IMDIV(1,IMSUM(IMDIV(1,IMPRODUCT(B17,'Design the AEF circuit'!$G$21*0.001)),IMDIV(1,'Design the AEF circuit'!$G$22*1000))), IMDIV(1,IMSUM(IMDIV(1,IMPRODUCT(B17,'Design the AEF circuit'!$G$23*0.001)),IMDIV(1,'Design the AEF circuit'!$G$24*1000))) ) -> 0.0463764805432158+14.9954962985611j | O17: =IMDIV(1, IMSUM( IMDIV(1, N17), IMPRODUCT(B17,'Design the AEF circuit'!$G$20*0.000000000001))) -> 0.0463765034860883+14.9955000077303j | P17: =IMSUM(IMDIV(1,IMSUM(IMDIV(1,IMPRODUCT(B17,'Design the AEF circuit'!$H$18*0.001)),IMDIV(1,'Design the AEF circuit'!$H$19*1000))), IMDIV(1,IMSUM(IMDIV(1,IMPRODUCT(B17,'Design the AEF circuit'!$H$21*0.001)),IMDIV(1,'Design the AEF circuit'!$H$22*1000))), IMDIV(1,IMSUM(IMDIV(1,IMPRODUCT(B17,'Design the AEF circuit'!$H$23*0.001)),IMDIV(1,'Design the AEF circuit'!$H$24*1000))) ) -> 0.0463764805432158+14.9954962985611j | Q17: =IMDIV(1, IMSUM( IMDIV(1, P17), IMPRODUCT(B17,'Design the AEF circuit'!$H$20*0.000000000001) ) ) -> 0.0463765034860883+14.9955000077303j
A18: ='Frequency vector'!G18 -> 120.8478861 | B18: =COMPLEX(0,2*PI()*'Frequency vector'!G18,"j") -> 759.309662086819j | C18: =IF(IF(CMdata=1,IMABS(K18),'CM choke'!C22)=0, C17, IF(CMdata=1,IMABS(K18),'CM choke'!C22)) -> 10.18221373 | D18: =IF(IF(CMdata=1,DEGREES(IMARGUMENT(K18)),'CM choke'!D22)=0, D17, IF(CMdata=1,DEGREES(IMARGUMENT(K18)),'CM choke'!D22)) -> 90.70344793 | E18: =IF(IF(CMdata=1,IMABS(L18),'CM choke'!E22)=0, E17, IF(CMdata=1,IMABS(L18),'CM choke'!E22)) -> 10.18221373 | F18: =IF(IF(CMdata=1,DEGREES(IMARGUMENT(L18)),'CM choke'!F22)=0, F17, IF(CMdata=1,DEGREES(IMARGUMENT(L18)),'CM choke'!F22)) -> 90.70344793 | G18: -0.1250088105 | H18: 10.18144632 | I18: -0.1250088105 | J18: 10.18144632 | K18: =IF(CMdata=1, IF(Lcm1_core=1, IMDIV(1,IMSUM(IMDIV(1,IMPRODUCT(B18,'Design the AEF circuit'!$G$18*0.001)),IMDIV(1,'Design the AEF circuit'!$G$19*1000),IMPRODUCT(B18,'Design the AEF circuit'!$G$20*0.000000000001))), O18),COMPLEX(G18,H18,"j")) -> -0.125008810466122+10.181446321415j | L18: =IF(CMdata=1, IF(Lcm2_core=1, IMDIV(1, IMSUM(IMDIV(1,IMPRODUCT(B18,'Design the AEF circuit'!$H$18*0.001)), IMDIV(1,'Design the AEF circuit'!$H$19*1000), IMPRODUCT(B18,'Design the AEF circuit'!$H$20*0.000000000001))), Q18), COMPLEX(I18,J18,"j")) -> -0.125008810466122+10.181446321415j | N18: =IMSUM(IMDIV(1,IMSUM(IMDIV(1,IMPRODUCT(B18,'Design the AEF circuit'!$G$18*0.001)),IMDIV(1,'Design the AEF circuit'!$G$19*1000))), IMDIV(1,IMSUM(IMDIV(1,IMPRODUCT(B18,'Design the AEF circuit'!$G$21*0.001)),IMDIV(1,'Design the AEF circuit'!$G$22*1000))), IMDIV(1,IMSUM(IMDIV(1,IMPRODUCT(B18,'Design the AEF circuit'!$G$23*0.001)),IMDIV(1,'Design the AEF circuit'!$G$24*1000))) ) -> 0.0475622944295792+15.1859969338037j | O18: =IMDIV(1, IMSUM( IMDIV(1, N18), IMPRODUCT(B18,'Design the AEF circuit'!$G$20*0.000000000001))) -> 0.0475623185607211+15.1860007861389j | P18: =IMSUM(IMDIV(1,IMSUM(IMDIV(1,IMPRODUCT(B18,'Design the AEF circuit'!$H$18*0.001)),IMDIV(1,'Design the AEF circuit'!$H$19*1000))), IMDIV(1,IMSUM(IMDIV(1,IMPRODUCT(B18,'Design the AEF circuit'!$H$21*0.001)),IMDIV(1,'Design the AEF circuit'!$H$22*1000))), IMDIV(1,IMSUM(IMDIV(1,IMPRODUCT(B18,'Design the AEF circuit'!$H$23*0.001)),IMDIV(1,'Design the AEF circuit'!$H$24*1000))) ) -> 0.0475622944295792+15.1859969338037j | Q18: =IMDIV(1, IMSUM( IMDIV(1, P18), IMPRODUCT(B18,'Design the AEF circuit'!$H$20*0.000000000001) ) ) -> 0.0475623185607211+15.1860007861389j
A19: ='Frequency vector'!G19 -> 122.3831597 | B19: =COMPLEX(0,2*PI()*'Frequency vector'!G19,"j") -> 768.956071007531j | C19: =IF(IF(CMdata=1,IMABS(K19),'CM choke'!C23)=0, C18, IF(CMdata=1,IMABS(K19),'CM choke'!C23)) -> 10.39836508 | D19: =IF(IF(CMdata=1,DEGREES(IMARGUMENT(K19)),'CM choke'!D23)=0, D18, IF(CMdata=1,DEGREES(IMARGUMENT(K19)),'CM choke'!D23)) -> 90.90327136 | E19: =IF(IF(CMdata=1,IMABS(L19),'CM choke'!E23)=0, E18, IF(CMdata=1,IMABS(L19),'CM choke'!E23)) -> 10.39836508 | F19: =IF(IF(CMdata=1,DEGREES(IMARGUMENT(L19)),'CM choke'!F23)=0, F18, IF(CMdata=1,DEGREES(IMARGUMENT(L19)),'CM choke'!F23)) -> 90.90327136 | G19: -0.163924051 | H19: 10.39707292 | I19: -0.163924051 | J19: 10.39707292 | K19: =IF(CMdata=1, IF(Lcm1_core=1, IMDIV(1,IMSUM(IMDIV(1,IMPRODUCT(B19,'Design the AEF circuit'!$G$18*0.001)),IMDIV(1,'Design the AEF circuit'!$G$19*1000),IMPRODUCT(B19,'Design the AEF circuit'!$G$20*0.000000000001))), O19),COMPLEX(G19,H19,"j")) -> -0.163924051048769+10.3970729164277j | L19: =IF(CMdata=1, IF(Lcm2_core=1, IMDIV(1, IMSUM(IMDIV(1,IMPRODUCT(B19,'Design the AEF circuit'!$H$18*0.001)), IMDIV(1,'Design the AEF circuit'!$H$19*1000), IMPRODUCT(B19,'Design the AEF circuit'!$H$20*0.000000000001))), Q19), COMPLEX(I19,J19,"j")) -> -0.163924051048769+10.3970729164277j | N19: =IMSUM(IMDIV(1,IMSUM(IMDIV(1,IMPRODUCT(B19,'Design the AEF circuit'!$G$18*0.001)),IMDIV(1,'Design the AEF circuit'!$G$19*1000))), IMDIV(1,IMSUM(IMDIV(1,IMPRODUCT(B19,'Design the AEF circuit'!$G$21*0.001)),IMDIV(1,'Design the AEF circuit'!$G$22*1000))), IMDIV(1,IMSUM(IMDIV(1,IMPRODUCT(B19,'Design the AEF circuit'!$G$23*0.001)),IMDIV(1,'Design the AEF circuit'!$G$24*1000))) ) -> 0.0487784281713678+15.3789175350742j | O19: =IMDIV(1, IMSUM( IMDIV(1, N19), IMPRODUCT(B19,'Design the AEF circuit'!$G$20*0.000000000001))) -> 0.0487784535523222+15.3789215361013j | P19: =IMSUM(IMDIV(1,IMSUM(IMDIV(1,IMPRODUCT(B19,'Design the AEF circuit'!$H$18*0.001)),IMDIV(1,'Design the AEF circuit'!$H$19*1000))), IMDIV(1,IMSUM(IMDIV(1,IMPRODUCT(B19,'Design the AEF circuit'!$H$21*0.001)),IMDIV(1,'Design the AEF circuit'!$H$22*1000))), IMDIV(1,IMSUM(IMDIV(1,IMPRODUCT(B19,'Design the AEF circuit'!$H$23*0.001)),IMDIV(1,'Design the AEF circuit'!$H$24*1000))) ) -> 0.0487784281713678+15.3789175350742j | Q19: =IMDIV(1, IMSUM( IMDIV(1, P19), IMPRODUCT(B19,'Design the AEF circuit'!$H$20*0.000000000001) ) ) -> 0.0487784535523222+15.3789215361013j
A20: ='Frequency vector'!G20 -> 123.9379378 | B20: =COMPLEX(0,2*PI()*'Frequency vector'!G20,"j") -> 778.725029672712j | C20: =IF(IF(CMdata=1,IMABS(K20),'CM choke'!C24)=0, C19, IF(CMdata=1,IMABS(K20),'CM choke'!C24)) -> 10.42938576 | D20: =IF(IF(CMdata=1,DEGREES(IMARGUMENT(K20)),'CM choke'!D24)=0, D19, IF(CMdata=1,DEGREES(IMARGUMENT(K20)),'CM choke'!D24)) -> 90.41392396 | E20: =IF(IF(CMdata=1,IMABS(L20),'CM choke'!E24)=0, E19, IF(CMdata=1,IMABS(L20),'CM choke'!E24)) -> 10.42938576 | F20: =IF(IF(CMdata=1,DEGREES(IMARGUMENT(L20)),'CM choke'!F24)=0, F19, IF(CMdata=1,DEGREES(IMARGUMENT(L20)),'CM choke'!F24)) -> 90.41392396 | G20: -0.07534473177 | H20: 10.4291136 | I20: -0.07534473177 | J20: 10.4291136 | K20: =IF(CMdata=1, IF(Lcm1_core=1, IMDIV(1,IMSUM(IMDIV(1,IMPRODUCT(B20,'Design the AEF circuit'!$G$18*0.001)),IMDIV(1,'Design the AEF circuit'!$G$19*1000),IMPRODUCT(B20,'Design the AEF circuit'!$G$20*0.000000000001))), O20),COMPLEX(G20,H20,"j")) -> -0.0753447317695231+10.4291136045928j | L20: =IF(CMdata=1, IF(Lcm2_core=1, IMDIV(1, IMSUM(IMDIV(1,IMPRODUCT(B20,'Design the AEF circuit'!$H$18*0.001)), IMDIV(1,'Design the AEF circuit'!$H$19*1000), IMPRODUCT(B20,'Design the AEF circuit'!$H$20*0.000000000001))), Q20), COMPLEX(I20,J20,"j")) -> -0.0753447317695231+10.4291136045928j | N20: =IMSUM(IMDIV(1,IMSUM(IMDIV(1,IMPRODUCT(B20,'Design the AEF circuit'!$G$18*0.001)),IMDIV(1,'Design the AEF circuit'!$G$19*1000))), IMDIV(1,IMSUM(IMDIV(1,IMPRODUCT(B20,'Design the AEF circuit'!$G$21*0.001)),IMDIV(1,'Design the AEF circuit'!$G$22*1000))), IMDIV(1,IMSUM(IMDIV(1,IMPRODUCT(B20,'Design the AEF circuit'!$G$23*0.001)),IMDIV(1,'Design the AEF circuit'!$G$24*1000))) ) -> 0.0500256569818734+15.5742888387723j | O20: =IMDIV(1, IMSUM( IMDIV(1, N20), IMPRODUCT(B20,'Design the AEF circuit'!$G$20*0.000000000001))) -> 0.0500256836773703+15.5742929942303j | P20: =IMSUM(IMDIV(1,IMSUM(IMDIV(1,IMPRODUCT(B20,'Design the AEF circuit'!$H$18*0.001)),IMDIV(1,'Design the AEF circuit'!$H$19*1000))), IMDIV(1,IMSUM(IMDIV(1,IMPRODUCT(B20,'Design the AEF circuit'!$H$21*0.001)),IMDIV(1,'Design the AEF circuit'!$H$22*1000))), IMDIV(1,IMSUM(IMDIV(1,IMPRODUCT(B20,'Design the AEF circuit'!$H$23*0.001)),IMDIV(1,'Design the AEF circuit'!$H$24*1000))) ) -> 0.0500256569818734+15.5742888387723j | Q20: =IMDIV(1, IMSUM( IMDIV(1, P20), IMPRODUCT(B20,'Design the AEF circuit'!$H$20*0.000000000001) ) ) -> 0.0500256836773703+15.5742929942303j
A21: ='Frequency vector'!G21 -> 125.512468 | B21: =COMPLEX(0,2*PI()*'Frequency vector'!G21,"j") -> 788.618094976753j | C21: =IF(IF(CMdata=1,IMABS(K21),'CM choke'!C25)=0, C20, IF(CMdata=1,IMABS(K21),'CM choke'!C25)) -> 10.66322716 | D21: =IF(IF(CMdata=1,DEGREES(IMARGUMENT(K21)),'CM choke'!D25)=0, D20, IF(CMdata=1,DEGREES(IMARGUMENT(K21)),'CM choke'!D25)) -> 91.06508819 | E21: =IF(IF(CMdata=1,IMABS(L21),'CM choke'!E25)=0, E20, IF(CMdata=1,IMABS(L21),'CM choke'!E25)) -> 10.66322716 | F21: =IF(IF(CMdata=1,DEGREES(IMARGUMENT(L21)),'CM choke'!F25)=0, F20, IF(CMdata=1,DEGREES(IMARGUMENT(L21)),'CM choke'!F25)) -> 91.06508819 | G21: -0.198210468 | H21: 10.66138482 | I21: -0.198210468 | J21: 10.66138482 | K21: =IF(CMdata=1, IF(Lcm1_core=1, IMDIV(1,IMSUM(IMDIV(1,IMPRODUCT(B21,'Design the AEF circuit'!$G$18*0.001)),IMDIV(1,'Design the AEF circuit'!$G$19*1000),IMPRODUCT(B21,'Design the AEF circuit'!$G$20*0.000000000001))), O21),COMPLEX(G21,H21,"j")) -> -0.198210468047778+10.6613848150392j | L21: =IF(CMdata=1, IF(Lcm2_core=1, IMDIV(1, IMSUM(IMDIV(1,IMPRODUCT(B21,'Design the AEF circuit'!$H$18*0.001)), IMDIV(1,'Design the AEF circuit'!$H$19*1000), IMPRODUCT(B21,'Design the AEF circuit'!$H$20*0.000000000001))), Q21), COMPLEX(I21,J21,"j")) -> -0.198210468047778+10.6613848150392j | N21: =IMSUM(IMDIV(1,IMSUM(IMDIV(1,IMPRODUCT(B21,'Design the AEF circuit'!$G$18*0.001)),IMDIV(1,'Design the AEF circuit'!$G$19*1000))), IMDIV(1,IMSUM(IMDIV(1,IMPRODUCT(B21,'Design the AEF circuit'!$G$21*0.001)),IMDIV(1,'Design the AEF circuit'!$G$22*1000))), IMDIV(1,IMSUM(IMDIV(1,IMPRODUCT(B21,'Design the AEF circuit'!$G$23*0.001)),IMDIV(1,'Design the AEF circuit'!$G$24*1000))) ) -> 0.0513047758933948+15.7721419714975j | O21: =IMDIV(1, IMSUM( IMDIV(1, N21), IMPRODUCT(B21,'Design the AEF circuit'!$G$20*0.000000000001))) -> 0.0513048039715174+15.7721462873471j | P21: =IMSUM(IMDIV(1,IMSUM(IMDIV(1,IMPRODUCT(B21,'Design the AEF circuit'!$H$18*0.001)),IMDIV(1,'Design the AEF circuit'!$H$19*1000))), IMDIV(1,IMSUM(IMDIV(1,IMPRODUCT(B21,'Design the AEF circuit'!$H$21*0.001)),IMDIV(1,'Design the AEF circuit'!$H$22*1000))), IMDIV(1,IMSUM(IMDIV(1,IMPRODUCT(B21,'Design the AEF circuit'!$H$23*0.001)),IMDIV(1,'Design the AEF circuit'!$H$24*1000))) ) -> 0.0513047758933948+15.7721419714975j | Q21: =IMDIV(1, IMSUM( IMDIV(1, P21), IMPRODUCT(B21,'Design the AEF circuit'!$H$20*0.000000000001) ) ) -> 0.0513048039715174+15.7721462873471j
A22: ='Frequency vector'!G22 -> 127.1070014 | B22: =COMPLEX(0,2*PI()*'Frequency vector'!G22,"j") -> 798.636843593108j | C22: =IF(IF(CMdata=1,IMABS(K22),'CM choke'!C26)=0, C21, IF(CMdata=1,IMABS(K22),'CM choke'!C26)) -> 10.82499276 | D22: =IF(IF(CMdata=1,DEGREES(IMARGUMENT(K22)),'CM choke'!D26)=0, D21, IF(CMdata=1,DEGREES(IMARGUMENT(K22)),'CM choke'!D26)) -> 90.84684747 | E22: =IF(IF(CMdata=1,IMABS(L22),'CM choke'!E26)=0, E21, IF(CMdata=1,IMABS(L22),'CM choke'!E26)) -> 10.82499276 | F22: =IF(IF(CMdata=1,DEGREES(IMARGUMENT(L22)),'CM choke'!F26)=0, F21, IF(CMdata=1,DEGREES(IMARGUMENT(L22)),'CM choke'!F26)) -> 90.84684747 | G22: -0.1599905622 | H22: 10.82381039 | I22: -0.1599905622 | J22: 10.82381039 | K22: =IF(CMdata=1, IF(Lcm1_core=1, IMDIV(1,IMSUM(IMDIV(1,IMPRODUCT(B22,'Design the AEF circuit'!$G$18*0.001)),IMDIV(1,'Design the AEF circuit'!$G$19*1000),IMPRODUCT(B22,'Design the AEF circuit'!$G$20*0.000000000001))), O22),COMPLEX(G22,H22,"j")) -> -0.159990562244774+10.8238103876227j | L22: =IF(CMdata=1, IF(Lcm2_core=1, IMDIV(1, IMSUM(IMDIV(1,IMPRODUCT(B22,'Design the AEF circuit'!$H$18*0.001)), IMDIV(1,'Design the AEF circuit'!$H$19*1000), IMPRODUCT(B22,'Design the AEF circuit'!$H$20*0.000000000001))), Q22), COMPLEX(I22,J22,"j")) -> -0.159990562244774+10.8238103876227j | N22: =IMSUM(IMDIV(1,IMSUM(IMDIV(1,IMPRODUCT(B22,'Design the AEF circuit'!$G$18*0.001)),IMDIV(1,'Design the AEF circuit'!$G$19*1000))), IMDIV(1,IMSUM(IMDIV(1,IMPRODUCT(B22,'Design the AEF circuit'!$G$21*0.001)),IMDIV(1,'Design the AEF circuit'!$G$22*1000))), IMDIV(1,IMSUM(IMDIV(1,IMPRODUCT(B22,'Design the AEF circuit'!$G$23*0.001)),IMDIV(1,'Design the AEF circuit'!$G$24*1000))) ) -> 0.0526166002638467+15.9725084549951j | O22: =IMDIV(1, IMSUM( IMDIV(1, N22), IMPRODUCT(B22,'Design the AEF circuit'!$G$20*0.000000000001))) -> 0.0526166297962038+15.9725129374268j | P22: =IMSUM(IMDIV(1,IMSUM(IMDIV(1,IMPRODUCT(B22,'Design the AEF circuit'!$H$18*0.001)),IMDIV(1,'Design the AEF circuit'!$H$19*1000))), IMDIV(1,IMSUM(IMDIV(1,IMPRODUCT(B22,'Design the AEF circuit'!$H$21*0.001)),IMDIV(1,'Design the AEF circuit'!$H$22*1000))), IMDIV(1,IMSUM(IMDIV(1,IMPRODUCT(B22,'Design the AEF circuit'!$H$23*0.001)),IMDIV(1,'Design the AEF circuit'!$H$24*1000))) ) -> 0.0526166002638467+15.9725084549951j | Q22: =IMDIV(1, IMSUM( IMDIV(1, P22), IMPRODUCT(B22,'Design the AEF circuit'!$H$20*0.000000000001) ) ) -> 0.0526166297962038+15.9725129374268j
A23: ='Frequency vector'!G23 -> 128.721792 | B23: =COMPLEX(0,2*PI()*'Frequency vector'!G23,"j") -> 808.782872225581j | C23: =IF(IF(CMdata=1,IMABS(K23),'CM choke'!C27)=0, C22, IF(CMdata=1,IMABS(K23),'CM choke'!C27)) -> 10.91867944 | D23: =IF(IF(CMdata=1,DEGREES(IMARGUMENT(K23)),'CM choke'!D27)=0, D22, IF(CMdata=1,DEGREES(IMARGUMENT(K23)),'CM choke'!D27)) -> 90.71600298 | E23: =IF(IF(CMdata=1,IMABS(L23),'CM choke'!E27)=0, E22, IF(CMdata=1,IMABS(L23),'CM choke'!E27)) -> 10.91867944 | F23: =IF(IF(CMdata=1,DEGREES(IMARGUMENT(L23)),'CM choke'!F27)=0, F22, IF(CMdata=1,DEGREES(IMARGUMENT(L23)),'CM choke'!F27)) -> 90.71600298 | G23: -0.1364429213 | H23: 10.91782689 | I23: -0.1364429213 | J23: 10.91782689 | K23: =IF(CMdata=1, IF(Lcm1_core=1, IMDIV(1,IMSUM(IMDIV(1,IMPRODUCT(B23,'Design the AEF circuit'!$G$18*0.001)),IMDIV(1,'Design the AEF circuit'!$G$19*1000),IMPRODUCT(B23,'Design the AEF circuit'!$G$20*0.000000000001))), O23),COMPLEX(G23,H23,"j")) -> -0.136442921321271+10.917826889291j | L23: =IF(CMdata=1, IF(Lcm2_core=1, IMDIV(1, IMSUM(IMDIV(1,IMPRODUCT(B23,'Design the AEF circuit'!$H$18*0.001)), IMDIV(1,'Design the AEF circuit'!$H$19*1000), IMPRODUCT(B23,'Design the AEF circuit'!$H$20*0.000000000001))), Q23), COMPLEX(I23,J23,"j")) -> -0.136442921321271+10.917826889291j | N23: =IMSUM(IMDIV(1,IMSUM(IMDIV(1,IMPRODUCT(B23,'Design the AEF circuit'!$G$18*0.001)),IMDIV(1,'Design the AEF circuit'!$G$19*1000))), IMDIV(1,IMSUM(IMDIV(1,IMPRODUCT(B23,'Design the AEF circuit'!$G$21*0.001)),IMDIV(1,'Design the AEF circuit'!$G$22*1000))), IMDIV(1,IMSUM(IMDIV(1,IMPRODUCT(B23,'Design the AEF circuit'!$G$23*0.001)),IMDIV(1,'Design the AEF circuit'!$G$24*1000))) ) -> 0.0539619662963186+16.1754202111649j | O23: =IMDIV(1, IMSUM( IMDIV(1, N23), IMPRODUCT(B23,'Design the AEF circuit'!$G$20*0.000000000001))) -> 0.0539619973582279+16.1754248666084j | P23: =IMSUM(IMDIV(1,IMSUM(IMDIV(1,IMPRODUCT(B23,'Design the AEF circuit'!$H$18*0.001)),IMDIV(1,'Design the AEF circuit'!$H$19*1000))), IMDIV(1,IMSUM(IMDIV(1,IMPRODUCT(B23,'Design the AEF circuit'!$H$21*0.001)),IMDIV(1,'Design the AEF circuit'!$H$22*1000))), IMDIV(1,IMSUM(IMDIV(1,IMPRODUCT(B23,'Design the AEF circuit'!$H$23*0.001)),IMDIV(1,'Design the AEF circuit'!$H$24*1000))) ) -> 0.0539619662963186+16.1754202111649j | Q23: =IMDIV(1, IMSUM( IMDIV(1, P23), IMPRODUCT(B23,'Design the AEF circuit'!$H$20*0.000000000001) ) ) -> 0.0539619973582279+16.1754248666084j
A24: ='Frequency vector'!G24 -> 130.3570972 | B24: =COMPLEX(0,2*PI()*'Frequency vector'!G24,"j") -> 819.057797862787j | C24: =IF(IF(CMdata=1,IMABS(K24),'CM choke'!C28)=0, C23, IF(CMdata=1,IMABS(K24),'CM choke'!C28)) -> 11.08275051 | D24: =IF(IF(CMdata=1,DEGREES(IMARGUMENT(K24)),'CM choke'!D28)=0, D23, IF(CMdata=1,DEGREES(IMARGUMENT(K24)),'CM choke'!D28)) -> 90.45837275 | E24: =IF(IF(CMdata=1,IMABS(L24),'CM choke'!E28)=0, E23, IF(CMdata=1,IMABS(L24),'CM choke'!E28)) -> 11.08275051 | F24: =IF(IF(CMdata=1,DEGREES(IMARGUMENT(L24)),'CM choke'!F28)=0, F23, IF(CMdata=1,DEGREES(IMARGUMENT(L24)),'CM choke'!F28)) -> 90.45837275 | G24: -0.08866231898 | H24: 11.08239586 | I24: -0.08866231898 | J24: 11.08239586 | K24: =IF(CMdata=1, IF(Lcm1_core=1, IMDIV(1,IMSUM(IMDIV(1,IMPRODUCT(B24,'Design the AEF circuit'!$G$18*0.001)),IMDIV(1,'Design the AEF circuit'!$G$19*1000),IMPRODUCT(B24,'Design the AEF circuit'!$G$20*0.000000000001))), O24),COMPLEX(G24,H24,"j")) -> -0.0886623189802013+11.0823958559827j | L24: =IF(CMdata=1, IF(Lcm2_core=1, IMDIV(1, IMSUM(IMDIV(1,IMPRODUCT(B24,'Design the AEF circuit'!$H$18*0.001)), IMDIV(1,'Design the AEF circuit'!$H$19*1000), IMPRODUCT(B24,'Design the AEF circuit'!$H$20*0.000000000001))), Q24), COMPLEX(I24,J24,"j")) -> -0.0886623189802013+11.0823958559827j | N24: =IMSUM(IMDIV(1,IMSUM(IMDIV(1,IMPRODUCT(B24,'Design the AEF circuit'!$G$18*0.001)),IMDIV(1,'Design the AEF circuit'!$G$19*1000))), IMDIV(1,IMSUM(IMDIV(1,IMPRODUCT(B24,'Design the AEF circuit'!$G$21*0.001)),IMDIV(1,'Design the AEF circuit'!$G$22*1000))), IMDIV(1,IMSUM(IMDIV(1,IMPRODUCT(B24,'Design the AEF circuit'!$G$23*0.001)),IMDIV(1,'Design the AEF circuit'!$G$24*1000))) ) -> 0.0553417315719028+16.3809095671326j | O24: =IMDIV(1, IMSUM( IMDIV(1, N24), IMPRODUCT(B24,'Design the AEF circuit'!$G$20*0.000000000001))) -> 0.0553417642425828+16.3809144022656j | P24: =IMSUM(IMDIV(1,IMSUM(IMDIV(1,IMPRODUCT(B24,'Design the AEF circuit'!$H$18*0.001)),IMDIV(1,'Design the AEF circuit'!$H$19*1000))), IMDIV(1,IMSUM(IMDIV(1,IMPRODUCT(B24,'Design the AEF circuit'!$H$21*0.001)),IMDIV(1,'Design the AEF circuit'!$H$22*1000))), IMDIV(1,IMSUM(IMDIV(1,IMPRODUCT(B24,'Design the AEF circuit'!$H$23*0.001)),IMDIV(1,'Design the AEF circuit'!$H$24*1000))) ) -> 0.0553417315719028+16.3809095671326j | Q24: =IMDIV(1, IMSUM( IMDIV(1, P24), IMPRODUCT(B24,'Design the AEF circuit'!$H$20*0.000000000001) ) ) -> 0.0553417642425828+16.3809144022656j
A25: ='Frequency vector'!G25 -> 132.0131776 | B25: =COMPLEX(0,2*PI()*'Frequency vector'!G25,"j") -> 829.46325803587j | C25: =IF(IF(CMdata=1,IMABS(K25),'CM choke'!C29)=0, C24, IF(CMdata=1,IMABS(K25),'CM choke'!C29)) -> 11.12372378 | D25: =IF(IF(CMdata=1,DEGREES(IMARGUMENT(K25)),'CM choke'!D29)=0, D24, IF(CMdata=1,DEGREES(IMARGUMENT(K25)),'CM choke'!D29)) -> 90.78276583 | E25: =IF(IF(CMdata=1,IMABS(L25),'CM choke'!E29)=0, E24, IF(CMdata=1,IMABS(L25),'CM choke'!E29)) -> 11.12372378 | F25: =IF(IF(CMdata=1,DEGREES(IMARGUMENT(L25)),'CM choke'!F29)=0, F24, IF(CMdata=1,DEGREES(IMARGUMENT(L25)),'CM choke'!F29)) -> 90.78276583 | G25: -0.151965819 | H25: 11.1226857 | I25: -0.151965819 | J25: 11.1226857 | K25: =IF(CMdata=1, IF(Lcm1_core=1, IMDIV(1,IMSUM(IMDIV(1,IMPRODUCT(B25,'Design the AEF circuit'!$G$18*0.001)),IMDIV(1,'Design the AEF circuit'!$G$19*1000),IMPRODUCT(B25,'Design the AEF circuit'!$G$20*0.000000000001))), O25),COMPLEX(G25,H25,"j")) -> -0.151965818985872+11.1226856981406j | L25: =IF(CMdata=1, IF(Lcm2_core=1, IMDIV(1, IMSUM(IMDIV(1,IMPRODUCT(B25,'Design the AEF circuit'!$H$18*0.001)), IMDIV(1,'Design the AEF circuit'!$H$19*1000), IMPRODUCT(B25,'Design the AEF circuit'!$H$20*0.000000000001))), Q25), COMPLEX(I25,J25,"j")) -> -0.151965818985872+11.1226856981406j | N25: =IMSUM(IMDIV(1,IMSUM(IMDIV(1,IMPRODUCT(B25,'Design the AEF circuit'!$G$18*0.001)),IMDIV(1,'Design the AEF circuit'!$G$19*1000))), IMDIV(1,IMSUM(IMDIV(1,IMPRODUCT(B25,'Design the AEF circuit'!$G$21*0.001)),IMDIV(1,'Design the AEF circuit'!$G$22*1000))), IMDIV(1,IMSUM(IMDIV(1,IMPRODUCT(B25,'Design the AEF circuit'!$G$23*0.001)),IMDIV(1,'Design the AEF circuit'!$G$24*1000))) ) -> 0.0567567755961503+16.5890092603866j | O25: =IMDIV(1, IMSUM( IMDIV(1, N25), IMPRODUCT(B25,'Design the AEF circuit'!$G$20*0.000000000001))) -> 0.0567568099589222+16.5890142821446j | P25: =IMSUM(IMDIV(1,IMSUM(IMDIV(1,IMPRODUCT(B25,'Design the AEF circuit'!$H$18*0.001)),IMDIV(1,'Design the AEF circuit'!$H$19*1000))), IMDIV(1,IMSUM(IMDIV(1,IMPRODUCT(B25,'Design the AEF circuit'!$H$21*0.001)),IMDIV(1,'Design the AEF circuit'!$H$22*1000))), IMDIV(1,IMSUM(IMDIV(1,IMPRODUCT(B25,'Design the AEF circuit'!$H$23*0.001)),IMDIV(1,'Design the AEF circuit'!$H$24*1000))) ) -> 0.0567567755961503+16.5890092603866j | Q25: =IMDIV(1, IMSUM( IMDIV(1, P25), IMPRODUCT(B25,'Design the AEF circuit'!$H$20*0.000000000001) ) ) -> 0.0567568099589222+16.5890142821446j
A26: ='Frequency vector'!G26 -> 133.6902972 | B26: =COMPLEX(0,2*PI()*'Frequency vector'!G26,"j") -> 840.000911079462j | C26: =IF(IF(CMdata=1,IMABS(K26),'CM choke'!C30)=0, C25, IF(CMdata=1,IMABS(K26),'CM choke'!C30)) -> 11.39291916 | D26: =IF(IF(CMdata=1,DEGREES(IMARGUMENT(K26)),'CM choke'!D30)=0, D25, IF(CMdata=1,DEGREES(IMARGUMENT(K26)),'CM choke'!D30)) -> 90.56480391 | E26: =IF(IF(CMdata=1,IMABS(L26),'CM choke'!E30)=0, E25, IF(CMdata=1,IMABS(L26),'CM choke'!E30)) -> 11.39291916 | F26: =IF(IF(CMdata=1,DEGREES(IMARGUMENT(L26)),'CM choke'!F30)=0, F25, IF(CMdata=1,DEGREES(IMARGUMENT(L26)),'CM choke'!F30)) -> 90.56480391 | G26: -0.1123060221 | H26: 11.39236562 | I26: -0.1123060221 | J26: 11.39236562 | K26: =IF(CMdata=1, IF(Lcm1_core=1, IMDIV(1,IMSUM(IMDIV(1,IMPRODUCT(B26,'Design the AEF circuit'!$G$18*0.001)),IMDIV(1,'Design the AEF circuit'!$G$19*1000),IMPRODUCT(B26,'Design the AEF circuit'!$G$20*0.000000000001))), O26),COMPLEX(G26,H26,"j")) -> -0.112306022149275+11.3923656152391j | L26: =IF(CMdata=1, IF(Lcm2_core=1, IMDIV(1, IMSUM(IMDIV(1,IMPRODUCT(B26,'Design the AEF circuit'!$H$18*0.001)), IMDIV(1,'Design the AEF circuit'!$H$19*1000), IMPRODUCT(B26,'Design the AEF circuit'!$H$20*0.000000000001))), Q26), COMPLEX(I26,J26,"j")) -> -0.112306022149275+11.3923656152391j | N26: =IMSUM(IMDIV(1,IMSUM(IMDIV(1,IMPRODUCT(B26,'Design the AEF circuit'!$G$18*0.001)),IMDIV(1,'Design the AEF circuit'!$G$19*1000))), IMDIV(1,IMSUM(IMDIV(1,IMPRODUCT(B26,'Design the AEF circuit'!$G$21*0.001)),IMDIV(1,'Design the AEF circuit'!$G$22*1000))), IMDIV(1,IMSUM(IMDIV(1,IMPRODUCT(B26,'Design the AEF circuit'!$G$23*0.001)),IMDIV(1,'Design the AEF circuit'!$G$24*1000))) ) -> 0.0582080003594799+16.7997524439784j | O26: =IMDIV(1, IMSUM( IMDIV(1, N26), IMPRODUCT(B26,'Design the AEF circuit'!$G$20*0.000000000001))) -> 0.0582080365019804+16.7997576595645j | P26: =IMSUM(IMDIV(1,IMSUM(IMDIV(1,IMPRODUCT(B26,'Design the AEF circuit'!$H$18*0.001)),IMDIV(1,'Design the AEF circuit'!$H$19*1000))), IMDIV(1,IMSUM(IMDIV(1,IMPRODUCT(B26,'Design the AEF circuit'!$H$21*0.001)),IMDIV(1,'Design the AEF circuit'!$H$22*1000))), IMDIV(1,IMSUM(IMDIV(1,IMPRODUCT(B26,'Design the AEF circuit'!$H$23*0.001)),IMDIV(1,'Design the AEF circuit'!$H$24*1000))) ) -> 0.0582080003594799+16.7997524439784j | Q26: =IMDIV(1, IMSUM( IMDIV(1, P26), IMPRODUCT(B26,'Design the AEF circuit'!$H$20*0.000000000001) ) ) -> 0.0582080365019804+16.7997576595645j
A27: ='Frequency vector'!G27 -> 135.3887232 | B27: =COMPLEX(0,2*PI()*'Frequency vector'!G27,"j") -> 850.672436395985j | C27: =IF(IF(CMdata=1,IMABS(K27),'CM choke'!C31)=0, C26, IF(CMdata=1,IMABS(K27),'CM choke'!C31)) -> 11.4771147 | D27: =IF(IF(CMdata=1,DEGREES(IMARGUMENT(K27)),'CM choke'!D31)=0, D26, IF(CMdata=1,DEGREES(IMARGUMENT(K27)),'CM choke'!D31)) -> 91.26988959 | E27: =IF(IF(CMdata=1,IMABS(L27),'CM choke'!E31)=0, E26, IF(CMdata=1,IMABS(L27),'CM choke'!E31)) -> 11.4771147 | F27: =IF(IF(CMdata=1,DEGREES(IMARGUMENT(L27)),'CM choke'!F31)=0, F26, IF(CMdata=1,DEGREES(IMARGUMENT(L27)),'CM choke'!F31)) -> 91.26988959 | G27: -0.2543551265 | H27: 11.47429585 | I27: -0.2543551265 | J27: 11.47429585 | K27: =IF(CMdata=1, IF(Lcm1_core=1, IMDIV(1,IMSUM(IMDIV(1,IMPRODUCT(B27,'Design the AEF circuit'!$G$18*0.001)),IMDIV(1,'Design the AEF circuit'!$G$19*1000),IMPRODUCT(B27,'Design the AEF circuit'!$G$20*0.000000000001))), O27),COMPLEX(G27,H27,"j")) -> -0.254355126526319+11.4742958489173j | L27: =IF(CMdata=1, IF(Lcm2_core=1, IMDIV(1, IMSUM(IMDIV(1,IMPRODUCT(B27,'Design the AEF circuit'!$H$18*0.001)), IMDIV(1,'Design the AEF circuit'!$H$19*1000), IMPRODUCT(B27,'Design the AEF circuit'!$H$20*0.000000000001))), Q27), COMPLEX(I27,J27,"j")) -> -0.254355126526319+11.4742958489173j | N27: =IMSUM(IMDIV(1,IMSUM(IMDIV(1,IMPRODUCT(B27,'Design the AEF circuit'!$G$18*0.001)),IMDIV(1,'Design the AEF circuit'!$G$19*1000))), IMDIV(1,IMSUM(IMDIV(1,IMPRODUCT(B27,'Design the AEF circuit'!$G$21*0.001)),IMDIV(1,'Design the AEF circuit'!$G$22*1000))), IMDIV(1,IMSUM(IMDIV(1,IMPRODUCT(B27,'Design the AEF circuit'!$G$23*0.001)),IMDIV(1,'Design the AEF circuit'!$G$24*1000))) ) -> 0.0596963309119096+17.0131726917883j | O27: =IMDIV(1, IMSUM( IMDIV(1, N27), IMPRODUCT(B27,'Design the AEF circuit'!$G$20*0.000000000001))) -> 0.0596963689263143+17.0131781086837j | P27: =IMSUM(IMDIV(1,IMSUM(IMDIV(1,IMPRODUCT(B27,'Design the AEF circuit'!$H$18*0.001)),IMDIV(1,'Design the AEF circuit'!$H$19*1000))), IMDIV(1,IMSUM(IMDIV(1,IMPRODUCT(B27,'Design the AEF circuit'!$H$21*0.001)),IMDIV(1,'Design the AEF circuit'!$H$22*1000))), IMDIV(1,IMSUM(IMDIV(1,IMPRODUCT(B27,'Design the AEF circuit'!$H$23*0.001)),IMDIV(1,'Design the AEF circuit'!$H$24*1000))) ) -> 0.0596963309119096+17.0131726917883j | Q27: =IMDIV(1, IMSUM( IMDIV(1, P27), IMPRODUCT(B27,'Design the AEF circuit'!$H$20*0.000000000001) ) ) -> 0.0596963689263143+17.0131781086837j
A28: ='Frequency vector'!G28 -> 137.1087263 | B28: =COMPLEX(0,2*PI()*'Frequency vector'!G28,"j") -> 861.479534723298j | C28: =IF(IF(CMdata=1,IMABS(K28),'CM choke'!C32)=0, C27, IF(CMdata=1,IMABS(K28),'CM choke'!C32)) -> 11.57244339 | D28: =IF(IF(CMdata=1,DEGREES(IMARGUMENT(K28)),'CM choke'!D32)=0, D27, IF(CMdata=1,DEGREES(IMARGUMENT(K28)),'CM choke'!D32)) -> 91.35979287 | E28: =IF(IF(CMdata=1,IMABS(L28),'CM choke'!E32)=0, E27, IF(CMdata=1,IMABS(L28),'CM choke'!E32)) -> 11.57244339 | F28: =IF(IF(CMdata=1,DEGREES(IMARGUMENT(L28)),'CM choke'!F32)=0, F27, IF(CMdata=1,DEGREES(IMARGUMENT(L28)),'CM choke'!F32)) -> 91.35979287 | G28: -0.2746214292 | H28: 11.56918446 | I28: -0.2746214292 | J28: 11.56918446 | K28: =IF(CMdata=1, IF(Lcm1_core=1, IMDIV(1,IMSUM(IMDIV(1,IMPRODUCT(B28,'Design the AEF circuit'!$G$18*0.001)),IMDIV(1,'Design the AEF circuit'!$G$19*1000),IMPRODUCT(B28,'Design the AEF circuit'!$G$20*0.000000000001))), O28),COMPLEX(G28,H28,"j")) -> -0.274621429181425+11.5691844630985j | L28: =IF(CMdata=1, IF(Lcm2_core=1, IMDIV(1, IMSUM(IMDIV(1,IMPRODUCT(B28,'Design the AEF circuit'!$H$18*0.001)), IMDIV(1,'Design the AEF circuit'!$H$19*1000), IMPRODUCT(B28,'Design the AEF circuit'!$H$20*0.000000000001))), Q28), COMPLEX(I28,J28,"j")) -> -0.274621429181425+11.5691844630985j | N28: =IMSUM(IMDIV(1,IMSUM(IMDIV(1,IMPRODUCT(B28,'Design the AEF circuit'!$G$18*0.001)),IMDIV(1,'Design the AEF circuit'!$G$19*1000))), IMDIV(1,IMSUM(IMDIV(1,IMPRODUCT(B28,'Design the AEF circuit'!$G$21*0.001)),IMDIV(1,'Design the AEF circuit'!$G$22*1000))), IMDIV(1,IMSUM(IMDIV(1,IMPRODUCT(B28,'Design the AEF circuit'!$G$23*0.001)),IMDIV(1,'Design the AEF circuit'!$G$24*1000))) ) -> 0.0612227159524737+17.2293040038588j | O28: =IMDIV(1, IMSUM( IMDIV(1, N28), IMPRODUCT(B28,'Design the AEF circuit'!$G$20*0.000000000001))) -> 0.0612227559357318+17.2293096298335j | P28: =IMSUM(IMDIV(1,IMSUM(IMDIV(1,IMPRODUCT(B28,'Design the AEF circuit'!$H$18*0.001)),IMDIV(1,'Design the AEF circuit'!$H$19*1000))), IMDIV(1,IMSUM(IMDIV(1,IMPRODUCT(B28,'Design the AEF circuit'!$H$21*0.001)),IMDIV(1,'Design the AEF circuit'!$H$22*1000))), IMDIV(1,IMSUM(IMDIV(1,IMPRODUCT(B28,'Design the AEF circuit'!$H$23*0.001)),IMDIV(1,'Design the AEF circuit'!$H$24*1000))) ) -> 0.0612227159524737+17.2293040038588j | Q28: =IMDIV(1, IMSUM( IMDIV(1, P28), IMPRODUCT(B28,'Design the AEF circuit'!$H$20*0.000000000001) ) ) -> 0.0612227559357318+17.2293096298335j
A29: ='Frequency vector'!G29 -> 138.8505807 | B29: =COMPLEX(0,2*PI()*'Frequency vector'!G29,"j") -> 872.423928405744j | C29: =IF(IF(CMdata=1,IMABS(K29),'CM choke'!C33)=0, C28, IF(CMdata=1,IMABS(K29),'CM choke'!C33)) -> 11.741215 | D29: =IF(IF(CMdata=1,DEGREES(IMARGUMENT(K29)),'CM choke'!D33)=0, D28, IF(CMdata=1,DEGREES(IMARGUMENT(K29)),'CM choke'!D33)) -> 91.39509077 | E29: =IF(IF(CMdata=1,IMABS(L29),'CM choke'!E33)=0, E28, IF(CMdata=1,IMABS(L29),'CM choke'!E33)) -> 11.741215 | F29: =IF(IF(CMdata=1,DEGREES(IMARGUMENT(L29)),'CM choke'!F33)=0, F28, IF(CMdata=1,DEGREES(IMARGUMENT(L29)),'CM choke'!F33)) -> 91.39509077 | G29: -0.2858577421 | H29: 11.73773466 | I29: -0.2858577421 | J29: 11.73773466 | K29: =IF(CMdata=1, IF(Lcm1_core=1, IMDIV(1,IMSUM(IMDIV(1,IMPRODUCT(B29,'Design the AEF circuit'!$G$18*0.001)),IMDIV(1,'Design the AEF circuit'!$G$19*1000),IMPRODUCT(B29,'Design the AEF circuit'!$G$20*0.000000000001))), O29),COMPLEX(G29,H29,"j")) -> -0.285857742055073+11.7377346588856j | L29: =IF(CMdata=1, IF(Lcm2_core=1, IMDIV(1, IMSUM(IMDIV(1,IMPRODUCT(B29,'Design the AEF circuit'!$H$18*0.001)), IMDIV(1,'Design the AEF circuit'!$H$19*1000), IMPRODUCT(B29,'Design the AEF circuit'!$H$20*0.000000000001))), Q29), COMPLEX(I29,J29,"j")) -> -0.285857742055073+11.7377346588856j | N29: =IMSUM(IMDIV(1,IMSUM(IMDIV(1,IMPRODUCT(B29,'Design the AEF circuit'!$G$18*0.001)),IMDIV(1,'Design the AEF circuit'!$G$19*1000))), IMDIV(1,IMSUM(IMDIV(1,IMPRODUCT(B29,'Design the AEF circuit'!$G$21*0.001)),IMDIV(1,'Design the AEF circuit'!$G$22*1000))), IMDIV(1,IMSUM(IMDIV(1,IMPRODUCT(B29,'Design the AEF circuit'!$G$23*0.001)),IMDIV(1,'Design the AEF circuit'!$G$24*1000))) ) -> 0.0627881284336994+17.4481808117942j | O29: =IMDIV(1, IMSUM( IMDIV(1, N29), IMPRODUCT(B29,'Design the AEF circuit'!$G$20*0.000000000001))) -> 0.0627881704877809+17.4481866549178j | P29: =IMSUM(IMDIV(1,IMSUM(IMDIV(1,IMPRODUCT(B29,'Design the AEF circuit'!$H$18*0.001)),IMDIV(1,'Design the AEF circuit'!$H$19*1000))), IMDIV(1,IMSUM(IMDIV(1,IMPRODUCT(B29,'Design the AEF circuit'!$H$21*0.001)),IMDIV(1,'Design the AEF circuit'!$H$22*1000))), IMDIV(1,IMSUM(IMDIV(1,IMPRODUCT(B29,'Design the AEF circuit'!$H$23*0.001)),IMDIV(1,'Design the AEF circuit'!$H$24*1000))) ) -> 0.0627881284336994+17.4481808117942j | Q29: =IMDIV(1, IMSUM( IMDIV(1, P29), IMPRODUCT(B29,'Design the AEF circuit'!$H$20*0.000000000001) ) ) -> 0.0627881704877809+17.4481866549178j
A30: ='Frequency vector'!G30 -> 140.6145639 | B30: =COMPLEX(0,2*PI()*'Frequency vector'!G30,"j") -> 883.507361668646j | C30: =IF(IF(CMdata=1,IMABS(K30),'CM choke'!C34)=0, C29, IF(CMdata=1,IMABS(K30),'CM choke'!C34)) -> 12.08046719 | D30: =IF(IF(CMdata=1,DEGREES(IMARGUMENT(K30)),'CM choke'!D34)=0, D29, IF(CMdata=1,DEGREES(IMARGUMENT(K30)),'CM choke'!D34)) -> 90.50853569 | E30: =IF(IF(CMdata=1,IMABS(L30),'CM choke'!E34)=0, E29, IF(CMdata=1,IMABS(L30),'CM choke'!E34)) -> 12.08046719 | F30: =IF(IF(CMdata=1,DEGREES(IMARGUMENT(L30)),'CM choke'!F34)=0, F29, IF(CMdata=1,DEGREES(IMARGUMENT(L30)),'CM choke'!F34)) -> 90.50853569 | G30: -0.107220254 | H30: 12.07999137 | I30: -0.107220254 | J30: 12.07999137 | K30: =IF(CMdata=1, IF(Lcm1_core=1, IMDIV(1,IMSUM(IMDIV(1,IMPRODUCT(B30,'Design the AEF circuit'!$G$18*0.001)),IMDIV(1,'Design the AEF circuit'!$G$19*1000),IMPRODUCT(B30,'Design the AEF circuit'!$G$20*0.000000000001))), O30),COMPLEX(G30,H30,"j")) -> -0.107220254049147+12.0799913650836j | L30: =IF(CMdata=1, IF(Lcm2_core=1, IMDIV(1, IMSUM(IMDIV(1,IMPRODUCT(B30,'Design the AEF circuit'!$H$18*0.001)), IMDIV(1,'Design the AEF circuit'!$H$19*1000), IMPRODUCT(B30,'Design the AEF circuit'!$H$20*0.000000000001))), Q30), COMPLEX(I30,J30,"j")) -> -0.107220254049147+12.0799913650836j | N30: =IMSUM(IMDIV(1,IMSUM(IMDIV(1,IMPRODUCT(B30,'Design the AEF circuit'!$G$18*0.001)),IMDIV(1,'Design the AEF circuit'!$G$19*1000))), IMDIV(1,IMSUM(IMDIV(1,IMPRODUCT(B30,'Design the AEF circuit'!$G$21*0.001)),IMDIV(1,'Design the AEF circuit'!$G$22*1000))), IMDIV(1,IMSUM(IMDIV(1,IMPRODUCT(B30,'Design the AEF circuit'!$G$23*0.001)),IMDIV(1,'Design the AEF circuit'!$G$24*1000))) ) -> 0.0643935661815341+17.6698379842283j | O30: =IMDIV(1, IMSUM( IMDIV(1, N30), IMPRODUCT(B30,'Design the AEF circuit'!$G$20*0.000000000001))) -> 0.0643936104136913+17.6698440528822j | P30: =IMSUM(IMDIV(1,IMSUM(IMDIV(1,IMPRODUCT(B30,'Design the AEF circuit'!$H$18*0.001)),IMDIV(1,'Design the AEF circuit'!$H$19*1000))), IMDIV(1,IMSUM(IMDIV(1,IMPRODUCT(B30,'Design the AEF circuit'!$H$21*0.001)),IMDIV(1,'Design the AEF circuit'!$H$22*1000))), IMDIV(1,IMSUM(IMDIV(1,IMPRODUCT(B30,'Design the AEF circuit'!$H$23*0.001)),IMDIV(1,'Design the AEF circuit'!$H$24*1000))) ) -> 0.0643935661815341+17.6698379842283j | Q30: =IMDIV(1, IMSUM( IMDIV(1, P30), IMPRODUCT(B30,'Design the AEF circuit'!$H$20*0.000000000001) ) ) -> 0.0643936104136913+17.6698440528822j
A31: ='Frequency vector'!G31 -> 142.400957 | B31: =COMPLEX(0,2*PI()*'Frequency vector'!G31,"j") -> 894.731600896275j | C31: =IF(IF(CMdata=1,IMABS(K31),'CM choke'!C35)=0, C30, IF(CMdata=1,IMABS(K31),'CM choke'!C35)) -> 11.7491173 | D31: =IF(IF(CMdata=1,DEGREES(IMARGUMENT(K31)),'CM choke'!D35)=0, D30, IF(CMdata=1,DEGREES(IMARGUMENT(K31)),'CM choke'!D35)) -> 90.25011304 | E31: =IF(IF(CMdata=1,IMABS(L31),'CM choke'!E35)=0, E30, IF(CMdata=1,IMABS(L31),'CM choke'!E35)) -> 11.7491173 | F31: =IF(IF(CMdata=1,DEGREES(IMARGUMENT(L31)),'CM choke'!F35)=0, F30, IF(CMdata=1,DEGREES(IMARGUMENT(L31)),'CM choke'!F35)) -> 90.25011304 | G31: -0.05128821274 | H31: 11.74900536 | I31: -0.05128821274 | J31: 11.74900536 | K31: =IF(CMdata=1, IF(Lcm1_core=1, IMDIV(1,IMSUM(IMDIV(1,IMPRODUCT(B31,'Design the AEF circuit'!$G$18*0.001)),IMDIV(1,'Design the AEF circuit'!$G$19*1000),IMPRODUCT(B31,'Design the AEF circuit'!$G$20*0.000000000001))), O31),COMPLEX(G31,H31,"j")) -> -0.0512882127409116+11.749005356907j | L31: =IF(CMdata=1, IF(Lcm2_core=1, IMDIV(1, IMSUM(IMDIV(1,IMPRODUCT(B31,'Design the AEF circuit'!$H$18*0.001)), IMDIV(1,'Design the AEF circuit'!$H$19*1000), IMPRODUCT(B31,'Design the AEF circuit'!$H$20*0.000000000001))), Q31), COMPLEX(I31,J31,"j")) -> -0.0512882127409116+11.749005356907j | N31: =IMSUM(IMDIV(1,IMSUM(IMDIV(1,IMPRODUCT(B31,'Design the AEF circuit'!$G$18*0.001)),IMDIV(1,'Design the AEF circuit'!$G$19*1000))), IMDIV(1,IMSUM(IMDIV(1,IMPRODUCT(B31,'Design the AEF circuit'!$G$21*0.001)),IMDIV(1,'Design the AEF circuit'!$G$22*1000))), IMDIV(1,IMSUM(IMDIV(1,IMPRODUCT(B31,'Design the AEF circuit'!$G$23*0.001)),IMDIV(1,'Design the AEF circuit'!$G$24*1000))) ) -> 0.0660400525310972+17.8943108323616j | O31: =IMDIV(1, IMSUM( IMDIV(1, N31), IMPRODUCT(B31,'Design the AEF circuit'!$G$20*0.000000000001))) -> 0.0660400990541354+17.8943171352504j | P31: =IMSUM(IMDIV(1,IMSUM(IMDIV(1,IMPRODUCT(B31,'Design the AEF circuit'!$H$18*0.001)),IMDIV(1,'Design the AEF circuit'!$H$19*1000))), IMDIV(1,IMSUM(IMDIV(1,IMPRODUCT(B31,'Design the AEF circuit'!$H$21*0.001)),IMDIV(1,'Design the AEF circuit'!$H$22*1000))), IMDIV(1,IMSUM(IMDIV(1,IMPRODUCT(B31,'Design the AEF circuit'!$H$23*0.001)),IMDIV(1,'Design the AEF circuit'!$H$24*1000))) ) -> 0.0660400525310972+17.8943108323616j | Q31: =IMDIV(1, IMSUM( IMDIV(1, P31), IMPRODUCT(B31,'Design the AEF circuit'!$H$20*0.000000000001) ) ) -> 0.0660400990541354+17.8943171352504j
A32: ='Frequency vector'!G32 -> 144.2100448 | B32: =COMPLEX(0,2*PI()*'Frequency vector'!G32,"j") -> 906.098434913384j | C32: =IF(IF(CMdata=1,IMABS(K32),'CM choke'!C36)=0, C31, IF(CMdata=1,IMABS(K32),'CM choke'!C36)) -> 12.30362369 | D32: =IF(IF(CMdata=1,DEGREES(IMARGUMENT(K32)),'CM choke'!D36)=0, D31, IF(CMdata=1,DEGREES(IMARGUMENT(K32)),'CM choke'!D36)) -> 91.15076172 | E32: =IF(IF(CMdata=1,IMABS(L32),'CM choke'!E36)=0, E31, IF(CMdata=1,IMABS(L32),'CM choke'!E36)) -> 12.30362369 | F32: =IF(IF(CMdata=1,DEGREES(IMARGUMENT(L32)),'CM choke'!F36)=0, F31, IF(CMdata=1,DEGREES(IMARGUMENT(L32)),'CM choke'!F36)) -> 91.15076172 | G32: -0.2470965111 | H32: 12.30114219 | I32: -0.2470965111 | J32: 12.30114219 | K32: =IF(CMdata=1, IF(Lcm1_core=1, IMDIV(1,IMSUM(IMDIV(1,IMPRODUCT(B32,'Design the AEF circuit'!$G$18*0.001)),IMDIV(1,'Design the AEF circuit'!$G$19*1000),IMPRODUCT(B32,'Design the AEF circuit'!$G$20*0.000000000001))), O32),COMPLEX(G32,H32,"j")) -> -0.24709651109202+12.3011421881431j | L32: =IF(CMdata=1, IF(Lcm2_core=1, IMDIV(1, IMSUM(IMDIV(1,IMPRODUCT(B32,'Design the AEF circuit'!$H$18*0.001)), IMDIV(1,'Design the AEF circuit'!$H$19*1000), IMPRODUCT(B32,'Design the AEF circuit'!$H$20*0.000000000001))), Q32), COMPLEX(I32,J32,"j")) -> -0.24709651109202+12.3011421881431j | N32: =IMSUM(IMDIV(1,IMSUM(IMDIV(1,IMPRODUCT(B32,'Design the AEF circuit'!$G$18*0.001)),IMDIV(1,'Design the AEF circuit'!$G$19*1000))), IMDIV(1,IMSUM(IMDIV(1,IMPRODUCT(B32,'Design the AEF circuit'!$G$21*0.001)),IMDIV(1,'Design the AEF circuit'!$G$22*1000))), IMDIV(1,IMSUM(IMDIV(1,IMPRODUCT(B32,'Design the AEF circuit'!$G$23*0.001)),IMDIV(1,'Design the AEF circuit'!$G$24*1000))) ) -> 0.0677286369786959+18.1216351155676j | O32: =IMDIV(1, IMSUM( IMDIV(1, N32), IMPRODUCT(B32,'Design the AEF circuit'!$G$20*0.000000000001))) -> 0.0677286859112641+18.1216416617321j | P32: =IMSUM(IMDIV(1,IMSUM(IMDIV(1,IMPRODUCT(B32,'Design the AEF circuit'!$H$18*0.001)),IMDIV(1,'Design the AEF circuit'!$H$19*1000))), IMDIV(1,IMSUM(IMDIV(1,IMPRODUCT(B32,'Design the AEF circuit'!$H$21*0.001)),IMDIV(1,'Design the AEF circuit'!$H$22*1000))), IMDIV(1,IMSUM(IMDIV(1,IMPRODUCT(B32,'Design the AEF circuit'!$H$23*0.001)),IMDIV(1,'Design the AEF circuit'!$H$24*1000))) ) -> 0.0677286369786959+18.1216351155676j | Q32: =IMDIV(1, IMSUM( IMDIV(1, P32), IMPRODUCT(B32,'Design the AEF circuit'!$H$20*0.000000000001) ) ) -> 0.0677286859112641+18.1216416617321j
A33: ='Frequency vector'!G33 -> 146.0421156 | B33: =COMPLEX(0,2*PI()*'Frequency vector'!G33,"j") -> 917.609675270274j | C33: =IF(IF(CMdata=1,IMABS(K33),'CM choke'!C37)=0, C32, IF(CMdata=1,IMABS(K33),'CM choke'!C37)) -> 12.29237607 | D33: =IF(IF(CMdata=1,DEGREES(IMARGUMENT(K33)),'CM choke'!D37)=0, D32, IF(CMdata=1,DEGREES(IMARGUMENT(K33)),'CM choke'!D37)) -> 90.82555767 | E33: =IF(IF(CMdata=1,IMABS(L33),'CM choke'!E37)=0, E32, IF(CMdata=1,IMABS(L33),'CM choke'!E37)) -> 12.29237607 | F33: =IF(IF(CMdata=1,DEGREES(IMARGUMENT(L33)),'CM choke'!F37)=0, F32, IF(CMdata=1,DEGREES(IMARGUMENT(L33)),'CM choke'!F37)) -> 90.82555767 | G33: -0.1771110242 | H33: 12.29110008 | I33: -0.1771110242 | J33: 12.29110008 | K33: =IF(CMdata=1, IF(Lcm1_core=1, IMDIV(1,IMSUM(IMDIV(1,IMPRODUCT(B33,'Design the AEF circuit'!$G$18*0.001)),IMDIV(1,'Design the AEF circuit'!$G$19*1000),IMPRODUCT(B33,'Design the AEF circuit'!$G$20*0.000000000001))), O33),COMPLEX(G33,H33,"j")) -> -0.177111024184899+12.2911000755129j | L33: =IF(CMdata=1, IF(Lcm2_core=1, IMDIV(1, IMSUM(IMDIV(1,IMPRODUCT(B33,'Design the AEF circuit'!$H$18*0.001)), IMDIV(1,'Design the AEF circuit'!$H$19*1000), IMPRODUCT(B33,'Design the AEF circuit'!$H$20*0.000000000001))), Q33), COMPLEX(I33,J33,"j")) -> -0.177111024184899+12.2911000755129j | N33: =IMSUM(IMDIV(1,IMSUM(IMDIV(1,IMPRODUCT(B33,'Design the AEF circuit'!$G$18*0.001)),IMDIV(1,'Design the AEF circuit'!$G$19*1000))), IMDIV(1,IMSUM(IMDIV(1,IMPRODUCT(B33,'Design the AEF circuit'!$G$21*0.001)),IMDIV(1,'Design the AEF circuit'!$G$22*1000))), IMDIV(1,IMSUM(IMDIV(1,IMPRODUCT(B33,'Design the AEF circuit'!$G$23*0.001)),IMDIV(1,'Design the AEF circuit'!$G$24*1000))) ) -> 0.0694603958504816+18.3518470470703j | O33: =IMDIV(1, IMSUM( IMDIV(1, N33), IMPRODUCT(B33,'Design the AEF circuit'!$G$20*0.000000000001))) -> 0.0694604473173729+18.3518538459001j | P33: =IMSUM(IMDIV(1,IMSUM(IMDIV(1,IMPRODUCT(B33,'Design the AEF circuit'!$H$18*0.001)),IMDIV(1,'Design the AEF circuit'!$H$19*1000))), IMDIV(1,IMSUM(IMDIV(1,IMPRODUCT(B33,'Design the AEF circuit'!$H$21*0.001)),IMDIV(1,'Design the AEF circuit'!$H$22*1000))), IMDIV(1,IMSUM(IMDIV(1,IMPRODUCT(B33,'Design the AEF circuit'!$H$23*0.001)),IMDIV(1,'Design the AEF circuit'!$H$24*1000))) ) -> 0.0694603958504816+18.3518470470703j | Q33: =IMDIV(1, IMSUM( IMDIV(1, P33), IMPRODUCT(B33,'Design the AEF circuit'!$H$20*0.000000000001) ) ) -> 0.0694604473173729+18.3518538459001j
A34: ='Frequency vector'!G34 -> 147.8974614 | B34: =COMPLEX(0,2*PI()*'Frequency vector'!G34,"j") -> 929.267156531517j | C34: =IF(IF(CMdata=1,IMABS(K34),'CM choke'!C38)=0, C33, IF(CMdata=1,IMABS(K34),'CM choke'!C38)) -> 12.47967063 | D34: =IF(IF(CMdata=1,DEGREES(IMARGUMENT(K34)),'CM choke'!D38)=0, D33, IF(CMdata=1,DEGREES(IMARGUMENT(K34)),'CM choke'!D38)) -> 90.13617331 | E34: =IF(IF(CMdata=1,IMABS(L34),'CM choke'!E38)=0, E33, IF(CMdata=1,IMABS(L34),'CM choke'!E38)) -> 12.47967063 | F34: =IF(IF(CMdata=1,DEGREES(IMARGUMENT(L34)),'CM choke'!F38)=0, F33, IF(CMdata=1,DEGREES(IMARGUMENT(L34)),'CM choke'!F38)) -> 90.13617331 | G34: -0.02966006377 | H34: 12.47963538 | I34: -0.02966006377 | J34: 12.47963538 | K34: =IF(CMdata=1, IF(Lcm1_core=1, IMDIV(1,IMSUM(IMDIV(1,IMPRODUCT(B34,'Design the AEF circuit'!$G$18*0.001)),IMDIV(1,'Design the AEF circuit'!$G$19*1000),IMPRODUCT(B34,'Design the AEF circuit'!$G$20*0.000000000001))), O34),COMPLEX(G34,H34,"j")) -> -0.0296600637655462+12.4796353849063j | L34: =IF(CMdata=1, IF(Lcm2_core=1, IMDIV(1, IMSUM(IMDIV(1,IMPRODUCT(B34,'Design the AEF circuit'!$H$18*0.001)), IMDIV(1,'Design the AEF circuit'!$H$19*1000), IMPRODUCT(B34,'Design the AEF circuit'!$H$20*0.000000000001))), Q34), COMPLEX(I34,J34,"j")) -> -0.0296600637655462+12.4796353849063j | N34: =IMSUM(IMDIV(1,IMSUM(IMDIV(1,IMPRODUCT(B34,'Design the AEF circuit'!$G$18*0.001)),IMDIV(1,'Design the AEF circuit'!$G$19*1000))), IMDIV(1,IMSUM(IMDIV(1,IMPRODUCT(B34,'Design the AEF circuit'!$G$21*0.001)),IMDIV(1,'Design the AEF circuit'!$G$22*1000))), IMDIV(1,IMSUM(IMDIV(1,IMPRODUCT(B34,'Design the AEF circuit'!$G$23*0.001)),IMDIV(1,'Design the AEF circuit'!$G$24*1000))) ) -> 0.071236432988197+18.5849832996926j | O34: =IMDIV(1, IMSUM( IMDIV(1, N34), IMPRODUCT(B34,'Design the AEF circuit'!$G$20*0.000000000001))) -> 0.0712364871206679+18.5849903609396j | P34: =IMSUM(IMDIV(1,IMSUM(IMDIV(1,IMPRODUCT(B34,'Design the AEF circuit'!$H$18*0.001)),IMDIV(1,'Design the AEF circuit'!$H$19*1000))), IMDIV(1,IMSUM(IMDIV(1,IMPRODUCT(B34,'Design the AEF circuit'!$H$21*0.001)),IMDIV(1,'Design the AEF circuit'!$H$22*1000))), IMDIV(1,IMSUM(IMDIV(1,IMPRODUCT(B34,'Design the AEF circuit'!$H$23*0.001)),IMDIV(1,'Design the AEF circuit'!$H$24*1000))) ) -> 0.071236432988197+18.5849832996926j | Q34: =IMDIV(1, IMSUM( IMDIV(1, P34), IMPRODUCT(B34,'Design the AEF circuit'!$H$20*0.000000000001) ) ) -> 0.0712364871206679+18.5849903609396j
A35: ='Frequency vector'!G35 -> 149.7763778 | B35: =COMPLEX(0,2*PI()*'Frequency vector'!G35,"j") -> 941.072736568325j | C35: =IF(IF(CMdata=1,IMABS(K35),'CM choke'!C39)=0, C34, IF(CMdata=1,IMABS(K35),'CM choke'!C39)) -> 12.73637714 | D35: =IF(IF(CMdata=1,DEGREES(IMARGUMENT(K35)),'CM choke'!D39)=0, D34, IF(CMdata=1,DEGREES(IMARGUMENT(K35)),'CM choke'!D39)) -> 90.20735322 | E35: =IF(IF(CMdata=1,IMABS(L35),'CM choke'!E39)=0, E34, IF(CMdata=1,IMABS(L35),'CM choke'!E39)) -> 12.73637714 | F35: =IF(IF(CMdata=1,DEGREES(IMARGUMENT(L35)),'CM choke'!F39)=0, F34, IF(CMdata=1,DEGREES(IMARGUMENT(L35)),'CM choke'!F39)) -> 90.20735322 | G35: -0.04609280161 | H35: 12.73629374 | I35: -0.04609280161 | J35: 12.73629374 | K35: =IF(CMdata=1, IF(Lcm1_core=1, IMDIV(1,IMSUM(IMDIV(1,IMPRODUCT(B35,'Design the AEF circuit'!$G$18*0.001)),IMDIV(1,'Design the AEF circuit'!$G$19*1000),IMPRODUCT(B35,'Design the AEF circuit'!$G$20*0.000000000001))), O35),COMPLEX(G35,H35,"j")) -> -0.0460928016094547+12.7362937390581j | L35: =IF(CMdata=1, IF(Lcm2_core=1, IMDIV(1, IMSUM(IMDIV(1,IMPRODUCT(B35,'Design the AEF circuit'!$H$18*0.001)), IMDIV(1,'Design the AEF circuit'!$H$19*1000), IMPRODUCT(B35,'Design the AEF circuit'!$H$20*0.000000000001))), Q35), COMPLEX(I35,J35,"j")) -> -0.0460928016094547+12.7362937390581j | N35: =IMSUM(IMDIV(1,IMSUM(IMDIV(1,IMPRODUCT(B35,'Design the AEF circuit'!$G$18*0.001)),IMDIV(1,'Design the AEF circuit'!$G$19*1000))), IMDIV(1,IMSUM(IMDIV(1,IMPRODUCT(B35,'Design the AEF circuit'!$G$21*0.001)),IMDIV(1,'Design the AEF circuit'!$G$22*1000))), IMDIV(1,IMSUM(IMDIV(1,IMPRODUCT(B35,'Design the AEF circuit'!$G$23*0.001)),IMDIV(1,'Design the AEF circuit'!$G$24*1000))) ) -> 0.0730578804524448+18.8210810116776j | O35: =IMDIV(1, IMSUM( IMDIV(1, N35), IMPRODUCT(B35,'Design the AEF circuit'!$G$20*0.000000000001))) -> 0.0730579373885502+18.8210883454703j | P35: =IMSUM(IMDIV(1,IMSUM(IMDIV(1,IMPRODUCT(B35,'Design the AEF circuit'!$H$18*0.001)),IMDIV(1,'Design the AEF circuit'!$H$19*1000))), IMDIV(1,IMSUM(IMDIV(1,IMPRODUCT(B35,'Design the AEF circuit'!$H$21*0.001)),IMDIV(1,'Design the AEF circuit'!$H$22*1000))), IMDIV(1,IMSUM(IMDIV(1,IMPRODUCT(B35,'Design the AEF circuit'!$H$23*0.001)),IMDIV(1,'Design the AEF circuit'!$H$24*1000))) ) -> 0.0730578804524448+18.8210810116776j | Q35: =IMDIV(1, IMSUM( IMDIV(1, P35), IMPRODUCT(B35,'Design the AEF circuit'!$H$20*0.000000000001) ) ) -> 0.0730579373885502+18.8210883454703j
A36: ='Frequency vector'!G36 -> 151.6791644 | B36: =COMPLEX(0,2*PI()*'Frequency vector'!G36,"j") -> 953.028296854652j | C36: =IF(IF(CMdata=1,IMABS(K36),'CM choke'!C40)=0, C35, IF(CMdata=1,IMABS(K36),'CM choke'!C40)) -> 12.75117223 | D36: =IF(IF(CMdata=1,DEGREES(IMARGUMENT(K36)),'CM choke'!D40)=0, D35, IF(CMdata=1,DEGREES(IMARGUMENT(K36)),'CM choke'!D40)) -> 90.17116217 | E36: =IF(IF(CMdata=1,IMABS(L36),'CM choke'!E40)=0, E35, IF(CMdata=1,IMABS(L36),'CM choke'!E40)) -> 12.75117223 | F36: =IF(IF(CMdata=1,DEGREES(IMARGUMENT(L36)),'CM choke'!F40)=0, F35, IF(CMdata=1,DEGREES(IMARGUMENT(L36)),'CM choke'!F40)) -> 90.17116217 | G36: -0.03809207346 | H36: 12.75111533 | I36: -0.03809207346 | J36: 12.75111533 | K36: =IF(CMdata=1, IF(Lcm1_core=1, IMDIV(1,IMSUM(IMDIV(1,IMPRODUCT(B36,'Design the AEF circuit'!$G$18*0.001)),IMDIV(1,'Design the AEF circuit'!$G$19*1000),IMPRODUCT(B36,'Design the AEF circuit'!$G$20*0.000000000001))), O36),COMPLEX(G36,H36,"j")) -> -0.0380920734606502+12.7511153305204j | L36: =IF(CMdata=1, IF(Lcm2_core=1, IMDIV(1, IMSUM(IMDIV(1,IMPRODUCT(B36,'Design the AEF circuit'!$H$18*0.001)), IMDIV(1,'Design the AEF circuit'!$H$19*1000), IMPRODUCT(B36,'Design the AEF circuit'!$H$20*0.000000000001))), Q36), COMPLEX(I36,J36,"j")) -> -0.0380920734606502+12.7511153305204j | N36: =IMSUM(IMDIV(1,IMSUM(IMDIV(1,IMPRODUCT(B36,'Design the AEF circuit'!$G$18*0.001)),IMDIV(1,'Design the AEF circuit'!$G$19*1000))), IMDIV(1,IMSUM(IMDIV(1,IMPRODUCT(B36,'Design the AEF circuit'!$G$21*0.001)),IMDIV(1,'Design the AEF circuit'!$G$22*1000))), IMDIV(1,IMSUM(IMDIV(1,IMPRODUCT(B36,'Design the AEF circuit'!$G$23*0.001)),IMDIV(1,'Design the AEF circuit'!$G$24*1000))) ) -> 0.0749258992439196+19.0601777925826j | O36: =IMDIV(1, IMSUM( IMDIV(1, N36), IMPRODUCT(B36,'Design the AEF circuit'!$G$20*0.000000000001))) -> 0.0749259591288629+19.0601854094402j | P36: =IMSUM(IMDIV(1,IMSUM(IMDIV(1,IMPRODUCT(B36,'Design the AEF circuit'!$H$18*0.001)),IMDIV(1,'Design the AEF circuit'!$H$19*1000))), IMDIV(1,IMSUM(IMDIV(1,IMPRODUCT(B36,'Design the AEF circuit'!$H$21*0.001)),IMDIV(1,'Design the AEF circuit'!$H$22*1000))), IMDIV(1,IMSUM(IMDIV(1,IMPRODUCT(B36,'Design the AEF circuit'!$H$23*0.001)),IMDIV(1,'Design the AEF circuit'!$H$24*1000))) ) -> 0.0749258992439196+19.0601777925826j | Q36: =IMDIV(1, IMSUM( IMDIV(1, P36), IMPRODUCT(B36,'Design the AEF circuit'!$H$20*0.000000000001) ) ) -> 0.0749259591288629+19.0601854094402j
A37: ='Frequency vector'!G37 -> 153.6061242 | B37: =COMPLEX(0,2*PI()*'Frequency vector'!G37,"j") -> 965.135742767038j | C37: =IF(IF(CMdata=1,IMABS(K37),'CM choke'!C41)=0, C36, IF(CMdata=1,IMABS(K37),'CM choke'!C41)) -> 12.92844773 | D37: =IF(IF(CMdata=1,DEGREES(IMARGUMENT(K37)),'CM choke'!D41)=0, D36, IF(CMdata=1,DEGREES(IMARGUMENT(K37)),'CM choke'!D41)) -> 90.64669368 | E37: =IF(IF(CMdata=1,IMABS(L37),'CM choke'!E41)=0, E36, IF(CMdata=1,IMABS(L37),'CM choke'!E41)) -> 12.92844773 | F37: =IF(IF(CMdata=1,DEGREES(IMARGUMENT(L37)),'CM choke'!F41)=0, F36, IF(CMdata=1,DEGREES(IMARGUMENT(L37)),'CM choke'!F41)) -> 90.64669368 | G37: -0.1459194375 | H37: 12.92762423 | I37: -0.1459194375 | J37: 12.92762423 | K37: =IF(CMdata=1, IF(Lcm1_core=1, IMDIV(1,IMSUM(IMDIV(1,IMPRODUCT(B37,'Design the AEF circuit'!$G$18*0.001)),IMDIV(1,'Design the AEF circuit'!$G$19*1000),IMPRODUCT(B37,'Design the AEF circuit'!$G$20*0.000000000001))), O37),COMPLEX(G37,H37,"j")) -> -0.145919437456388+12.9276242328466j | L37: =IF(CMdata=1, IF(Lcm2_core=1, IMDIV(1, IMSUM(IMDIV(1,IMPRODUCT(B37,'Design the AEF circuit'!$H$18*0.001)), IMDIV(1,'Design the AEF circuit'!$H$19*1000), IMPRODUCT(B37,'Design the AEF circuit'!$H$20*0.000000000001))), Q37), COMPLEX(I37,J37,"j")) -> -0.145919437456388+12.9276242328466j | N37: =IMSUM(IMDIV(1,IMSUM(IMDIV(1,IMPRODUCT(B37,'Design the AEF circuit'!$G$18*0.001)),IMDIV(1,'Design the AEF circuit'!$G$19*1000))), IMDIV(1,IMSUM(IMDIV(1,IMPRODUCT(B37,'Design the AEF circuit'!$G$21*0.001)),IMDIV(1,'Design the AEF circuit'!$G$22*1000))), IMDIV(1,IMSUM(IMDIV(1,IMPRODUCT(B37,'Design the AEF circuit'!$G$23*0.001)),IMDIV(1,'Design the AEF circuit'!$G$24*1000))) ) -> 0.0768416800430664+19.3023117292481j | O37: =IMDIV(1, IMSUM( IMDIV(1, N37), IMPRODUCT(B37,'Design the AEF circuit'!$G$20*0.000000000001))) -> 0.0768417430295726+19.3023196400958j | P37: =IMSUM(IMDIV(1,IMSUM(IMDIV(1,IMPRODUCT(B37,'Design the AEF circuit'!$H$18*0.001)),IMDIV(1,'Design the AEF circuit'!$H$19*1000))), IMDIV(1,IMSUM(IMDIV(1,IMPRODUCT(B37,'Design the AEF circuit'!$H$21*0.001)),IMDIV(1,'Design the AEF circuit'!$H$22*1000))), IMDIV(1,IMSUM(IMDIV(1,IMPRODUCT(B37,'Design the AEF circuit'!$H$23*0.001)),IMDIV(1,'Design the AEF circuit'!$H$24*1000))) ) -> 0.0768416800430664+19.3023117292481j | Q37: =IMDIV(1, IMSUM( IMDIV(1, P37), IMPRODUCT(B37,'Design the AEF circuit'!$H$20*0.000000000001) ) ) -> 0.0768417430295726+19.3023196400958j
A38: ='Frequency vector'!G38 -> 155.5575645 | B38: =COMPLEX(0,2*PI()*'Frequency vector'!G38,"j") -> 977.397003888272j | C38: =IF(IF(CMdata=1,IMABS(K38),'CM choke'!C42)=0, C37, IF(CMdata=1,IMABS(K38),'CM choke'!C42)) -> 13.24810786 | D38: =IF(IF(CMdata=1,DEGREES(IMARGUMENT(K38)),'CM choke'!D42)=0, D37, IF(CMdata=1,DEGREES(IMARGUMENT(K38)),'CM choke'!D42)) -> 91.49266087 | E38: =IF(IF(CMdata=1,IMABS(L38),'CM choke'!E42)=0, E37, IF(CMdata=1,IMABS(L38),'CM choke'!E42)) -> 13.24810786 | F38: =IF(IF(CMdata=1,DEGREES(IMARGUMENT(L38)),'CM choke'!F42)=0, F37, IF(CMdata=1,DEGREES(IMARGUMENT(L38)),'CM choke'!F42)) -> 91.49266087 | G38: -0.3450986365 | H38: 13.24361238 | I38: -0.3450986365 | J38: 13.24361238 | K38: =IF(CMdata=1, IF(Lcm1_core=1, IMDIV(1,IMSUM(IMDIV(1,IMPRODUCT(B38,'Design the AEF circuit'!$G$18*0.001)),IMDIV(1,'Design the AEF circuit'!$G$19*1000),IMPRODUCT(B38,'Design the AEF circuit'!$G$20*0.000000000001))), O38),COMPLEX(G38,H38,"j")) -> -0.345098636516555+13.2436123768295j | L38: =IF(CMdata=1, IF(Lcm2_core=1, IMDIV(1, IMSUM(IMDIV(1,IMPRODUCT(B38,'Design the AEF circuit'!$H$18*0.001)), IMDIV(1,'Design the AEF circuit'!$H$19*1000), IMPRODUCT(B38,'Design the AEF circuit'!$H$20*0.000000000001))), Q38), COMPLEX(I38,J38,"j")) -> -0.345098636516555+13.2436123768295j | N38: =IMSUM(IMDIV(1,IMSUM(IMDIV(1,IMPRODUCT(B38,'Design the AEF circuit'!$G$18*0.001)),IMDIV(1,'Design the AEF circuit'!$G$19*1000))), IMDIV(1,IMSUM(IMDIV(1,IMPRODUCT(B38,'Design the AEF circuit'!$G$21*0.001)),IMDIV(1,'Design the AEF circuit'!$G$22*1000))), IMDIV(1,IMSUM(IMDIV(1,IMPRODUCT(B38,'Design the AEF circuit'!$G$23*0.001)),IMDIV(1,'Design the AEF circuit'!$G$24*1000))) ) -> 0.0788064439686312+19.5475213918409j | O38: =IMDIV(1, IMSUM( IMDIV(1, N38), IMPRODUCT(B38,'Design the AEF circuit'!$G$20*0.000000000001))) -> 0.0788065102173345+19.5475296080258j | P38: =IMSUM(IMDIV(1,IMSUM(IMDIV(1,IMPRODUCT(B38,'Design the AEF circuit'!$H$18*0.001)),IMDIV(1,'Design the AEF circuit'!$H$19*1000))), IMDIV(1,IMSUM(IMDIV(1,IMPRODUCT(B38,'Design the AEF circuit'!$H$21*0.001)),IMDIV(1,'Design the AEF circuit'!$H$22*1000))), IMDIV(1,IMSUM(IMDIV(1,IMPRODUCT(B38,'Design the AEF circuit'!$H$23*0.001)),IMDIV(1,'Design the AEF circuit'!$H$24*1000))) ) -> 0.0788064439686312+19.5475213918409j | Q38: =IMDIV(1, IMSUM( IMDIV(1, P38), IMPRODUCT(B38,'Design the AEF circuit'!$H$20*0.000000000001) ) ) -> 0.0788065102173345+19.5475296080258j
A39: ='Frequency vector'!G39 -> 157.5337963 | B39: =COMPLEX(0,2*PI()*'Frequency vector'!G39,"j") -> 989.814034314924j | C39: =IF(IF(CMdata=1,IMABS(K39),'CM choke'!C43)=0, C38, IF(CMdata=1,IMABS(K39),'CM choke'!C43)) -> 13.46669322 | D39: =IF(IF(CMdata=1,DEGREES(IMARGUMENT(K39)),'CM choke'!D43)=0, D38, IF(CMdata=1,DEGREES(IMARGUMENT(K39)),'CM choke'!D43)) -> 89.66268357 | E39: =IF(IF(CMdata=1,IMABS(L39),'CM choke'!E43)=0, E38, IF(CMdata=1,IMABS(L39),'CM choke'!E43)) -> 13.46669322 | F39: =IF(IF(CMdata=1,DEGREES(IMARGUMENT(L39)),'CM choke'!F43)=0, F38, IF(CMdata=1,DEGREES(IMARGUMENT(L39)),'CM choke'!F43)) -> 89.66268357 | G39: 0.07928176635 | H39: 13.46645984 | I39: 0.07928176635 | J39: 13.46645984 | K39: =IF(CMdata=1, IF(Lcm1_core=1, IMDIV(1,IMSUM(IMDIV(1,IMPRODUCT(B39,'Design the AEF circuit'!$G$18*0.001)),IMDIV(1,'Design the AEF circuit'!$G$19*1000),IMPRODUCT(B39,'Design the AEF circuit'!$G$20*0.000000000001))), O39),COMPLEX(G39,H39,"j")) -> 0.0792817663546358+13.4664598446113j | L39: =IF(CMdata=1, IF(Lcm2_core=1, IMDIV(1, IMSUM(IMDIV(1,IMPRODUCT(B39,'Design the AEF circuit'!$H$18*0.001)), IMDIV(1,'Design the AEF circuit'!$H$19*1000), IMPRODUCT(B39,'Design the AEF circuit'!$H$20*0.000000000001))), Q39), COMPLEX(I39,J39,"j")) -> 0.0792817663546358+13.4664598446113j | N39: =IMSUM(IMDIV(1,IMSUM(IMDIV(1,IMPRODUCT(B39,'Design the AEF circuit'!$G$18*0.001)),IMDIV(1,'Design the AEF circuit'!$G$19*1000))), IMDIV(1,IMSUM(IMDIV(1,IMPRODUCT(B39,'Design the AEF circuit'!$G$21*0.001)),IMDIV(1,'Design the AEF circuit'!$G$22*1000))), IMDIV(1,IMSUM(IMDIV(1,IMPRODUCT(B39,'Design the AEF circuit'!$G$23*0.001)),IMDIV(1,'Design the AEF circuit'!$G$24*1000))) ) -> 0.0808214433556+19.7958458399739j | O39: =IMDIV(1, IMSUM( IMDIV(1, N39), IMPRODUCT(B39,'Design the AEF circuit'!$G$20*0.000000000001))) -> 0.0808215130354535+19.7958543732807j | P39: =IMSUM(IMDIV(1,IMSUM(IMDIV(1,IMPRODUCT(B39,'Design the AEF circuit'!$H$18*0.001)),IMDIV(1,'Design the AEF circuit'!$H$19*1000))), IMDIV(1,IMSUM(IMDIV(1,IMPRODUCT(B39,'Design the AEF circuit'!$H$21*0.001)),IMDIV(1,'Design the AEF circuit'!$H$22*1000))), IMDIV(1,IMSUM(IMDIV(1,IMPRODUCT(B39,'Design the AEF circuit'!$H$23*0.001)),IMDIV(1,'Design the AEF circuit'!$H$24*1000))) ) -> 0.0808214433556+19.7958458399739j | Q39: =IMDIV(1, IMSUM( IMDIV(1, P39), IMPRODUCT(B39,'Design the AEF circuit'!$H$20*0.000000000001) ) ) -> 0.0808215130354535+19.7958543732807j
A40: ='Frequency vector'!G40 -> 159.5351345 | B40: =COMPLEX(0,2*PI()*'Frequency vector'!G40,"j") -> 1002.38881296876j | C40: =IF(IF(CMdata=1,IMABS(K40),'CM choke'!C44)=0, C39, IF(CMdata=1,IMABS(K40),'CM choke'!C44)) -> 13.45949006 | D40: =IF(IF(CMdata=1,DEGREES(IMARGUMENT(K40)),'CM choke'!D44)=0, D39, IF(CMdata=1,DEGREES(IMARGUMENT(K40)),'CM choke'!D44)) -> 91.22576257 | E40: =IF(IF(CMdata=1,IMABS(L40),'CM choke'!E44)=0, E39, IF(CMdata=1,IMABS(L40),'CM choke'!E44)) -> 13.45949006 | F40: =IF(IF(CMdata=1,DEGREES(IMARGUMENT(L40)),'CM choke'!F44)=0, F39, IF(CMdata=1,DEGREES(IMARGUMENT(L40)),'CM choke'!F44)) -> 91.22576257 | G40: -0.2879248844 | H40: 13.45641007 | I40: -0.2879248844 | J40: 13.45641007 | K40: =IF(CMdata=1, IF(Lcm1_core=1, IMDIV(1,IMSUM(IMDIV(1,IMPRODUCT(B40,'Design the AEF circuit'!$G$18*0.001)),IMDIV(1,'Design the AEF circuit'!$G$19*1000),IMPRODUCT(B40,'Design the AEF circuit'!$G$20*0.000000000001))), O40),COMPLEX(G40,H40,"j")) -> -0.287924884420933+13.4564100736132j | L40: =IF(CMdata=1, IF(Lcm2_core=1, IMDIV(1, IMSUM(IMDIV(1,IMPRODUCT(B40,'Design the AEF circuit'!$H$18*0.001)), IMDIV(1,'Design the AEF circuit'!$H$19*1000), IMPRODUCT(B40,'Design the AEF circuit'!$H$20*0.000000000001))), Q40), COMPLEX(I40,J40,"j")) -> -0.287924884420933+13.4564100736132j | N40: =IMSUM(IMDIV(1,IMSUM(IMDIV(1,IMPRODUCT(B40,'Design the AEF circuit'!$G$18*0.001)),IMDIV(1,'Design the AEF circuit'!$G$19*1000))), IMDIV(1,IMSUM(IMDIV(1,IMPRODUCT(B40,'Design the AEF circuit'!$G$21*0.001)),IMDIV(1,'Design the AEF circuit'!$G$22*1000))), IMDIV(1,IMSUM(IMDIV(1,IMPRODUCT(B40,'Design the AEF circuit'!$G$23*0.001)),IMDIV(1,'Design the AEF circuit'!$G$24*1000))) ) -> 0.0828879625529971+20.0473246289028j | O40: =IMDIV(1, IMSUM( IMDIV(1, N40), IMPRODUCT(B40,'Design the AEF circuit'!$G$20*0.000000000001))) -> 0.0828880358417047+20.0473334915713j | P40: =IMSUM(IMDIV(1,IMSUM(IMDIV(1,IMPRODUCT(B40,'Design the AEF circuit'!$H$18*0.001)),IMDIV(1,'Design the AEF circuit'!$H$19*1000))), IMDIV(1,IMSUM(IMDIV(1,IMPRODUCT(B40,'Design the AEF circuit'!$H$21*0.001)),IMDIV(1,'Design the AEF circuit'!$H$22*1000))), IMDIV(1,IMSUM(IMDIV(1,IMPRODUCT(B40,'Design the AEF circuit'!$H$23*0.001)),IMDIV(1,'Design the AEF circuit'!$H$24*1000))) ) -> 0.0828879625529971+20.0473246289028j | Q40: =IMDIV(1, IMSUM( IMDIV(1, P40), IMPRODUCT(B40,'Design the AEF circuit'!$H$20*0.000000000001) ) ) -> 0.0828880358417047+20.0473334915713j
A41: ='Frequency vector'!G41 -> 161.561898 | B41: =COMPLEX(0,2*PI()*'Frequency vector'!G41,"j") -> 1015.12334391212j | C41: =IF(IF(CMdata=1,IMABS(K41),'CM choke'!C45)=0, C40, IF(CMdata=1,IMABS(K41),'CM choke'!C45)) -> 13.56578737 | D41: =IF(IF(CMdata=1,DEGREES(IMARGUMENT(K41)),'CM choke'!D45)=0, D40, IF(CMdata=1,DEGREES(IMARGUMENT(K41)),'CM choke'!D45)) -> 91.1455514 | E41: =IF(IF(CMdata=1,IMABS(L41),'CM choke'!E45)=0, E40, IF(CMdata=1,IMABS(L41),'CM choke'!E45)) -> 13.56578737 | F41: =IF(IF(CMdata=1,DEGREES(IMARGUMENT(L41)),'CM choke'!F45)=0, F40, IF(CMdata=1,DEGREES(IMARGUMENT(L41)),'CM choke'!F45)) -> 91.1455514 | G41: -0.2712114482 | H41: 13.56307603 | I41: -0.2712114482 | J41: 13.56307603 | K41: =IF(CMdata=1, IF(Lcm1_core=1, IMDIV(1,IMSUM(IMDIV(1,IMPRODUCT(B41,'Design the AEF circuit'!$G$18*0.001)),IMDIV(1,'Design the AEF circuit'!$G$19*1000),IMPRODUCT(B41,'Design the AEF circuit'!$G$20*0.000000000001))), O41),COMPLEX(G41,H41,"j")) -> -0.271211448165579+13.5630760265009j | L41: =IF(CMdata=1, IF(Lcm2_core=1, IMDIV(1, IMSUM(IMDIV(1,IMPRODUCT(B41,'Design the AEF circuit'!$H$18*0.001)), IMDIV(1,'Design the AEF circuit'!$H$19*1000), IMPRODUCT(B41,'Design the AEF circuit'!$H$20*0.000000000001))), Q41), COMPLEX(I41,J41,"j")) -> -0.271211448165579+13.5630760265009j | N41: =IMSUM(IMDIV(1,IMSUM(IMDIV(1,IMPRODUCT(B41,'Design the AEF circuit'!$G$18*0.001)),IMDIV(1,'Design the AEF circuit'!$G$19*1000))), IMDIV(1,IMSUM(IMDIV(1,IMPRODUCT(B41,'Design the AEF circuit'!$G$21*0.001)),IMDIV(1,'Design the AEF circuit'!$G$22*1000))), IMDIV(1,IMSUM(IMDIV(1,IMPRODUCT(B41,'Design the AEF circuit'!$G$23*0.001)),IMDIV(1,'Design the AEF circuit'!$G$24*1000))) ) -> 0.0850073187420696+20.3019978158001j | O41: =IMDIV(1, IMSUM( IMDIV(1, N41), IMPRODUCT(B41,'Design the AEF circuit'!$G$20*0.000000000001))) -> 0.0850073958265381+20.3020070205424j | P41: =IMSUM(IMDIV(1,IMSUM(IMDIV(1,IMPRODUCT(B41,'Design the AEF circuit'!$H$18*0.001)),IMDIV(1,'Design the AEF circuit'!$H$19*1000))), IMDIV(1,IMSUM(IMDIV(1,IMPRODUCT(B41,'Design the AEF circuit'!$H$21*0.001)),IMDIV(1,'Design the AEF circuit'!$H$22*1000))), IMDIV(1,IMSUM(IMDIV(1,IMPRODUCT(B41,'Design the AEF circuit'!$H$23*0.001)),IMDIV(1,'Design the AEF circuit'!$H$24*1000))) ) -> 0.0850073187420696+20.3019978158001j | Q41: =IMDIV(1, IMSUM( IMDIV(1, P41), IMPRODUCT(B41,'Design the AEF circuit'!$H$20*0.000000000001) ) ) -> 0.0850073958265381+20.3020070205424j
A42: ='Frequency vector'!G42 -> 163.61441 | B42: =COMPLEX(0,2*PI()*'Frequency vector'!G42,"j") -> 1028.01965666734j | C42: =IF(IF(CMdata=1,IMABS(K42),'CM choke'!C46)=0, C41, IF(CMdata=1,IMABS(K42),'CM choke'!C46)) -> 13.83645868 | D42: =IF(IF(CMdata=1,DEGREES(IMARGUMENT(K42)),'CM choke'!D46)=0, D41, IF(CMdata=1,DEGREES(IMARGUMENT(K42)),'CM choke'!D46)) -> 90.09447424 | E42: =IF(IF(CMdata=1,IMABS(L42),'CM choke'!E46)=0, E41, IF(CMdata=1,IMABS(L42),'CM choke'!E46)) -> 13.83645868 | F42: =IF(IF(CMdata=1,DEGREES(IMARGUMENT(L42)),'CM choke'!F46)=0, F41, IF(CMdata=1,DEGREES(IMARGUMENT(L42)),'CM choke'!F46)) -> 90.09447424 | G42: -0.02281474004 | H42: 13.83643987 | I42: -0.02281474004 | J42: 13.83643987 | K42: =IF(CMdata=1, IF(Lcm1_core=1, IMDIV(1,IMSUM(IMDIV(1,IMPRODUCT(B42,'Design the AEF circuit'!$G$18*0.001)),IMDIV(1,'Design the AEF circuit'!$G$19*1000),IMPRODUCT(B42,'Design the AEF circuit'!$G$20*0.000000000001))), O42),COMPLEX(G42,H42,"j")) -> -0.0228147400387105+13.8364398661513j | L42: =IF(CMdata=1, IF(Lcm2_core=1, IMDIV(1, IMSUM(IMDIV(1,IMPRODUCT(B42,'Design the AEF circuit'!$H$18*0.001)), IMDIV(1,'Design the AEF circuit'!$H$19*1000), IMPRODUCT(B42,'Design the AEF circuit'!$H$20*0.000000000001))), Q42), COMPLEX(I42,J42,"j")) -> -0.0228147400387105+13.8364398661513j | N42: =IMSUM(IMDIV(1,IMSUM(IMDIV(1,IMPRODUCT(B42,'Design the AEF circuit'!$G$18*0.001)),IMDIV(1,'Design the AEF circuit'!$G$19*1000))), IMDIV(1,IMSUM(IMDIV(1,IMPRODUCT(B42,'Design the AEF circuit'!$G$21*0.001)),IMDIV(1,'Design the AEF circuit'!$G$22*1000))), IMDIV(1,IMSUM(IMDIV(1,IMPRODUCT(B42,'Design the AEF circuit'!$G$23*0.001)),IMDIV(1,'Design the AEF circuit'!$G$24*1000))) ) -> 0.0871808627753772+20.559905966109j | O42: =IMDIV(1, IMSUM( IMDIV(1, N42), IMPRODUCT(B42,'Design the AEF circuit'!$G$20*0.000000000001))) -> 0.0871809438521934+20.5599155261277j | P42: =IMSUM(IMDIV(1,IMSUM(IMDIV(1,IMPRODUCT(B42,'Design the AEF circuit'!$H$18*0.001)),IMDIV(1,'Design the AEF circuit'!$H$19*1000))), IMDIV(1,IMSUM(IMDIV(1,IMPRODUCT(B42,'Design the AEF circuit'!$H$21*0.001)),IMDIV(1,'Design the AEF circuit'!$H$22*1000))), IMDIV(1,IMSUM(IMDIV(1,IMPRODUCT(B42,'Design the AEF circuit'!$H$23*0.001)),IMDIV(1,'Design the AEF circuit'!$H$24*1000))) ) -> 0.0871808627753772+20.559905966109j | Q42: =IMDIV(1, IMSUM( IMDIV(1, P42), IMPRODUCT(B42,'Design the AEF circuit'!$H$20*0.000000000001) ) ) -> 0.0871809438521934+20.5599155261277j
A43: ='Frequency vector'!G43 -> 165.6929974 | B43: =COMPLEX(0,2*PI()*'Frequency vector'!G43,"j") -> 1041.07980654018j | C43: =IF(IF(CMdata=1,IMABS(K43),'CM choke'!C47)=0, C42, IF(CMdata=1,IMABS(K43),'CM choke'!C47)) -> 14.27300894 | D43: =IF(IF(CMdata=1,DEGREES(IMARGUMENT(K43)),'CM choke'!D47)=0, D42, IF(CMdata=1,DEGREES(IMARGUMENT(K43)),'CM choke'!D47)) -> 89.80064557 | E43: =IF(IF(CMdata=1,IMABS(L43),'CM choke'!E47)=0, E42, IF(CMdata=1,IMABS(L43),'CM choke'!E47)) -> 14.27300894 | F43: =IF(IF(CMdata=1,DEGREES(IMARGUMENT(L43)),'CM choke'!F47)=0, F42, IF(CMdata=1,DEGREES(IMARGUMENT(L43)),'CM choke'!F47)) -> 89.80064557 | G43: 0.04966128039 | H43: 14.27292254 | I43: 0.04966128039 | J43: 14.27292254 | K43: =IF(CMdata=1, IF(Lcm1_core=1, IMDIV(1,IMSUM(IMDIV(1,IMPRODUCT(B43,'Design the AEF circuit'!$G$18*0.001)),IMDIV(1,'Design the AEF circuit'!$G$19*1000),IMPRODUCT(B43,'Design the AEF circuit'!$G$20*0.000000000001))), O43),COMPLEX(G43,H43,"j")) -> 0.0496612803924058+14.2729225445617j | L43: =IF(CMdata=1, IF(Lcm2_core=1, IMDIV(1, IMSUM(IMDIV(1,IMPRODUCT(B43,'Design the AEF circuit'!$H$18*0.001)), IMDIV(1,'Design the AEF circuit'!$H$19*1000), IMPRODUCT(B43,'Design the AEF circuit'!$H$20*0.000000000001))), Q43), COMPLEX(I43,J43,"j")) -> 0.0496612803924058+14.2729225445617j | N43: =IMSUM(IMDIV(1,IMSUM(IMDIV(1,IMPRODUCT(B43,'Design the AEF circuit'!$G$18*0.001)),IMDIV(1,'Design the AEF circuit'!$G$19*1000))), IMDIV(1,IMSUM(IMDIV(1,IMPRODUCT(B43,'Design the AEF circuit'!$G$21*0.001)),IMDIV(1,'Design the AEF circuit'!$G$22*1000))), IMDIV(1,IMSUM(IMDIV(1,IMPRODUCT(B43,'Design the AEF circuit'!$G$23*0.001)),IMDIV(1,'Design the AEF circuit'!$G$24*1000))) ) -> 0.0894099800373011+20.8210901599762j | O43: =IMDIV(1, IMSUM( IMDIV(1, N43), IMPRODUCT(B43,'Design the AEF circuit'!$G$20*0.000000000001))) -> 0.0894100653132327+20.8211000889835j | P43: =IMSUM(IMDIV(1,IMSUM(IMDIV(1,IMPRODUCT(B43,'Design the AEF circuit'!$H$18*0.001)),IMDIV(1,'Design the AEF circuit'!$H$19*1000))), IMDIV(1,IMSUM(IMDIV(1,IMPRODUCT(B43,'Design the AEF circuit'!$H$21*0.001)),IMDIV(1,'Design the AEF circuit'!$H$22*1000))), IMDIV(1,IMSUM(IMDIV(1,IMPRODUCT(B43,'Design the AEF circuit'!$H$23*0.001)),IMDIV(1,'Design the AEF circuit'!$H$24*1000))) ) -> 0.0894099800373011+20.8210901599762j | Q43: =IMDIV(1, IMSUM( IMDIV(1, P43), IMPRODUCT(B43,'Design the AEF circuit'!$H$20*0.000000000001) ) ) -> 0.0894100653132327+20.8211000889835j
A44: ='Frequency vector'!G44 -> 167.7979915 | B44: =COMPLEX(0,2*PI()*'Frequency vector'!G44,"j") -> 1054.30587494734j | C44: =IF(IF(CMdata=1,IMABS(K44),'CM choke'!C48)=0, C43, IF(CMdata=1,IMABS(K44),'CM choke'!C48)) -> 14.35455448 | D44: =IF(IF(CMdata=1,DEGREES(IMARGUMENT(K44)),'CM choke'!D48)=0, D43, IF(CMdata=1,DEGREES(IMARGUMENT(K44)),'CM choke'!D48)) -> 90.26828272 | E44: =IF(IF(CMdata=1,IMABS(L44),'CM choke'!E48)=0, E43, IF(CMdata=1,IMABS(L44),'CM choke'!E48)) -> 14.35455448 | F44: =IF(IF(CMdata=1,DEGREES(IMARGUMENT(L44)),'CM choke'!F48)=0, F43, IF(CMdata=1,DEGREES(IMARGUMENT(L44)),'CM choke'!F48)) -> 90.26828272 | G44: -0.06721376192 | H44: 14.35439712 | I44: -0.06721376192 | J44: 14.35439712 | K44: =IF(CMdata=1, IF(Lcm1_core=1, IMDIV(1,IMSUM(IMDIV(1,IMPRODUCT(B44,'Design the AEF circuit'!$G$18*0.001)),IMDIV(1,'Design the AEF circuit'!$G$19*1000),IMPRODUCT(B44,'Design the AEF circuit'!$G$20*0.000000000001))), O44),COMPLEX(G44,H44,"j")) -> -0.0672137619173683+14.3543971198976j | L44: =IF(CMdata=1, IF(Lcm2_core=1, IMDIV(1, IMSUM(IMDIV(1,IMPRODUCT(B44,'Design the AEF circuit'!$H$18*0.001)), IMDIV(1,'Design the AEF circuit'!$H$19*1000), IMPRODUCT(B44,'Design the AEF circuit'!$H$20*0.000000000001))), Q44), COMPLEX(I44,J44,"j")) -> -0.0672137619173683+14.3543971198976j | N44: =IMSUM(IMDIV(1,IMSUM(IMDIV(1,IMPRODUCT(B44,'Design the AEF circuit'!$G$18*0.001)),IMDIV(1,'Design the AEF circuit'!$G$19*1000))), IMDIV(1,IMSUM(IMDIV(1,IMPRODUCT(B44,'Design the AEF circuit'!$G$21*0.001)),IMDIV(1,'Design the AEF circuit'!$G$22*1000))), IMDIV(1,IMSUM(IMDIV(1,IMPRODUCT(B44,'Design the AEF circuit'!$G$23*0.001)),IMDIV(1,'Design the AEF circuit'!$G$24*1000))) ) -> 0.0916960913265387+21.0855919987649j | O44: =IMDIV(1, IMSUM( IMDIV(1, N44), IMPRODUCT(B44,'Design the AEF circuit'!$G$20*0.000000000001))) -> 0.0916961810190622+21.0856023110023j | P44: =IMSUM(IMDIV(1,IMSUM(IMDIV(1,IMPRODUCT(B44,'Design the AEF circuit'!$H$18*0.001)),IMDIV(1,'Design the AEF circuit'!$H$19*1000))), IMDIV(1,IMSUM(IMDIV(1,IMPRODUCT(B44,'Design the AEF circuit'!$H$21*0.001)),IMDIV(1,'Design the AEF circuit'!$H$22*1000))), IMDIV(1,IMSUM(IMDIV(1,IMPRODUCT(B44,'Design the AEF circuit'!$H$23*0.001)),IMDIV(1,'Design the AEF circuit'!$H$24*1000))) ) -> 0.0916960913265387+21.0855919987649j | Q44: =IMDIV(1, IMSUM( IMDIV(1, P44), IMPRODUCT(B44,'Design the AEF circuit'!$H$20*0.000000000001) ) ) -> 0.0916961810190622+21.0856023110023j
A45: ='Frequency vector'!G45 -> 169.9297279 | B45: =COMPLEX(0,2*PI()*'Frequency vector'!G45,"j") -> 1067.69996974826j | C45: =IF(IF(CMdata=1,IMABS(K45),'CM choke'!C49)=0, C44, IF(CMdata=1,IMABS(K45),'CM choke'!C49)) -> 14.34660902 | D45: =IF(IF(CMdata=1,DEGREES(IMARGUMENT(K45)),'CM choke'!D49)=0, D44, IF(CMdata=1,DEGREES(IMARGUMENT(K45)),'CM choke'!D49)) -> 90.69387985 | E45: =IF(IF(CMdata=1,IMABS(L45),'CM choke'!E49)=0, E44, IF(CMdata=1,IMABS(L45),'CM choke'!E49)) -> 14.34660902 | F45: =IF(IF(CMdata=1,DEGREES(IMARGUMENT(L45)),'CM choke'!F49)=0, F44, IF(CMdata=1,DEGREES(IMARGUMENT(L45)),'CM choke'!F49)) -> 90.69387985 | G45: -0.1737401891 | H45: 14.34555697 | I45: -0.1737401891 | J45: 14.34555697 | K45: =IF(CMdata=1, IF(Lcm1_core=1, IMDIV(1,IMSUM(IMDIV(1,IMPRODUCT(B45,'Design the AEF circuit'!$G$18*0.001)),IMDIV(1,'Design the AEF circuit'!$G$19*1000),IMPRODUCT(B45,'Design the AEF circuit'!$G$20*0.000000000001))), O45),COMPLEX(G45,H45,"j")) -> -0.173740189126484+14.3455569666867j | L45: =IF(CMdata=1, IF(Lcm2_core=1, IMDIV(1, IMSUM(IMDIV(1,IMPRODUCT(B45,'Design the AEF circuit'!$H$18*0.001)), IMDIV(1,'Design the AEF circuit'!$H$19*1000), IMPRODUCT(B45,'Design the AEF circuit'!$H$20*0.000000000001))), Q45), COMPLEX(I45,J45,"j")) -> -0.173740189126484+14.3455569666867j | N45: =IMSUM(IMDIV(1,IMSUM(IMDIV(1,IMPRODUCT(B45,'Design the AEF circuit'!$G$18*0.001)),IMDIV(1,'Design the AEF circuit'!$G$19*1000))), IMDIV(1,IMSUM(IMDIV(1,IMPRODUCT(B45,'Design the AEF circuit'!$G$21*0.001)),IMDIV(1,'Design the AEF circuit'!$G$22*1000))), IMDIV(1,IMSUM(IMDIV(1,IMPRODUCT(B45,'Design the AEF circuit'!$G$23*0.001)),IMDIV(1,'Design the AEF circuit'!$G$24*1000))) ) -> 0.0940406537611522+21.3534536116525j | O45: =IMDIV(1, IMSUM( IMDIV(1, N45), IMPRODUCT(B45,'Design the AEF circuit'!$G$20*0.000000000001))) -> 0.0940407480990075+21.3534643219111j | P45: =IMSUM(IMDIV(1,IMSUM(IMDIV(1,IMPRODUCT(B45,'Design the AEF circuit'!$H$18*0.001)),IMDIV(1,'Design the AEF circuit'!$H$19*1000))), IMDIV(1,IMSUM(IMDIV(1,IMPRODUCT(B45,'Design the AEF circuit'!$H$21*0.001)),IMDIV(1,'Design the AEF circuit'!$H$22*1000))), IMDIV(1,IMSUM(IMDIV(1,IMPRODUCT(B45,'Design the AEF circuit'!$H$23*0.001)),IMDIV(1,'Design the AEF circuit'!$H$24*1000))) ) -> 0.0940406537611522+21.3534536116525j | Q45: =IMDIV(1, IMSUM( IMDIV(1, P45), IMPRODUCT(B45,'Design the AEF circuit'!$H$20*0.000000000001) ) ) -> 0.0940407480990075+21.3534643219111j
A46: ='Frequency vector'!G46 -> 172.0885463 | B46: =COMPLEX(0,2*PI()*'Frequency vector'!G46,"j") -> 1081.26422558101j | C46: =IF(IF(CMdata=1,IMABS(K46),'CM choke'!C50)=0, C45, IF(CMdata=1,IMABS(K46),'CM choke'!C50)) -> 14.69832167 | D46: =IF(IF(CMdata=1,DEGREES(IMARGUMENT(K46)),'CM choke'!D50)=0, D45, IF(CMdata=1,DEGREES(IMARGUMENT(K46)),'CM choke'!D50)) -> 90.64734656 | E46: =IF(IF(CMdata=1,IMABS(L46),'CM choke'!E50)=0, E45, IF(CMdata=1,IMABS(L46),'CM choke'!E50)) -> 14.69832167 | F46: =IF(IF(CMdata=1,DEGREES(IMARGUMENT(L46)),'CM choke'!F50)=0, F45, IF(CMdata=1,DEGREES(IMARGUMENT(L46)),'CM choke'!F50)) -> 90.64734656 | G46: -0.166062938 | H46: 14.69738355 | I46: -0.166062938 | J46: 14.69738355 | K46: =IF(CMdata=1, IF(Lcm1_core=1, IMDIV(1,IMSUM(IMDIV(1,IMPRODUCT(B46,'Design the AEF circuit'!$G$18*0.001)),IMDIV(1,'Design the AEF circuit'!$G$19*1000),IMPRODUCT(B46,'Design the AEF circuit'!$G$20*0.000000000001))), O46),COMPLEX(G46,H46,"j")) -> -0.166062937980606+14.697383546146j | L46: =IF(CMdata=1, IF(Lcm2_core=1, IMDIV(1, IMSUM(IMDIV(1,IMPRODUCT(B46,'Design the AEF circuit'!$H$18*0.001)), IMDIV(1,'Design the AEF circuit'!$H$19*1000), IMPRODUCT(B46,'Design the AEF circuit'!$H$20*0.000000000001))), Q46), COMPLEX(I46,J46,"j")) -> -0.166062937980606+14.697383546146j | N46: =IMSUM(IMDIV(1,IMSUM(IMDIV(1,IMPRODUCT(B46,'Design the AEF circuit'!$G$18*0.001)),IMDIV(1,'Design the AEF circuit'!$G$19*1000))), IMDIV(1,IMSUM(IMDIV(1,IMPRODUCT(B46,'Design the AEF circuit'!$G$21*0.001)),IMDIV(1,'Design the AEF circuit'!$G$22*1000))), IMDIV(1,IMSUM(IMDIV(1,IMPRODUCT(B46,'Design the AEF circuit'!$G$23*0.001)),IMDIV(1,'Design the AEF circuit'!$G$24*1000))) ) -> 0.0964451617067154+21.6247176623075j | O46: =IMDIV(1, IMSUM( IMDIV(1, N46), IMPRODUCT(B46,'Design the AEF circuit'!$G$20*0.000000000001))) -> 0.0964452609304884+21.6247287859492j | P46: =IMSUM(IMDIV(1,IMSUM(IMDIV(1,IMPRODUCT(B46,'Design the AEF circuit'!$H$18*0.001)),IMDIV(1,'Design the AEF circuit'!$H$19*1000))), IMDIV(1,IMSUM(IMDIV(1,IMPRODUCT(B46,'Design the AEF circuit'!$H$21*0.001)),IMDIV(1,'Design the AEF circuit'!$H$22*1000))), IMDIV(1,IMSUM(IMDIV(1,IMPRODUCT(B46,'Design the AEF circuit'!$H$23*0.001)),IMDIV(1,'Design the AEF circuit'!$H$24*1000))) ) -> 0.0964451617067154+21.6247176623075j | Q46: =IMDIV(1, IMSUM( IMDIV(1, P46), IMPRODUCT(B46,'Design the AEF circuit'!$H$20*0.000000000001) ) ) -> 0.0964452609304884+21.6247287859492j
A47: ='Frequency vector'!G47 -> 174.2747907 | B47: =COMPLEX(0,2*PI()*'Frequency vector'!G47,"j") -> 1095.00080420247j | C47: =IF(IF(CMdata=1,IMABS(K47),'CM choke'!C51)=0, C46, IF(CMdata=1,IMABS(K47),'CM choke'!C51)) -> 14.7508142 | D47: =IF(IF(CMdata=1,DEGREES(IMARGUMENT(K47)),'CM choke'!D51)=0, D46, IF(CMdata=1,DEGREES(IMARGUMENT(K47)),'CM choke'!D51)) -> 91.2343346 | E47: =IF(IF(CMdata=1,IMABS(L47),'CM choke'!E51)=0, E46, IF(CMdata=1,IMABS(L47),'CM choke'!E51)) -> 14.7508142 | F47: =IF(IF(CMdata=1,DEGREES(IMARGUMENT(L47)),'CM choke'!F51)=0, F46, IF(CMdata=1,DEGREES(IMARGUMENT(L47)),'CM choke'!F51)) -> 91.2343346 | G47: -0.3177552027 | H47: 14.74739133 | I47: -0.3177552027 | J47: 14.74739133 | K47: =IF(CMdata=1, IF(Lcm1_core=1, IMDIV(1,IMSUM(IMDIV(1,IMPRODUCT(B47,'Design the AEF circuit'!$G$18*0.001)),IMDIV(1,'Design the AEF circuit'!$G$19*1000),IMPRODUCT(B47,'Design the AEF circuit'!$G$20*0.000000000001))), O47),COMPLEX(G47,H47,"j")) -> -0.317755202707636+14.7473913312178j | L47: =IF(CMdata=1, IF(Lcm2_core=1, IMDIV(1, IMSUM(IMDIV(1,IMPRODUCT(B47,'Design the AEF circuit'!$H$18*0.001)), IMDIV(1,'Design the AEF circuit'!$H$19*1000), IMPRODUCT(B47,'Design the AEF circuit'!$H$20*0.000000000001))), Q47), COMPLEX(I47,J47,"j")) -> -0.317755202707636+14.7473913312178j | N47: =IMSUM(IMDIV(1,IMSUM(IMDIV(1,IMPRODUCT(B47,'Design the AEF circuit'!$G$18*0.001)),IMDIV(1,'Design the AEF circuit'!$G$19*1000))), IMDIV(1,IMSUM(IMDIV(1,IMPRODUCT(B47,'Design the AEF circuit'!$G$21*0.001)),IMDIV(1,'Design the AEF circuit'!$G$22*1000))), IMDIV(1,IMSUM(IMDIV(1,IMPRODUCT(B47,'Design the AEF circuit'!$G$23*0.001)),IMDIV(1,'Design the AEF circuit'!$G$24*1000))) ) -> 0.0989111477281663+21.899427355652j | O47: =IMDIV(1, IMSUM( IMDIV(1, N47), IMPRODUCT(B47,'Design the AEF circuit'!$G$20*0.000000000001))) -> 0.0989112520909032+21.8994389086316j | P47: =IMSUM(IMDIV(1,IMSUM(IMDIV(1,IMPRODUCT(B47,'Design the AEF circuit'!$H$18*0.001)),IMDIV(1,'Design the AEF circuit'!$H$19*1000))), IMDIV(1,IMSUM(IMDIV(1,IMPRODUCT(B47,'Design the AEF circuit'!$H$21*0.001)),IMDIV(1,'Design the AEF circuit'!$H$22*1000))), IMDIV(1,IMSUM(IMDIV(1,IMPRODUCT(B47,'Design the AEF circuit'!$H$23*0.001)),IMDIV(1,'Design the AEF circuit'!$H$24*1000))) ) -> 0.0989111477281663+21.899427355652j | Q47: =IMDIV(1, IMSUM( IMDIV(1, P47), IMPRODUCT(B47,'Design the AEF circuit'!$H$20*0.000000000001) ) ) -> 0.0989112520909032+21.8994389086316j
A48: ='Frequency vector'!G48 -> 176.4888095 | B48: =COMPLEX(0,2*PI()*'Frequency vector'!G48,"j") -> 1108.91189483289j | C48: =IF(IF(CMdata=1,IMABS(K48),'CM choke'!C52)=0, C47, IF(CMdata=1,IMABS(K48),'CM choke'!C52)) -> 14.86101932 | D48: =IF(IF(CMdata=1,DEGREES(IMARGUMENT(K48)),'CM choke'!D52)=0, D47, IF(CMdata=1,DEGREES(IMARGUMENT(K48)),'CM choke'!D52)) -> 90.66151113 | E48: =IF(IF(CMdata=1,IMABS(L48),'CM choke'!E52)=0, E47, IF(CMdata=1,IMABS(L48),'CM choke'!E52)) -> 14.86101932 | F48: =IF(IF(CMdata=1,DEGREES(IMARGUMENT(L48)),'CM choke'!F52)=0, F47, IF(CMdata=1,DEGREES(IMARGUMENT(L48)),'CM choke'!F52)) -> 90.66151113 | G48: -0.1715747888 | H48: 14.86002885 | I48: -0.1715747888 | J48: 14.86002885 | K48: =IF(CMdata=1, IF(Lcm1_core=1, IMDIV(1,IMSUM(IMDIV(1,IMPRODUCT(B48,'Design the AEF circuit'!$G$18*0.001)),IMDIV(1,'Design the AEF circuit'!$G$19*1000),IMPRODUCT(B48,'Design the AEF circuit'!$G$20*0.000000000001))), O48),COMPLEX(G48,H48,"j")) -> -0.171574788849777+14.8600288509302j | L48: =IF(CMdata=1, IF(Lcm2_core=1, IMDIV(1, IMSUM(IMDIV(1,IMPRODUCT(B48,'Design the AEF circuit'!$H$18*0.001)), IMDIV(1,'Design the AEF circuit'!$H$19*1000), IMPRODUCT(B48,'Design the AEF circuit'!$H$20*0.000000000001))), Q48), COMPLEX(I48,J48,"j")) -> -0.171574788849777+14.8600288509302j | N48: =IMSUM(IMDIV(1,IMSUM(IMDIV(1,IMPRODUCT(B48,'Design the AEF circuit'!$G$18*0.001)),IMDIV(1,'Design the AEF circuit'!$G$19*1000))), IMDIV(1,IMSUM(IMDIV(1,IMPRODUCT(B48,'Design the AEF circuit'!$G$21*0.001)),IMDIV(1,'Design the AEF circuit'!$G$22*1000))), IMDIV(1,IMSUM(IMDIV(1,IMPRODUCT(B48,'Design the AEF circuit'!$G$23*0.001)),IMDIV(1,'Design the AEF circuit'!$G$24*1000))) ) -> 0.101440183565984+22.1776264447097j | O48: =IMDIV(1, IMSUM( IMDIV(1, N48), IMPRODUCT(B48,'Design the AEF circuit'!$G$20*0.000000000001))) -> 0.101440293333835+22.1776384435977j | P48: =IMSUM(IMDIV(1,IMSUM(IMDIV(1,IMPRODUCT(B48,'Design the AEF circuit'!$H$18*0.001)),IMDIV(1,'Design the AEF circuit'!$H$19*1000))), IMDIV(1,IMSUM(IMDIV(1,IMPRODUCT(B48,'Design the AEF circuit'!$H$21*0.001)),IMDIV(1,'Design the AEF circuit'!$H$22*1000))), IMDIV(1,IMSUM(IMDIV(1,IMPRODUCT(B48,'Design the AEF circuit'!$H$23*0.001)),IMDIV(1,'Design the AEF circuit'!$H$24*1000))) ) -> 0.101440183565984+22.1776264447097j | Q48: =IMDIV(1, IMSUM( IMDIV(1, P48), IMPRODUCT(B48,'Design the AEF circuit'!$H$20*0.000000000001) ) ) -> 0.101440293333835+22.1776384435977j
A49: ='Frequency vector'!G49 -> 178.7309557 | B49: =COMPLEX(0,2*PI()*'Frequency vector'!G49,"j") -> 1122.99971450477j | C49: =IF(IF(CMdata=1,IMABS(K49),'CM choke'!C53)=0, C48, IF(CMdata=1,IMABS(K49),'CM choke'!C53)) -> 15.04545009 | D49: =IF(IF(CMdata=1,DEGREES(IMARGUMENT(K49)),'CM choke'!D53)=0, D48, IF(CMdata=1,DEGREES(IMARGUMENT(K49)),'CM choke'!D53)) -> 90.76195627 | E49: =IF(IF(CMdata=1,IMABS(L49),'CM choke'!E53)=0, E48, IF(CMdata=1,IMABS(L49),'CM choke'!E53)) -> 15.04545009 | F49: =IF(IF(CMdata=1,DEGREES(IMARGUMENT(L49)),'CM choke'!F53)=0, F48, IF(CMdata=1,DEGREES(IMARGUMENT(L49)),'CM choke'!F53)) -> 90.76195627 | G49: -0.2000782117 | H49: 15.04411969 | I49: -0.2000782117 | J49: 15.04411969 | K49: =IF(CMdata=1, IF(Lcm1_core=1, IMDIV(1,IMSUM(IMDIV(1,IMPRODUCT(B49,'Design the AEF circuit'!$G$18*0.001)),IMDIV(1,'Design the AEF circuit'!$G$19*1000),IMPRODUCT(B49,'Design the AEF circuit'!$G$20*0.000000000001))), O49),COMPLEX(G49,H49,"j")) -> -0.200078211729499+15.0441196884261j | L49: =IF(CMdata=1, IF(Lcm2_core=1, IMDIV(1, IMSUM(IMDIV(1,IMPRODUCT(B49,'Design the AEF circuit'!$H$18*0.001)), IMDIV(1,'Design the AEF circuit'!$H$19*1000), IMPRODUCT(B49,'Design the AEF circuit'!$H$20*0.000000000001))), Q49), COMPLEX(I49,J49,"j")) -> -0.200078211729499+15.0441196884261j | N49: =IMSUM(IMDIV(1,IMSUM(IMDIV(1,IMPRODUCT(B49,'Design the AEF circuit'!$G$18*0.001)),IMDIV(1,'Design the AEF circuit'!$G$19*1000))), IMDIV(1,IMSUM(IMDIV(1,IMPRODUCT(B49,'Design the AEF circuit'!$G$21*0.001)),IMDIV(1,'Design the AEF circuit'!$G$22*1000))), IMDIV(1,IMSUM(IMDIV(1,IMPRODUCT(B49,'Design the AEF circuit'!$G$23*0.001)),IMDIV(1,'Design the AEF circuit'!$G$24*1000))) ) -> 0.104033881137283+22.4593592375373j | O49: =IMDIV(1, IMSUM( IMDIV(1, N49), IMPRODUCT(B49,'Design the AEF circuit'!$G$20*0.000000000001))) -> 0.104033996590183+22.4593716995438j | P49: =IMSUM(IMDIV(1,IMSUM(IMDIV(1,IMPRODUCT(B49,'Design the AEF circuit'!$H$18*0.001)),IMDIV(1,'Design the AEF circuit'!$H$19*1000))), IMDIV(1,IMSUM(IMDIV(1,IMPRODUCT(B49,'Design the AEF circuit'!$H$21*0.001)),IMDIV(1,'Design the AEF circuit'!$H$22*1000))), IMDIV(1,IMSUM(IMDIV(1,IMPRODUCT(B49,'Design the AEF circuit'!$H$23*0.001)),IMDIV(1,'Design the AEF circuit'!$H$24*1000))) ) -> 0.104033881137283+22.4593592375373j | Q49: =IMDIV(1, IMSUM( IMDIV(1, P49), IMPRODUCT(B49,'Design the AEF circuit'!$H$20*0.000000000001) ) ) -> 0.104033996590183+22.4593716995438j
A50: ='Frequency vector'!G50 -> 181.0015864 | B50: =COMPLEX(0,2*PI()*'Frequency vector'!G50,"j") -> 1137.2665084162j | C50: =IF(IF(CMdata=1,IMABS(K50),'CM choke'!C54)=0, C49, IF(CMdata=1,IMABS(K50),'CM choke'!C54)) -> 15.32273269 | D50: =IF(IF(CMdata=1,DEGREES(IMARGUMENT(K50)),'CM choke'!D54)=0, D49, IF(CMdata=1,DEGREES(IMARGUMENT(K50)),'CM choke'!D54)) -> 90.18364641 | E50: =IF(IF(CMdata=1,IMABS(L50),'CM choke'!E54)=0, E49, IF(CMdata=1,IMABS(L50),'CM choke'!E54)) -> 15.32273269 | F50: =IF(IF(CMdata=1,DEGREES(IMARGUMENT(L50)),'CM choke'!F54)=0, F49, IF(CMdata=1,DEGREES(IMARGUMENT(L50)),'CM choke'!F54)) -> 90.18364641 | G50: -0.04911286691 | H50: 15.32265398 | I50: -0.04911286691 | J50: 15.32265398 | K50: =IF(CMdata=1, IF(Lcm1_core=1, IMDIV(1,IMSUM(IMDIV(1,IMPRODUCT(B50,'Design the AEF circuit'!$G$18*0.001)),IMDIV(1,'Design the AEF circuit'!$G$19*1000),IMPRODUCT(B50,'Design the AEF circuit'!$G$20*0.000000000001))), O50),COMPLEX(G50,H50,"j")) -> -0.0491128669132364+15.3226539770956j | L50: =IF(CMdata=1, IF(Lcm2_core=1, IMDIV(1, IMSUM(IMDIV(1,IMPRODUCT(B50,'Design the AEF circuit'!$H$18*0.001)), IMDIV(1,'Design the AEF circuit'!$H$19*1000), IMPRODUCT(B50,'Design the AEF circuit'!$H$20*0.000000000001))), Q50), COMPLEX(I50,J50,"j")) -> -0.0491128669132364+15.3226539770956j | N50: =IMSUM(IMDIV(1,IMSUM(IMDIV(1,IMPRODUCT(B50,'Design the AEF circuit'!$G$18*0.001)),IMDIV(1,'Design the AEF circuit'!$G$19*1000))), IMDIV(1,IMSUM(IMDIV(1,IMPRODUCT(B50,'Design the AEF circuit'!$G$21*0.001)),IMDIV(1,'Design the AEF circuit'!$G$22*1000))), IMDIV(1,IMSUM(IMDIV(1,IMPRODUCT(B50,'Design the AEF circuit'!$G$23*0.001)),IMDIV(1,'Design the AEF circuit'!$G$24*1000))) ) -> 0.106693893562482+22.7446706042462j | O50: =IMDIV(1, IMSUM( IMDIV(1, N50), IMPRODUCT(B50,'Design the AEF circuit'!$G$20*0.000000000001))) -> 0.106694014994863+22.7446835472454j | P50: =IMSUM(IMDIV(1,IMSUM(IMDIV(1,IMPRODUCT(B50,'Design the AEF circuit'!$H$18*0.001)),IMDIV(1,'Design the AEF circuit'!$H$19*1000))), IMDIV(1,IMSUM(IMDIV(1,IMPRODUCT(B50,'Design the AEF circuit'!$H$21*0.001)),IMDIV(1,'Design the AEF circuit'!$H$22*1000))), IMDIV(1,IMSUM(IMDIV(1,IMPRODUCT(B50,'Design the AEF circuit'!$H$23*0.001)),IMDIV(1,'Design the AEF circuit'!$H$24*1000))) ) -> 0.106693893562482+22.7446706042462j | Q50: =IMDIV(1, IMSUM( IMDIV(1, P50), IMPRODUCT(B50,'Design the AEF circuit'!$H$20*0.000000000001) ) ) -> 0.106694014994863+22.7446835472454j
A51: ='Frequency vector'!G51 -> 183.3010637 | B51: =COMPLEX(0,2*PI()*'Frequency vector'!G51,"j") -> 1151.71455028869j | C51: =IF(IF(CMdata=1,IMABS(K51),'CM choke'!C55)=0, C50, IF(CMdata=1,IMABS(K51),'CM choke'!C55)) -> 15.661707 | D51: =IF(IF(CMdata=1,DEGREES(IMARGUMENT(K51)),'CM choke'!D55)=0, D50, IF(CMdata=1,DEGREES(IMARGUMENT(K51)),'CM choke'!D55)) -> 91.26595835 | E51: =IF(IF(CMdata=1,IMABS(L51),'CM choke'!E55)=0, E50, IF(CMdata=1,IMABS(L51),'CM choke'!E55)) -> 15.661707 | F51: =IF(IF(CMdata=1,DEGREES(IMARGUMENT(L51)),'CM choke'!F55)=0, F50, IF(CMdata=1,DEGREES(IMARGUMENT(L51)),'CM choke'!F55)) -> 91.26595835 | G51: -0.3460194745 | H51: 15.65788417 | I51: -0.3460194745 | J51: 15.65788417 | K51: =IF(CMdata=1, IF(Lcm1_core=1, IMDIV(1,IMSUM(IMDIV(1,IMPRODUCT(B51,'Design the AEF circuit'!$G$18*0.001)),IMDIV(1,'Design the AEF circuit'!$G$19*1000),IMPRODUCT(B51,'Design the AEF circuit'!$G$20*0.000000000001))), O51),COMPLEX(G51,H51,"j")) -> -0.346019474467821+15.6578841674592j | L51: =IF(CMdata=1, IF(Lcm2_core=1, IMDIV(1, IMSUM(IMDIV(1,IMPRODUCT(B51,'Design the AEF circuit'!$H$18*0.001)), IMDIV(1,'Design the AEF circuit'!$H$19*1000), IMPRODUCT(B51,'Design the AEF circuit'!$H$20*0.000000000001))), Q51), COMPLEX(I51,J51,"j")) -> -0.346019474467821+15.6578841674592j | N51: =IMSUM(IMDIV(1,IMSUM(IMDIV(1,IMPRODUCT(B51,'Design the AEF circuit'!$G$18*0.001)),IMDIV(1,'Design the AEF circuit'!$G$19*1000))), IMDIV(1,IMSUM(IMDIV(1,IMPRODUCT(B51,'Design the AEF circuit'!$G$21*0.001)),IMDIV(1,'Design the AEF circuit'!$G$22*1000))), IMDIV(1,IMSUM(IMDIV(1,IMPRODUCT(B51,'Design the AEF circuit'!$G$23*0.001)),IMDIV(1,'Design the AEF circuit'!$G$24*1000))) ) -> 0.109421916218188+23.0336059841096j | O51: =IMDIV(1, IMSUM( IMDIV(1, N51), IMPRODUCT(B51,'Design the AEF circuit'!$G$20*0.000000000001))) -> 0.109422043939732+23.0336194266656j | P51: =IMSUM(IMDIV(1,IMSUM(IMDIV(1,IMPRODUCT(B51,'Design the AEF circuit'!$H$18*0.001)),IMDIV(1,'Design the AEF circuit'!$H$19*1000))), IMDIV(1,IMSUM(IMDIV(1,IMPRODUCT(B51,'Design the AEF circuit'!$H$21*0.001)),IMDIV(1,'Design the AEF circuit'!$H$22*1000))), IMDIV(1,IMSUM(IMDIV(1,IMPRODUCT(B51,'Design the AEF circuit'!$H$23*0.001)),IMDIV(1,'Design the AEF circuit'!$H$24*1000))) ) -> 0.109421916218188+23.0336059841096j | Q51: =IMDIV(1, IMSUM( IMDIV(1, P51), IMPRODUCT(B51,'Design the AEF circuit'!$H$20*0.000000000001) ) ) -> 0.109422043939732+23.0336194266656j
A52: ='Frequency vector'!G52 -> 185.629754 | B52: =COMPLEX(0,2*PI()*'Frequency vector'!G52,"j") -> 1166.34614272949j | C52: =IF(IF(CMdata=1,IMABS(K52),'CM choke'!C56)=0, C51, IF(CMdata=1,IMABS(K52),'CM choke'!C56)) -> 15.8261594 | D52: =IF(IF(CMdata=1,DEGREES(IMARGUMENT(K52)),'CM choke'!D56)=0, D51, IF(CMdata=1,DEGREES(IMARGUMENT(K52)),'CM choke'!D56)) -> 90.7668148 | E52: =IF(IF(CMdata=1,IMABS(L52),'CM choke'!E56)=0, E51, IF(CMdata=1,IMABS(L52),'CM choke'!E56)) -> 15.8261594 | F52: =IF(IF(CMdata=1,DEGREES(IMARGUMENT(L52)),'CM choke'!F56)=0, F51, IF(CMdata=1,DEGREES(IMARGUMENT(L52)),'CM choke'!F56)) -> 90.7668148 | G52: -0.2118021788 | H52: 15.82474206 | I52: -0.2118021788 | J52: 15.82474206 | K52: =IF(CMdata=1, IF(Lcm1_core=1, IMDIV(1,IMSUM(IMDIV(1,IMPRODUCT(B52,'Design the AEF circuit'!$G$18*0.001)),IMDIV(1,'Design the AEF circuit'!$G$19*1000),IMPRODUCT(B52,'Design the AEF circuit'!$G$20*0.000000000001))), O52),COMPLEX(G52,H52,"j")) -> -0.211802178791372+15.8247420597676j | L52: =IF(CMdata=1, IF(Lcm2_core=1, IMDIV(1, IMSUM(IMDIV(1,IMPRODUCT(B52,'Design the AEF circuit'!$H$18*0.001)), IMDIV(1,'Design the AEF circuit'!$H$19*1000), IMPRODUCT(B52,'Design the AEF circuit'!$H$20*0.000000000001))), Q52), COMPLEX(I52,J52,"j")) -> -0.211802178791372+15.8247420597676j | N52: =IMSUM(IMDIV(1,IMSUM(IMDIV(1,IMPRODUCT(B52,'Design the AEF circuit'!$G$18*0.001)),IMDIV(1,'Design the AEF circuit'!$G$19*1000))), IMDIV(1,IMSUM(IMDIV(1,IMPRODUCT(B52,'Design the AEF circuit'!$G$21*0.001)),IMDIV(1,'Design the AEF circuit'!$G$22*1000))), IMDIV(1,IMSUM(IMDIV(1,IMPRODUCT(B52,'Design the AEF circuit'!$G$23*0.001)),IMDIV(1,'Design the AEF circuit'!$G$24*1000))) ) -> 0.112219687816956+23.3262113927585j | O52: =IMDIV(1, IMSUM( IMDIV(1, N52), IMPRODUCT(B52,'Design the AEF circuit'!$G$20*0.000000000001))) -> 0.112219822153381+23.3262253541518j | P52: =IMSUM(IMDIV(1,IMSUM(IMDIV(1,IMPRODUCT(B52,'Design the AEF circuit'!$H$18*0.001)),IMDIV(1,'Design the AEF circuit'!$H$19*1000))), IMDIV(1,IMSUM(IMDIV(1,IMPRODUCT(B52,'Design the AEF circuit'!$H$21*0.001)),IMDIV(1,'Design the AEF circuit'!$H$22*1000))), IMDIV(1,IMSUM(IMDIV(1,IMPRODUCT(B52,'Design the AEF circuit'!$H$23*0.001)),IMDIV(1,'Design the AEF circuit'!$H$24*1000))) ) -> 0.112219687816956+23.3262113927585j | Q52: =IMDIV(1, IMSUM( IMDIV(1, P52), IMPRODUCT(B52,'Design the AEF circuit'!$H$20*0.000000000001) ) ) -> 0.112219822153381+23.3262253541518j
A53: ='Frequency vector'!G53 -> 187.9880283 | B53: =COMPLEX(0,2*PI()*'Frequency vector'!G53,"j") -> 1181.16361759862j | C53: =IF(IF(CMdata=1,IMABS(K53),'CM choke'!C57)=0, C52, IF(CMdata=1,IMABS(K53),'CM choke'!C57)) -> 15.89814432 | D53: =IF(IF(CMdata=1,DEGREES(IMARGUMENT(K53)),'CM choke'!D57)=0, D52, IF(CMdata=1,DEGREES(IMARGUMENT(K53)),'CM choke'!D57)) -> 90.85753532 | E53: =IF(IF(CMdata=1,IMABS(L53),'CM choke'!E57)=0, E52, IF(CMdata=1,IMABS(L53),'CM choke'!E57)) -> 15.89814432 | F53: =IF(IF(CMdata=1,DEGREES(IMARGUMENT(L53)),'CM choke'!F57)=0, F52, IF(CMdata=1,DEGREES(IMARGUMENT(L53)),'CM choke'!F57)) -> 90.85753532 | G53: -0.2379356985 | H53: 15.89636372 | I53: -0.2379356985 | J53: 15.89636372 | K53: =IF(CMdata=1, IF(Lcm1_core=1, IMDIV(1,IMSUM(IMDIV(1,IMPRODUCT(B53,'Design the AEF circuit'!$G$18*0.001)),IMDIV(1,'Design the AEF circuit'!$G$19*1000),IMPRODUCT(B53,'Design the AEF circuit'!$G$20*0.000000000001))), O53),COMPLEX(G53,H53,"j")) -> -0.237935698479385+15.8963637205362j | L53: =IF(CMdata=1, IF(Lcm2_core=1, IMDIV(1, IMSUM(IMDIV(1,IMPRODUCT(B53,'Design the AEF circuit'!$H$18*0.001)), IMDIV(1,'Design the AEF circuit'!$H$19*1000), IMPRODUCT(B53,'Design the AEF circuit'!$H$20*0.000000000001))), Q53), COMPLEX(I53,J53,"j")) -> -0.237935698479385+15.8963637205362j | N53: =IMSUM(IMDIV(1,IMSUM(IMDIV(1,IMPRODUCT(B53,'Design the AEF circuit'!$G$18*0.001)),IMDIV(1,'Design the AEF circuit'!$G$19*1000))), IMDIV(1,IMSUM(IMDIV(1,IMPRODUCT(B53,'Design the AEF circuit'!$G$21*0.001)),IMDIV(1,'Design the AEF circuit'!$G$22*1000))), IMDIV(1,IMSUM(IMDIV(1,IMPRODUCT(B53,'Design the AEF circuit'!$G$23*0.001)),IMDIV(1,'Design the AEF circuit'!$G$24*1000))) ) -> 0.115088991514647+23.6225334294702j | O53: =IMDIV(1, IMSUM( IMDIV(1, N53), IMPRODUCT(B53,'Design the AEF circuit'!$G$20*0.000000000001))) -> 0.115089132808541+23.6225479297254j | P53: =IMSUM(IMDIV(1,IMSUM(IMDIV(1,IMPRODUCT(B53,'Design the AEF circuit'!$H$18*0.001)),IMDIV(1,'Design the AEF circuit'!$H$19*1000))), IMDIV(1,IMSUM(IMDIV(1,IMPRODUCT(B53,'Design the AEF circuit'!$H$21*0.001)),IMDIV(1,'Design the AEF circuit'!$H$22*1000))), IMDIV(1,IMSUM(IMDIV(1,IMPRODUCT(B53,'Design the AEF circuit'!$H$23*0.001)),IMDIV(1,'Design the AEF circuit'!$H$24*1000))) ) -> 0.115088991514647+23.6225334294702j | Q53: =IMDIV(1, IMSUM( IMDIV(1, P53), IMPRODUCT(B53,'Design the AEF circuit'!$H$20*0.000000000001) ) ) -> 0.115089132808541+23.6225479297254j
A54: ='Frequency vector'!G54 -> 190.3762627 | B54: =COMPLEX(0,2*PI()*'Frequency vector'!G54,"j") -> 1196.16933638048j | C54: =IF(IF(CMdata=1,IMABS(K54),'CM choke'!C58)=0, C53, IF(CMdata=1,IMABS(K54),'CM choke'!C58)) -> 16.12118913 | D54: =IF(IF(CMdata=1,DEGREES(IMARGUMENT(K54)),'CM choke'!D58)=0, D53, IF(CMdata=1,DEGREES(IMARGUMENT(K54)),'CM choke'!D58)) -> 90.50129628 | E54: =IF(IF(CMdata=1,IMABS(L54),'CM choke'!E58)=0, E53, IF(CMdata=1,IMABS(L54),'CM choke'!E58)) -> 16.12118913 | F54: =IF(IF(CMdata=1,DEGREES(IMARGUMENT(L54)),'CM choke'!F58)=0, F53, IF(CMdata=1,DEGREES(IMARGUMENT(L54)),'CM choke'!F58)) -> 90.50129628 | G54: -0.1410468472 | H54: 16.12057209 | I54: -0.1410468472 | J54: 16.12057209 | K54: =IF(CMdata=1, IF(Lcm1_core=1, IMDIV(1,IMSUM(IMDIV(1,IMPRODUCT(B54,'Design the AEF circuit'!$G$18*0.001)),IMDIV(1,'Design the AEF circuit'!$G$19*1000),IMPRODUCT(B54,'Design the AEF circuit'!$G$20*0.000000000001))), O54),COMPLEX(G54,H54,"j")) -> -0.1410468471696+16.1205720949579j | L54: =IF(CMdata=1, IF(Lcm2_core=1, IMDIV(1, IMSUM(IMDIV(1,IMPRODUCT(B54,'Design the AEF circuit'!$H$18*0.001)), IMDIV(1,'Design the AEF circuit'!$H$19*1000), IMPRODUCT(B54,'Design the AEF circuit'!$H$20*0.000000000001))), Q54), COMPLEX(I54,J54,"j")) -> -0.1410468471696+16.1205720949579j | N54: =IMSUM(IMDIV(1,IMSUM(IMDIV(1,IMPRODUCT(B54,'Design the AEF circuit'!$G$18*0.001)),IMDIV(1,'Design the AEF circuit'!$G$19*1000))), IMDIV(1,IMSUM(IMDIV(1,IMPRODUCT(B54,'Design the AEF circuit'!$G$21*0.001)),IMDIV(1,'Design the AEF circuit'!$G$22*1000))), IMDIV(1,IMSUM(IMDIV(1,IMPRODUCT(B54,'Design the AEF circuit'!$G$23*0.001)),IMDIV(1,'Design the AEF circuit'!$G$24*1000))) ) -> 0.118031656046046+23.9226192845462j | O54: =IMDIV(1, IMSUM( IMDIV(1, N54), IMPRODUCT(B54,'Design the AEF circuit'!$G$20*0.000000000001))) -> 0.118031804657739+23.9226343444607j | P54: =IMSUM(IMDIV(1,IMSUM(IMDIV(1,IMPRODUCT(B54,'Design the AEF circuit'!$H$18*0.001)),IMDIV(1,'Design the AEF circuit'!$H$19*1000))), IMDIV(1,IMSUM(IMDIV(1,IMPRODUCT(B54,'Design the AEF circuit'!$H$21*0.001)),IMDIV(1,'Design the AEF circuit'!$H$22*1000))), IMDIV(1,IMSUM(IMDIV(1,IMPRODUCT(B54,'Design the AEF circuit'!$H$23*0.001)),IMDIV(1,'Design the AEF circuit'!$H$24*1000))) ) -> 0.118031656046046+23.9226192845462j | Q54: =IMDIV(1, IMSUM( IMDIV(1, P54), IMPRODUCT(B54,'Design the AEF circuit'!$H$20*0.000000000001) ) ) -> 0.118031804657739+23.9226343444607j
A55: ='Frequency vector'!G55 -> 192.7948375 | B55: =COMPLEX(0,2*PI()*'Frequency vector'!G55,"j") -> 1211.36569056017j | C55: =IF(IF(CMdata=1,IMABS(K55),'CM choke'!C59)=0, C54, IF(CMdata=1,IMABS(K55),'CM choke'!C59)) -> 16.20624341 | D55: =IF(IF(CMdata=1,DEGREES(IMARGUMENT(K55)),'CM choke'!D59)=0, D54, IF(CMdata=1,DEGREES(IMARGUMENT(K55)),'CM choke'!D59)) -> 90.55753596 | E55: =IF(IF(CMdata=1,IMABS(L55),'CM choke'!E59)=0, E54, IF(CMdata=1,IMABS(L55),'CM choke'!E59)) -> 16.20624341 | F55: =IF(IF(CMdata=1,DEGREES(IMARGUMENT(L55)),'CM choke'!F59)=0, F54, IF(CMdata=1,DEGREES(IMARGUMENT(L55)),'CM choke'!F59)) -> 90.55753596 | G55: -0.1576978444 | H55: 16.20547613 | I55: -0.1576978444 | J55: 16.20547613 | K55: =IF(CMdata=1, IF(Lcm1_core=1, IMDIV(1,IMSUM(IMDIV(1,IMPRODUCT(B55,'Design the AEF circuit'!$G$18*0.001)),IMDIV(1,'Design the AEF circuit'!$G$19*1000),IMPRODUCT(B55,'Design the AEF circuit'!$G$20*0.000000000001))), O55),COMPLEX(G55,H55,"j")) -> -0.157697844393817+16.2054761336453j | L55: =IF(CMdata=1, IF(Lcm2_core=1, IMDIV(1, IMSUM(IMDIV(1,IMPRODUCT(B55,'Design the AEF circuit'!$H$18*0.001)), IMDIV(1,'Design the AEF circuit'!$H$19*1000), IMPRODUCT(B55,'Design the AEF circuit'!$H$20*0.000000000001))), Q55), COMPLEX(I55,J55,"j")) -> -0.157697844393817+16.2054761336453j | N55: =IMSUM(IMDIV(1,IMSUM(IMDIV(1,IMPRODUCT(B55,'Design the AEF circuit'!$G$18*0.001)),IMDIV(1,'Design the AEF circuit'!$G$19*1000))), IMDIV(1,IMSUM(IMDIV(1,IMPRODUCT(B55,'Design the AEF circuit'!$G$21*0.001)),IMDIV(1,'Design the AEF circuit'!$G$22*1000))), IMDIV(1,IMSUM(IMDIV(1,IMPRODUCT(B55,'Design the AEF circuit'!$G$23*0.001)),IMDIV(1,'Design the AEF circuit'!$G$24*1000))) ) -> 0.121049556889457+24.2265167467817j | O55: =IMDIV(1, IMSUM( IMDIV(1, N55), IMPRODUCT(B55,'Design the AEF circuit'!$G$20*0.000000000001))) -> 0.121049713197939+24.2265323879555j | P55: =IMSUM(IMDIV(1,IMSUM(IMDIV(1,IMPRODUCT(B55,'Design the AEF circuit'!$H$18*0.001)),IMDIV(1,'Design the AEF circuit'!$H$19*1000))), IMDIV(1,IMSUM(IMDIV(1,IMPRODUCT(B55,'Design the AEF circuit'!$H$21*0.001)),IMDIV(1,'Design the AEF circuit'!$H$22*1000))), IMDIV(1,IMSUM(IMDIV(1,IMPRODUCT(B55,'Design the AEF circuit'!$H$23*0.001)),IMDIV(1,'Design the AEF circuit'!$H$24*1000))) ) -> 0.121049556889457+24.2265167467817j | Q55: =IMDIV(1, IMSUM( IMDIV(1, P55), IMPRODUCT(B55,'Design the AEF circuit'!$H$20*0.000000000001) ) ) -> 0.121049713197939+24.2265323879555j
A56: ='Frequency vector'!G56 -> 195.2441384 | B56: =COMPLEX(0,2*PI()*'Frequency vector'!G56,"j") -> 1226.7551020047j | C56: =IF(IF(CMdata=1,IMABS(K56),'CM choke'!C60)=0, C55, IF(CMdata=1,IMABS(K56),'CM choke'!C60)) -> 16.67067848 | D56: =IF(IF(CMdata=1,DEGREES(IMARGUMENT(K56)),'CM choke'!D60)=0, D55, IF(CMdata=1,DEGREES(IMARGUMENT(K56)),'CM choke'!D60)) -> 90.82381152 | E56: =IF(IF(CMdata=1,IMABS(L56),'CM choke'!E60)=0, E55, IF(CMdata=1,IMABS(L56),'CM choke'!E60)) -> 16.67067848 | F56: =IF(IF(CMdata=1,DEGREES(IMARGUMENT(L56)),'CM choke'!F60)=0, F55, IF(CMdata=1,DEGREES(IMARGUMENT(L56)),'CM choke'!F60)) -> 90.82381152 | G56: -0.2396864818 | H56: 16.66895532 | I56: -0.2396864818 | J56: 16.66895532 | K56: =IF(CMdata=1, IF(Lcm1_core=1, IMDIV(1,IMSUM(IMDIV(1,IMPRODUCT(B56,'Design the AEF circuit'!$G$18*0.001)),IMDIV(1,'Design the AEF circuit'!$G$19*1000),IMPRODUCT(B56,'Design the AEF circuit'!$G$20*0.000000000001))), O56),COMPLEX(G56,H56,"j")) -> -0.239686481762111+16.6689553183001j | L56: =IF(CMdata=1, IF(Lcm2_core=1, IMDIV(1, IMSUM(IMDIV(1,IMPRODUCT(B56,'Design the AEF circuit'!$H$18*0.001)), IMDIV(1,'Design the AEF circuit'!$H$19*1000), IMPRODUCT(B56,'Design the AEF circuit'!$H$20*0.000000000001))), Q56), COMPLEX(I56,J56,"j")) -> -0.239686481762111+16.6689553183001j | N56: =IMSUM(IMDIV(1,IMSUM(IMDIV(1,IMPRODUCT(B56,'Design the AEF circuit'!$G$18*0.001)),IMDIV(1,'Design the AEF circuit'!$G$19*1000))), IMDIV(1,IMSUM(IMDIV(1,IMPRODUCT(B56,'Design the AEF circuit'!$G$21*0.001)),IMDIV(1,'Design the AEF circuit'!$G$22*1000))), IMDIV(1,IMSUM(IMDIV(1,IMPRODUCT(B56,'Design the AEF circuit'!$G$23*0.001)),IMDIV(1,'Design the AEF circuit'!$G$24*1000))) ) -> 0.124144617461093+24.5342742110315j | O56: =IMDIV(1, IMSUM( IMDIV(1, N56), IMPRODUCT(B56,'Design the AEF circuit'!$G$20*0.000000000001))) -> 0.124144781864983+24.5342904558981j | P56: =IMSUM(IMDIV(1,IMSUM(IMDIV(1,IMPRODUCT(B56,'Design the AEF circuit'!$H$18*0.001)),IMDIV(1,'Design the AEF circuit'!$H$19*1000))), IMDIV(1,IMSUM(IMDIV(1,IMPRODUCT(B56,'Design the AEF circuit'!$H$21*0.001)),IMDIV(1,'Design the AEF circuit'!$H$22*1000))), IMDIV(1,IMSUM(IMDIV(1,IMPRODUCT(B56,'Design the AEF circuit'!$H$23*0.001)),IMDIV(1,'Design the AEF circuit'!$H$24*1000))) ) -> 0.124144617461093+24.5342742110315j | Q56: =IMDIV(1, IMSUM( IMDIV(1, P56), IMPRODUCT(B56,'Design the AEF circuit'!$H$20*0.000000000001) ) ) -> 0.124144781864983+24.5342904558981j
A57: ='Frequency vector'!G57 -> 197.7245557 | B57: =COMPLEX(0,2*PI()*'Frequency vector'!G57,"j") -> 1242.34002334889j | C57: =IF(IF(CMdata=1,IMABS(K57),'CM choke'!C61)=0, C56, IF(CMdata=1,IMABS(K57),'CM choke'!C61)) -> 16.77529203 | D57: =IF(IF(CMdata=1,DEGREES(IMARGUMENT(K57)),'CM choke'!D61)=0, D56, IF(CMdata=1,DEGREES(IMARGUMENT(K57)),'CM choke'!D61)) -> 91.04117296 | E57: =IF(IF(CMdata=1,IMABS(L57),'CM choke'!E61)=0, E56, IF(CMdata=1,IMABS(L57),'CM choke'!E61)) -> 16.77529203 | F57: =IF(IF(CMdata=1,DEGREES(IMARGUMENT(L57)),'CM choke'!F61)=0, F56, IF(CMdata=1,DEGREES(IMARGUMENT(L57)),'CM choke'!F61)) -> 91.04117296 | G57: -0.3048220906 | H57: 16.77252236 | I57: -0.3048220906 | J57: 16.77252236 | K57: =IF(CMdata=1, IF(Lcm1_core=1, IMDIV(1,IMSUM(IMDIV(1,IMPRODUCT(B57,'Design the AEF circuit'!$G$18*0.001)),IMDIV(1,'Design the AEF circuit'!$G$19*1000),IMPRODUCT(B57,'Design the AEF circuit'!$G$20*0.000000000001))), O57),COMPLEX(G57,H57,"j")) -> -0.304822090619807+16.7725223579589j | L57: =IF(CMdata=1, IF(Lcm2_core=1, IMDIV(1, IMSUM(IMDIV(1,IMPRODUCT(B57,'Design the AEF circuit'!$H$18*0.001)), IMDIV(1,'Design the AEF circuit'!$H$19*1000), IMPRODUCT(B57,'Design the AEF circuit'!$H$20*0.000000000001))), Q57), COMPLEX(I57,J57,"j")) -> -0.304822090619807+16.7725223579589j | N57: =IMSUM(IMDIV(1,IMSUM(IMDIV(1,IMPRODUCT(B57,'Design the AEF circuit'!$G$18*0.001)),IMDIV(1,'Design the AEF circuit'!$G$19*1000))), IMDIV(1,IMSUM(IMDIV(1,IMPRODUCT(B57,'Design the AEF circuit'!$G$21*0.001)),IMDIV(1,'Design the AEF circuit'!$G$22*1000))), IMDIV(1,IMSUM(IMDIV(1,IMPRODUCT(B57,'Design the AEF circuit'!$G$23*0.001)),IMDIV(1,'Design the AEF circuit'!$G$24*1000))) ) -> 0.127318810339885+24.8459406858671j | O57: =IMDIV(1, IMSUM( IMDIV(1, N57), IMPRODUCT(B57,'Design the AEF circuit'!$G$20*0.000000000001))) -> 0.127318983258445+24.8459575577261j | P57: =IMSUM(IMDIV(1,IMSUM(IMDIV(1,IMPRODUCT(B57,'Design the AEF circuit'!$H$18*0.001)),IMDIV(1,'Design the AEF circuit'!$H$19*1000))), IMDIV(1,IMSUM(IMDIV(1,IMPRODUCT(B57,'Design the AEF circuit'!$H$21*0.001)),IMDIV(1,'Design the AEF circuit'!$H$22*1000))), IMDIV(1,IMSUM(IMDIV(1,IMPRODUCT(B57,'Design the AEF circuit'!$H$23*0.001)),IMDIV(1,'Design the AEF circuit'!$H$24*1000))) ) -> 0.127318810339885+24.8459406858671j | Q57: =IMDIV(1, IMSUM( IMDIV(1, P57), IMPRODUCT(B57,'Design the AEF circuit'!$H$20*0.000000000001) ) ) -> 0.127318983258445+24.8459575577261j
A58: ='Frequency vector'!G58 -> 200.2364847 | B58: =COMPLEX(0,2*PI()*'Frequency vector'!G58,"j") -> 1258.12293838629j | C58: =IF(IF(CMdata=1,IMABS(K58),'CM choke'!C62)=0, C57, IF(CMdata=1,IMABS(K58),'CM choke'!C62)) -> 17.22629974 | D58: =IF(IF(CMdata=1,DEGREES(IMARGUMENT(K58)),'CM choke'!D62)=0, D57, IF(CMdata=1,DEGREES(IMARGUMENT(K58)),'CM choke'!D62)) -> 90.72514068 | E58: =IF(IF(CMdata=1,IMABS(L58),'CM choke'!E62)=0, E57, IF(CMdata=1,IMABS(L58),'CM choke'!E62)) -> 17.22629974 | F58: =IF(IF(CMdata=1,DEGREES(IMARGUMENT(L58)),'CM choke'!F62)=0, F57, IF(CMdata=1,DEGREES(IMARGUMENT(L58)),'CM choke'!F62)) -> 90.72514068 | G58: -0.2180118226 | H58: 17.22492014 | I58: -0.2180118226 | J58: 17.22492014 | K58: =IF(CMdata=1, IF(Lcm1_core=1, IMDIV(1,IMSUM(IMDIV(1,IMPRODUCT(B58,'Design the AEF circuit'!$G$18*0.001)),IMDIV(1,'Design the AEF circuit'!$G$19*1000),IMPRODUCT(B58,'Design the AEF circuit'!$G$20*0.000000000001))), O58),COMPLEX(G58,H58,"j")) -> -0.218011822626971+17.2249201354468j | L58: =IF(CMdata=1, IF(Lcm2_core=1, IMDIV(1, IMSUM(IMDIV(1,IMPRODUCT(B58,'Design the AEF circuit'!$H$18*0.001)), IMDIV(1,'Design the AEF circuit'!$H$19*1000), IMPRODUCT(B58,'Design the AEF circuit'!$H$20*0.000000000001))), Q58), COMPLEX(I58,J58,"j")) -> -0.218011822626971+17.2249201354468j | N58: =IMSUM(IMDIV(1,IMSUM(IMDIV(1,IMPRODUCT(B58,'Design the AEF circuit'!$G$18*0.001)),IMDIV(1,'Design the AEF circuit'!$G$19*1000))), IMDIV(1,IMSUM(IMDIV(1,IMPRODUCT(B58,'Design the AEF circuit'!$G$21*0.001)),IMDIV(1,'Design the AEF circuit'!$G$22*1000))), IMDIV(1,IMSUM(IMDIV(1,IMPRODUCT(B58,'Design the AEF circuit'!$G$23*0.001)),IMDIV(1,'Design the AEF circuit'!$G$24*1000))) ) -> 0.130574158523621+25.1615658013315j | O58: =IMDIV(1, IMSUM( IMDIV(1, N58), IMPRODUCT(B58,'Design the AEF circuit'!$G$20*0.000000000001))) -> 0.130574340397827+25.1615833243813j | P58: =IMSUM(IMDIV(1,IMSUM(IMDIV(1,IMPRODUCT(B58,'Design the AEF circuit'!$H$18*0.001)),IMDIV(1,'Design the AEF circuit'!$H$19*1000))), IMDIV(1,IMSUM(IMDIV(1,IMPRODUCT(B58,'Design the AEF circuit'!$H$21*0.001)),IMDIV(1,'Design the AEF circuit'!$H$22*1000))), IMDIV(1,IMSUM(IMDIV(1,IMPRODUCT(B58,'Design the AEF circuit'!$H$23*0.001)),IMDIV(1,'Design the AEF circuit'!$H$24*1000))) ) -> 0.130574158523621+25.1615658013315j | Q58: =IMDIV(1, IMSUM( IMDIV(1, P58), IMPRODUCT(B58,'Design the AEF circuit'!$H$20*0.000000000001) ) ) -> 0.130574340397827+25.1615833243813j
A59: ='Frequency vector'!G59 -> 202.7803256 | B59: =COMPLEX(0,2*PI()*'Frequency vector'!G59,"j") -> 1274.106362465j | C59: =IF(IF(CMdata=1,IMABS(K59),'CM choke'!C63)=0, C58, IF(CMdata=1,IMABS(K59),'CM choke'!C63)) -> 17.40565524 | D59: =IF(IF(CMdata=1,DEGREES(IMARGUMENT(K59)),'CM choke'!D63)=0, D58, IF(CMdata=1,DEGREES(IMARGUMENT(K59)),'CM choke'!D63)) -> 90.92604879 | E59: =IF(IF(CMdata=1,IMABS(L59),'CM choke'!E63)=0, E58, IF(CMdata=1,IMABS(L59),'CM choke'!E63)) -> 17.40565524 | F59: =IF(IF(CMdata=1,DEGREES(IMARGUMENT(L59)),'CM choke'!F63)=0, F58, IF(CMdata=1,DEGREES(IMARGUMENT(L59)),'CM choke'!F63)) -> 90.92604879 | G59: -0.2813084022 | H59: 17.40338186 | I59: -0.2813084022 | J59: 17.40338186 | K59: =IF(CMdata=1, IF(Lcm1_core=1, IMDIV(1,IMSUM(IMDIV(1,IMPRODUCT(B59,'Design the AEF circuit'!$G$18*0.001)),IMDIV(1,'Design the AEF circuit'!$G$19*1000),IMPRODUCT(B59,'Design the AEF circuit'!$G$20*0.000000000001))), O59),COMPLEX(G59,H59,"j")) -> -0.28130840221986+17.4033818569648j | L59: =IF(CMdata=1, IF(Lcm2_core=1, IMDIV(1, IMSUM(IMDIV(1,IMPRODUCT(B59,'Design the AEF circuit'!$H$18*0.001)), IMDIV(1,'Design the AEF circuit'!$H$19*1000), IMPRODUCT(B59,'Design the AEF circuit'!$H$20*0.000000000001))), Q59), COMPLEX(I59,J59,"j")) -> -0.28130840221986+17.4033818569648j | N59: =IMSUM(IMDIV(1,IMSUM(IMDIV(1,IMPRODUCT(B59,'Design the AEF circuit'!$G$18*0.001)),IMDIV(1,'Design the AEF circuit'!$G$19*1000))), IMDIV(1,IMSUM(IMDIV(1,IMPRODUCT(B59,'Design the AEF circuit'!$G$21*0.001)),IMDIV(1,'Design the AEF circuit'!$G$22*1000))), IMDIV(1,IMSUM(IMDIV(1,IMPRODUCT(B59,'Design the AEF circuit'!$G$23*0.001)),IMDIV(1,'Design the AEF circuit'!$G$24*1000))) ) -> 0.133912736717127+25.4811998167901j | O59: =IMDIV(1, IMSUM( IMDIV(1, N59), IMPRODUCT(B59,'Design the AEF circuit'!$G$20*0.000000000001))) -> 0.13391292801079+25.4812180161632j | P59: =IMSUM(IMDIV(1,IMSUM(IMDIV(1,IMPRODUCT(B59,'Design the AEF circuit'!$H$18*0.001)),IMDIV(1,'Design the AEF circuit'!$H$19*1000))), IMDIV(1,IMSUM(IMDIV(1,IMPRODUCT(B59,'Design the AEF circuit'!$H$21*0.001)),IMDIV(1,'Design the AEF circuit'!$H$22*1000))), IMDIV(1,IMSUM(IMDIV(1,IMPRODUCT(B59,'Design the AEF circuit'!$H$23*0.001)),IMDIV(1,'Design the AEF circuit'!$H$24*1000))) ) -> 0.133912736717127+25.4811998167901j | Q59: =IMDIV(1, IMSUM( IMDIV(1, P59), IMPRODUCT(B59,'Design the AEF circuit'!$H$20*0.000000000001) ) ) -> 0.13391292801079+25.4812180161632j
A60: ='Frequency vector'!G60 -> 205.356484 | B60: =COMPLEX(0,2*PI()*'Frequency vector'!G60,"j") -> 1290.29284288859j | C60: =IF(IF(CMdata=1,IMABS(K60),'CM choke'!C64)=0, C59, IF(CMdata=1,IMABS(K60),'CM choke'!C64)) -> 17.56553383 | D60: =IF(IF(CMdata=1,DEGREES(IMARGUMENT(K60)),'CM choke'!D64)=0, D59, IF(CMdata=1,DEGREES(IMARGUMENT(K60)),'CM choke'!D64)) -> 90.8073214 | E60: =IF(IF(CMdata=1,IMABS(L60),'CM choke'!E64)=0, E59, IF(CMdata=1,IMABS(L60),'CM choke'!E64)) -> 17.56553383 | F60: =IF(IF(CMdata=1,DEGREES(IMARGUMENT(L60)),'CM choke'!F64)=0, F59, IF(CMdata=1,DEGREES(IMARGUMENT(L60)),'CM choke'!F64)) -> 90.8073214 | G60: -0.2474974976 | H60: 17.56379013 | I60: -0.2474974976 | J60: 17.56379013 | K60: =IF(CMdata=1, IF(Lcm1_core=1, IMDIV(1,IMSUM(IMDIV(1,IMPRODUCT(B60,'Design the AEF circuit'!$G$18*0.001)),IMDIV(1,'Design the AEF circuit'!$G$19*1000),IMPRODUCT(B60,'Design the AEF circuit'!$G$20*0.000000000001))), O60),COMPLEX(G60,H60,"j")) -> -0.247497497590546+17.5637901297698j | L60: =IF(CMdata=1, IF(Lcm2_core=1, IMDIV(1, IMSUM(IMDIV(1,IMPRODUCT(B60,'Design the AEF circuit'!$H$18*0.001)), IMDIV(1,'Design the AEF circuit'!$H$19*1000), IMPRODUCT(B60,'Design the AEF circuit'!$H$20*0.000000000001))), Q60), COMPLEX(I60,J60,"j")) -> -0.247497497590546+17.5637901297698j | N60: =IMSUM(IMDIV(1,IMSUM(IMDIV(1,IMPRODUCT(B60,'Design the AEF circuit'!$G$18*0.001)),IMDIV(1,'Design the AEF circuit'!$G$19*1000))), IMDIV(1,IMSUM(IMDIV(1,IMPRODUCT(B60,'Design the AEF circuit'!$G$21*0.001)),IMDIV(1,'Design the AEF circuit'!$G$22*1000))), IMDIV(1,IMSUM(IMDIV(1,IMPRODUCT(B60,'Design the AEF circuit'!$G$23*0.001)),IMDIV(1,'Design the AEF circuit'!$G$24*1000))) ) -> 0.137336672653342+25.8048936288811j | O60: =IMDIV(1, IMSUM( IMDIV(1, N60), IMPRODUCT(B60,'Design the AEF circuit'!$G$20*0.000000000001))) -> 0.137336873854296+25.8049125306797j | P60: =IMSUM(IMDIV(1,IMSUM(IMDIV(1,IMPRODUCT(B60,'Design the AEF circuit'!$H$18*0.001)),IMDIV(1,'Design the AEF circuit'!$H$19*1000))), IMDIV(1,IMSUM(IMDIV(1,IMPRODUCT(B60,'Design the AEF circuit'!$H$21*0.001)),IMDIV(1,'Design the AEF circuit'!$H$22*1000))), IMDIV(1,IMSUM(IMDIV(1,IMPRODUCT(B60,'Design the AEF circuit'!$H$23*0.001)),IMDIV(1,'Design the AEF circuit'!$H$24*1000))) ) -> 0.137336672653342+25.8048936288811j | Q60: =IMDIV(1, IMSUM( IMDIV(1, P60), IMPRODUCT(B60,'Design the AEF circuit'!$H$20*0.000000000001) ) ) -> 0.137336873854296+25.8049125306797j
A61: ='Frequency vector'!G61 -> 207.9653703 | B61: =COMPLEX(0,2*PI()*'Frequency vector'!G61,"j") -> 1306.68495932204j | C61: =IF(IF(CMdata=1,IMABS(K61),'CM choke'!C65)=0, C60, IF(CMdata=1,IMABS(K61),'CM choke'!C65)) -> 17.60827928 | D61: =IF(IF(CMdata=1,DEGREES(IMARGUMENT(K61)),'CM choke'!D65)=0, D60, IF(CMdata=1,DEGREES(IMARGUMENT(K61)),'CM choke'!D65)) -> 90.79050946 | E61: =IF(IF(CMdata=1,IMABS(L61),'CM choke'!E65)=0, E60, IF(CMdata=1,IMABS(L61),'CM choke'!E65)) -> 17.60827928 | F61: =IF(IF(CMdata=1,DEGREES(IMARGUMENT(L61)),'CM choke'!F65)=0, F60, IF(CMdata=1,DEGREES(IMARGUMENT(L61)),'CM choke'!F65)) -> 90.79050946 | G61: -0.2429335945 | H61: 17.60660337 | I61: -0.2429335945 | J61: 17.60660337 | K61: =IF(CMdata=1, IF(Lcm1_core=1, IMDIV(1,IMSUM(IMDIV(1,IMPRODUCT(B61,'Design the AEF circuit'!$G$18*0.001)),IMDIV(1,'Design the AEF circuit'!$G$19*1000),IMPRODUCT(B61,'Design the AEF circuit'!$G$20*0.000000000001))), O61),COMPLEX(G61,H61,"j")) -> -0.242933594533084+17.6066033737304j | L61: =IF(CMdata=1, IF(Lcm2_core=1, IMDIV(1, IMSUM(IMDIV(1,IMPRODUCT(B61,'Design the AEF circuit'!$H$18*0.001)), IMDIV(1,'Design the AEF circuit'!$H$19*1000), IMPRODUCT(B61,'Design the AEF circuit'!$H$20*0.000000000001))), Q61), COMPLEX(I61,J61,"j")) -> -0.242933594533084+17.6066033737304j | N61: =IMSUM(IMDIV(1,IMSUM(IMDIV(1,IMPRODUCT(B61,'Design the AEF circuit'!$G$18*0.001)),IMDIV(1,'Design the AEF circuit'!$G$19*1000))), IMDIV(1,IMSUM(IMDIV(1,IMPRODUCT(B61,'Design the AEF circuit'!$G$21*0.001)),IMDIV(1,'Design the AEF circuit'!$G$22*1000))), IMDIV(1,IMSUM(IMDIV(1,IMPRODUCT(B61,'Design the AEF circuit'!$G$23*0.001)),IMDIV(1,'Design the AEF circuit'!$G$24*1000))) ) -> 0.140848148448121+26.132698779563j | O61: =IMDIV(1, IMSUM( IMDIV(1, N61), IMPRODUCT(B61,'Design the AEF circuit'!$G$20*0.000000000001))) -> 0.140848360069463+26.1327184108968j | P61: =IMSUM(IMDIV(1,IMSUM(IMDIV(1,IMPRODUCT(B61,'Design the AEF circuit'!$H$18*0.001)),IMDIV(1,'Design the AEF circuit'!$H$19*1000))), IMDIV(1,IMSUM(IMDIV(1,IMPRODUCT(B61,'Design the AEF circuit'!$H$21*0.001)),IMDIV(1,'Design the AEF circuit'!$H$22*1000))), IMDIV(1,IMSUM(IMDIV(1,IMPRODUCT(B61,'Design the AEF circuit'!$H$23*0.001)),IMDIV(1,'Design the AEF circuit'!$H$24*1000))) ) -> 0.140848148448121+26.132698779563j | Q61: =IMDIV(1, IMSUM( IMDIV(1, P61), IMPRODUCT(B61,'Design the AEF circuit'!$H$20*0.000000000001) ) ) -> 0.140848360069463+26.1327184108968j
A62: ='Frequency vector'!G62 -> 210.6074005 | B62: =COMPLEX(0,2*PI()*'Frequency vector'!G62,"j") -> 1323.28532420285j | C62: =IF(IF(CMdata=1,IMABS(K62),'CM choke'!C66)=0, C61, IF(CMdata=1,IMABS(K62),'CM choke'!C66)) -> 17.86318019 | D62: =IF(IF(CMdata=1,DEGREES(IMARGUMENT(K62)),'CM choke'!D66)=0, D61, IF(CMdata=1,DEGREES(IMARGUMENT(K62)),'CM choke'!D66)) -> 90.68260172 | E62: =IF(IF(CMdata=1,IMABS(L62),'CM choke'!E66)=0, E61, IF(CMdata=1,IMABS(L62),'CM choke'!E66)) -> 17.86318019 | F62: =IF(IF(CMdata=1,DEGREES(IMARGUMENT(L62)),'CM choke'!F66)=0, F61, IF(CMdata=1,DEGREES(IMARGUMENT(L62)),'CM choke'!F66)) -> 90.68260172 | G62: -0.2128105962 | H62: 17.8619125 | I62: -0.2128105962 | J62: 17.8619125 | K62: =IF(CMdata=1, IF(Lcm1_core=1, IMDIV(1,IMSUM(IMDIV(1,IMPRODUCT(B62,'Design the AEF circuit'!$G$18*0.001)),IMDIV(1,'Design the AEF circuit'!$G$19*1000),IMPRODUCT(B62,'Design the AEF circuit'!$G$20*0.000000000001))), O62),COMPLEX(G62,H62,"j")) -> -0.212810596186438+17.8619124960648j | L62: =IF(CMdata=1, IF(Lcm2_core=1, IMDIV(1, IMSUM(IMDIV(1,IMPRODUCT(B62,'Design the AEF circuit'!$H$18*0.001)), IMDIV(1,'Design the AEF circuit'!$H$19*1000), IMPRODUCT(B62,'Design the AEF circuit'!$H$20*0.000000000001))), Q62), COMPLEX(I62,J62,"j")) -> -0.212810596186438+17.8619124960648j | N62: =IMSUM(IMDIV(1,IMSUM(IMDIV(1,IMPRODUCT(B62,'Design the AEF circuit'!$G$18*0.001)),IMDIV(1,'Design the AEF circuit'!$G$19*1000))), IMDIV(1,IMSUM(IMDIV(1,IMPRODUCT(B62,'Design the AEF circuit'!$G$21*0.001)),IMDIV(1,'Design the AEF circuit'!$G$22*1000))), IMDIV(1,IMSUM(IMDIV(1,IMPRODUCT(B62,'Design the AEF circuit'!$G$23*0.001)),IMDIV(1,'Design the AEF circuit'!$G$24*1000))) ) -> 0.144449401989605+26.4646674642633j | O62: =IMDIV(1, IMSUM( IMDIV(1, N62), IMPRODUCT(B62,'Design the AEF circuit'!$G$20*0.000000000001))) -> 0.144449624571002+26.4646878532881j | P62: =IMSUM(IMDIV(1,IMSUM(IMDIV(1,IMPRODUCT(B62,'Design the AEF circuit'!$H$18*0.001)),IMDIV(1,'Design the AEF circuit'!$H$19*1000))), IMDIV(1,IMSUM(IMDIV(1,IMPRODUCT(B62,'Design the AEF circuit'!$H$21*0.001)),IMDIV(1,'Design the AEF circuit'!$H$22*1000))), IMDIV(1,IMSUM(IMDIV(1,IMPRODUCT(B62,'Design the AEF circuit'!$H$23*0.001)),IMDIV(1,'Design the AEF circuit'!$H$24*1000))) ) -> 0.144449401989605+26.4646674642633j | Q62: =IMDIV(1, IMSUM( IMDIV(1, P62), IMPRODUCT(B62,'Design the AEF circuit'!$H$20*0.000000000001) ) ) -> 0.144449624571002+26.4646878532881j
A63: ='Frequency vector'!G63 -> 213.2829954 | B63: =COMPLEX(0,2*PI()*'Frequency vector'!G63,"j") -> 1340.0965831574j | C63: =IF(IF(CMdata=1,IMABS(K63),'CM choke'!C67)=0, C62, IF(CMdata=1,IMABS(K63),'CM choke'!C67)) -> 18.22561116 | D63: =IF(IF(CMdata=1,DEGREES(IMARGUMENT(K63)),'CM choke'!D67)=0, D62, IF(CMdata=1,DEGREES(IMARGUMENT(K63)),'CM choke'!D67)) -> 90.40278799 | E63: =IF(IF(CMdata=1,IMABS(L63),'CM choke'!E67)=0, E62, IF(CMdata=1,IMABS(L63),'CM choke'!E67)) -> 18.22561116 | F63: =IF(IF(CMdata=1,DEGREES(IMARGUMENT(L63)),'CM choke'!F67)=0, F62, IF(CMdata=1,DEGREES(IMARGUMENT(L63)),'CM choke'!F67)) -> 90.40278799 | G63: -0.1281245655 | H63: 18.2251608 | I63: -0.1281245655 | J63: 18.2251608 | K63: =IF(CMdata=1, IF(Lcm1_core=1, IMDIV(1,IMSUM(IMDIV(1,IMPRODUCT(B63,'Design the AEF circuit'!$G$18*0.001)),IMDIV(1,'Design the AEF circuit'!$G$19*1000),IMPRODUCT(B63,'Design the AEF circuit'!$G$20*0.000000000001))), O63),COMPLEX(G63,H63,"j")) -> -0.12812456550053+18.2251607997244j | L63: =IF(CMdata=1, IF(Lcm2_core=1, IMDIV(1, IMSUM(IMDIV(1,IMPRODUCT(B63,'Design the AEF circuit'!$H$18*0.001)), IMDIV(1,'Design the AEF circuit'!$H$19*1000), IMPRODUCT(B63,'Design the AEF circuit'!$H$20*0.000000000001))), Q63), COMPLEX(I63,J63,"j")) -> -0.12812456550053+18.2251607997244j | N63: =IMSUM(IMDIV(1,IMSUM(IMDIV(1,IMPRODUCT(B63,'Design the AEF circuit'!$G$18*0.001)),IMDIV(1,'Design the AEF circuit'!$G$19*1000))), IMDIV(1,IMSUM(IMDIV(1,IMPRODUCT(B63,'Design the AEF circuit'!$G$21*0.001)),IMDIV(1,'Design the AEF circuit'!$G$22*1000))), IMDIV(1,IMSUM(IMDIV(1,IMPRODUCT(B63,'Design the AEF circuit'!$G$23*0.001)),IMDIV(1,'Design the AEF circuit'!$G$24*1000))) ) -> 0.148142728363074+26.8008525401293j | O63: =IMDIV(1, IMSUM( IMDIV(1, N63), IMPRODUCT(B63,'Design the AEF circuit'!$G$20*0.000000000001))) -> 0.148142962472144+26.8008737160876j | P63: =IMSUM(IMDIV(1,IMSUM(IMDIV(1,IMPRODUCT(B63,'Design the AEF circuit'!$H$18*0.001)),IMDIV(1,'Design the AEF circuit'!$H$19*1000))), IMDIV(1,IMSUM(IMDIV(1,IMPRODUCT(B63,'Design the AEF circuit'!$H$21*0.001)),IMDIV(1,'Design the AEF circuit'!$H$22*1000))), IMDIV(1,IMSUM(IMDIV(1,IMPRODUCT(B63,'Design the AEF circuit'!$H$23*0.001)),IMDIV(1,'Design the AEF circuit'!$H$24*1000))) ) -> 0.148142728363074+26.8008525401293j | Q63: =IMDIV(1, IMSUM( IMDIV(1, P63), IMPRODUCT(B63,'Design the AEF circuit'!$H$20*0.000000000001) ) ) -> 0.148142962472144+26.8008737160876j
A64: ='Frequency vector'!G64 -> 215.9925816 | B64: =COMPLEX(0,2*PI()*'Frequency vector'!G64,"j") -> 1357.12141542261j | C64: =IF(IF(CMdata=1,IMABS(K64),'CM choke'!C68)=0, C63, IF(CMdata=1,IMABS(K64),'CM choke'!C68)) -> 18.41960553 | D64: =IF(IF(CMdata=1,DEGREES(IMARGUMENT(K64)),'CM choke'!D68)=0, D63, IF(CMdata=1,DEGREES(IMARGUMENT(K64)),'CM choke'!D68)) -> 90.90278709 | E64: =IF(IF(CMdata=1,IMABS(L64),'CM choke'!E68)=0, E63, IF(CMdata=1,IMABS(L64),'CM choke'!E68)) -> 18.41960553 | F64: =IF(IF(CMdata=1,DEGREES(IMARGUMENT(L64)),'CM choke'!F68)=0, F63, IF(CMdata=1,DEGREES(IMARGUMENT(L64)),'CM choke'!F68)) -> 90.90278709 | G64: -0.2902184789 | H64: 18.41731905 | I64: -0.2902184789 | J64: 18.41731905 | K64: =IF(CMdata=1, IF(Lcm1_core=1, IMDIV(1,IMSUM(IMDIV(1,IMPRODUCT(B64,'Design the AEF circuit'!$G$18*0.001)),IMDIV(1,'Design the AEF circuit'!$G$19*1000),IMPRODUCT(B64,'Design the AEF circuit'!$G$20*0.000000000001))), O64),COMPLEX(G64,H64,"j")) -> -0.290218478856074+18.4173190484649j | L64: =IF(CMdata=1, IF(Lcm2_core=1, IMDIV(1, IMSUM(IMDIV(1,IMPRODUCT(B64,'Design the AEF circuit'!$H$18*0.001)), IMDIV(1,'Design the AEF circuit'!$H$19*1000), IMPRODUCT(B64,'Design the AEF circuit'!$H$20*0.000000000001))), Q64), COMPLEX(I64,J64,"j")) -> -0.290218478856074+18.4173190484649j | N64: =IMSUM(IMDIV(1,IMSUM(IMDIV(1,IMPRODUCT(B64,'Design the AEF circuit'!$G$18*0.001)),IMDIV(1,'Design the AEF circuit'!$G$19*1000))), IMDIV(1,IMSUM(IMDIV(1,IMPRODUCT(B64,'Design the AEF circuit'!$G$21*0.001)),IMDIV(1,'Design the AEF circuit'!$G$22*1000))), IMDIV(1,IMSUM(IMDIV(1,IMPRODUCT(B64,'Design the AEF circuit'!$G$23*0.001)),IMDIV(1,'Design the AEF circuit'!$G$24*1000))) ) -> 0.151930481312167+27.1413075343821j | O64: =IMDIV(1, IMSUM( IMDIV(1, N64), IMPRODUCT(B64,'Design the AEF circuit'!$G$20*0.000000000001))) -> 0.151930727545921+27.1413295276447j | P64: =IMSUM(IMDIV(1,IMSUM(IMDIV(1,IMPRODUCT(B64,'Design the AEF circuit'!$H$18*0.001)),IMDIV(1,'Design the AEF circuit'!$H$19*1000))), IMDIV(1,IMSUM(IMDIV(1,IMPRODUCT(B64,'Design the AEF circuit'!$H$21*0.001)),IMDIV(1,'Design the AEF circuit'!$H$22*1000))), IMDIV(1,IMSUM(IMDIV(1,IMPRODUCT(B64,'Design the AEF circuit'!$H$23*0.001)),IMDIV(1,'Design the AEF circuit'!$H$24*1000))) ) -> 0.151930481312167+27.1413075343821j | Q64: =IMDIV(1, IMSUM( IMDIV(1, P64), IMPRODUCT(B64,'Design the AEF circuit'!$H$20*0.000000000001) ) ) -> 0.151930727545921+27.1413295276447j
A65: ='Frequency vector'!G65 -> 218.7365909 | B65: =COMPLEX(0,2*PI()*'Frequency vector'!G65,"j") -> 1374.36253427291j | C65: =IF(IF(CMdata=1,IMABS(K65),'CM choke'!C69)=0, C64, IF(CMdata=1,IMABS(K65),'CM choke'!C69)) -> 18.67216931 | D65: =IF(IF(CMdata=1,DEGREES(IMARGUMENT(K65)),'CM choke'!D69)=0, D64, IF(CMdata=1,DEGREES(IMARGUMENT(K65)),'CM choke'!D69)) -> 90.86338005 | E65: =IF(IF(CMdata=1,IMABS(L65),'CM choke'!E69)=0, E64, IF(CMdata=1,IMABS(L65),'CM choke'!E69)) -> 18.67216931 | F65: =IF(IF(CMdata=1,DEGREES(IMARGUMENT(L65)),'CM choke'!F69)=0, F64, IF(CMdata=1,DEGREES(IMARGUMENT(L65)),'CM choke'!F69)) -> 90.86338005 | G65: -0.2813569946 | H65: 18.67004941 | I65: -0.2813569946 | J65: 18.67004941 | K65: =IF(CMdata=1, IF(Lcm1_core=1, IMDIV(1,IMSUM(IMDIV(1,IMPRODUCT(B65,'Design the AEF circuit'!$G$18*0.001)),IMDIV(1,'Design the AEF circuit'!$G$19*1000),IMPRODUCT(B65,'Design the AEF circuit'!$G$20*0.000000000001))), O65),COMPLEX(G65,H65,"j")) -> -0.281356994588161+18.6700494128262j | L65: =IF(CMdata=1, IF(Lcm2_core=1, IMDIV(1, IMSUM(IMDIV(1,IMPRODUCT(B65,'Design the AEF circuit'!$H$18*0.001)), IMDIV(1,'Design the AEF circuit'!$H$19*1000), IMPRODUCT(B65,'Design the AEF circuit'!$H$20*0.000000000001))), Q65), COMPLEX(I65,J65,"j")) -> -0.281356994588161+18.6700494128262j | N65: =IMSUM(IMDIV(1,IMSUM(IMDIV(1,IMPRODUCT(B65,'Design the AEF circuit'!$G$18*0.001)),IMDIV(1,'Design the AEF circuit'!$G$19*1000))), IMDIV(1,IMSUM(IMDIV(1,IMPRODUCT(B65,'Design the AEF circuit'!$G$21*0.001)),IMDIV(1,'Design the AEF circuit'!$G$22*1000))), IMDIV(1,IMSUM(IMDIV(1,IMPRODUCT(B65,'Design the AEF circuit'!$G$23*0.001)),IMDIV(1,'Design the AEF circuit'!$G$24*1000))) ) -> 0.155815074737392+27.4860866527733j | O65: =IMDIV(1, IMSUM( IMDIV(1, N65), IMPRODUCT(B65,'Design the AEF circuit'!$G$20*0.000000000001))) -> 0.155815333723763+27.4861094948832j | P65: =IMSUM(IMDIV(1,IMSUM(IMDIV(1,IMPRODUCT(B65,'Design the AEF circuit'!$H$18*0.001)),IMDIV(1,'Design the AEF circuit'!$H$19*1000))), IMDIV(1,IMSUM(IMDIV(1,IMPRODUCT(B65,'Design the AEF circuit'!$H$21*0.001)),IMDIV(1,'Design the AEF circuit'!$H$22*1000))), IMDIV(1,IMSUM(IMDIV(1,IMPRODUCT(B65,'Design the AEF circuit'!$H$23*0.001)),IMDIV(1,'Design the AEF circuit'!$H$24*1000))) ) -> 0.155815074737392+27.4860866527733j | Q65: =IMDIV(1, IMSUM( IMDIV(1, P65), IMPRODUCT(B65,'Design the AEF circuit'!$H$20*0.000000000001) ) ) -> 0.155815333723763+27.4861094948832j
A66: ='Frequency vector'!G66 -> 221.5154606 | B66: =COMPLEX(0,2*PI()*'Frequency vector'!G66,"j") -> 1391.82268745266j | C66: =IF(IF(CMdata=1,IMABS(K66),'CM choke'!C70)=0, C65, IF(CMdata=1,IMABS(K66),'CM choke'!C70)) -> 18.89163953 | D66: =IF(IF(CMdata=1,DEGREES(IMARGUMENT(K66)),'CM choke'!D70)=0, D65, IF(CMdata=1,DEGREES(IMARGUMENT(K66)),'CM choke'!D70)) -> 90.87250087 | E66: =IF(IF(CMdata=1,IMABS(L66),'CM choke'!E70)=0, E65, IF(CMdata=1,IMABS(L66),'CM choke'!E70)) -> 18.89163953 | F66: =IF(IF(CMdata=1,DEGREES(IMARGUMENT(L66)),'CM choke'!F70)=0, F65, IF(CMdata=1,DEGREES(IMARGUMENT(L66)),'CM choke'!F70)) -> 90.87250087 | G66: -0.2876710128 | H66: 18.88944916 | I66: -0.2876710128 | J66: 18.88944916 | K66: =IF(CMdata=1, IF(Lcm1_core=1, IMDIV(1,IMSUM(IMDIV(1,IMPRODUCT(B66,'Design the AEF circuit'!$G$18*0.001)),IMDIV(1,'Design the AEF circuit'!$G$19*1000),IMPRODUCT(B66,'Design the AEF circuit'!$G$20*0.000000000001))), O66),COMPLEX(G66,H66,"j")) -> -0.287671012837251+18.889449162769j | L66: =IF(CMdata=1, IF(Lcm2_core=1, IMDIV(1, IMSUM(IMDIV(1,IMPRODUCT(B66,'Design the AEF circuit'!$H$18*0.001)), IMDIV(1,'Design the AEF circuit'!$H$19*1000), IMPRODUCT(B66,'Design the AEF circuit'!$H$20*0.000000000001))), Q66), COMPLEX(I66,J66,"j")) -> -0.287671012837251+18.889449162769j | N66: =IMSUM(IMDIV(1,IMSUM(IMDIV(1,IMPRODUCT(B66,'Design the AEF circuit'!$G$18*0.001)),IMDIV(1,'Design the AEF circuit'!$G$19*1000))), IMDIV(1,IMSUM(IMDIV(1,IMPRODUCT(B66,'Design the AEF circuit'!$G$21*0.001)),IMDIV(1,'Design the AEF circuit'!$G$22*1000))), IMDIV(1,IMSUM(IMDIV(1,IMPRODUCT(B66,'Design the AEF circuit'!$G$23*0.001)),IMDIV(1,'Design the AEF circuit'!$G$24*1000))) ) -> 0.159798984232876+27.8352447881476j | O66: =IMDIV(1, IMSUM( IMDIV(1, N66), IMPRODUCT(B66,'Design the AEF circuit'!$G$20*0.000000000001))) -> 0.159799256632312+27.8352685118648j | P66: =IMSUM(IMDIV(1,IMSUM(IMDIV(1,IMPRODUCT(B66,'Design the AEF circuit'!$H$18*0.001)),IMDIV(1,'Design the AEF circuit'!$H$19*1000))), IMDIV(1,IMSUM(IMDIV(1,IMPRODUCT(B66,'Design the AEF circuit'!$H$21*0.001)),IMDIV(1,'Design the AEF circuit'!$H$22*1000))), IMDIV(1,IMSUM(IMDIV(1,IMPRODUCT(B66,'Design the AEF circuit'!$H$23*0.001)),IMDIV(1,'Design the AEF circuit'!$H$24*1000))) ) -> 0.159798984232876+27.8352447881476j | Q66: =IMDIV(1, IMSUM( IMDIV(1, P66), IMPRODUCT(B66,'Design the AEF circuit'!$H$20*0.000000000001) ) ) -> 0.159799256632312+27.8352685118648j
A67: ='Frequency vector'!G67 -> 224.3296336 | B67: =COMPLEX(0,2*PI()*'Frequency vector'!G67,"j") -> 1409.50465761407j | C67: =IF(IF(CMdata=1,IMABS(K67),'CM choke'!C71)=0, C66, IF(CMdata=1,IMABS(K67),'CM choke'!C71)) -> 19.23025227 | D67: =IF(IF(CMdata=1,DEGREES(IMARGUMENT(K67)),'CM choke'!D71)=0, D66, IF(CMdata=1,DEGREES(IMARGUMENT(K67)),'CM choke'!D71)) -> 90.591175 | E67: =IF(IF(CMdata=1,IMABS(L67),'CM choke'!E71)=0, E66, IF(CMdata=1,IMABS(L67),'CM choke'!E71)) -> 19.23025227 | F67: =IF(IF(CMdata=1,DEGREES(IMARGUMENT(L67)),'CM choke'!F71)=0, F66, IF(CMdata=1,DEGREES(IMARGUMENT(L67)),'CM choke'!F71)) -> 90.591175 | G67: =C67*COS(RADIANS(D67)) -> -0.1984132663 | H67: =C67*SIN(RADIANS(D67)) -> 19.22922865 | I67: =E67*COS(RADIANS(F67)) -> -0.1984132663 | J67: =E67*SIN(RADIANS(F67)) -> 19.22922865 | K67: =IF(CMdata=1, IF(Lcm1_core=1, IMDIV(1,IMSUM(IMDIV(1,IMPRODUCT(B67,'Design the AEF circuit'!$G$18*0.001)),IMDIV(1,'Design the AEF circuit'!$G$19*1000),IMPRODUCT(B67,'Design the AEF circuit'!$G$20*0.000000000001))), O67),COMPLEX(G67,H67,"j")) -> -0.198413266308469+19.2292286528292j | L67: =IF(CMdata=1, IF(Lcm2_core=1, IMDIV(1, IMSUM(IMDIV(1,IMPRODUCT(B67,'Design the AEF circuit'!$H$18*0.001)), IMDIV(1,'Design the AEF circuit'!$H$19*1000), IMPRODUCT(B67,'Design the AEF circuit'!$H$20*0.000000000001))), Q67), COMPLEX(I67,J67,"j")) -> -0.198413266308469+19.2292286528292j | N67: =IMSUM(IMDIV(1,IMSUM(IMDIV(1,IMPRODUCT(B67,'Design the AEF circuit'!$G$18*0.001)),IMDIV(1,'Design the AEF circuit'!$G$19*1000))), IMDIV(1,IMSUM(IMDIV(1,IMPRODUCT(B67,'Design the AEF circuit'!$G$21*0.001)),IMDIV(1,'Design the AEF circuit'!$G$22*1000))), IMDIV(1,IMSUM(IMDIV(1,IMPRODUCT(B67,'Design the AEF circuit'!$G$23*0.001)),IMDIV(1,'Design the AEF circuit'!$G$24*1000))) ) -> 0.163884748662352+28.1888375291124j | O67: =IMDIV(1, IMSUM( IMDIV(1, N67), IMPRODUCT(B67,'Design the AEF circuit'!$G$20*0.000000000001))) -> 0.163885035169504+28.1888621684614j | P67: =IMSUM(IMDIV(1,IMSUM(IMDIV(1,IMPRODUCT(B67,'Design the AEF circuit'!$H$18*0.001)),IMDIV(1,'Design the AEF circuit'!$H$19*1000))), IMDIV(1,IMSUM(IMDIV(1,IMPRODUCT(B67,'Design the AEF circuit'!$H$21*0.001)),IMDIV(1,'Design the AEF circuit'!$H$22*1000))), IMDIV(1,IMSUM(IMDIV(1,IMPRODUCT(B67,'Design the AEF circuit'!$H$23*0.001)),IMDIV(1,'Design the AEF circuit'!$H$24*1000))) ) -> 0.163884748662352+28.1888375291124j | Q67: =IMDIV(1, IMSUM( IMDIV(1, P67), IMPRODUCT(B67,'Design the AEF circuit'!$H$20*0.000000000001) ) ) -> 0.163885035169504+28.1888621684614j
A68: ='Frequency vector'!G68 -> 227.1795583 | B68: =COMPLEX(0,2*PI()*'Frequency vector'!G68,"j") -> 1427.41126276068j | C68: =IF(IF(CMdata=1,IMABS(K68),'CM choke'!C72)=0, C67, IF(CMdata=1,IMABS(K68),'CM choke'!C72)) -> 19.45902623 | D68: =IF(IF(CMdata=1,DEGREES(IMARGUMENT(K68)),'CM choke'!D72)=0, D67, IF(CMdata=1,DEGREES(IMARGUMENT(K68)),'CM choke'!D72)) -> 90.72074158 | E68: =IF(IF(CMdata=1,IMABS(L68),'CM choke'!E72)=0, E67, IF(CMdata=1,IMABS(L68),'CM choke'!E72)) -> 19.45902623 | F68: =IF(IF(CMdata=1,DEGREES(IMARGUMENT(L68)),'CM choke'!F72)=0, F67, IF(CMdata=1,DEGREES(IMARGUMENT(L68)),'CM choke'!F72)) -> 90.72074158 | G68: -0.2447747368 | H68: 19.45748666 | I68: -0.2447747368 | J68: 19.45748666 | K68: =IF(CMdata=1, IF(Lcm1_core=1, IMDIV(1,IMSUM(IMDIV(1,IMPRODUCT(B68,'Design the AEF circuit'!$G$18*0.001)),IMDIV(1,'Design the AEF circuit'!$G$19*1000),IMPRODUCT(B68,'Design the AEF circuit'!$G$20*0.000000000001))), O68),COMPLEX(G68,H68,"j")) -> -0.244774736765196+19.4574866618636j | L68: =IF(CMdata=1, IF(Lcm2_core=1, IMDIV(1, IMSUM(IMDIV(1,IMPRODUCT(B68,'Design the AEF circuit'!$H$18*0.001)), IMDIV(1,'Design the AEF circuit'!$H$19*1000), IMPRODUCT(B68,'Design the AEF circuit'!$H$20*0.000000000001))), Q68), COMPLEX(I68,J68,"j")) -> -0.244774736765196+19.4574866618636j | N68: =IMSUM(IMDIV(1,IMSUM(IMDIV(1,IMPRODUCT(B68,'Design the AEF circuit'!$G$18*0.001)),IMDIV(1,'Design the AEF circuit'!$G$19*1000))), IMDIV(1,IMSUM(IMDIV(1,IMPRODUCT(B68,'Design the AEF circuit'!$G$21*0.001)),IMDIV(1,'Design the AEF circuit'!$G$22*1000))), IMDIV(1,IMSUM(IMDIV(1,IMPRODUCT(B68,'Design the AEF circuit'!$G$23*0.001)),IMDIV(1,'Design the AEF circuit'!$G$24*1000))) ) -> 0.168074971775353+28.5469211688153j | O68: =IMDIV(1, IMSUM( IMDIV(1, N68), IMPRODUCT(B68,'Design the AEF circuit'!$G$20*0.000000000001))) -> 0.168075273120847+28.5469467591335j | P68: =IMSUM(IMDIV(1,IMSUM(IMDIV(1,IMPRODUCT(B68,'Design the AEF circuit'!$H$18*0.001)),IMDIV(1,'Design the AEF circuit'!$H$19*1000))), IMDIV(1,IMSUM(IMDIV(1,IMPRODUCT(B68,'Design the AEF circuit'!$H$21*0.001)),IMDIV(1,'Design the AEF circuit'!$H$22*1000))), IMDIV(1,IMSUM(IMDIV(1,IMPRODUCT(B68,'Design the AEF circuit'!$H$23*0.001)),IMDIV(1,'Design the AEF circuit'!$H$24*1000))) ) -> 0.168074971775353+28.5469211688153j | Q68: =IMDIV(1, IMSUM( IMDIV(1, P68), IMPRODUCT(B68,'Design the AEF circuit'!$H$20*0.000000000001) ) ) -> 0.168075273120847+28.5469467591335j
A69: ='Frequency vector'!G69 -> 230.065689 | B69: =COMPLEX(0,2*PI()*'Frequency vector'!G69,"j") -> 1445.54535669644j | C69: =IF(IF(CMdata=1,IMABS(K69),'CM choke'!C73)=0, C68, IF(CMdata=1,IMABS(K69),'CM choke'!C73)) -> 19.81597895 | D69: =IF(IF(CMdata=1,DEGREES(IMARGUMENT(K69)),'CM choke'!D73)=0, D68, IF(CMdata=1,DEGREES(IMARGUMENT(K69)),'CM choke'!D73)) -> 90.90184882 | E69: =IF(IF(CMdata=1,IMABS(L69),'CM choke'!E73)=0, E68, IF(CMdata=1,IMABS(L69),'CM choke'!E73)) -> 19.81597895 | F69: =IF(IF(CMdata=1,DEGREES(IMARGUMENT(L69)),'CM choke'!F73)=0, F68, IF(CMdata=1,DEGREES(IMARGUMENT(L69)),'CM choke'!F73)) -> 90.90184882 | G69: -0.3118952113 | H69: 19.81352425 | I69: -0.3118952113 | J69: 19.81352425 | K69: =IF(CMdata=1, IF(Lcm1_core=1, IMDIV(1,IMSUM(IMDIV(1,IMPRODUCT(B69,'Design the AEF circuit'!$G$18*0.001)),IMDIV(1,'Design the AEF circuit'!$G$19*1000),IMPRODUCT(B69,'Design the AEF circuit'!$G$20*0.000000000001))), O69),COMPLEX(G69,H69,"j")) -> -0.311895211338187+19.8135242512898j | L69: =IF(CMdata=1, IF(Lcm2_core=1, IMDIV(1, IMSUM(IMDIV(1,IMPRODUCT(B69,'Design the AEF circuit'!$H$18*0.001)), IMDIV(1,'Design the AEF circuit'!$H$19*1000), IMPRODUCT(B69,'Design the AEF circuit'!$H$20*0.000000000001))), Q69), COMPLEX(I69,J69,"j")) -> -0.311895211338187+19.8135242512898j | N69: =IMSUM(IMDIV(1,IMSUM(IMDIV(1,IMPRODUCT(B69,'Design the AEF circuit'!$G$18*0.001)),IMDIV(1,'Design the AEF circuit'!$G$19*1000))), IMDIV(1,IMSUM(IMDIV(1,IMPRODUCT(B69,'Design the AEF circuit'!$G$21*0.001)),IMDIV(1,'Design the AEF circuit'!$G$22*1000))), IMDIV(1,IMSUM(IMDIV(1,IMPRODUCT(B69,'Design the AEF circuit'!$G$23*0.001)),IMDIV(1,'Design the AEF circuit'!$G$24*1000))) ) -> 0.17237232386464+28.9095527138293j | O69: =IMDIV(1, IMSUM( IMDIV(1, N69), IMPRODUCT(B69,'Design the AEF circuit'!$G$20*0.000000000001))) -> 0.172372640816939+28.9095792918176j | P69: =IMSUM(IMDIV(1,IMSUM(IMDIV(1,IMPRODUCT(B69,'Design the AEF circuit'!$H$18*0.001)),IMDIV(1,'Design the AEF circuit'!$H$19*1000))), IMDIV(1,IMSUM(IMDIV(1,IMPRODUCT(B69,'Design the AEF circuit'!$H$21*0.001)),IMDIV(1,'Design the AEF circuit'!$H$22*1000))), IMDIV(1,IMSUM(IMDIV(1,IMPRODUCT(B69,'Design the AEF circuit'!$H$23*0.001)),IMDIV(1,'Design the AEF circuit'!$H$24*1000))) ) -> 0.17237232386464+28.9095527138293j | Q69: =IMDIV(1, IMSUM( IMDIV(1, P69), IMPRODUCT(B69,'Design the AEF circuit'!$H$20*0.000000000001) ) ) -> 0.172372640816939+28.9095792918176j
A70: ='Frequency vector'!G70 -> 232.9884856 | B70: =COMPLEX(0,2*PI()*'Frequency vector'!G70,"j") -> 1463.90982948058j | C70: =IF(IF(CMdata=1,IMABS(K70),'CM choke'!C74)=0, C69, IF(CMdata=1,IMABS(K70),'CM choke'!C74)) -> 20.0253389 | D70: =IF(IF(CMdata=1,DEGREES(IMARGUMENT(K70)),'CM choke'!D74)=0, D69, IF(CMdata=1,DEGREES(IMARGUMENT(K70)),'CM choke'!D74)) -> 90.25817861 | E70: =IF(IF(CMdata=1,IMABS(L70),'CM choke'!E74)=0, E69, IF(CMdata=1,IMABS(L70),'CM choke'!E74)) -> 20.0253389 | F70: =IF(IF(CMdata=1,DEGREES(IMARGUMENT(L70)),'CM choke'!F74)=0, F69, IF(CMdata=1,DEGREES(IMARGUMENT(L70)),'CM choke'!F74)) -> 90.25817861 | G70: -0.09023520831 | H70: 20.0251356 | I70: -0.09023520831 | J70: 20.0251356 | K70: =IF(CMdata=1, IF(Lcm1_core=1, IMDIV(1,IMSUM(IMDIV(1,IMPRODUCT(B70,'Design the AEF circuit'!$G$18*0.001)),IMDIV(1,'Design the AEF circuit'!$G$19*1000),IMPRODUCT(B70,'Design the AEF circuit'!$G$20*0.000000000001))), O70),COMPLEX(G70,H70,"j")) -> -0.090235208305261+20.02513560163j | L70: =IF(CMdata=1, IF(Lcm2_core=1, IMDIV(1, IMSUM(IMDIV(1,IMPRODUCT(B70,'Design the AEF circuit'!$H$18*0.001)), IMDIV(1,'Design the AEF circuit'!$H$19*1000), IMPRODUCT(B70,'Design the AEF circuit'!$H$20*0.000000000001))), Q70), COMPLEX(I70,J70,"j")) -> -0.090235208305261+20.02513560163j | N70: =IMSUM(IMDIV(1,IMSUM(IMDIV(1,IMPRODUCT(B70,'Design the AEF circuit'!$G$18*0.001)),IMDIV(1,'Design the AEF circuit'!$G$19*1000))), IMDIV(1,IMSUM(IMDIV(1,IMPRODUCT(B70,'Design the AEF circuit'!$G$21*0.001)),IMDIV(1,'Design the AEF circuit'!$G$22*1000))), IMDIV(1,IMSUM(IMDIV(1,IMPRODUCT(B70,'Design the AEF circuit'!$G$23*0.001)),IMDIV(1,'Design the AEF circuit'!$G$24*1000))) ) -> 0.176779543465959+29.276789893151j | O70: =IMDIV(1, IMSUM( IMDIV(1, N70), IMPRODUCT(B70,'Design the AEF circuit'!$G$20*0.000000000001))) -> 0.176779876833323+29.276817496927j | P70: =IMSUM(IMDIV(1,IMSUM(IMDIV(1,IMPRODUCT(B70,'Design the AEF circuit'!$H$18*0.001)),IMDIV(1,'Design the AEF circuit'!$H$19*1000))), IMDIV(1,IMSUM(IMDIV(1,IMPRODUCT(B70,'Design the AEF circuit'!$H$21*0.001)),IMDIV(1,'Design the AEF circuit'!$H$22*1000))), IMDIV(1,IMSUM(IMDIV(1,IMPRODUCT(B70,'Design the AEF circuit'!$H$23*0.001)),IMDIV(1,'Design the AEF circuit'!$H$24*1000))) ) -> 0.176779543465959+29.276789893151j | Q70: =IMDIV(1, IMSUM( IMDIV(1, P70), IMPRODUCT(B70,'Design the AEF circuit'!$H$20*0.000000000001) ) ) -> 0.176779876833323+29.276817496927j
A71: ='Frequency vector'!G71 -> 235.948414 | B71: =COMPLEX(0,2*PI()*'Frequency vector'!G71,"j") -> 1482.50760788815j | C71: =IF(IF(CMdata=1,IMABS(K71),'CM choke'!C75)=0, C70, IF(CMdata=1,IMABS(K71),'CM choke'!C75)) -> 19.8034053 | D71: =IF(IF(CMdata=1,DEGREES(IMARGUMENT(K71)),'CM choke'!D75)=0, D70, IF(CMdata=1,DEGREES(IMARGUMENT(K71)),'CM choke'!D75)) -> 90.40123955 | E71: =IF(IF(CMdata=1,IMABS(L71),'CM choke'!E75)=0, E70, IF(CMdata=1,IMABS(L71),'CM choke'!E75)) -> 19.8034053 | F71: =IF(IF(CMdata=1,DEGREES(IMARGUMENT(L71)),'CM choke'!F75)=0, F70, IF(CMdata=1,DEGREES(IMARGUMENT(L71)),'CM choke'!F75)) -> 90.40123955 | G71: -0.138681149 | H71: 19.80291971 | I71: -0.138681149 | J71: 19.80291971 | K71: =IF(CMdata=1, IF(Lcm1_core=1, IMDIV(1,IMSUM(IMDIV(1,IMPRODUCT(B71,'Design the AEF circuit'!$G$18*0.001)),IMDIV(1,'Design the AEF circuit'!$G$19*1000),IMPRODUCT(B71,'Design the AEF circuit'!$G$20*0.000000000001))), O71),COMPLEX(G71,H71,"j")) -> -0.13868114897635+19.8029197064389j | L71: =IF(CMdata=1, IF(Lcm2_core=1, IMDIV(1, IMSUM(IMDIV(1,IMPRODUCT(B71,'Design the AEF circuit'!$H$18*0.001)), IMDIV(1,'Design the AEF circuit'!$H$19*1000), IMPRODUCT(B71,'Design the AEF circuit'!$H$20*0.000000000001))), Q71), COMPLEX(I71,J71,"j")) -> -0.13868114897635+19.8029197064389j | N71: =IMSUM(IMDIV(1,IMSUM(IMDIV(1,IMPRODUCT(B71,'Design the AEF circuit'!$G$18*0.001)),IMDIV(1,'Design the AEF circuit'!$G$19*1000))), IMDIV(1,IMSUM(IMDIV(1,IMPRODUCT(B71,'Design the AEF circuit'!$G$21*0.001)),IMDIV(1,'Design the AEF circuit'!$G$22*1000))), IMDIV(1,IMSUM(IMDIV(1,IMPRODUCT(B71,'Design the AEF circuit'!$G$23*0.001)),IMDIV(1,'Design the AEF circuit'!$G$24*1000))) ) -> 0.18129943910112+29.6486911673072j | O71: =IMDIV(1, IMSUM( IMDIV(1, N71), IMPRODUCT(B71,'Design the AEF circuit'!$G$20*0.000000000001))) -> 0.181299789733666+29.6487198364591j | P71: =IMSUM(IMDIV(1,IMSUM(IMDIV(1,IMPRODUCT(B71,'Design the AEF circuit'!$H$18*0.001)),IMDIV(1,'Design the AEF circuit'!$H$19*1000))), IMDIV(1,IMSUM(IMDIV(1,IMPRODUCT(B71,'Design the AEF circuit'!$H$21*0.001)),IMDIV(1,'Design the AEF circuit'!$H$22*1000))), IMDIV(1,IMSUM(IMDIV(1,IMPRODUCT(B71,'Design the AEF circuit'!$H$23*0.001)),IMDIV(1,'Design the AEF circuit'!$H$24*1000))) ) -> 0.18129943910112+29.6486911673072j | Q71: =IMDIV(1, IMSUM( IMDIV(1, P71), IMPRODUCT(B71,'Design the AEF circuit'!$H$20*0.000000000001) ) ) -> 0.181299789733666+29.6487198364591j
A72: ='Frequency vector'!G72 -> 238.9459458 | B72: =COMPLEX(0,2*PI()*'Frequency vector'!G72,"j") -> 1501.34165587649j | C72: =IF(IF(CMdata=1,IMABS(K72),'CM choke'!C76)=0, C71, IF(CMdata=1,IMABS(K72),'CM choke'!C76)) -> 20.48209384 | D72: =IF(IF(CMdata=1,DEGREES(IMARGUMENT(K72)),'CM choke'!D76)=0, D71, IF(CMdata=1,DEGREES(IMARGUMENT(K72)),'CM choke'!D76)) -> 92.20038805 | E72: =IF(IF(CMdata=1,IMABS(L72),'CM choke'!E76)=0, E71, IF(CMdata=1,IMABS(L72),'CM choke'!E76)) -> 20.48209384 | F72: =IF(IF(CMdata=1,DEGREES(IMARGUMENT(L72)),'CM choke'!F76)=0, F71, IF(CMdata=1,DEGREES(IMARGUMENT(L72)),'CM choke'!F76)) -> 92.20038805 | G72: -0.7864013266 | H72: 20.4669915 | I72: -0.7864013266 | J72: 20.4669915 | K72: =IF(CMdata=1, IF(Lcm1_core=1, IMDIV(1,IMSUM(IMDIV(1,IMPRODUCT(B72,'Design the AEF circuit'!$G$18*0.001)),IMDIV(1,'Design the AEF circuit'!$G$19*1000),IMPRODUCT(B72,'Design the AEF circuit'!$G$20*0.000000000001))), O72),COMPLEX(G72,H72,"j")) -> -0.786401326649733+20.4669914966474j | L72: =IF(CMdata=1, IF(Lcm2_core=1, IMDIV(1, IMSUM(IMDIV(1,IMPRODUCT(B72,'Design the AEF circuit'!$H$18*0.001)), IMDIV(1,'Design the AEF circuit'!$H$19*1000), IMPRODUCT(B72,'Design the AEF circuit'!$H$20*0.000000000001))), Q72), COMPLEX(I72,J72,"j")) -> -0.786401326649733+20.4669914966474j | N72: =IMSUM(IMDIV(1,IMSUM(IMDIV(1,IMPRODUCT(B72,'Design the AEF circuit'!$G$18*0.001)),IMDIV(1,'Design the AEF circuit'!$G$19*1000))), IMDIV(1,IMSUM(IMDIV(1,IMPRODUCT(B72,'Design the AEF circuit'!$G$21*0.001)),IMDIV(1,'Design the AEF circuit'!$G$22*1000))), IMDIV(1,IMSUM(IMDIV(1,IMPRODUCT(B72,'Design the AEF circuit'!$G$23*0.001)),IMDIV(1,'Design the AEF circuit'!$G$24*1000))) ) -> 0.185934891065596+30.0253157375779j | O72: =IMDIV(1, IMSUM( IMDIV(1, N72), IMPRODUCT(B72,'Design the AEF circuit'!$G$20*0.000000000001))) -> 0.185935259857462+30.0253455132215j | P72: =IMSUM(IMDIV(1,IMSUM(IMDIV(1,IMPRODUCT(B72,'Design the AEF circuit'!$H$18*0.001)),IMDIV(1,'Design the AEF circuit'!$H$19*1000))), IMDIV(1,IMSUM(IMDIV(1,IMPRODUCT(B72,'Design the AEF circuit'!$H$21*0.001)),IMDIV(1,'Design the AEF circuit'!$H$22*1000))), IMDIV(1,IMSUM(IMDIV(1,IMPRODUCT(B72,'Design the AEF circuit'!$H$23*0.001)),IMDIV(1,'Design the AEF circuit'!$H$24*1000))) ) -> 0.185934891065596+30.0253157375779j | Q72: =IMDIV(1, IMSUM( IMDIV(1, P72), IMPRODUCT(B72,'Design the AEF circuit'!$H$20*0.000000000001) ) ) -> 0.185935259857462+30.0253455132215j
A73: ='Frequency vector'!G73 -> 241.9815588 | B73: =COMPLEX(0,2*PI()*'Frequency vector'!G73,"j") -> 1520.41497505759j | C73: =IF(IF(CMdata=1,IMABS(K73),'CM choke'!C77)=0, C72, IF(CMdata=1,IMABS(K73),'CM choke'!C77)) -> 20.4009603 | D73: =IF(IF(CMdata=1,DEGREES(IMARGUMENT(K73)),'CM choke'!D77)=0, D72, IF(CMdata=1,DEGREES(IMARGUMENT(K73)),'CM choke'!D77)) -> 90.06296686 | E73: =IF(IF(CMdata=1,IMABS(L73),'CM choke'!E77)=0, E72, IF(CMdata=1,IMABS(L73),'CM choke'!E77)) -> 20.4009603 | F73: =IF(IF(CMdata=1,DEGREES(IMARGUMENT(L73)),'CM choke'!F77)=0, F72, IF(CMdata=1,DEGREES(IMARGUMENT(L73)),'CM choke'!F77)) -> 90.06296686 | G73: -0.02242022274 | H73: 20.40094798 | I73: -0.02242022274 | J73: 20.40094798 | K73: =IF(CMdata=1, IF(Lcm1_core=1, IMDIV(1,IMSUM(IMDIV(1,IMPRODUCT(B73,'Design the AEF circuit'!$G$18*0.001)),IMDIV(1,'Design the AEF circuit'!$G$19*1000),IMPRODUCT(B73,'Design the AEF circuit'!$G$20*0.000000000001))), O73),COMPLEX(G73,H73,"j")) -> -0.0224202227420969+20.4009479768374j | L73: =IF(CMdata=1, IF(Lcm2_core=1, IMDIV(1, IMSUM(IMDIV(1,IMPRODUCT(B73,'Design the AEF circuit'!$H$18*0.001)), IMDIV(1,'Design the AEF circuit'!$H$19*1000), IMPRODUCT(B73,'Design the AEF circuit'!$H$20*0.000000000001))), Q73), COMPLEX(I73,J73,"j")) -> -0.0224202227420969+20.4009479768374j | N73: =IMSUM(IMDIV(1,IMSUM(IMDIV(1,IMPRODUCT(B73,'Design the AEF circuit'!$G$18*0.001)),IMDIV(1,'Design the AEF circuit'!$G$19*1000))), IMDIV(1,IMSUM(IMDIV(1,IMPRODUCT(B73,'Design the AEF circuit'!$G$21*0.001)),IMDIV(1,'Design the AEF circuit'!$G$22*1000))), IMDIV(1,IMSUM(IMDIV(1,IMPRODUCT(B73,'Design the AEF circuit'!$G$23*0.001)),IMDIV(1,'Design the AEF circuit'!$G$24*1000))) ) -> 0.19068885326169+30.4067235553308j | O73: =IMDIV(1, IMSUM( IMDIV(1, N73), IMPRODUCT(B73,'Design the AEF circuit'!$G$20*0.000000000001))) -> 0.190689241153323+30.4067544801687j | P73: =IMSUM(IMDIV(1,IMSUM(IMDIV(1,IMPRODUCT(B73,'Design the AEF circuit'!$H$18*0.001)),IMDIV(1,'Design the AEF circuit'!$H$19*1000))), IMDIV(1,IMSUM(IMDIV(1,IMPRODUCT(B73,'Design the AEF circuit'!$H$21*0.001)),IMDIV(1,'Design the AEF circuit'!$H$22*1000))), IMDIV(1,IMSUM(IMDIV(1,IMPRODUCT(B73,'Design the AEF circuit'!$H$23*0.001)),IMDIV(1,'Design the AEF circuit'!$H$24*1000))) ) -> 0.19068885326169+30.4067235553308j | Q73: =IMDIV(1, IMSUM( IMDIV(1, P73), IMPRODUCT(B73,'Design the AEF circuit'!$H$20*0.000000000001) ) ) -> 0.190689241153323+30.4067544801687j
A74: ='Frequency vector'!G74 -> 245.0557368 | B74: =COMPLEX(0,2*PI()*'Frequency vector'!G74,"j") -> 1539.73060517649j | C74: =IF(IF(CMdata=1,IMABS(K74),'CM choke'!C78)=0, C73, IF(CMdata=1,IMABS(K74),'CM choke'!C78)) -> 21.12284821 | D74: =IF(IF(CMdata=1,DEGREES(IMARGUMENT(K74)),'CM choke'!D78)=0, D73, IF(CMdata=1,DEGREES(IMARGUMENT(K74)),'CM choke'!D78)) -> 90.7710277 | E74: =IF(IF(CMdata=1,IMABS(L74),'CM choke'!E78)=0, E73, IF(CMdata=1,IMABS(L74),'CM choke'!E78)) -> 21.12284821 | F74: =IF(IF(CMdata=1,DEGREES(IMARGUMENT(L74)),'CM choke'!F78)=0, F73, IF(CMdata=1,DEGREES(IMARGUMENT(L74)),'CM choke'!F78)) -> 90.7710277 | G74: -0.2842409974 | H74: 21.12093566 | I74: -0.2842409974 | J74: 21.12093566 | K74: =IF(CMdata=1, IF(Lcm1_core=1, IMDIV(1,IMSUM(IMDIV(1,IMPRODUCT(B74,'Design the AEF circuit'!$G$18*0.001)),IMDIV(1,'Design the AEF circuit'!$G$19*1000),IMPRODUCT(B74,'Design the AEF circuit'!$G$20*0.000000000001))), O74),COMPLEX(G74,H74,"j")) -> -0.284240997361191+21.1209356646162j | L74: =IF(CMdata=1, IF(Lcm2_core=1, IMDIV(1, IMSUM(IMDIV(1,IMPRODUCT(B74,'Design the AEF circuit'!$H$18*0.001)), IMDIV(1,'Design the AEF circuit'!$H$19*1000), IMPRODUCT(B74,'Design the AEF circuit'!$H$20*0.000000000001))), Q74), COMPLEX(I74,J74,"j")) -> -0.284240997361191+21.1209356646162j | N74: =IMSUM(IMDIV(1,IMSUM(IMDIV(1,IMPRODUCT(B74,'Design the AEF circuit'!$G$18*0.001)),IMDIV(1,'Design the AEF circuit'!$G$19*1000))), IMDIV(1,IMSUM(IMDIV(1,IMPRODUCT(B74,'Design the AEF circuit'!$G$21*0.001)),IMDIV(1,'Design the AEF circuit'!$G$22*1000))), IMDIV(1,IMSUM(IMDIV(1,IMPRODUCT(B74,'Design the AEF circuit'!$G$23*0.001)),IMDIV(1,'Design the AEF circuit'!$G$24*1000))) ) -> 0.195564355078506+30.7929753314737j | O74: =IMDIV(1, IMSUM( IMDIV(1, N74), IMPRODUCT(B74,'Design the AEF circuit'!$G$20*0.000000000001))) -> 0.195564763059049+30.7930074498562j | P74: =IMSUM(IMDIV(1,IMSUM(IMDIV(1,IMPRODUCT(B74,'Design the AEF circuit'!$H$18*0.001)),IMDIV(1,'Design the AEF circuit'!$H$19*1000))), IMDIV(1,IMSUM(IMDIV(1,IMPRODUCT(B74,'Design the AEF circuit'!$H$21*0.001)),IMDIV(1,'Design the AEF circuit'!$H$22*1000))), IMDIV(1,IMSUM(IMDIV(1,IMPRODUCT(B74,'Design the AEF circuit'!$H$23*0.001)),IMDIV(1,'Design the AEF circuit'!$H$24*1000))) ) -> 0.195564355078506+30.7929753314737j | Q74: =IMDIV(1, IMSUM( IMDIV(1, P74), IMPRODUCT(B74,'Design the AEF circuit'!$H$20*0.000000000001) ) ) -> 0.195564763059049+30.7930074498562j
A75: ='Frequency vector'!G75 -> 248.1689698 | B75: =COMPLEX(0,2*PI()*'Frequency vector'!G75,"j") -> 1559.29162459569j | C75: =IF(IF(CMdata=1,IMABS(K75),'CM choke'!C79)=0, C74, IF(CMdata=1,IMABS(K75),'CM choke'!C79)) -> 21.59091977 | D75: =IF(IF(CMdata=1,DEGREES(IMARGUMENT(K75)),'CM choke'!D79)=0, D74, IF(CMdata=1,DEGREES(IMARGUMENT(K75)),'CM choke'!D79)) -> 91.56447961 | E75: =IF(IF(CMdata=1,IMABS(L75),'CM choke'!E79)=0, E74, IF(CMdata=1,IMABS(L75),'CM choke'!E79)) -> 21.59091977 | F75: =IF(IF(CMdata=1,DEGREES(IMARGUMENT(L75)),'CM choke'!F79)=0, F74, IF(CMdata=1,DEGREES(IMARGUMENT(L75)),'CM choke'!F79)) -> 91.56447961 | G75: -0.5894737236 | H75: 21.58287138 | I75: -0.5894737236 | J75: 21.58287138 | K75: =IF(CMdata=1, IF(Lcm1_core=1, IMDIV(1,IMSUM(IMDIV(1,IMPRODUCT(B75,'Design the AEF circuit'!$G$18*0.001)),IMDIV(1,'Design the AEF circuit'!$G$19*1000),IMPRODUCT(B75,'Design the AEF circuit'!$G$20*0.000000000001))), O75),COMPLEX(G75,H75,"j")) -> -0.589473723604002+21.5828713824721j | L75: =IF(CMdata=1, IF(Lcm2_core=1, IMDIV(1, IMSUM(IMDIV(1,IMPRODUCT(B75,'Design the AEF circuit'!$H$18*0.001)), IMDIV(1,'Design the AEF circuit'!$H$19*1000), IMPRODUCT(B75,'Design the AEF circuit'!$H$20*0.000000000001))), Q75), COMPLEX(I75,J75,"j")) -> -0.589473723604002+21.5828713824721j | N75: =IMSUM(IMDIV(1,IMSUM(IMDIV(1,IMPRODUCT(B75,'Design the AEF circuit'!$G$18*0.001)),IMDIV(1,'Design the AEF circuit'!$G$19*1000))), IMDIV(1,IMSUM(IMDIV(1,IMPRODUCT(B75,'Design the AEF circuit'!$G$21*0.001)),IMDIV(1,'Design the AEF circuit'!$G$22*1000))), IMDIV(1,IMSUM(IMDIV(1,IMPRODUCT(B75,'Design the AEF circuit'!$G$23*0.001)),IMDIV(1,'Design the AEF circuit'!$G$24*1000))) ) -> 0.200564503319853+31.184132546023j | O75: =IMDIV(1, IMSUM( IMDIV(1, N75), IMPRODUCT(B75,'Design the AEF circuit'!$G$20*0.000000000001))) -> 0.200564932429679+31.184165904012j | P75: =IMSUM(IMDIV(1,IMSUM(IMDIV(1,IMPRODUCT(B75,'Design the AEF circuit'!$H$18*0.001)),IMDIV(1,'Design the AEF circuit'!$H$19*1000))), IMDIV(1,IMSUM(IMDIV(1,IMPRODUCT(B75,'Design the AEF circuit'!$H$21*0.001)),IMDIV(1,'Design the AEF circuit'!$H$22*1000))), IMDIV(1,IMSUM(IMDIV(1,IMPRODUCT(B75,'Design the AEF circuit'!$H$23*0.001)),IMDIV(1,'Design the AEF circuit'!$H$24*1000))) ) -> 0.200564503319853+31.184132546023j | Q75: =IMDIV(1, IMSUM( IMDIV(1, P75), IMPRODUCT(B75,'Design the AEF circuit'!$H$20*0.000000000001) ) ) -> 0.200564932429679+31.184165904012j
A76: ='Frequency vector'!G76 -> 251.3217538 | B76: =COMPLEX(0,2*PI()*'Frequency vector'!G76,"j") -> 1579.10115078577j | C76: =IF(IF(CMdata=1,IMABS(K76),'CM choke'!C80)=0, C75, IF(CMdata=1,IMABS(K76),'CM choke'!C80)) -> 21.65567833 | D76: =IF(IF(CMdata=1,DEGREES(IMARGUMENT(K76)),'CM choke'!D80)=0, D75, IF(CMdata=1,DEGREES(IMARGUMENT(K76)),'CM choke'!D80)) -> 91.48470677 | E76: =IF(IF(CMdata=1,IMABS(L76),'CM choke'!E80)=0, E75, IF(CMdata=1,IMABS(L76),'CM choke'!E80)) -> 21.65567833 | F76: =IF(IF(CMdata=1,DEGREES(IMARGUMENT(L76)),'CM choke'!F80)=0, F75, IF(CMdata=1,DEGREES(IMARGUMENT(L76)),'CM choke'!F80)) -> 91.48470677 | G76: -0.5611012602 | H76: 21.64840801 | I76: -0.5611012602 | J76: 21.64840801 | K76: =IF(CMdata=1, IF(Lcm1_core=1, IMDIV(1,IMSUM(IMDIV(1,IMPRODUCT(B76,'Design the AEF circuit'!$G$18*0.001)),IMDIV(1,'Design the AEF circuit'!$G$19*1000),IMPRODUCT(B76,'Design the AEF circuit'!$G$20*0.000000000001))), O76),COMPLEX(G76,H76,"j")) -> -0.561101260193142+21.6484080134038j | L76: =IF(CMdata=1, IF(Lcm2_core=1, IMDIV(1, IMSUM(IMDIV(1,IMPRODUCT(B76,'Design the AEF circuit'!$H$18*0.001)), IMDIV(1,'Design the AEF circuit'!$H$19*1000), IMPRODUCT(B76,'Design the AEF circuit'!$H$20*0.000000000001))), Q76), COMPLEX(I76,J76,"j")) -> -0.561101260193142+21.6484080134038j | N76: =IMSUM(IMDIV(1,IMSUM(IMDIV(1,IMPRODUCT(B76,'Design the AEF circuit'!$G$18*0.001)),IMDIV(1,'Design the AEF circuit'!$G$19*1000))), IMDIV(1,IMSUM(IMDIV(1,IMPRODUCT(B76,'Design the AEF circuit'!$G$21*0.001)),IMDIV(1,'Design the AEF circuit'!$G$22*1000))), IMDIV(1,IMSUM(IMDIV(1,IMPRODUCT(B76,'Design the AEF circuit'!$G$23*0.001)),IMDIV(1,'Design the AEF circuit'!$G$24*1000))) ) -> 0.205692484181327+31.5802574577896j | O76: =IMDIV(1, IMSUM( IMDIV(1, N76), IMPRODUCT(B76,'Design the AEF circuit'!$G$20*0.000000000001))) -> 0.205692935514682+31.5802921032244j | P76: =IMSUM(IMDIV(1,IMSUM(IMDIV(1,IMPRODUCT(B76,'Design the AEF circuit'!$H$18*0.001)),IMDIV(1,'Design the AEF circuit'!$H$19*1000))), IMDIV(1,IMSUM(IMDIV(1,IMPRODUCT(B76,'Design the AEF circuit'!$H$21*0.001)),IMDIV(1,'Design the AEF circuit'!$H$22*1000))), IMDIV(1,IMSUM(IMDIV(1,IMPRODUCT(B76,'Design the AEF circuit'!$H$23*0.001)),IMDIV(1,'Design the AEF circuit'!$H$24*1000))) ) -> 0.205692484181327+31.5802574577896j | Q76: =IMDIV(1, IMSUM( IMDIV(1, P76), IMPRODUCT(B76,'Design the AEF circuit'!$H$20*0.000000000001) ) ) -> 0.205692935514682+31.5802921032244j
A77: ='Frequency vector'!G77 -> 254.5145913 | B77: =COMPLEX(0,2*PI()*'Frequency vector'!G77,"j") -> 1599.16234082222j | C77: =IF(IF(CMdata=1,IMABS(K77),'CM choke'!C81)=0, C76, IF(CMdata=1,IMABS(K77),'CM choke'!C81)) -> 22.12688279 | D77: =IF(IF(CMdata=1,DEGREES(IMARGUMENT(K77)),'CM choke'!D81)=0, D76, IF(CMdata=1,DEGREES(IMARGUMENT(K77)),'CM choke'!D81)) -> 90.67627278 | E77: =IF(IF(CMdata=1,IMABS(L77),'CM choke'!E81)=0, E76, IF(CMdata=1,IMABS(L77),'CM choke'!E81)) -> 22.12688279 | F77: =IF(IF(CMdata=1,DEGREES(IMARGUMENT(L77)),'CM choke'!F81)=0, F76, IF(CMdata=1,DEGREES(IMARGUMENT(L77)),'CM choke'!F81)) -> 90.67627278 | G77: -0.2611616617 | H77: 22.1253415 | I77: -0.2611616617 | J77: 22.1253415 | K77: =IF(CMdata=1, IF(Lcm1_core=1, IMDIV(1,IMSUM(IMDIV(1,IMPRODUCT(B77,'Design the AEF circuit'!$G$18*0.001)),IMDIV(1,'Design the AEF circuit'!$G$19*1000),IMPRODUCT(B77,'Design the AEF circuit'!$G$20*0.000000000001))), O77),COMPLEX(G77,H77,"j")) -> -0.261161661720932+22.1253415034165j | L77: =IF(CMdata=1, IF(Lcm2_core=1, IMDIV(1, IMSUM(IMDIV(1,IMPRODUCT(B77,'Design the AEF circuit'!$H$18*0.001)), IMDIV(1,'Design the AEF circuit'!$H$19*1000), IMPRODUCT(B77,'Design the AEF circuit'!$H$20*0.000000000001))), Q77), COMPLEX(I77,J77,"j")) -> -0.261161661720932+22.1253415034165j | N77: =IMSUM(IMDIV(1,IMSUM(IMDIV(1,IMPRODUCT(B77,'Design the AEF circuit'!$G$18*0.001)),IMDIV(1,'Design the AEF circuit'!$G$19*1000))), IMDIV(1,IMSUM(IMDIV(1,IMPRODUCT(B77,'Design the AEF circuit'!$G$21*0.001)),IMDIV(1,'Design the AEF circuit'!$G$22*1000))), IMDIV(1,IMSUM(IMDIV(1,IMPRODUCT(B77,'Design the AEF circuit'!$G$23*0.001)),IMDIV(1,'Design the AEF circuit'!$G$24*1000))) ) -> 0.210951565277852+31.9814131141875j | O77: =IMDIV(1, IMSUM( IMDIV(1, N77), IMPRODUCT(B77,'Design the AEF circuit'!$G$20*0.000000000001))) -> 0.21095203998565+31.9814490967532j | P77: =IMSUM(IMDIV(1,IMSUM(IMDIV(1,IMPRODUCT(B77,'Design the AEF circuit'!$H$18*0.001)),IMDIV(1,'Design the AEF circuit'!$H$19*1000))), IMDIV(1,IMSUM(IMDIV(1,IMPRODUCT(B77,'Design the AEF circuit'!$H$21*0.001)),IMDIV(1,'Design the AEF circuit'!$H$22*1000))), IMDIV(1,IMSUM(IMDIV(1,IMPRODUCT(B77,'Design the AEF circuit'!$H$23*0.001)),IMDIV(1,'Design the AEF circuit'!$H$24*1000))) ) -> 0.210951565277852+31.9814131141875j | Q77: =IMDIV(1, IMSUM( IMDIV(1, P77), IMPRODUCT(B77,'Design the AEF circuit'!$H$20*0.000000000001) ) ) -> 0.21095203998565+31.9814490967532j
A78: ='Frequency vector'!G78 -> 257.7479913 | B78: =COMPLEX(0,2*PI()*'Frequency vector'!G78,"j") -> 1619.47839188863j | C78: =IF(IF(CMdata=1,IMABS(K78),'CM choke'!C82)=0, C77, IF(CMdata=1,IMABS(K78),'CM choke'!C82)) -> 21.80995678 | D78: =IF(IF(CMdata=1,DEGREES(IMARGUMENT(K78)),'CM choke'!D82)=0, D77, IF(CMdata=1,DEGREES(IMARGUMENT(K78)),'CM choke'!D82)) -> 89.56716711 | E78: =IF(IF(CMdata=1,IMABS(L78),'CM choke'!E82)=0, E77, IF(CMdata=1,IMABS(L78),'CM choke'!E82)) -> 21.80995678 | F78: =IF(IF(CMdata=1,DEGREES(IMARGUMENT(L78)),'CM choke'!F82)=0, F77, IF(CMdata=1,DEGREES(IMARGUMENT(L78)),'CM choke'!F82)) -> 89.56716711 | G78: 0.1647586753 | H78: 21.80933445 | I78: 0.1647586753 | J78: 21.80933445 | K78: =IF(CMdata=1, IF(Lcm1_core=1, IMDIV(1,IMSUM(IMDIV(1,IMPRODUCT(B78,'Design the AEF circuit'!$G$18*0.001)),IMDIV(1,'Design the AEF circuit'!$G$19*1000),IMPRODUCT(B78,'Design the AEF circuit'!$G$20*0.000000000001))), O78),COMPLEX(G78,H78,"j")) -> 0.164758675315+21.8093344537707j | L78: =IF(CMdata=1, IF(Lcm2_core=1, IMDIV(1, IMSUM(IMDIV(1,IMPRODUCT(B78,'Design the AEF circuit'!$H$18*0.001)), IMDIV(1,'Design the AEF circuit'!$H$19*1000), IMPRODUCT(B78,'Design the AEF circuit'!$H$20*0.000000000001))), Q78), COMPLEX(I78,J78,"j")) -> 0.164758675315+21.8093344537707j | N78: =IMSUM(IMDIV(1,IMSUM(IMDIV(1,IMPRODUCT(B78,'Design the AEF circuit'!$G$18*0.001)),IMDIV(1,'Design the AEF circuit'!$G$19*1000))), IMDIV(1,IMSUM(IMDIV(1,IMPRODUCT(B78,'Design the AEF circuit'!$G$21*0.001)),IMDIV(1,'Design the AEF circuit'!$G$22*1000))), IMDIV(1,IMSUM(IMDIV(1,IMPRODUCT(B78,'Design the AEF circuit'!$G$23*0.001)),IMDIV(1,'Design the AEF circuit'!$G$24*1000))) ) -> 0.216345097722907+32.3876633611608j | O78: =IMDIV(1, IMSUM( IMDIV(1, N78), IMPRODUCT(B78,'Design the AEF circuit'!$G$20*0.000000000001))) -> 0.216345597015658+32.3877007324597j | P78: =IMSUM(IMDIV(1,IMSUM(IMDIV(1,IMPRODUCT(B78,'Design the AEF circuit'!$H$18*0.001)),IMDIV(1,'Design the AEF circuit'!$H$19*1000))), IMDIV(1,IMSUM(IMDIV(1,IMPRODUCT(B78,'Design the AEF circuit'!$H$21*0.001)),IMDIV(1,'Design the AEF circuit'!$H$22*1000))), IMDIV(1,IMSUM(IMDIV(1,IMPRODUCT(B78,'Design the AEF circuit'!$H$23*0.001)),IMDIV(1,'Design the AEF circuit'!$H$24*1000))) ) -> 0.216345097722907+32.3876633611608j | Q78: =IMDIV(1, IMSUM( IMDIV(1, P78), IMPRODUCT(B78,'Design the AEF circuit'!$H$20*0.000000000001) ) ) -> 0.216345597015658+32.3877007324597j
A79: ='Frequency vector'!G79 -> 261.022469 | B79: =COMPLEX(0,2*PI()*'Frequency vector'!G79,"j") -> 1640.05254178615j | C79: =IF(IF(CMdata=1,IMABS(K79),'CM choke'!C83)=0, C78, IF(CMdata=1,IMABS(K79),'CM choke'!C83)) -> 22.04921334 | D79: =IF(IF(CMdata=1,DEGREES(IMARGUMENT(K79)),'CM choke'!D83)=0, D78, IF(CMdata=1,DEGREES(IMARGUMENT(K79)),'CM choke'!D83)) -> 91.62533029 | E79: =IF(IF(CMdata=1,IMABS(L79),'CM choke'!E83)=0, E78, IF(CMdata=1,IMABS(L79),'CM choke'!E83)) -> 22.04921334 | F79: =IF(IF(CMdata=1,DEGREES(IMARGUMENT(L79)),'CM choke'!F83)=0, F78, IF(CMdata=1,DEGREES(IMARGUMENT(L79)),'CM choke'!F83)) -> 91.62533029 | G79: -0.6253941976 | H79: 22.04034236 | I79: -0.6253941976 | J79: 22.04034236 | K79: =IF(CMdata=1, IF(Lcm1_core=1, IMDIV(1,IMSUM(IMDIV(1,IMPRODUCT(B79,'Design the AEF circuit'!$G$18*0.001)),IMDIV(1,'Design the AEF circuit'!$G$19*1000),IMPRODUCT(B79,'Design the AEF circuit'!$G$20*0.000000000001))), O79),COMPLEX(G79,H79,"j")) -> -0.625394197643409+22.0403423566313j | L79: =IF(CMdata=1, IF(Lcm2_core=1, IMDIV(1, IMSUM(IMDIV(1,IMPRODUCT(B79,'Design the AEF circuit'!$H$18*0.001)), IMDIV(1,'Design the AEF circuit'!$H$19*1000), IMPRODUCT(B79,'Design the AEF circuit'!$H$20*0.000000000001))), Q79), COMPLEX(I79,J79,"j")) -> -0.625394197643409+22.0403423566313j | N79: =IMSUM(IMDIV(1,IMSUM(IMDIV(1,IMPRODUCT(B79,'Design the AEF circuit'!$G$18*0.001)),IMDIV(1,'Design the AEF circuit'!$G$19*1000))), IMDIV(1,IMSUM(IMDIV(1,IMPRODUCT(B79,'Design the AEF circuit'!$G$21*0.001)),IMDIV(1,'Design the AEF circuit'!$G$22*1000))), IMDIV(1,IMSUM(IMDIV(1,IMPRODUCT(B79,'Design the AEF circuit'!$G$23*0.001)),IMDIV(1,'Design the AEF circuit'!$G$24*1000))) ) -> 0.221876518260774+32.7990728532341j | O79: =IMDIV(1, IMSUM( IMDIV(1, N79), IMPRODUCT(B79,'Design the AEF circuit'!$G$20*0.000000000001))) -> 0.221877043411679+32.79911166686j | P79: =IMSUM(IMDIV(1,IMSUM(IMDIV(1,IMPRODUCT(B79,'Design the AEF circuit'!$H$18*0.001)),IMDIV(1,'Design the AEF circuit'!$H$19*1000))), IMDIV(1,IMSUM(IMDIV(1,IMPRODUCT(B79,'Design the AEF circuit'!$H$21*0.001)),IMDIV(1,'Design the AEF circuit'!$H$22*1000))), IMDIV(1,IMSUM(IMDIV(1,IMPRODUCT(B79,'Design the AEF circuit'!$H$23*0.001)),IMDIV(1,'Design the AEF circuit'!$H$24*1000))) ) -> 0.221876518260774+32.7990728532341j | Q79: =IMDIV(1, IMSUM( IMDIV(1, P79), IMPRODUCT(B79,'Design the AEF circuit'!$H$20*0.000000000001) ) ) -> 0.221877043411679+32.79911166686j
A80: ='Frequency vector'!G80 -> 264.3385462 | B80: =COMPLEX(0,2*PI()*'Frequency vector'!G80,"j") -> 1660.88806944958j | C80: =IF(IF(CMdata=1,IMABS(K80),'CM choke'!C84)=0, C79, IF(CMdata=1,IMABS(K80),'CM choke'!C84)) -> 22.59221205 | D80: =IF(IF(CMdata=1,DEGREES(IMARGUMENT(K80)),'CM choke'!D84)=0, D79, IF(CMdata=1,DEGREES(IMARGUMENT(K80)),'CM choke'!D84)) -> 90.325235 | E80: =IF(IF(CMdata=1,IMABS(L80),'CM choke'!E84)=0, E79, IF(CMdata=1,IMABS(L80),'CM choke'!E84)) -> 22.59221205 | F80: =IF(IF(CMdata=1,DEGREES(IMARGUMENT(L80)),'CM choke'!F84)=0, F79, IF(CMdata=1,DEGREES(IMARGUMENT(L80)),'CM choke'!F84)) -> 90.325235 | G80: -0.1282422316 | H80: 22.59184807 | I80: -0.1282422316 | J80: 22.59184807 | K80: =IF(CMdata=1, IF(Lcm1_core=1, IMDIV(1,IMSUM(IMDIV(1,IMPRODUCT(B80,'Design the AEF circuit'!$G$18*0.001)),IMDIV(1,'Design the AEF circuit'!$G$19*1000),IMPRODUCT(B80,'Design the AEF circuit'!$G$20*0.000000000001))), O80),COMPLEX(G80,H80,"j")) -> -0.128242231644486+22.5918480732676j | L80: =IF(CMdata=1, IF(Lcm2_core=1, IMDIV(1, IMSUM(IMDIV(1,IMPRODUCT(B80,'Design the AEF circuit'!$H$18*0.001)), IMDIV(1,'Design the AEF circuit'!$H$19*1000), IMPRODUCT(B80,'Design the AEF circuit'!$H$20*0.000000000001))), Q80), COMPLEX(I80,J80,"j")) -> -0.128242231644486+22.5918480732676j | N80: =IMSUM(IMDIV(1,IMSUM(IMDIV(1,IMPRODUCT(B80,'Design the AEF circuit'!$G$18*0.001)),IMDIV(1,'Design the AEF circuit'!$G$19*1000))), IMDIV(1,IMSUM(IMDIV(1,IMPRODUCT(B80,'Design the AEF circuit'!$G$21*0.001)),IMDIV(1,'Design the AEF circuit'!$G$22*1000))), IMDIV(1,IMSUM(IMDIV(1,IMPRODUCT(B80,'Design the AEF circuit'!$G$23*0.001)),IMDIV(1,'Design the AEF circuit'!$G$24*1000))) ) -> 0.227549351453202+33.2157070636882j | O80: =IMDIV(1, IMSUM( IMDIV(1, N80), IMPRODUCT(B80,'Design the AEF circuit'!$G$20*0.000000000001))) -> 0.227549903801393+33.2157473753028j | P80: =IMSUM(IMDIV(1,IMSUM(IMDIV(1,IMPRODUCT(B80,'Design the AEF circuit'!$H$18*0.001)),IMDIV(1,'Design the AEF circuit'!$H$19*1000))), IMDIV(1,IMSUM(IMDIV(1,IMPRODUCT(B80,'Design the AEF circuit'!$H$21*0.001)),IMDIV(1,'Design the AEF circuit'!$H$22*1000))), IMDIV(1,IMSUM(IMDIV(1,IMPRODUCT(B80,'Design the AEF circuit'!$H$23*0.001)),IMDIV(1,'Design the AEF circuit'!$H$24*1000))) ) -> 0.227549351453202+33.2157070636882j | Q80: =IMDIV(1, IMSUM( IMDIV(1, P80), IMPRODUCT(B80,'Design the AEF circuit'!$H$20*0.000000000001) ) ) -> 0.227549903801393+33.2157473753028j
A81: ='Frequency vector'!G81 -> 267.6967514 | B81: =COMPLEX(0,2*PI()*'Frequency vector'!G81,"j") -> 1681.98829546989j | C81: =IF(IF(CMdata=1,IMABS(K81),'CM choke'!C85)=0, C80, IF(CMdata=1,IMABS(K81),'CM choke'!C85)) -> 22.948942 | D81: =IF(IF(CMdata=1,DEGREES(IMARGUMENT(K81)),'CM choke'!D85)=0, D80, IF(CMdata=1,DEGREES(IMARGUMENT(K81)),'CM choke'!D85)) -> 91.64735383 | E81: =IF(IF(CMdata=1,IMABS(L81),'CM choke'!E85)=0, E80, IF(CMdata=1,IMABS(L81),'CM choke'!E85)) -> 22.948942 | F81: =IF(IF(CMdata=1,DEGREES(IMARGUMENT(L81)),'CM choke'!F85)=0, F80, IF(CMdata=1,DEGREES(IMARGUMENT(L81)),'CM choke'!F85)) -> 91.64735383 | G81: -0.6597312994 | H81: 22.93945714 | I81: -0.6597312994 | J81: 22.93945714 | K81: =IF(CMdata=1, IF(Lcm1_core=1, IMDIV(1,IMSUM(IMDIV(1,IMPRODUCT(B81,'Design the AEF circuit'!$G$18*0.001)),IMDIV(1,'Design the AEF circuit'!$G$19*1000),IMPRODUCT(B81,'Design the AEF circuit'!$G$20*0.000000000001))), O81),COMPLEX(G81,H81,"j")) -> -0.659731299387488+22.9394571362681j | L81: =IF(CMdata=1, IF(Lcm2_core=1, IMDIV(1, IMSUM(IMDIV(1,IMPRODUCT(B81,'Design the AEF circuit'!$H$18*0.001)), IMDIV(1,'Design the AEF circuit'!$H$19*1000), IMPRODUCT(B81,'Design the AEF circuit'!$H$20*0.000000000001))), Q81), COMPLEX(I81,J81,"j")) -> -0.659731299387488+22.9394571362681j | N81: =IMSUM(IMDIV(1,IMSUM(IMDIV(1,IMPRODUCT(B81,'Design the AEF circuit'!$G$18*0.001)),IMDIV(1,'Design the AEF circuit'!$G$19*1000))), IMDIV(1,IMSUM(IMDIV(1,IMPRODUCT(B81,'Design the AEF circuit'!$G$21*0.001)),IMDIV(1,'Design the AEF circuit'!$G$22*1000))), IMDIV(1,IMSUM(IMDIV(1,IMPRODUCT(B81,'Design the AEF circuit'!$G$23*0.001)),IMDIV(1,'Design the AEF circuit'!$G$24*1000))) ) -> 0.2333672119218+33.6376322948599j | O81: =IMDIV(1, IMSUM( IMDIV(1, N81), IMPRODUCT(B81,'Design the AEF circuit'!$G$20*0.000000000001))) -> 0.233367792875756+33.6376741622727j | P81: =IMSUM(IMDIV(1,IMSUM(IMDIV(1,IMPRODUCT(B81,'Design the AEF circuit'!$H$18*0.001)),IMDIV(1,'Design the AEF circuit'!$H$19*1000))), IMDIV(1,IMSUM(IMDIV(1,IMPRODUCT(B81,'Design the AEF circuit'!$H$21*0.001)),IMDIV(1,'Design the AEF circuit'!$H$22*1000))), IMDIV(1,IMSUM(IMDIV(1,IMPRODUCT(B81,'Design the AEF circuit'!$H$23*0.001)),IMDIV(1,'Design the AEF circuit'!$H$24*1000))) ) -> 0.2333672119218+33.6376322948599j | Q81: =IMDIV(1, IMSUM( IMDIV(1, P81), IMPRODUCT(B81,'Design the AEF circuit'!$H$20*0.000000000001) ) ) -> 0.233367792875756+33.6376741622727j
A82: ='Frequency vector'!G82 -> 271.09762 | B82: =COMPLEX(0,2*PI()*'Frequency vector'!G82,"j") -> 1703.35658262347j | C82: =IF(IF(CMdata=1,IMABS(K82),'CM choke'!C86)=0, C81, IF(CMdata=1,IMABS(K82),'CM choke'!C86)) -> 22.9236906 | D82: =IF(IF(CMdata=1,DEGREES(IMARGUMENT(K82)),'CM choke'!D86)=0, D81, IF(CMdata=1,DEGREES(IMARGUMENT(K82)),'CM choke'!D86)) -> 91.28524686 | E82: =IF(IF(CMdata=1,IMABS(L82),'CM choke'!E86)=0, E81, IF(CMdata=1,IMABS(L82),'CM choke'!E86)) -> 22.9236906 | F82: =IF(IF(CMdata=1,DEGREES(IMARGUMENT(L82)),'CM choke'!F86)=0, F81, IF(CMdata=1,DEGREES(IMARGUMENT(L82)),'CM choke'!F86)) -> 91.28524686 | G82: -0.5141762755 | H82: 22.91792341 | I82: -0.5141762755 | J82: 22.91792341 | K82: =IF(CMdata=1, IF(Lcm1_core=1, IMDIV(1,IMSUM(IMDIV(1,IMPRODUCT(B82,'Design the AEF circuit'!$G$18*0.001)),IMDIV(1,'Design the AEF circuit'!$G$19*1000),IMPRODUCT(B82,'Design the AEF circuit'!$G$20*0.000000000001))), O82),COMPLEX(G82,H82,"j")) -> -0.514176275468651+22.9179234072832j | L82: =IF(CMdata=1, IF(Lcm2_core=1, IMDIV(1, IMSUM(IMDIV(1,IMPRODUCT(B82,'Design the AEF circuit'!$H$18*0.001)), IMDIV(1,'Design the AEF circuit'!$H$19*1000), IMPRODUCT(B82,'Design the AEF circuit'!$H$20*0.000000000001))), Q82), COMPLEX(I82,J82,"j")) -> -0.514176275468651+22.9179234072832j | N82: =IMSUM(IMDIV(1,IMSUM(IMDIV(1,IMPRODUCT(B82,'Design the AEF circuit'!$G$18*0.001)),IMDIV(1,'Design the AEF circuit'!$G$19*1000))), IMDIV(1,IMSUM(IMDIV(1,IMPRODUCT(B82,'Design the AEF circuit'!$G$21*0.001)),IMDIV(1,'Design the AEF circuit'!$G$22*1000))), IMDIV(1,IMSUM(IMDIV(1,IMPRODUCT(B82,'Design the AEF circuit'!$G$23*0.001)),IMDIV(1,'Design the AEF circuit'!$G$24*1000))) ) -> 0.239333806647618+34.0649156885693j | O82: =IMDIV(1, IMSUM( IMDIV(1, N82), IMPRODUCT(B82,'Design the AEF circuit'!$G$20*0.000000000001))) -> 0.239334417688752+34.0649591718203j | P82: =IMSUM(IMDIV(1,IMSUM(IMDIV(1,IMPRODUCT(B82,'Design the AEF circuit'!$H$18*0.001)),IMDIV(1,'Design the AEF circuit'!$H$19*1000))), IMDIV(1,IMSUM(IMDIV(1,IMPRODUCT(B82,'Design the AEF circuit'!$H$21*0.001)),IMDIV(1,'Design the AEF circuit'!$H$22*1000))), IMDIV(1,IMSUM(IMDIV(1,IMPRODUCT(B82,'Design the AEF circuit'!$H$23*0.001)),IMDIV(1,'Design the AEF circuit'!$H$24*1000))) ) -> 0.239333806647618+34.0649156885693j | Q82: =IMDIV(1, IMSUM( IMDIV(1, P82), IMPRODUCT(B82,'Design the AEF circuit'!$H$20*0.000000000001) ) ) -> 0.239334417688752+34.0649591718203j
A83: ='Frequency vector'!G83 -> 274.5416938 | B83: =COMPLEX(0,2*PI()*'Frequency vector'!G83,"j") -> 1724.99633640799j | C83: =IF(IF(CMdata=1,IMABS(K83),'CM choke'!C87)=0, C82, IF(CMdata=1,IMABS(K83),'CM choke'!C87)) -> 23.36287798 | D83: =IF(IF(CMdata=1,DEGREES(IMARGUMENT(K83)),'CM choke'!D87)=0, D82, IF(CMdata=1,DEGREES(IMARGUMENT(K83)),'CM choke'!D87)) -> 91.17495801 | E83: =IF(IF(CMdata=1,IMABS(L83),'CM choke'!E87)=0, E82, IF(CMdata=1,IMABS(L83),'CM choke'!E87)) -> 23.36287798 | F83: =IF(IF(CMdata=1,DEGREES(IMARGUMENT(L83)),'CM choke'!F87)=0, F82, IF(CMdata=1,DEGREES(IMARGUMENT(L83)),'CM choke'!F87)) -> 91.17495801 | G83: -0.4790662913 | H83: 23.35796573 | I83: -0.4790662913 | J83: 23.35796573 | K83: =IF(CMdata=1, IF(Lcm1_core=1, IMDIV(1,IMSUM(IMDIV(1,IMPRODUCT(B83,'Design the AEF circuit'!$G$18*0.001)),IMDIV(1,'Design the AEF circuit'!$G$19*1000),IMPRODUCT(B83,'Design the AEF circuit'!$G$20*0.000000000001))), O83),COMPLEX(G83,H83,"j")) -> -0.479066291258611+23.3579657297403j | L83: =IF(CMdata=1, IF(Lcm2_core=1, IMDIV(1, IMSUM(IMDIV(1,IMPRODUCT(B83,'Design the AEF circuit'!$H$18*0.001)), IMDIV(1,'Design the AEF circuit'!$H$19*1000), IMPRODUCT(B83,'Design the AEF circuit'!$H$20*0.000000000001))), Q83), COMPLEX(I83,J83,"j")) -> -0.479066291258611+23.3579657297403j | N83: =IMSUM(IMDIV(1,IMSUM(IMDIV(1,IMPRODUCT(B83,'Design the AEF circuit'!$G$18*0.001)),IMDIV(1,'Design the AEF circuit'!$G$19*1000))), IMDIV(1,IMSUM(IMDIV(1,IMPRODUCT(B83,'Design the AEF circuit'!$G$21*0.001)),IMDIV(1,'Design the AEF circuit'!$G$22*1000))), IMDIV(1,IMSUM(IMDIV(1,IMPRODUCT(B83,'Design the AEF circuit'!$G$23*0.001)),IMDIV(1,'Design the AEF circuit'!$G$24*1000))) ) -> 0.245452937329356+34.4976252366754j | O83: =IMDIV(1, IMSUM( IMDIV(1, N83), IMPRODUCT(B83,'Design the AEF circuit'!$G$20*0.000000000001))) -> 0.245453580015801+34.4976703981215j | P83: =IMSUM(IMDIV(1,IMSUM(IMDIV(1,IMPRODUCT(B83,'Design the AEF circuit'!$H$18*0.001)),IMDIV(1,'Design the AEF circuit'!$H$19*1000))), IMDIV(1,IMSUM(IMDIV(1,IMPRODUCT(B83,'Design the AEF circuit'!$H$21*0.001)),IMDIV(1,'Design the AEF circuit'!$H$22*1000))), IMDIV(1,IMSUM(IMDIV(1,IMPRODUCT(B83,'Design the AEF circuit'!$H$23*0.001)),IMDIV(1,'Design the AEF circuit'!$H$24*1000))) ) -> 0.245452937329356+34.4976252366754j | Q83: =IMDIV(1, IMSUM( IMDIV(1, P83), IMPRODUCT(B83,'Design the AEF circuit'!$H$20*0.000000000001) ) ) -> 0.245453580015801+34.4976703981215j
A84: ='Frequency vector'!G84 -> 278.0295217 | B84: =COMPLEX(0,2*PI()*'Frequency vector'!G84,"j") -> 1746.91100558523j | C84: =IF(IF(CMdata=1,IMABS(K84),'CM choke'!C88)=0, C83, IF(CMdata=1,IMABS(K84),'CM choke'!C88)) -> 23.69334567 | D84: =IF(IF(CMdata=1,DEGREES(IMARGUMENT(K84)),'CM choke'!D88)=0, D83, IF(CMdata=1,DEGREES(IMARGUMENT(K84)),'CM choke'!D88)) -> 91.01465854 | E84: =IF(IF(CMdata=1,IMABS(L84),'CM choke'!E88)=0, E83, IF(CMdata=1,IMABS(L84),'CM choke'!E88)) -> 23.69334567 | F84: =IF(IF(CMdata=1,DEGREES(IMARGUMENT(L84)),'CM choke'!F88)=0, F83, IF(CMdata=1,DEGREES(IMARGUMENT(L84)),'CM choke'!F88)) -> 91.01465854 | G84: -0.4195666606 | H84: 23.6896305 | I84: -0.4195666606 | J84: 23.6896305 | K84: =IF(CMdata=1, IF(Lcm1_core=1, IMDIV(1,IMSUM(IMDIV(1,IMPRODUCT(B84,'Design the AEF circuit'!$G$18*0.001)),IMDIV(1,'Design the AEF circuit'!$G$19*1000),IMPRODUCT(B84,'Design the AEF circuit'!$G$20*0.000000000001))), O84),COMPLEX(G84,H84,"j")) -> -0.419566660638481+23.6896304961414j | L84: =IF(CMdata=1, IF(Lcm2_core=1, IMDIV(1, IMSUM(IMDIV(1,IMPRODUCT(B84,'Design the AEF circuit'!$H$18*0.001)), IMDIV(1,'Design the AEF circuit'!$H$19*1000), IMPRODUCT(B84,'Design the AEF circuit'!$H$20*0.000000000001))), Q84), COMPLEX(I84,J84,"j")) -> -0.419566660638481+23.6896304961414j | N84: =IMSUM(IMDIV(1,IMSUM(IMDIV(1,IMPRODUCT(B84,'Design the AEF circuit'!$G$18*0.001)),IMDIV(1,'Design the AEF circuit'!$G$19*1000))), IMDIV(1,IMSUM(IMDIV(1,IMPRODUCT(B84,'Design the AEF circuit'!$G$21*0.001)),IMDIV(1,'Design the AEF circuit'!$G$22*1000))), IMDIV(1,IMSUM(IMDIV(1,IMPRODUCT(B84,'Design the AEF circuit'!$G$23*0.001)),IMDIV(1,'Design the AEF circuit'!$G$24*1000))) ) -> 0.251728502801712+34.9358297917615j | O84: =IMDIV(1, IMSUM( IMDIV(1, N84), IMPRODUCT(B84,'Design the AEF circuit'!$G$20*0.000000000001))) -> 0.251729178772282+34.9358766961655j | P84: =IMSUM(IMDIV(1,IMSUM(IMDIV(1,IMPRODUCT(B84,'Design the AEF circuit'!$H$18*0.001)),IMDIV(1,'Design the AEF circuit'!$H$19*1000))), IMDIV(1,IMSUM(IMDIV(1,IMPRODUCT(B84,'Design the AEF circuit'!$H$21*0.001)),IMDIV(1,'Design the AEF circuit'!$H$22*1000))), IMDIV(1,IMSUM(IMDIV(1,IMPRODUCT(B84,'Design the AEF circuit'!$H$23*0.001)),IMDIV(1,'Design the AEF circuit'!$H$24*1000))) ) -> 0.251728502801712+34.9358297917615j | Q84: =IMDIV(1, IMSUM( IMDIV(1, P84), IMPRODUCT(B84,'Design the AEF circuit'!$H$20*0.000000000001) ) ) -> 0.251729178772282+34.9358766961655j
A85: ='Frequency vector'!G85 -> 281.5616596 | B85: =COMPLEX(0,2*PI()*'Frequency vector'!G85,"j") -> 1769.10408273066j | C85: =IF(IF(CMdata=1,IMABS(K85),'CM choke'!C89)=0, C84, IF(CMdata=1,IMABS(K85),'CM choke'!C89)) -> 24.18381467 | D85: =IF(IF(CMdata=1,DEGREES(IMARGUMENT(K85)),'CM choke'!D89)=0, D84, IF(CMdata=1,DEGREES(IMARGUMENT(K85)),'CM choke'!D89)) -> 91.51233538 | E85: =IF(IF(CMdata=1,IMABS(L85),'CM choke'!E89)=0, E84, IF(CMdata=1,IMABS(L85),'CM choke'!E89)) -> 24.18381467 | F85: =IF(IF(CMdata=1,DEGREES(IMARGUMENT(L85)),'CM choke'!F89)=0, F84, IF(CMdata=1,DEGREES(IMARGUMENT(L85)),'CM choke'!F89)) -> 91.51233538 | G85: -0.6382632716 | H85: 24.17539063 | I85: -0.6382632716 | J85: 24.17539063 | K85: =IF(CMdata=1, IF(Lcm1_core=1, IMDIV(1,IMSUM(IMDIV(1,IMPRODUCT(B85,'Design the AEF circuit'!$G$18*0.001)),IMDIV(1,'Design the AEF circuit'!$G$19*1000),IMPRODUCT(B85,'Design the AEF circuit'!$G$20*0.000000000001))), O85),COMPLEX(G85,H85,"j")) -> -0.638263271562266+24.1753906256676j | L85: =IF(CMdata=1, IF(Lcm2_core=1, IMDIV(1, IMSUM(IMDIV(1,IMPRODUCT(B85,'Design the AEF circuit'!$H$18*0.001)), IMDIV(1,'Design the AEF circuit'!$H$19*1000), IMPRODUCT(B85,'Design the AEF circuit'!$H$20*0.000000000001))), Q85), COMPLEX(I85,J85,"j")) -> -0.638263271562266+24.1753906256676j | N85: =IMSUM(IMDIV(1,IMSUM(IMDIV(1,IMPRODUCT(B85,'Design the AEF circuit'!$G$18*0.001)),IMDIV(1,'Design the AEF circuit'!$G$19*1000))), IMDIV(1,IMSUM(IMDIV(1,IMPRODUCT(B85,'Design the AEF circuit'!$G$21*0.001)),IMDIV(1,'Design the AEF circuit'!$G$22*1000))), IMDIV(1,IMSUM(IMDIV(1,IMPRODUCT(B85,'Design the AEF circuit'!$G$23*0.001)),IMDIV(1,'Design the AEF circuit'!$G$24*1000))) ) -> 0.258164501515363+35.3795990779524j | O85: =IMDIV(1, IMSUM( IMDIV(1, N85), IMPRODUCT(B85,'Design the AEF circuit'!$G$20*0.000000000001))) -> 0.258165212493736+35.3796477925761j | P85: =IMSUM(IMDIV(1,IMSUM(IMDIV(1,IMPRODUCT(B85,'Design the AEF circuit'!$H$18*0.001)),IMDIV(1,'Design the AEF circuit'!$H$19*1000))), IMDIV(1,IMSUM(IMDIV(1,IMPRODUCT(B85,'Design the AEF circuit'!$H$21*0.001)),IMDIV(1,'Design the AEF circuit'!$H$22*1000))), IMDIV(1,IMSUM(IMDIV(1,IMPRODUCT(B85,'Design the AEF circuit'!$H$23*0.001)),IMDIV(1,'Design the AEF circuit'!$H$24*1000))) ) -> 0.258164501515363+35.3795990779524j | Q85: =IMDIV(1, IMSUM( IMDIV(1, P85), IMPRODUCT(B85,'Design the AEF circuit'!$H$20*0.000000000001) ) ) -> 0.258165212493736+35.3796477925761j
A86: ='Frequency vector'!G86 -> 285.1386705 | B86: =COMPLEX(0,2*PI()*'Frequency vector'!G86,"j") -> 1791.57910479006j | C86: =IF(IF(CMdata=1,IMABS(K86),'CM choke'!C90)=0, C85, IF(CMdata=1,IMABS(K86),'CM choke'!C90)) -> 24.22184527 | D86: =IF(IF(CMdata=1,DEGREES(IMARGUMENT(K86)),'CM choke'!D90)=0, D85, IF(CMdata=1,DEGREES(IMARGUMENT(K86)),'CM choke'!D90)) -> 90.82640527 | E86: =IF(IF(CMdata=1,IMABS(L86),'CM choke'!E90)=0, E85, IF(CMdata=1,IMABS(L86),'CM choke'!E90)) -> 24.22184527 | F86: =IF(IF(CMdata=1,DEGREES(IMARGUMENT(L86)),'CM choke'!F90)=0, F85, IF(CMdata=1,DEGREES(IMARGUMENT(L86)),'CM choke'!F90)) -> 90.82640527 | G86: -0.3493514992 | H86: 24.2193258 | I86: -0.3493514992 | J86: 24.2193258 | K86: =IF(CMdata=1, IF(Lcm1_core=1, IMDIV(1,IMSUM(IMDIV(1,IMPRODUCT(B86,'Design the AEF circuit'!$G$18*0.001)),IMDIV(1,'Design the AEF circuit'!$G$19*1000),IMPRODUCT(B86,'Design the AEF circuit'!$G$20*0.000000000001))), O86),COMPLEX(G86,H86,"j")) -> -0.349351499237355+24.2193257954427j | L86: =IF(CMdata=1, IF(Lcm2_core=1, IMDIV(1, IMSUM(IMDIV(1,IMPRODUCT(B86,'Design the AEF circuit'!$H$18*0.001)), IMDIV(1,'Design the AEF circuit'!$H$19*1000), IMPRODUCT(B86,'Design the AEF circuit'!$H$20*0.000000000001))), Q86), COMPLEX(I86,J86,"j")) -> -0.349351499237355+24.2193257954427j | N86: =IMSUM(IMDIV(1,IMSUM(IMDIV(1,IMPRODUCT(B86,'Design the AEF circuit'!$G$18*0.001)),IMDIV(1,'Design the AEF circuit'!$G$19*1000))), IMDIV(1,IMSUM(IMDIV(1,IMPRODUCT(B86,'Design the AEF circuit'!$G$21*0.001)),IMDIV(1,'Design the AEF circuit'!$G$22*1000))), IMDIV(1,IMSUM(IMDIV(1,IMPRODUCT(B86,'Design the AEF circuit'!$G$23*0.001)),IMDIV(1,'Design the AEF circuit'!$G$24*1000))) ) -> 0.264765034080173+35.8290037018641j | O86: =IMDIV(1, IMSUM( IMDIV(1, N86), IMPRODUCT(B86,'Design the AEF circuit'!$G$20*0.000000000001))) -> 0.264765781879289+35.8290542965647j | P86: =IMSUM(IMDIV(1,IMSUM(IMDIV(1,IMPRODUCT(B86,'Design the AEF circuit'!$H$18*0.001)),IMDIV(1,'Design the AEF circuit'!$H$19*1000))), IMDIV(1,IMSUM(IMDIV(1,IMPRODUCT(B86,'Design the AEF circuit'!$H$21*0.001)),IMDIV(1,'Design the AEF circuit'!$H$22*1000))), IMDIV(1,IMSUM(IMDIV(1,IMPRODUCT(B86,'Design the AEF circuit'!$H$23*0.001)),IMDIV(1,'Design the AEF circuit'!$H$24*1000))) ) -> 0.264765034080173+35.8290037018641j | Q86: =IMDIV(1, IMSUM( IMDIV(1, P86), IMPRODUCT(B86,'Design the AEF circuit'!$H$20*0.000000000001) ) ) -> 0.264765781879289+35.8290542965647j
A87: ='Frequency vector'!G87 -> 288.7611243 | B87: =COMPLEX(0,2*PI()*'Frequency vector'!G87,"j") -> 1814.33965364322j | C87: =IF(IF(CMdata=1,IMABS(K87),'CM choke'!C91)=0, C86, IF(CMdata=1,IMABS(K87),'CM choke'!C91)) -> 24.65564128 | D87: =IF(IF(CMdata=1,DEGREES(IMARGUMENT(K87)),'CM choke'!D91)=0, D86, IF(CMdata=1,DEGREES(IMARGUMENT(K87)),'CM choke'!D91)) -> 91.01271154 | E87: =IF(IF(CMdata=1,IMABS(L87),'CM choke'!E91)=0, E86, IF(CMdata=1,IMABS(L87),'CM choke'!E91)) -> 24.65564128 | F87: =IF(IF(CMdata=1,DEGREES(IMARGUMENT(L87)),'CM choke'!F91)=0, F86, IF(CMdata=1,DEGREES(IMARGUMENT(L87)),'CM choke'!F91)) -> 91.01271154 | G87: -0.4357694847 | H87: 24.65179004 | I87: -0.4357694847 | J87: 24.65179004 | K87: =IF(CMdata=1, IF(Lcm1_core=1, IMDIV(1,IMSUM(IMDIV(1,IMPRODUCT(B87,'Design the AEF circuit'!$G$18*0.001)),IMDIV(1,'Design the AEF circuit'!$G$19*1000),IMPRODUCT(B87,'Design the AEF circuit'!$G$20*0.000000000001))), O87),COMPLEX(G87,H87,"j")) -> -0.43576948469149+24.6517900369372j | L87: =IF(CMdata=1, IF(Lcm2_core=1, IMDIV(1, IMSUM(IMDIV(1,IMPRODUCT(B87,'Design the AEF circuit'!$H$18*0.001)), IMDIV(1,'Design the AEF circuit'!$H$19*1000), IMPRODUCT(B87,'Design the AEF circuit'!$H$20*0.000000000001))), Q87), COMPLEX(I87,J87,"j")) -> -0.43576948469149+24.6517900369372j | N87: =IMSUM(IMDIV(1,IMSUM(IMDIV(1,IMPRODUCT(B87,'Design the AEF circuit'!$G$18*0.001)),IMDIV(1,'Design the AEF circuit'!$G$19*1000))), IMDIV(1,IMSUM(IMDIV(1,IMPRODUCT(B87,'Design the AEF circuit'!$G$21*0.001)),IMDIV(1,'Design the AEF circuit'!$G$22*1000))), IMDIV(1,IMSUM(IMDIV(1,IMPRODUCT(B87,'Design the AEF circuit'!$G$23*0.001)),IMDIV(1,'Design the AEF circuit'!$G$24*1000))) ) -> 0.271534305873226+36.2841151636876j | O87: =IMDIV(1, IMSUM( IMDIV(1, N87), IMPRODUCT(B87,'Design the AEF circuit'!$G$20*0.000000000001))) -> 0.271535092399901+36.2841677110175j | P87: =IMSUM(IMDIV(1,IMSUM(IMDIV(1,IMPRODUCT(B87,'Design the AEF circuit'!$H$18*0.001)),IMDIV(1,'Design the AEF circuit'!$H$19*1000))), IMDIV(1,IMSUM(IMDIV(1,IMPRODUCT(B87,'Design the AEF circuit'!$H$21*0.001)),IMDIV(1,'Design the AEF circuit'!$H$22*1000))), IMDIV(1,IMSUM(IMDIV(1,IMPRODUCT(B87,'Design the AEF circuit'!$H$23*0.001)),IMDIV(1,'Design the AEF circuit'!$H$24*1000))) ) -> 0.271534305873226+36.2841151636876j | Q87: =IMDIV(1, IMSUM( IMDIV(1, P87), IMPRODUCT(B87,'Design the AEF circuit'!$H$20*0.000000000001) ) ) -> 0.271535092399901+36.2841677110175j
A88: ='Frequency vector'!G88 -> 292.4295985 | B88: =COMPLEX(0,2*PI()*'Frequency vector'!G88,"j") -> 1837.38935667479j | C88: =IF(IF(CMdata=1,IMABS(K88),'CM choke'!C92)=0, C87, IF(CMdata=1,IMABS(K88),'CM choke'!C92)) -> 24.99859246 | D88: =IF(IF(CMdata=1,DEGREES(IMARGUMENT(K88)),'CM choke'!D92)=0, D87, IF(CMdata=1,DEGREES(IMARGUMENT(K88)),'CM choke'!D92)) -> 90.99336907 | E88: =IF(IF(CMdata=1,IMABS(L88),'CM choke'!E92)=0, E87, IF(CMdata=1,IMABS(L88),'CM choke'!E92)) -> 24.99859246 | F88: =IF(IF(CMdata=1,DEGREES(IMARGUMENT(L88)),'CM choke'!F92)=0, F87, IF(CMdata=1,DEGREES(IMARGUMENT(L88)),'CM choke'!F92)) -> 90.99336907 | G88: -0.433392906 | H88: 24.99483538 | I88: -0.433392906 | J88: 24.99483538 | K88: =IF(CMdata=1, IF(Lcm1_core=1, IMDIV(1,IMSUM(IMDIV(1,IMPRODUCT(B88,'Design the AEF circuit'!$G$18*0.001)),IMDIV(1,'Design the AEF circuit'!$G$19*1000),IMPRODUCT(B88,'Design the AEF circuit'!$G$20*0.000000000001))), O88),COMPLEX(G88,H88,"j")) -> -0.433392906002672+24.9948353768866j | L88: =IF(CMdata=1, IF(Lcm2_core=1, IMDIV(1, IMSUM(IMDIV(1,IMPRODUCT(B88,'Design the AEF circuit'!$H$18*0.001)), IMDIV(1,'Design the AEF circuit'!$H$19*1000), IMPRODUCT(B88,'Design the AEF circuit'!$H$20*0.000000000001))), Q88), COMPLEX(I88,J88,"j")) -> -0.433392906002672+24.9948353768866j | N88: =IMSUM(IMDIV(1,IMSUM(IMDIV(1,IMPRODUCT(B88,'Design the AEF circuit'!$G$18*0.001)),IMDIV(1,'Design the AEF circuit'!$G$19*1000))), IMDIV(1,IMSUM(IMDIV(1,IMPRODUCT(B88,'Design the AEF circuit'!$G$21*0.001)),IMDIV(1,'Design the AEF circuit'!$G$22*1000))), IMDIV(1,IMSUM(IMDIV(1,IMPRODUCT(B88,'Design the AEF circuit'!$G$23*0.001)),IMDIV(1,'Design the AEF circuit'!$G$24*1000))) ) -> 0.27847662971333+36.7450058684096j | O88: =IMDIV(1, IMSUM( IMDIV(1, N88), IMPRODUCT(B88,'Design the AEF circuit'!$G$20*0.000000000001))) -> 0.27847745697312+36.7450604437206j | P88: =IMSUM(IMDIV(1,IMSUM(IMDIV(1,IMPRODUCT(B88,'Design the AEF circuit'!$H$18*0.001)),IMDIV(1,'Design the AEF circuit'!$H$19*1000))), IMDIV(1,IMSUM(IMDIV(1,IMPRODUCT(B88,'Design the AEF circuit'!$H$21*0.001)),IMDIV(1,'Design the AEF circuit'!$H$22*1000))), IMDIV(1,IMSUM(IMDIV(1,IMPRODUCT(B88,'Design the AEF circuit'!$H$23*0.001)),IMDIV(1,'Design the AEF circuit'!$H$24*1000))) ) -> 0.27847662971333+36.7450058684096j | Q88: =IMDIV(1, IMSUM( IMDIV(1, P88), IMPRODUCT(B88,'Design the AEF circuit'!$H$20*0.000000000001) ) ) -> 0.27847745697312+36.7450604437206j
A89: ='Frequency vector'!G89 -> 296.1446776 | B89: =COMPLEX(0,2*PI()*'Frequency vector'!G89,"j") -> 1860.73188735237j | C89: =IF(IF(CMdata=1,IMABS(K89),'CM choke'!C93)=0, C88, IF(CMdata=1,IMABS(K89),'CM choke'!C93)) -> 25.23463721 | D89: =IF(IF(CMdata=1,DEGREES(IMARGUMENT(K89)),'CM choke'!D93)=0, D88, IF(CMdata=1,DEGREES(IMARGUMENT(K89)),'CM choke'!D93)) -> 91.20237272 | E89: =IF(IF(CMdata=1,IMABS(L89),'CM choke'!E93)=0, E88, IF(CMdata=1,IMABS(L89),'CM choke'!E93)) -> 25.23463721 | F89: =IF(IF(CMdata=1,DEGREES(IMARGUMENT(L89)),'CM choke'!F93)=0, F88, IF(CMdata=1,DEGREES(IMARGUMENT(L89)),'CM choke'!F93)) -> 91.20237272 | G89: -0.5295191512 | H89: 25.22908093 | I89: -0.5295191512 | J89: 25.22908093 | K89: =IF(CMdata=1, IF(Lcm1_core=1, IMDIV(1,IMSUM(IMDIV(1,IMPRODUCT(B89,'Design the AEF circuit'!$G$18*0.001)),IMDIV(1,'Design the AEF circuit'!$G$19*1000),IMPRODUCT(B89,'Design the AEF circuit'!$G$20*0.000000000001))), O89),COMPLEX(G89,H89,"j")) -> -0.529519151189895+25.2290809343662j | L89: =IF(CMdata=1, IF(Lcm2_core=1, IMDIV(1, IMSUM(IMDIV(1,IMPRODUCT(B89,'Design the AEF circuit'!$H$18*0.001)), IMDIV(1,'Design the AEF circuit'!$H$19*1000), IMPRODUCT(B89,'Design the AEF circuit'!$H$20*0.000000000001))), Q89), COMPLEX(I89,J89,"j")) -> -0.529519151189895+25.2290809343662j | N89: =IMSUM(IMDIV(1,IMSUM(IMDIV(1,IMPRODUCT(B89,'Design the AEF circuit'!$G$18*0.001)),IMDIV(1,'Design the AEF circuit'!$G$19*1000))), IMDIV(1,IMSUM(IMDIV(1,IMPRODUCT(B89,'Design the AEF circuit'!$G$21*0.001)),IMDIV(1,'Design the AEF circuit'!$G$22*1000))), IMDIV(1,IMSUM(IMDIV(1,IMPRODUCT(B89,'Design the AEF circuit'!$G$23*0.001)),IMDIV(1,'Design the AEF circuit'!$G$24*1000))) ) -> 0.285596428603672+37.2117491371692j | O89: =IMDIV(1, IMSUM( IMDIV(1, N89), IMPRODUCT(B89,'Design the AEF circuit'!$G$20*0.000000000001))) -> 0.285597298705989+37.2118058187206j | P89: =IMSUM(IMDIV(1,IMSUM(IMDIV(1,IMPRODUCT(B89,'Design the AEF circuit'!$H$18*0.001)),IMDIV(1,'Design the AEF circuit'!$H$19*1000))), IMDIV(1,IMSUM(IMDIV(1,IMPRODUCT(B89,'Design the AEF circuit'!$H$21*0.001)),IMDIV(1,'Design the AEF circuit'!$H$22*1000))), IMDIV(1,IMSUM(IMDIV(1,IMPRODUCT(B89,'Design the AEF circuit'!$H$23*0.001)),IMDIV(1,'Design the AEF circuit'!$H$24*1000))) ) -> 0.285596428603672+37.2117491371692j | Q89: =IMDIV(1, IMSUM( IMDIV(1, P89), IMPRODUCT(B89,'Design the AEF circuit'!$H$20*0.000000000001) ) ) -> 0.285597298705989+37.2118058187206j
A90: ='Frequency vector'!G90 -> 299.9069538 | B90: =COMPLEX(0,2*PI()*'Frequency vector'!G90,"j") -> 1884.37096581198j | C90: =IF(IF(CMdata=1,IMABS(K90),'CM choke'!C94)=0, C89, IF(CMdata=1,IMABS(K90),'CM choke'!C94)) -> 25.55749098 | D90: =IF(IF(CMdata=1,DEGREES(IMARGUMENT(K90)),'CM choke'!D94)=0, D89, IF(CMdata=1,DEGREES(IMARGUMENT(K90)),'CM choke'!D94)) -> 91.46642836 | E90: =IF(IF(CMdata=1,IMABS(L90),'CM choke'!E94)=0, E89, IF(CMdata=1,IMABS(L90),'CM choke'!E94)) -> 25.55749098 | F90: =IF(IF(CMdata=1,DEGREES(IMARGUMENT(L90)),'CM choke'!F94)=0, F89, IF(CMdata=1,DEGREES(IMARGUMENT(L90)),'CM choke'!F94)) -> 91.46642836 | G90: -0.6540470915 | H90: 25.54912069 | I90: -0.6540470915 | J90: 25.54912069 | K90: =IF(CMdata=1, IF(Lcm1_core=1, IMDIV(1,IMSUM(IMDIV(1,IMPRODUCT(B90,'Design the AEF circuit'!$G$18*0.001)),IMDIV(1,'Design the AEF circuit'!$G$19*1000),IMPRODUCT(B90,'Design the AEF circuit'!$G$20*0.000000000001))), O90),COMPLEX(G90,H90,"j")) -> -0.654047091491914+25.5491206860066j | L90: =IF(CMdata=1, IF(Lcm2_core=1, IMDIV(1, IMSUM(IMDIV(1,IMPRODUCT(B90,'Design the AEF circuit'!$H$18*0.001)), IMDIV(1,'Design the AEF circuit'!$H$19*1000), IMPRODUCT(B90,'Design the AEF circuit'!$H$20*0.000000000001))), Q90), COMPLEX(I90,J90,"j")) -> -0.654047091491914+25.5491206860066j | N90: =IMSUM(IMDIV(1,IMSUM(IMDIV(1,IMPRODUCT(B90,'Design the AEF circuit'!$G$18*0.001)),IMDIV(1,'Design the AEF circuit'!$G$19*1000))), IMDIV(1,IMSUM(IMDIV(1,IMPRODUCT(B90,'Design the AEF circuit'!$G$21*0.001)),IMDIV(1,'Design the AEF circuit'!$G$22*1000))), IMDIV(1,IMSUM(IMDIV(1,IMPRODUCT(B90,'Design the AEF circuit'!$G$23*0.001)),IMDIV(1,'Design the AEF circuit'!$G$24*1000))) ) -> 0.292898238544391+37.6844192187554j | O90: =IMDIV(1, IMSUM( IMDIV(1, N90), IMPRODUCT(B90,'Design the AEF circuit'!$G$20*0.000000000001))) -> 0.292899153707878+37.6844780878259j | P90: =IMSUM(IMDIV(1,IMSUM(IMDIV(1,IMPRODUCT(B90,'Design the AEF circuit'!$H$18*0.001)),IMDIV(1,'Design the AEF circuit'!$H$19*1000))), IMDIV(1,IMSUM(IMDIV(1,IMPRODUCT(B90,'Design the AEF circuit'!$H$21*0.001)),IMDIV(1,'Design the AEF circuit'!$H$22*1000))), IMDIV(1,IMSUM(IMDIV(1,IMPRODUCT(B90,'Design the AEF circuit'!$H$23*0.001)),IMDIV(1,'Design the AEF circuit'!$H$24*1000))) ) -> 0.292898238544391+37.6844192187554j | Q90: =IMDIV(1, IMSUM( IMDIV(1, P90), IMPRODUCT(B90,'Design the AEF circuit'!$H$20*0.000000000001) ) ) -> 0.292899153707878+37.6844780878259j
A91: ='Frequency vector'!G91 -> 303.7170267 | B91: =COMPLEX(0,2*PI()*'Frequency vector'!G91,"j") -> 1908.3103594509j | C91: =IF(IF(CMdata=1,IMABS(K91),'CM choke'!C95)=0, C90, IF(CMdata=1,IMABS(K91),'CM choke'!C95)) -> 25.85164661 | D91: =IF(IF(CMdata=1,DEGREES(IMARGUMENT(K91)),'CM choke'!D95)=0, D90, IF(CMdata=1,DEGREES(IMARGUMENT(K91)),'CM choke'!D95)) -> 91.21571108 | E91: =IF(IF(CMdata=1,IMABS(L91),'CM choke'!E95)=0, E90, IF(CMdata=1,IMABS(L91),'CM choke'!E95)) -> 25.85164661 | F91: =IF(IF(CMdata=1,DEGREES(IMARGUMENT(L91)),'CM choke'!F95)=0, F90, IF(CMdata=1,DEGREES(IMARGUMENT(L91)),'CM choke'!F95)) -> 91.21571108 | G91: -0.5484832426 | H91: 25.84582749 | I91: -0.5484832426 | J91: 25.84582749 | K91: =IF(CMdata=1, IF(Lcm1_core=1, IMDIV(1,IMSUM(IMDIV(1,IMPRODUCT(B91,'Design the AEF circuit'!$G$18*0.001)),IMDIV(1,'Design the AEF circuit'!$G$19*1000),IMPRODUCT(B91,'Design the AEF circuit'!$G$20*0.000000000001))), O91),COMPLEX(G91,H91,"j")) -> -0.548483242562035+25.8458274883524j | L91: =IF(CMdata=1, IF(Lcm2_core=1, IMDIV(1, IMSUM(IMDIV(1,IMPRODUCT(B91,'Design the AEF circuit'!$H$18*0.001)), IMDIV(1,'Design the AEF circuit'!$H$19*1000), IMPRODUCT(B91,'Design the AEF circuit'!$H$20*0.000000000001))), Q91), COMPLEX(I91,J91,"j")) -> -0.548483242562035+25.8458274883524j | N91: =IMSUM(IMDIV(1,IMSUM(IMDIV(1,IMPRODUCT(B91,'Design the AEF circuit'!$G$18*0.001)),IMDIV(1,'Design the AEF circuit'!$G$19*1000))), IMDIV(1,IMSUM(IMDIV(1,IMPRODUCT(B91,'Design the AEF circuit'!$G$21*0.001)),IMDIV(1,'Design the AEF circuit'!$G$22*1000))), IMDIV(1,IMSUM(IMDIV(1,IMPRODUCT(B91,'Design the AEF circuit'!$G$23*0.001)),IMDIV(1,'Design the AEF circuit'!$G$24*1000))) ) -> 0.300386711416768+38.1630913012429j | O91: =IMDIV(1, IMSUM( IMDIV(1, N91), IMPRODUCT(B91,'Design the AEF circuit'!$G$20*0.000000000001))) -> 0.300387673974952+38.1631524422475j | P91: =IMSUM(IMDIV(1,IMSUM(IMDIV(1,IMPRODUCT(B91,'Design the AEF circuit'!$H$18*0.001)),IMDIV(1,'Design the AEF circuit'!$H$19*1000))), IMDIV(1,IMSUM(IMDIV(1,IMPRODUCT(B91,'Design the AEF circuit'!$H$21*0.001)),IMDIV(1,'Design the AEF circuit'!$H$22*1000))), IMDIV(1,IMSUM(IMDIV(1,IMPRODUCT(B91,'Design the AEF circuit'!$H$23*0.001)),IMDIV(1,'Design the AEF circuit'!$H$24*1000))) ) -> 0.300386711416768+38.1630913012429j | Q91: =IMDIV(1, IMSUM( IMDIV(1, P91), IMPRODUCT(B91,'Design the AEF circuit'!$H$20*0.000000000001) ) ) -> 0.300387673974952+38.1631524422475j
A92: ='Frequency vector'!G92 -> 307.5755034 | B92: =COMPLEX(0,2*PI()*'Frequency vector'!G92,"j") -> 1932.55388352815j | C92: =IF(IF(CMdata=1,IMABS(K92),'CM choke'!C96)=0, C91, IF(CMdata=1,IMABS(K92),'CM choke'!C96)) -> 26.15166884 | D92: =IF(IF(CMdata=1,DEGREES(IMARGUMENT(K92)),'CM choke'!D96)=0, D91, IF(CMdata=1,DEGREES(IMARGUMENT(K92)),'CM choke'!D96)) -> 91.14653033 | E92: =IF(IF(CMdata=1,IMABS(L92),'CM choke'!E96)=0, E91, IF(CMdata=1,IMABS(L92),'CM choke'!E96)) -> 26.15166884 | F92: =IF(IF(CMdata=1,DEGREES(IMARGUMENT(L92)),'CM choke'!F96)=0, F91, IF(CMdata=1,DEGREES(IMARGUMENT(L92)),'CM choke'!F96)) -> 91.14653033 | G92: -0.5232790385 | H92: 26.14643306 | I92: -0.5232790385 | J92: 26.14643306 | K92: =IF(CMdata=1, IF(Lcm1_core=1, IMDIV(1,IMSUM(IMDIV(1,IMPRODUCT(B92,'Design the AEF circuit'!$G$18*0.001)),IMDIV(1,'Design the AEF circuit'!$G$19*1000),IMPRODUCT(B92,'Design the AEF circuit'!$G$20*0.000000000001))), O92),COMPLEX(G92,H92,"j")) -> -0.523279038494526+26.1464330630842j | L92: =IF(CMdata=1, IF(Lcm2_core=1, IMDIV(1, IMSUM(IMDIV(1,IMPRODUCT(B92,'Design the AEF circuit'!$H$18*0.001)), IMDIV(1,'Design the AEF circuit'!$H$19*1000), IMPRODUCT(B92,'Design the AEF circuit'!$H$20*0.000000000001))), Q92), COMPLEX(I92,J92,"j")) -> -0.523279038494526+26.1464330630842j | N92: =IMSUM(IMDIV(1,IMSUM(IMDIV(1,IMPRODUCT(B92,'Design the AEF circuit'!$G$18*0.001)),IMDIV(1,'Design the AEF circuit'!$G$19*1000))), IMDIV(1,IMSUM(IMDIV(1,IMPRODUCT(B92,'Design the AEF circuit'!$G$21*0.001)),IMDIV(1,'Design the AEF circuit'!$G$22*1000))), IMDIV(1,IMSUM(IMDIV(1,IMPRODUCT(B92,'Design the AEF circuit'!$G$23*0.001)),IMDIV(1,'Design the AEF circuit'!$G$24*1000))) ) -> 0.308066617940976+38.6478415237729j | O92: =IMDIV(1, IMSUM( IMDIV(1, N92), IMPRODUCT(B92,'Design the AEF circuit'!$G$20*0.000000000001))) -> 0.308067630348217+38.6479050243829j | P92: =IMSUM(IMDIV(1,IMSUM(IMDIV(1,IMPRODUCT(B92,'Design the AEF circuit'!$H$18*0.001)),IMDIV(1,'Design the AEF circuit'!$H$19*1000))), IMDIV(1,IMSUM(IMDIV(1,IMPRODUCT(B92,'Design the AEF circuit'!$H$21*0.001)),IMDIV(1,'Design the AEF circuit'!$H$22*1000))), IMDIV(1,IMSUM(IMDIV(1,IMPRODUCT(B92,'Design the AEF circuit'!$H$23*0.001)),IMDIV(1,'Design the AEF circuit'!$H$24*1000))) ) -> 0.308066617940976+38.6478415237729j | Q92: =IMDIV(1, IMSUM( IMDIV(1, P92), IMPRODUCT(B92,'Design the AEF circuit'!$H$20*0.000000000001) ) ) -> 0.308067630348217+38.6479050243829j
A93: ='Frequency vector'!G93 -> 311.4829988 | B93: =COMPLEX(0,2*PI()*'Frequency vector'!G93,"j") -> 1957.10540177247j | C93: =IF(IF(CMdata=1,IMABS(K93),'CM choke'!C97)=0, C92, IF(CMdata=1,IMABS(K93),'CM choke'!C97)) -> 26.31121777 | D93: =IF(IF(CMdata=1,DEGREES(IMARGUMENT(K93)),'CM choke'!D97)=0, D92, IF(CMdata=1,DEGREES(IMARGUMENT(K93)),'CM choke'!D97)) -> 91.29993907 | E93: =IF(IF(CMdata=1,IMABS(L93),'CM choke'!E97)=0, E92, IF(CMdata=1,IMABS(L93),'CM choke'!E97)) -> 26.31121777 | F93: =IF(IF(CMdata=1,DEGREES(IMARGUMENT(L93)),'CM choke'!F97)=0, F92, IF(CMdata=1,DEGREES(IMARGUMENT(L93)),'CM choke'!F97)) -> 91.29993907 | G93: -0.5969034035 | H93: 26.30444614 | I93: -0.5969034035 | J93: 26.30444614 | K93: =IF(CMdata=1, IF(Lcm1_core=1, IMDIV(1,IMSUM(IMDIV(1,IMPRODUCT(B93,'Design the AEF circuit'!$G$18*0.001)),IMDIV(1,'Design the AEF circuit'!$G$19*1000),IMPRODUCT(B93,'Design the AEF circuit'!$G$20*0.000000000001))), O93),COMPLEX(G93,H93,"j")) -> -0.596903403455324+26.3044461436676j | L93: =IF(CMdata=1, IF(Lcm2_core=1, IMDIV(1, IMSUM(IMDIV(1,IMPRODUCT(B93,'Design the AEF circuit'!$H$18*0.001)), IMDIV(1,'Design the AEF circuit'!$H$19*1000), IMPRODUCT(B93,'Design the AEF circuit'!$H$20*0.000000000001))), Q93), COMPLEX(I93,J93,"j")) -> -0.596903403455324+26.3044461436676j | N93: =IMSUM(IMDIV(1,IMSUM(IMDIV(1,IMPRODUCT(B93,'Design the AEF circuit'!$G$18*0.001)),IMDIV(1,'Design the AEF circuit'!$G$19*1000))), IMDIV(1,IMSUM(IMDIV(1,IMPRODUCT(B93,'Design the AEF circuit'!$G$21*0.001)),IMDIV(1,'Design the AEF circuit'!$G$22*1000))), IMDIV(1,IMSUM(IMDIV(1,IMPRODUCT(B93,'Design the AEF circuit'!$G$23*0.001)),IMDIV(1,'Design the AEF circuit'!$G$24*1000))) ) -> 0.315942850709093+39.1387469884745j | O93: =IMDIV(1, IMSUM( IMDIV(1, N93), IMPRODUCT(B93,'Design the AEF circuit'!$G$20*0.000000000001))) -> 0.315943915546845+39.1388129397445j | P93: =IMSUM(IMDIV(1,IMSUM(IMDIV(1,IMPRODUCT(B93,'Design the AEF circuit'!$H$18*0.001)),IMDIV(1,'Design the AEF circuit'!$H$19*1000))), IMDIV(1,IMSUM(IMDIV(1,IMPRODUCT(B93,'Design the AEF circuit'!$H$21*0.001)),IMDIV(1,'Design the AEF circuit'!$H$22*1000))), IMDIV(1,IMSUM(IMDIV(1,IMPRODUCT(B93,'Design the AEF circuit'!$H$23*0.001)),IMDIV(1,'Design the AEF circuit'!$H$24*1000))) ) -> 0.315942850709093+39.1387469884745j | Q93: =IMDIV(1, IMSUM( IMDIV(1, P93), IMPRODUCT(B93,'Design the AEF circuit'!$H$20*0.000000000001) ) ) -> 0.315943915546845+39.1388129397445j
A94: ='Frequency vector'!G94 -> 315.4401359 | B94: =COMPLEX(0,2*PI()*'Frequency vector'!G94,"j") -> 1981.96882699815j | C94: =IF(IF(CMdata=1,IMABS(K94),'CM choke'!C98)=0, C93, IF(CMdata=1,IMABS(K94),'CM choke'!C98)) -> 26.82369483 | D94: =IF(IF(CMdata=1,DEGREES(IMARGUMENT(K94)),'CM choke'!D98)=0, D93, IF(CMdata=1,DEGREES(IMARGUMENT(K94)),'CM choke'!D98)) -> 91.05387466 | E94: =IF(IF(CMdata=1,IMABS(L94),'CM choke'!E98)=0, E93, IF(CMdata=1,IMABS(L94),'CM choke'!E98)) -> 26.82369483 | F94: =IF(IF(CMdata=1,DEGREES(IMARGUMENT(L94)),'CM choke'!F98)=0, F93, IF(CMdata=1,DEGREES(IMARGUMENT(L94)),'CM choke'!F98)) -> 91.05387466 | G94: -0.4933560307 | H94: 26.81915741 | I94: -0.4933560307 | J94: 26.81915741 | K94: =IF(CMdata=1, IF(Lcm1_core=1, IMDIV(1,IMSUM(IMDIV(1,IMPRODUCT(B94,'Design the AEF circuit'!$G$18*0.001)),IMDIV(1,'Design the AEF circuit'!$G$19*1000),IMPRODUCT(B94,'Design the AEF circuit'!$G$20*0.000000000001))), O94),COMPLEX(G94,H94,"j")) -> -0.493356030657953+26.8191574065675j | L94: =IF(CMdata=1, IF(Lcm2_core=1, IMDIV(1, IMSUM(IMDIV(1,IMPRODUCT(B94,'Design the AEF circuit'!$H$18*0.001)), IMDIV(1,'Design the AEF circuit'!$H$19*1000), IMPRODUCT(B94,'Design the AEF circuit'!$H$20*0.000000000001))), Q94), COMPLEX(I94,J94,"j")) -> -0.493356030657953+26.8191574065675j | N94: =IMSUM(IMDIV(1,IMSUM(IMDIV(1,IMPRODUCT(B94,'Design the AEF circuit'!$G$18*0.001)),IMDIV(1,'Design the AEF circuit'!$G$19*1000))), IMDIV(1,IMSUM(IMDIV(1,IMPRODUCT(B94,'Design the AEF circuit'!$G$21*0.001)),IMDIV(1,'Design the AEF circuit'!$G$22*1000))), IMDIV(1,IMSUM(IMDIV(1,IMPRODUCT(B94,'Design the AEF circuit'!$G$23*0.001)),IMDIV(1,'Design the AEF circuit'!$G$24*1000))) ) -> 0.324020427295467+39.6358857725348j | O94: =IMDIV(1, IMSUM( IMDIV(1, N94), IMPRODUCT(B94,'Design the AEF circuit'!$G$20*0.000000000001))) -> 0.324021547278852+39.6359542690319j | P94: =IMSUM(IMDIV(1,IMSUM(IMDIV(1,IMPRODUCT(B94,'Design the AEF circuit'!$H$18*0.001)),IMDIV(1,'Design the AEF circuit'!$H$19*1000))), IMDIV(1,IMSUM(IMDIV(1,IMPRODUCT(B94,'Design the AEF circuit'!$H$21*0.001)),IMDIV(1,'Design the AEF circuit'!$H$22*1000))), IMDIV(1,IMSUM(IMDIV(1,IMPRODUCT(B94,'Design the AEF circuit'!$H$23*0.001)),IMDIV(1,'Design the AEF circuit'!$H$24*1000))) ) -> 0.324020427295467+39.6358857725348j | Q94: =IMDIV(1, IMSUM( IMDIV(1, P94), IMPRODUCT(B94,'Design the AEF circuit'!$H$20*0.000000000001) ) ) -> 0.324021547278852+39.6359542690319j
A95: ='Frequency vector'!G95 -> 319.4475451 | B95: =COMPLEX(0,2*PI()*'Frequency vector'!G95,"j") -> 2007.14812172855j | C95: =IF(IF(CMdata=1,IMABS(K95),'CM choke'!C99)=0, C94, IF(CMdata=1,IMABS(K95),'CM choke'!C99)) -> 27.18603011 | D95: =IF(IF(CMdata=1,DEGREES(IMARGUMENT(K95)),'CM choke'!D99)=0, D94, IF(CMdata=1,DEGREES(IMARGUMENT(K95)),'CM choke'!D99)) -> 90.85445366 | E95: =IF(IF(CMdata=1,IMABS(L95),'CM choke'!E99)=0, E94, IF(CMdata=1,IMABS(L95),'CM choke'!E99)) -> 27.18603011 | F95: =IF(IF(CMdata=1,DEGREES(IMARGUMENT(L95)),'CM choke'!F99)=0, F94, IF(CMdata=1,DEGREES(IMARGUMENT(L95)),'CM choke'!F99)) -> 90.85445366 | G95: -0.4054110479 | H95: 27.1830071 | I95: -0.4054110479 | J95: 27.1830071 | K95: =IF(CMdata=1, IF(Lcm1_core=1, IMDIV(1,IMSUM(IMDIV(1,IMPRODUCT(B95,'Design the AEF circuit'!$G$18*0.001)),IMDIV(1,'Design the AEF circuit'!$G$19*1000),IMPRODUCT(B95,'Design the AEF circuit'!$G$20*0.000000000001))), O95),COMPLEX(G95,H95,"j")) -> -0.405411047865985+27.1830070977421j | L95: =IF(CMdata=1, IF(Lcm2_core=1, IMDIV(1, IMSUM(IMDIV(1,IMPRODUCT(B95,'Design the AEF circuit'!$H$18*0.001)), IMDIV(1,'Design the AEF circuit'!$H$19*1000), IMPRODUCT(B95,'Design the AEF circuit'!$H$20*0.000000000001))), Q95), COMPLEX(I95,J95,"j")) -> -0.405411047865985+27.1830070977421j | N95: =IMSUM(IMDIV(1,IMSUM(IMDIV(1,IMPRODUCT(B95,'Design the AEF circuit'!$G$18*0.001)),IMDIV(1,'Design the AEF circuit'!$G$19*1000))), IMDIV(1,IMSUM(IMDIV(1,IMPRODUCT(B95,'Design the AEF circuit'!$G$21*0.001)),IMDIV(1,'Design the AEF circuit'!$G$22*1000))), IMDIV(1,IMSUM(IMDIV(1,IMPRODUCT(B95,'Design the AEF circuit'!$G$23*0.001)),IMDIV(1,'Design the AEF circuit'!$G$24*1000))) ) -> 0.332304493446213+40.1393369404115j | O95: =IMDIV(1, IMSUM( IMDIV(1, N95), IMPRODUCT(B95,'Design the AEF circuit'!$G$20*0.000000000001))) -> 0.332305671430948+40.1394080803517j | P95: =IMSUM(IMDIV(1,IMSUM(IMDIV(1,IMPRODUCT(B95,'Design the AEF circuit'!$H$18*0.001)),IMDIV(1,'Design the AEF circuit'!$H$19*1000))), IMDIV(1,IMSUM(IMDIV(1,IMPRODUCT(B95,'Design the AEF circuit'!$H$21*0.001)),IMDIV(1,'Design the AEF circuit'!$H$22*1000))), IMDIV(1,IMSUM(IMDIV(1,IMPRODUCT(B95,'Design the AEF circuit'!$H$23*0.001)),IMDIV(1,'Design the AEF circuit'!$H$24*1000))) ) -> 0.332304493446213+40.1393369404115j | Q95: =IMDIV(1, IMSUM( IMDIV(1, P95), IMPRODUCT(B95,'Design the AEF circuit'!$H$20*0.000000000001) ) ) -> 0.332305671430948+40.1394080803517j
